Workbook

Sheet Sheet1
A1: Position | B1: Sub | C1: Cumulative revenue | D1: Cumulative revenue % | E1: 1 | F1: 2 | G1: 3 | H1: 4 | I1: 5 | J1: 6 | R1: Series | S1: Break point | T1: Group name | U1: Revenue | V1: % of revenue | W1: Average sub | X1: No. of subs | Y1: % of subs | Z1: Datalabel Text | AA1: Revenue format | AB1: Average Sub Format | AC1: Average Sub Label x-value
A2: =ROW()-ROW(Table2[[#Headers],[Position]]) -> 1 | B2: 28600 | C2: =Table2[[#This Row],[Sub]] -> 28600 | D2: =Table2[[#This Row],[Cumulative revenue]]/SUM(Table2[Sub]) -> 0.03751443397 | E2: =IF(AND(Table2[[#This Row],[Cumulative revenue %]]>INDEX(Table1[Break point],Table2[[#Headers],[1]:[6]]), Table2[[#This Row],[Cumulative revenue %]]<=INDEX(Table1[Break point],Table2[[#Headers],[1]:[6]]+1)),Table2[[#This Row],[Sub]],NA()) -> 28600 | F2: =IF(AND(Table2[[#This Row],[Cumulative revenue %]]>INDEX(Table1[Break point],Table2[[#Headers],[1]:[6]]), Table2[[#This Row],[Cumulative revenue %]]<=INDEX(Table1[Break point],Table2[[#Headers],[1]:[6]]+1)),Table2[[#This Row],[Sub]],NA()) ->  | G2: =IF(AND(Table2[[#This Row],[Cumulative revenue %]]>INDEX(Table1[Break point],Table2[[#Headers],[1]:[6]]), Table2[[#This Row],[Cumulative revenue %]]<=INDEX(Table1[Break point],Table2[[#Headers],[1]:[6]]+1)),Table2[[#This Row],[Sub]],NA()) ->  | H2: =IF(AND(Table2[[#This Row],[Cumulative revenue %]]>INDEX(Table1[Break point],Table2[[#Headers],[1]:[6]]), Table2[[#This Row],[Cumulative revenue %]]<=INDEX(Table1[Break point],Table2[[#Headers],[1]:[6]]+1)),Table2[[#This Row],[Sub]],NA()) ->  | I2: =IF(AND(Table2[[#This Row],[Cumulative revenue %]]>INDEX(Table1[Break point],Table2[[#Headers],[1]:[6]]), Table2[[#This Row],[Cumulative revenue %]]<=INDEX(Table1[Break point],Table2[[#Headers],[1]:[6]]+1)),Table2[[#This Row],[Sub]],NA()) ->  | J2: =IF(AND(Table2[[#This Row],[Cumulative revenue %]]>INDEX(Table1[Break point],Table2[[#Headers],[1]:[6]]), Table2[[#This Row],[Cumulative revenue %]]<=INDEX(Table1[Break point],Table2[[#Headers],[1]:[6]]+1)),Table2[[#This Row],[Sub]],NA()) ->  | R2: 0 | S2: -0.001 | T2: Total | U2: 762373.2248 | V2: 1 | W2: 2584.316016 | X2: 295 | Y2: 1 | Z2: Total: 295 customers $762k revenue Average sub: $2,584 | AA2: $##0,k | AB2: $#,### | AC2: 84.23706199
A3: =ROW()-ROW(Table2[[#Headers],[Position]]) -> 2 | B3: 27500 | C3: =B3+C2 -> 56100 | D3: =Table2[[#This Row],[Cumulative revenue]]/SUM(Table2[Sub]) -> 0.07358600509 | E3: =IF(AND(Table2[[#This Row],[Cumulative revenue %]]>INDEX(Table1[Break point],Table2[[#Headers],[1]:[6]]), Table2[[#This Row],[Cumulative revenue %]]<=INDEX(Table1[Break point],Table2[[#Headers],[1]:[6]]+1)),Table2[[#This Row],[Sub]],NA()) -> 27500 | F3: =IF(AND(Table2[[#This Row],[Cumulative revenue %]]>INDEX(Table1[Break point],Table2[[#Headers],[1]:[6]]), Table2[[#This Row],[Cumulative revenue %]]<=INDEX(Table1[Break point],Table2[[#Headers],[1]:[6]]+1)),Table2[[#This Row],[Sub]],NA()) ->  | G3: =IF(AND(Table2[[#This Row],[Cumulative revenue %]]>INDEX(Table1[Break point],Table2[[#Headers],[1]:[6]]), Table2[[#This Row],[Cumulative revenue %]]<=INDEX(Table1[Break point],Table2[[#Headers],[1]:[6]]+1)),Table2[[#This Row],[Sub]],NA()) ->  | H3: =IF(AND(Table2[[#This Row],[Cumulative revenue %]]>INDEX(Table1[Break point],Table2[[#Headers],[1]:[6]]), Table2[[#This Row],[Cumulative revenue %]]<=INDEX(Table1[Break point],Table2[[#Headers],[1]:[6]]+1)),Table2[[#This Row],[Sub]],NA()) ->  | I3: =IF(AND(Table2[[#This Row],[Cumulative revenue %]]>INDEX(Table1[Break point],Table2[[#Headers],[1]:[6]]), Table2[[#This Row],[Cumulative revenue %]]<=INDEX(Table1[Break point],Table2[[#Headers],[1]:[6]]+1)),Table2[[#This Row],[Sub]],NA()) ->  | J3: =IF(AND(Table2[[#This Row],[Cumulative revenue %]]>INDEX(Table1[Break point],Table2[[#Headers],[1]:[6]]), Table2[[#This Row],[Cumulative revenue %]]<=INDEX(Table1[Break point],Table2[[#Headers],[1]:[6]]+1)),Table2[[#This Row],[Sub]],NA()) ->  | R3: 1 | S3: 0.2 | T3: 1st quintile | U3: 143070 | V3: 0.1876639884 | W3: 23845 | X3: 6 | Y3: 0.02033898305 | Z3: 1st quintile: 2% of customers (6) 19% of revenue ($143k) Average sub: $23,845 | AA3: $##0,k | AB3: $#,### | AC3: 3.655
A4: =ROW()-ROW(Table2[[#Headers],[Position]]) -> 3 | B4: 24500 | C4: 80600 | D4: =Table2[[#This Row],[Cumulative revenue]]/SUM(Table2[Sub]) -> 0.1057224957 | E4: =IF(AND(Table2[[#This Row],[Cumulative revenue %]]>INDEX(Table1[Break point],Table2[[#Headers],[1]:[6]]), Table2[[#This Row],[Cumulative revenue %]]<=INDEX(Table1[Break point],Table2[[#Headers],[1]:[6]]+1)),Table2[[#This Row],[Sub]],NA()) -> 24500 | F4: =IF(AND(Table2[[#This Row],[Cumulative revenue %]]>INDEX(Table1[Break point],Table2[[#Headers],[1]:[6]]), Table2[[#This Row],[Cumulative revenue %]]<=INDEX(Table1[Break point],Table2[[#Headers],[1]:[6]]+1)),Table2[[#This Row],[Sub]],NA()) ->  | G4: =IF(AND(Table2[[#This Row],[Cumulative revenue %]]>INDEX(Table1[Break point],Table2[[#Headers],[1]:[6]]), Table2[[#This Row],[Cumulative revenue %]]<=INDEX(Table1[Break point],Table2[[#Headers],[1]:[6]]+1)),Table2[[#This Row],[Sub]],NA()) ->  | H4: =IF(AND(Table2[[#This Row],[Cumulative revenue %]]>INDEX(Table1[Break point],Table2[[#Headers],[1]:[6]]), Table2[[#This Row],[Cumulative revenue %]]<=INDEX(Table1[Break point],Table2[[#Headers],[1]:[6]]+1)),Table2[[#This Row],[Sub]],NA()) ->  | I4: =IF(AND(Table2[[#This Row],[Cumulative revenue %]]>INDEX(Table1[Break point],Table2[[#Headers],[1]:[6]]), Table2[[#This Row],[Cumulative revenue %]]<=INDEX(Table1[Break point],Table2[[#Headers],[1]:[6]]+1)),Table2[[#This Row],[Sub]],NA()) ->  | J4: =IF(AND(Table2[[#This Row],[Cumulative revenue %]]>INDEX(Table1[Break point],Table2[[#Headers],[1]:[6]]), Table2[[#This Row],[Cumulative revenue %]]<=INDEX(Table1[Break point],Table2[[#Headers],[1]:[6]]+1)),Table2[[#This Row],[Sub]],NA()) ->  | R4: 2 | S4: 0.4 | T4: 2nd quintile | U4: 153658.06 | V4: 0.2015522778 | W4: 13968.91455 | X4: 11 | Y4: 0.03728813559 | Z4: 2nd quintile: 4% of customers (11) 20% of revenue ($154k) Average sub: $13,969 | AA4: $##0,k | AB4: $#,### | AC4: 9.687390303
A5: =ROW()-ROW(Table2[[#Headers],[Position]]) -> 4 | B5: 23500 | C5: 104100 | D5: =Table2[[#This Row],[Cumulative revenue]]/SUM(Table2[Sub]) -> 0.1365472929 | E5: =IF(AND(Table2[[#This Row],[Cumulative revenue %]]>INDEX(Table1[Break point],Table2[[#Headers],[1]:[6]]), Table2[[#This Row],[Cumulative revenue %]]<=INDEX(Table1[Break point],Table2[[#Headers],[1]:[6]]+1)),Table2[[#This Row],[Sub]],NA()) -> 23500 | F5: =IF(AND(Table2[[#This Row],[Cumulative revenue %]]>INDEX(Table1[Break point],Table2[[#Headers],[1]:[6]]), Table2[[#This Row],[Cumulative revenue %]]<=INDEX(Table1[Break point],Table2[[#Headers],[1]:[6]]+1)),Table2[[#This Row],[Sub]],NA()) ->  | G5: =IF(AND(Table2[[#This Row],[Cumulative revenue %]]>INDEX(Table1[Break point],Table2[[#Headers],[1]:[6]]), Table2[[#This Row],[Cumulative revenue %]]<=INDEX(Table1[Break point],Table2[[#Headers],[1]:[6]]+1)),Table2[[#This Row],[Sub]],NA()) ->  | H5: =IF(AND(Table2[[#This Row],[Cumulative revenue %]]>INDEX(Table1[Break point],Table2[[#Headers],[1]:[6]]), Table2[[#This Row],[Cumulative revenue %]]<=INDEX(Table1[Break point],Table2[[#Headers],[1]:[6]]+1)),Table2[[#This Row],[Sub]],NA()) ->  | I5: =IF(AND(Table2[[#This Row],[Cumulative revenue %]]>INDEX(Table1[Break point],Table2[[#Headers],[1]:[6]]), Table2[[#This Row],[Cumulative revenue %]]<=INDEX(Table1[Break point],Table2[[#Headers],[1]:[6]]+1)),Table2[[#This Row],[Sub]],NA()) ->  | J5: =IF(AND(Table2[[#This Row],[Cumulative revenue %]]>INDEX(Table1[Break point],Table2[[#Headers],[1]:[6]]), Table2[[#This Row],[Cumulative revenue %]]<=INDEX(Table1[Break point],Table2[[#Headers],[1]:[6]]+1)),Table2[[#This Row],[Sub]],NA()) ->  | R5: 3 | S5: 0.6 | T5: 3rd quintile | U5: 158581.868 | V5: 0.2080108047 | W5: 5468.340276 | X5: 29 | Y5: 0.09830508475 | Z5: 3rd quintile: 10% of customers (29) 21% of revenue ($159k) Average sub: $5,468 | AA5: $##0,k | AB5: $#,### | AC5: 29.70522111
A6: =ROW()-ROW(Table2[[#Headers],[Position]]) -> 5 | B6: 20250 | C6: 124350 | D6: =Table2[[#This Row],[Cumulative revenue]]/SUM(Table2[Sub]) -> 0.1631090861 | E6: =IF(AND(Table2[[#This Row],[Cumulative revenue %]]>INDEX(Table1[Break point],Table2[[#Headers],[1]:[6]]), Table2[[#This Row],[Cumulative revenue %]]<=INDEX(Table1[Break point],Table2[[#Headers],[1]:[6]]+1)),Table2[[#This Row],[Sub]],NA()) -> 20250 | F6: =IF(AND(Table2[[#This Row],[Cumulative revenue %]]>INDEX(Table1[Break point],Table2[[#Headers],[1]:[6]]), Table2[[#This Row],[Cumulative revenue %]]<=INDEX(Table1[Break point],Table2[[#Headers],[1]:[6]]+1)),Table2[[#This Row],[Sub]],NA()) ->  | G6: =IF(AND(Table2[[#This Row],[Cumulative revenue %]]>INDEX(Table1[Break point],Table2[[#Headers],[1]:[6]]), Table2[[#This Row],[Cumulative revenue %]]<=INDEX(Table1[Break point],Table2[[#Headers],[1]:[6]]+1)),Table2[[#This Row],[Sub]],NA()) ->  | H6: =IF(AND(Table2[[#This Row],[Cumulative revenue %]]>INDEX(Table1[Break point],Table2[[#Headers],[1]:[6]]), Table2[[#This Row],[Cumulative revenue %]]<=INDEX(Table1[Break point],Table2[[#Headers],[1]:[6]]+1)),Table2[[#This Row],[Sub]],NA()) ->  | I6: =IF(AND(Table2[[#This Row],[Cumulative revenue %]]>INDEX(Table1[Break point],Table2[[#Headers],[1]:[6]]), Table2[[#This Row],[Cumulative revenue %]]<=INDEX(Table1[Break point],Table2[[#Headers],[1]:[6]]+1)),Table2[[#This Row],[Sub]],NA()) ->  | J6: =IF(AND(Table2[[#This Row],[Cumulative revenue %]]>INDEX(Table1[Break point],Table2[[#Headers],[1]:[6]]), Table2[[#This Row],[Cumulative revenue %]]<=INDEX(Table1[Break point],Table2[[#Headers],[1]:[6]]+1)),Table2[[#This Row],[Sub]],NA()) ->  | R6: 4 | S6: 0.8 | T6: 4th quintile | U6: 152627.6 | V6: 0.2002006301 | W6: 3317.991304 | X6: 46 | Y6: 0.1559322034 | Z6: 4th quintile: 16% of customers (46) 20% of revenue ($153k) Average sub: $3,318 | AA6: $##0,k | AB6: $#,### | AC6: 69.96027899
A7: =ROW()-ROW(Table2[[#Headers],[Position]]) -> 6 | B7: 18720 | C7: 143070 | D7: =Table2[[#This Row],[Cumulative revenue]]/SUM(Table2[Sub]) -> 0.1876639884 | E7: =IF(AND(Table2[[#This Row],[Cumulative revenue %]]>INDEX(Table1[Break point],Table2[[#Headers],[1]:[6]]), Table2[[#This Row],[Cumulative revenue %]]<=INDEX(Table1[Break point],Table2[[#Headers],[1]:[6]]+1)),Table2[[#This Row],[Sub]],NA()) -> 18720 | F7: =IF(AND(Table2[[#This Row],[Cumulative revenue %]]>INDEX(Table1[Break point],Table2[[#Headers],[1]:[6]]), Table2[[#This Row],[Cumulative revenue %]]<=INDEX(Table1[Break point],Table2[[#Headers],[1]:[6]]+1)),Table2[[#This Row],[Sub]],NA()) ->  | G7: =IF(AND(Table2[[#This Row],[Cumulative revenue %]]>INDEX(Table1[Break point],Table2[[#Headers],[1]:[6]]), Table2[[#This Row],[Cumulative revenue %]]<=INDEX(Table1[Break point],Table2[[#Headers],[1]:[6]]+1)),Table2[[#This Row],[Sub]],NA()) ->  | H7: =IF(AND(Table2[[#This Row],[Cumulative revenue %]]>INDEX(Table1[Break point],Table2[[#Headers],[1]:[6]]), Table2[[#This Row],[Cumulative revenue %]]<=INDEX(Table1[Break point],Table2[[#Headers],[1]:[6]]+1)),Table2[[#This Row],[Sub]],NA()) ->  | I7: =IF(AND(Table2[[#This Row],[Cumulative revenue %]]>INDEX(Table1[Break point],Table2[[#Headers],[1]:[6]]), Table2[[#This Row],[Cumulative revenue %]]<=INDEX(Table1[Break point],Table2[[#Headers],[1]:[6]]+1)),Table2[[#This Row],[Sub]],NA()) ->  | J7: =IF(AND(Table2[[#This Row],[Cumulative revenue %]]>INDEX(Table1[Break point],Table2[[#Headers],[1]:[6]]), Table2[[#This Row],[Cumulative revenue %]]<=INDEX(Table1[Break point],Table2[[#Headers],[1]:[6]]+1)),Table2[[#This Row],[Sub]],NA()) ->  | R7: 5 | S7: 1 | T7: 5th quintile | U7: 154435.6968 | V7: 0.2025722989 | W7: 760.7669793 | X7: 203 | Y7: 0.6881355932 | Z7: 5th quintile: 69% of customers (203) 20% of revenue ($154k) Average sub: $761 | AA7: $##0,k | AB7: $#,### | AC7: 175.5109775
A8: =ROW()-ROW(Table2[[#Headers],[Position]]) -> 7 | B8: 18720 | C8: 161790 | D8: =Table2[[#This Row],[Cumulative revenue]]/SUM(Table2[Sub]) -> 0.2122188906 | E8: =IF(AND(Table2[[#This Row],[Cumulative revenue %]]>INDEX(Table1[Break point],Table2[[#Headers],[1]:[6]]), Table2[[#This Row],[Cumulative revenue %]]<=INDEX(Table1[Break point],Table2[[#Headers],[1]:[6]]+1)),Table2[[#This Row],[Sub]],NA()) ->  | F8: =IF(AND(Table2[[#This Row],[Cumulative revenue %]]>INDEX(Table1[Break point],Table2[[#Headers],[1]:[6]]), Table2[[#This Row],[Cumulative revenue %]]<=INDEX(Table1[Break point],Table2[[#Headers],[1]:[6]]+1)),Table2[[#This Row],[Sub]],NA()) -> 18720 | G8: =IF(AND(Table2[[#This Row],[Cumulative revenue %]]>INDEX(Table1[Break point],Table2[[#Headers],[1]:[6]]), Table2[[#This Row],[Cumulative revenue %]]<=INDEX(Table1[Break point],Table2[[#Headers],[1]:[6]]+1)),Table2[[#This Row],[Sub]],NA()) ->  | H8: =IF(AND(Table2[[#This Row],[Cumulative revenue %]]>INDEX(Table1[Break point],Table2[[#Headers],[1]:[6]]), Table2[[#This Row],[Cumulative revenue %]]<=INDEX(Table1[Break point],Table2[[#Headers],[1]:[6]]+1)),Table2[[#This Row],[Sub]],NA()) ->  | I8: =IF(AND(Table2[[#This Row],[Cumulative revenue %]]>INDEX(Table1[Break point],Table2[[#Headers],[1]:[6]]), Table2[[#This Row],[Cumulative revenue %]]<=INDEX(Table1[Break point],Table2[[#Headers],[1]:[6]]+1)),Table2[[#This Row],[Sub]],NA()) ->  | J8: =IF(AND(Table2[[#This Row],[Cumulative revenue %]]>INDEX(Table1[Break point],Table2[[#Headers],[1]:[6]]), Table2[[#This Row],[Cumulative revenue %]]<=INDEX(Table1[Break point],Table2[[#Headers],[1]:[6]]+1)),Table2[[#This Row],[Sub]],NA()) ->  | R8: 6 | X8: 0 | Y8: 0 | AA8: $##0,k | AB8: $#,###
A9: =ROW()-ROW(Table2[[#Headers],[Position]]) -> 8 | B9: 15500 | C9: 177290 | D9: =Table2[[#This Row],[Cumulative revenue]]/SUM(Table2[Sub]) -> 0.2325501398 | E9: =IF(AND(Table2[[#This Row],[Cumulative revenue %]]>INDEX(Table1[Break point],Table2[[#Headers],[1]:[6]]), Table2[[#This Row],[Cumulative revenue %]]<=INDEX(Table1[Break point],Table2[[#Headers],[1]:[6]]+1)),Table2[[#This Row],[Sub]],NA()) ->  | F9: =IF(AND(Table2[[#This Row],[Cumulative revenue %]]>INDEX(Table1[Break point],Table2[[#Headers],[1]:[6]]), Table2[[#This Row],[Cumulative revenue %]]<=INDEX(Table1[Break point],Table2[[#Headers],[1]:[6]]+1)),Table2[[#This Row],[Sub]],NA()) -> 15500 | G9: =IF(AND(Table2[[#This Row],[Cumulative revenue %]]>INDEX(Table1[Break point],Table2[[#Headers],[1]:[6]]), Table2[[#This Row],[Cumulative revenue %]]<=INDEX(Table1[Break point],Table2[[#Headers],[1]:[6]]+1)),Table2[[#This Row],[Sub]],NA()) ->  | H9: =IF(AND(Table2[[#This Row],[Cumulative revenue %]]>INDEX(Table1[Break point],Table2[[#Headers],[1]:[6]]), Table2[[#This Row],[Cumulative revenue %]]<=INDEX(Table1[Break point],Table2[[#Headers],[1]:[6]]+1)),Table2[[#This Row],[Sub]],NA()) ->  | I9: =IF(AND(Table2[[#This Row],[Cumulative revenue %]]>INDEX(Table1[Break point],Table2[[#Headers],[1]:[6]]), Table2[[#This Row],[Cumulative revenue %]]<=INDEX(Table1[Break point],Table2[[#Headers],[1]:[6]]+1)),Table2[[#This Row],[Sub]],NA()) ->  | J9: =IF(AND(Table2[[#This Row],[Cumulative revenue %]]>INDEX(Table1[Break point],Table2[[#Headers],[1]:[6]]), Table2[[#This Row],[Cumulative revenue %]]<=INDEX(Table1[Break point],Table2[[#Headers],[1]:[6]]+1)),Table2[[#This Row],[Sub]],NA()) ->  | L9: Pre2010_Position = dlWidth & "|" & dlHeight & "|" & ptLeft & "|" & ptTop
A10: =ROW()-ROW(Table2[[#Headers],[Position]]) -> 9 | B10: 15000 | C10: 192290 | D10: =Table2[[#This Row],[Cumulative revenue]]/SUM(Table2[Sub]) -> 0.2522255422 | E10: =IF(AND(Table2[[#This Row],[Cumulative revenue %]]>INDEX(Table1[Break point],Table2[[#Headers],[1]:[6]]), Table2[[#This Row],[Cumulative revenue %]]<=INDEX(Table1[Break point],Table2[[#Headers],[1]:[6]]+1)),Table2[[#This Row],[Sub]],NA()) ->  | F10: =IF(AND(Table2[[#This Row],[Cumulative revenue %]]>INDEX(Table1[Break point],Table2[[#Headers],[1]:[6]]), Table2[[#This Row],[Cumulative revenue %]]<=INDEX(Table1[Break point],Table2[[#Headers],[1]:[6]]+1)),Table2[[#This Row],[Sub]],NA()) -> 15000 | G10: =IF(AND(Table2[[#This Row],[Cumulative revenue %]]>INDEX(Table1[Break point],Table2[[#Headers],[1]:[6]]), Table2[[#This Row],[Cumulative revenue %]]<=INDEX(Table1[Break point],Table2[[#Headers],[1]:[6]]+1)),Table2[[#This Row],[Sub]],NA()) ->  | H10: =IF(AND(Table2[[#This Row],[Cumulative revenue %]]>INDEX(Table1[Break point],Table2[[#Headers],[1]:[6]]), Table2[[#This Row],[Cumulative revenue %]]<=INDEX(Table1[Break point],Table2[[#Headers],[1]:[6]]+1)),Table2[[#This Row],[Sub]],NA()) ->  | I10: =IF(AND(Table2[[#This Row],[Cumulative revenue %]]>INDEX(Table1[Break point],Table2[[#Headers],[1]:[6]]), Table2[[#This Row],[Cumulative revenue %]]<=INDEX(Table1[Break point],Table2[[#Headers],[1]:[6]]+1)),Table2[[#This Row],[Sub]],NA()) ->  | J10: =IF(AND(Table2[[#This Row],[Cumulative revenue %]]>INDEX(Table1[Break point],Table2[[#Headers],[1]:[6]]), Table2[[#This Row],[Cumulative revenue %]]<=INDEX(Table1[Break point],Table2[[#Headers],[1]:[6]]+1)),Table2[[#This Row],[Sub]],NA()) -> 
A11: =ROW()-ROW(Table2[[#Headers],[Position]]) -> 10 | B11: 13500 | C11: 205790 | D11: =Table2[[#This Row],[Cumulative revenue]]/SUM(Table2[Sub]) -> 0.2699334044 | E11: =IF(AND(Table2[[#This Row],[Cumulative revenue %]]>INDEX(Table1[Break point],Table2[[#Headers],[1]:[6]]), Table2[[#This Row],[Cumulative revenue %]]<=INDEX(Table1[Break point],Table2[[#Headers],[1]:[6]]+1)),Table2[[#This Row],[Sub]],NA()) ->  | F11: =IF(AND(Table2[[#This Row],[Cumulative revenue %]]>INDEX(Table1[Break point],Table2[[#Headers],[1]:[6]]), Table2[[#This Row],[Cumulative revenue %]]<=INDEX(Table1[Break point],Table2[[#Headers],[1]:[6]]+1)),Table2[[#This Row],[Sub]],NA()) -> 13500 | G11: =IF(AND(Table2[[#This Row],[Cumulative revenue %]]>INDEX(Table1[Break point],Table2[[#Headers],[1]:[6]]), Table2[[#This Row],[Cumulative revenue %]]<=INDEX(Table1[Break point],Table2[[#Headers],[1]:[6]]+1)),Table2[[#This Row],[Sub]],NA()) ->  | H11: =IF(AND(Table2[[#This Row],[Cumulative revenue %]]>INDEX(Table1[Break point],Table2[[#Headers],[1]:[6]]), Table2[[#This Row],[Cumulative revenue %]]<=INDEX(Table1[Break point],Table2[[#Headers],[1]:[6]]+1)),Table2[[#This Row],[Sub]],NA()) ->  | I11: =IF(AND(Table2[[#This Row],[Cumulative revenue %]]>INDEX(Table1[Break point],Table2[[#Headers],[1]:[6]]), Table2[[#This Row],[Cumulative revenue %]]<=INDEX(Table1[Break point],Table2[[#Headers],[1]:[6]]+1)),Table2[[#This Row],[Sub]],NA()) ->  | J11: =IF(AND(Table2[[#This Row],[Cumulative revenue %]]>INDEX(Table1[Break point],Table2[[#Headers],[1]:[6]]), Table2[[#This Row],[Cumulative revenue %]]<=INDEX(Table1[Break point],Table2[[#Headers],[1]:[6]]+1)),Table2[[#This Row],[Sub]],NA()) -> 
A12: =ROW()-ROW(Table2[[#Headers],[Position]]) -> 11 | B12: 13500 | C12: 219290 | D12: =Table2[[#This Row],[Cumulative revenue]]/SUM(Table2[Sub]) -> 0.2876412666 | E12: =IF(AND(Table2[[#This Row],[Cumulative revenue %]]>INDEX(Table1[Break point],Table2[[#Headers],[1]:[6]]), Table2[[#This Row],[Cumulative revenue %]]<=INDEX(Table1[Break point],Table2[[#Headers],[1]:[6]]+1)),Table2[[#This Row],[Sub]],NA()) ->  | F12: =IF(AND(Table2[[#This Row],[Cumulative revenue %]]>INDEX(Table1[Break point],Table2[[#Headers],[1]:[6]]), Table2[[#This Row],[Cumulative revenue %]]<=INDEX(Table1[Break point],Table2[[#Headers],[1]:[6]]+1)),Table2[[#This Row],[Sub]],NA()) -> 13500 | G12: =IF(AND(Table2[[#This Row],[Cumulative revenue %]]>INDEX(Table1[Break point],Table2[[#Headers],[1]:[6]]), Table2[[#This Row],[Cumulative revenue %]]<=INDEX(Table1[Break point],Table2[[#Headers],[1]:[6]]+1)),Table2[[#This Row],[Sub]],NA()) ->  | H12: =IF(AND(Table2[[#This Row],[Cumulative revenue %]]>INDEX(Table1[Break point],Table2[[#Headers],[1]:[6]]), Table2[[#This Row],[Cumulative revenue %]]<=INDEX(Table1[Break point],Table2[[#Headers],[1]:[6]]+1)),Table2[[#This Row],[Sub]],NA()) ->  | I12: =IF(AND(Table2[[#This Row],[Cumulative revenue %]]>INDEX(Table1[Break point],Table2[[#Headers],[1]:[6]]), Table2[[#This Row],[Cumulative revenue %]]<=INDEX(Table1[Break point],Table2[[#Headers],[1]:[6]]+1)),Table2[[#This Row],[Sub]],NA()) ->  | J12: =IF(AND(Table2[[#This Row],[Cumulative revenue %]]>INDEX(Table1[Break point],Table2[[#Headers],[1]:[6]]), Table2[[#This Row],[Cumulative revenue %]]<=INDEX(Table1[Break point],Table2[[#Headers],[1]:[6]]+1)),Table2[[#This Row],[Sub]],NA()) -> 
A13: =ROW()-ROW(Table2[[#Headers],[Position]]) -> 12 | B13: 13500 | C13: 232790 | D13: =Table2[[#This Row],[Cumulative revenue]]/SUM(Table2[Sub]) -> 0.3053491288 | E13: =IF(AND(Table2[[#This Row],[Cumulative revenue %]]>INDEX(Table1[Break point],Table2[[#Headers],[1]:[6]]), Table2[[#This Row],[Cumulative revenue %]]<=INDEX(Table1[Break point],Table2[[#Headers],[1]:[6]]+1)),Table2[[#This Row],[Sub]],NA()) ->  | F13: =IF(AND(Table2[[#This Row],[Cumulative revenue %]]>INDEX(Table1[Break point],Table2[[#Headers],[1]:[6]]), Table2[[#This Row],[Cumulative revenue %]]<=INDEX(Table1[Break point],Table2[[#Headers],[1]:[6]]+1)),Table2[[#This Row],[Sub]],NA()) -> 13500 | G13: =IF(AND(Table2[[#This Row],[Cumulative revenue %]]>INDEX(Table1[Break point],Table2[[#Headers],[1]:[6]]), Table2[[#This Row],[Cumulative revenue %]]<=INDEX(Table1[Break point],Table2[[#Headers],[1]:[6]]+1)),Table2[[#This Row],[Sub]],NA()) ->  | H13: =IF(AND(Table2[[#This Row],[Cumulative revenue %]]>INDEX(Table1[Break point],Table2[[#Headers],[1]:[6]]), Table2[[#This Row],[Cumulative revenue %]]<=INDEX(Table1[Break point],Table2[[#Headers],[1]:[6]]+1)),Table2[[#This Row],[Sub]],NA()) ->  | I13: =IF(AND(Table2[[#This Row],[Cumulative revenue %]]>INDEX(Table1[Break point],Table2[[#Headers],[1]:[6]]), Table2[[#This Row],[Cumulative revenue %]]<=INDEX(Table1[Break point],Table2[[#Headers],[1]:[6]]+1)),Table2[[#This Row],[Sub]],NA()) ->  | J13: =IF(AND(Table2[[#This Row],[Cumulative revenue %]]>INDEX(Table1[Break point],Table2[[#Headers],[1]:[6]]), Table2[[#This Row],[Cumulative revenue %]]<=INDEX(Table1[Break point],Table2[[#Headers],[1]:[6]]+1)),Table2[[#This Row],[Sub]],NA()) -> 
A14: =ROW()-ROW(Table2[[#Headers],[Position]]) -> 13 | B14: 13500 | C14: 246290 | D14: =Table2[[#This Row],[Cumulative revenue]]/SUM(Table2[Sub]) -> 0.323056991 | E14: =IF(AND(Table2[[#This Row],[Cumulative revenue %]]>INDEX(Table1[Break point],Table2[[#Headers],[1]:[6]]), Table2[[#This Row],[Cumulative revenue %]]<=INDEX(Table1[Break point],Table2[[#Headers],[1]:[6]]+1)),Table2[[#This Row],[Sub]],NA()) ->  | F14: =IF(AND(Table2[[#This Row],[Cumulative revenue %]]>INDEX(Table1[Break point],Table2[[#Headers],[1]:[6]]), Table2[[#This Row],[Cumulative revenue %]]<=INDEX(Table1[Break point],Table2[[#Headers],[1]:[6]]+1)),Table2[[#This Row],[Sub]],NA()) -> 13500 | G14: =IF(AND(Table2[[#This Row],[Cumulative revenue %]]>INDEX(Table1[Break point],Table2[[#Headers],[1]:[6]]), Table2[[#This Row],[Cumulative revenue %]]<=INDEX(Table1[Break point],Table2[[#Headers],[1]:[6]]+1)),Table2[[#This Row],[Sub]],NA()) ->  | H14: =IF(AND(Table2[[#This Row],[Cumulative revenue %]]>INDEX(Table1[Break point],Table2[[#Headers],[1]:[6]]), Table2[[#This Row],[Cumulative revenue %]]<=INDEX(Table1[Break point],Table2[[#Headers],[1]:[6]]+1)),Table2[[#This Row],[Sub]],NA()) ->  | I14: =IF(AND(Table2[[#This Row],[Cumulative revenue %]]>INDEX(Table1[Break point],Table2[[#Headers],[1]:[6]]), Table2[[#This Row],[Cumulative revenue %]]<=INDEX(Table1[Break point],Table2[[#Headers],[1]:[6]]+1)),Table2[[#This Row],[Sub]],NA()) ->  | J14: =IF(AND(Table2[[#This Row],[Cumulative revenue %]]>INDEX(Table1[Break point],Table2[[#Headers],[1]:[6]]), Table2[[#This Row],[Cumulative revenue %]]<=INDEX(Table1[Break point],Table2[[#Headers],[1]:[6]]+1)),Table2[[#This Row],[Sub]],NA()) -> 
A15: =ROW()-ROW(Table2[[#Headers],[Position]]) -> 14 | B15: 13500 | C15: 259790 | D15: =Table2[[#This Row],[Cumulative revenue]]/SUM(Table2[Sub]) -> 0.3407648532 | E15: =IF(AND(Table2[[#This Row],[Cumulative revenue %]]>INDEX(Table1[Break point],Table2[[#Headers],[1]:[6]]), Table2[[#This Row],[Cumulative revenue %]]<=INDEX(Table1[Break point],Table2[[#Headers],[1]:[6]]+1)),Table2[[#This Row],[Sub]],NA()) ->  | F15: =IF(AND(Table2[[#This Row],[Cumulative revenue %]]>INDEX(Table1[Break point],Table2[[#Headers],[1]:[6]]), Table2[[#This Row],[Cumulative revenue %]]<=INDEX(Table1[Break point],Table2[[#Headers],[1]:[6]]+1)),Table2[[#This Row],[Sub]],NA()) -> 13500 | G15: =IF(AND(Table2[[#This Row],[Cumulative revenue %]]>INDEX(Table1[Break point],Table2[[#Headers],[1]:[6]]), Table2[[#This Row],[Cumulative revenue %]]<=INDEX(Table1[Break point],Table2[[#Headers],[1]:[6]]+1)),Table2[[#This Row],[Sub]],NA()) ->  | H15: =IF(AND(Table2[[#This Row],[Cumulative revenue %]]>INDEX(Table1[Break point],Table2[[#Headers],[1]:[6]]), Table2[[#This Row],[Cumulative revenue %]]<=INDEX(Table1[Break point],Table2[[#Headers],[1]:[6]]+1)),Table2[[#This Row],[Sub]],NA()) ->  | I15: =IF(AND(Table2[[#This Row],[Cumulative revenue %]]>INDEX(Table1[Break point],Table2[[#Headers],[1]:[6]]), Table2[[#This Row],[Cumulative revenue %]]<=INDEX(Table1[Break point],Table2[[#Headers],[1]:[6]]+1)),Table2[[#This Row],[Sub]],NA()) ->  | J15: =IF(AND(Table2[[#This Row],[Cumulative revenue %]]>INDEX(Table1[Break point],Table2[[#Headers],[1]:[6]]), Table2[[#This Row],[Cumulative revenue %]]<=INDEX(Table1[Break point],Table2[[#Headers],[1]:[6]]+1)),Table2[[#This Row],[Sub]],NA()) -> 
A16: =ROW()-ROW(Table2[[#Headers],[Position]]) -> 15 | B16: 13500 | C16: 273290 | D16: =Table2[[#This Row],[Cumulative revenue]]/SUM(Table2[Sub]) -> 0.3584727153 | E16: =IF(AND(Table2[[#This Row],[Cumulative revenue %]]>INDEX(Table1[Break point],Table2[[#Headers],[1]:[6]]), Table2[[#This Row],[Cumulative revenue %]]<=INDEX(Table1[Break point],Table2[[#Headers],[1]:[6]]+1)),Table2[[#This Row],[Sub]],NA()) ->  | F16: =IF(AND(Table2[[#This Row],[Cumulative revenue %]]>INDEX(Table1[Break point],Table2[[#Headers],[1]:[6]]), Table2[[#This Row],[Cumulative revenue %]]<=INDEX(Table1[Break point],Table2[[#Headers],[1]:[6]]+1)),Table2[[#This Row],[Sub]],NA()) -> 13500 | G16: =IF(AND(Table2[[#This Row],[Cumulative revenue %]]>INDEX(Table1[Break point],Table2[[#Headers],[1]:[6]]), Table2[[#This Row],[Cumulative revenue %]]<=INDEX(Table1[Break point],Table2[[#Headers],[1]:[6]]+1)),Table2[[#This Row],[Sub]],NA()) ->  | H16: =IF(AND(Table2[[#This Row],[Cumulative revenue %]]>INDEX(Table1[Break point],Table2[[#Headers],[1]:[6]]), Table2[[#This Row],[Cumulative revenue %]]<=INDEX(Table1[Break point],Table2[[#Headers],[1]:[6]]+1)),Table2[[#This Row],[Sub]],NA()) ->  | I16: =IF(AND(Table2[[#This Row],[Cumulative revenue %]]>INDEX(Table1[Break point],Table2[[#Headers],[1]:[6]]), Table2[[#This Row],[Cumulative revenue %]]<=INDEX(Table1[Break point],Table2[[#Headers],[1]:[6]]+1)),Table2[[#This Row],[Sub]],NA()) ->  | J16: =IF(AND(Table2[[#This Row],[Cumulative revenue %]]>INDEX(Table1[Break point],Table2[[#Headers],[1]:[6]]), Table2[[#This Row],[Cumulative revenue %]]<=INDEX(Table1[Break point],Table2[[#Headers],[1]:[6]]+1)),Table2[[#This Row],[Sub]],NA()) -> 
A17: =ROW()-ROW(Table2[[#Headers],[Position]]) -> 16 | B17: 12800 | C17: 286090 | D17: =Table2[[#This Row],[Cumulative revenue]]/SUM(Table2[Sub]) -> 0.3752623921 | E17: =IF(AND(Table2[[#This Row],[Cumulative revenue %]]>INDEX(Table1[Break point],Table2[[#Headers],[1]:[6]]), Table2[[#This Row],[Cumulative revenue %]]<=INDEX(Table1[Break point],Table2[[#Headers],[1]:[6]]+1)),Table2[[#This Row],[Sub]],NA()) ->  | F17: =IF(AND(Table2[[#This Row],[Cumulative revenue %]]>INDEX(Table1[Break point],Table2[[#Headers],[1]:[6]]), Table2[[#This Row],[Cumulative revenue %]]<=INDEX(Table1[Break point],Table2[[#Headers],[1]:[6]]+1)),Table2[[#This Row],[Sub]],NA()) -> 12800 | G17: =IF(AND(Table2[[#This Row],[Cumulative revenue %]]>INDEX(Table1[Break point],Table2[[#Headers],[1]:[6]]), Table2[[#This Row],[Cumulative revenue %]]<=INDEX(Table1[Break point],Table2[[#Headers],[1]:[6]]+1)),Table2[[#This Row],[Sub]],NA()) ->  | H17: =IF(AND(Table2[[#This Row],[Cumulative revenue %]]>INDEX(Table1[Break point],Table2[[#Headers],[1]:[6]]), Table2[[#This Row],[Cumulative revenue %]]<=INDEX(Table1[Break point],Table2[[#Headers],[1]:[6]]+1)),Table2[[#This Row],[Sub]],NA()) ->  | I17: =IF(AND(Table2[[#This Row],[Cumulative revenue %]]>INDEX(Table1[Break point],Table2[[#Headers],[1]:[6]]), Table2[[#This Row],[Cumulative revenue %]]<=INDEX(Table1[Break point],Table2[[#Headers],[1]:[6]]+1)),Table2[[#This Row],[Sub]],NA()) ->  | J17: =IF(AND(Table2[[#This Row],[Cumulative revenue %]]>INDEX(Table1[Break point],Table2[[#Headers],[1]:[6]]), Table2[[#This Row],[Cumulative revenue %]]<=INDEX(Table1[Break point],Table2[[#Headers],[1]:[6]]+1)),Table2[[#This Row],[Sub]],NA()) -> 
A18: =ROW()-ROW(Table2[[#Headers],[Position]]) -> 17 | B18: 10638.06 | C18: 296728.06 | D18: =Table2[[#This Row],[Cumulative revenue]]/SUM(Table2[Sub]) -> 0.3892162662 | E18: =IF(AND(Table2[[#This Row],[Cumulative revenue %]]>INDEX(Table1[Break point],Table2[[#Headers],[1]:[6]]), Table2[[#This Row],[Cumulative revenue %]]<=INDEX(Table1[Break point],Table2[[#Headers],[1]:[6]]+1)),Table2[[#This Row],[Sub]],NA()) ->  | F18: =IF(AND(Table2[[#This Row],[Cumulative revenue %]]>INDEX(Table1[Break point],Table2[[#Headers],[1]:[6]]), Table2[[#This Row],[Cumulative revenue %]]<=INDEX(Table1[Break point],Table2[[#Headers],[1]:[6]]+1)),Table2[[#This Row],[Sub]],NA()) -> 10638.06 | G18: =IF(AND(Table2[[#This Row],[Cumulative revenue %]]>INDEX(Table1[Break point],Table2[[#Headers],[1]:[6]]), Table2[[#This Row],[Cumulative revenue %]]<=INDEX(Table1[Break point],Table2[[#Headers],[1]:[6]]+1)),Table2[[#This Row],[Sub]],NA()) ->  | H18: =IF(AND(Table2[[#This Row],[Cumulative revenue %]]>INDEX(Table1[Break point],Table2[[#Headers],[1]:[6]]), Table2[[#This Row],[Cumulative revenue %]]<=INDEX(Table1[Break point],Table2[[#Headers],[1]:[6]]+1)),Table2[[#This Row],[Sub]],NA()) ->  | I18: =IF(AND(Table2[[#This Row],[Cumulative revenue %]]>INDEX(Table1[Break point],Table2[[#Headers],[1]:[6]]), Table2[[#This Row],[Cumulative revenue %]]<=INDEX(Table1[Break point],Table2[[#Headers],[1]:[6]]+1)),Table2[[#This Row],[Sub]],NA()) ->  | J18: =IF(AND(Table2[[#This Row],[Cumulative revenue %]]>INDEX(Table1[Break point],Table2[[#Headers],[1]:[6]]), Table2[[#This Row],[Cumulative revenue %]]<=INDEX(Table1[Break point],Table2[[#Headers],[1]:[6]]+1)),Table2[[#This Row],[Sub]],NA()) -> 
A19: =ROW()-ROW(Table2[[#Headers],[Position]]) -> 18 | B19: 10044.08 | C19: 306772.14 | D19: =Table2[[#This Row],[Cumulative revenue]]/SUM(Table2[Sub]) -> 0.4023910206 | E19: =IF(AND(Table2[[#This Row],[Cumulative revenue %]]>INDEX(Table1[Break point],Table2[[#Headers],[1]:[6]]), Table2[[#This Row],[Cumulative revenue %]]<=INDEX(Table1[Break point],Table2[[#Headers],[1]:[6]]+1)),Table2[[#This Row],[Sub]],NA()) ->  | F19: =IF(AND(Table2[[#This Row],[Cumulative revenue %]]>INDEX(Table1[Break point],Table2[[#Headers],[1]:[6]]), Table2[[#This Row],[Cumulative revenue %]]<=INDEX(Table1[Break point],Table2[[#Headers],[1]:[6]]+1)),Table2[[#This Row],[Sub]],NA()) ->  | G19: =IF(AND(Table2[[#This Row],[Cumulative revenue %]]>INDEX(Table1[Break point],Table2[[#Headers],[1]:[6]]), Table2[[#This Row],[Cumulative revenue %]]<=INDEX(Table1[Break point],Table2[[#Headers],[1]:[6]]+1)),Table2[[#This Row],[Sub]],NA()) -> 10044.08 | H19: =IF(AND(Table2[[#This Row],[Cumulative revenue %]]>INDEX(Table1[Break point],Table2[[#Headers],[1]:[6]]), Table2[[#This Row],[Cumulative revenue %]]<=INDEX(Table1[Break point],Table2[[#Headers],[1]:[6]]+1)),Table2[[#This Row],[Sub]],NA()) ->  | I19: =IF(AND(Table2[[#This Row],[Cumulative revenue %]]>INDEX(Table1[Break point],Table2[[#Headers],[1]:[6]]), Table2[[#This Row],[Cumulative revenue %]]<=INDEX(Table1[Break point],Table2[[#Headers],[1]:[6]]+1)),Table2[[#This Row],[Sub]],NA()) ->  | J19: =IF(AND(Table2[[#This Row],[Cumulative revenue %]]>INDEX(Table1[Break point],Table2[[#Headers],[1]:[6]]), Table2[[#This Row],[Cumulative revenue %]]<=INDEX(Table1[Break point],Table2[[#Headers],[1]:[6]]+1)),Table2[[#This Row],[Sub]],NA()) -> 
A20: =ROW()-ROW(Table2[[#Headers],[Position]]) -> 19 | B20: 9500 | C20: 316272.14 | D20: =Table2[[#This Row],[Cumulative revenue]]/SUM(Table2[Sub]) -> 0.4148521088 | E20: =IF(AND(Table2[[#This Row],[Cumulative revenue %]]>INDEX(Table1[Break point],Table2[[#Headers],[1]:[6]]), Table2[[#This Row],[Cumulative revenue %]]<=INDEX(Table1[Break point],Table2[[#Headers],[1]:[6]]+1)),Table2[[#This Row],[Sub]],NA()) ->  | F20: =IF(AND(Table2[[#This Row],[Cumulative revenue %]]>INDEX(Table1[Break point],Table2[[#Headers],[1]:[6]]), Table2[[#This Row],[Cumulative revenue %]]<=INDEX(Table1[Break point],Table2[[#Headers],[1]:[6]]+1)),Table2[[#This Row],[Sub]],NA()) ->  | G20: =IF(AND(Table2[[#This Row],[Cumulative revenue %]]>INDEX(Table1[Break point],Table2[[#Headers],[1]:[6]]), Table2[[#This Row],[Cumulative revenue %]]<=INDEX(Table1[Break point],Table2[[#Headers],[1]:[6]]+1)),Table2[[#This Row],[Sub]],NA()) -> 9500 | H20: =IF(AND(Table2[[#This Row],[Cumulative revenue %]]>INDEX(Table1[Break point],Table2[[#Headers],[1]:[6]]), Table2[[#This Row],[Cumulative revenue %]]<=INDEX(Table1[Break point],Table2[[#Headers],[1]:[6]]+1)),Table2[[#This Row],[Sub]],NA()) ->  | I20: =IF(AND(Table2[[#This Row],[Cumulative revenue %]]>INDEX(Table1[Break point],Table2[[#Headers],[1]:[6]]), Table2[[#This Row],[Cumulative revenue %]]<=INDEX(Table1[Break point],Table2[[#Headers],[1]:[6]]+1)),Table2[[#This Row],[Sub]],NA()) ->  | J20: =IF(AND(Table2[[#This Row],[Cumulative revenue %]]>INDEX(Table1[Break point],Table2[[#Headers],[1]:[6]]), Table2[[#This Row],[Cumulative revenue %]]<=INDEX(Table1[Break point],Table2[[#Headers],[1]:[6]]+1)),Table2[[#This Row],[Sub]],NA()) -> 
A21: =ROW()-ROW(Table2[[#Headers],[Position]]) -> 20 | B21: 9282.49 | C21: 325554.63 | D21: =Table2[[#This Row],[Cumulative revenue]]/SUM(Table2[Sub]) -> 0.4270278906 | E21: =IF(AND(Table2[[#This Row],[Cumulative revenue %]]>INDEX(Table1[Break point],Table2[[#Headers],[1]:[6]]), Table2[[#This Row],[Cumulative revenue %]]<=INDEX(Table1[Break point],Table2[[#Headers],[1]:[6]]+1)),Table2[[#This Row],[Sub]],NA()) ->  | F21: =IF(AND(Table2[[#This Row],[Cumulative revenue %]]>INDEX(Table1[Break point],Table2[[#Headers],[1]:[6]]), Table2[[#This Row],[Cumulative revenue %]]<=INDEX(Table1[Break point],Table2[[#Headers],[1]:[6]]+1)),Table2[[#This Row],[Sub]],NA()) ->  | G21: =IF(AND(Table2[[#This Row],[Cumulative revenue %]]>INDEX(Table1[Break point],Table2[[#Headers],[1]:[6]]), Table2[[#This Row],[Cumulative revenue %]]<=INDEX(Table1[Break point],Table2[[#Headers],[1]:[6]]+1)),Table2[[#This Row],[Sub]],NA()) -> 9282.49 | H21: =IF(AND(Table2[[#This Row],[Cumulative revenue %]]>INDEX(Table1[Break point],Table2[[#Headers],[1]:[6]]), Table2[[#This Row],[Cumulative revenue %]]<=INDEX(Table1[Break point],Table2[[#Headers],[1]:[6]]+1)),Table2[[#This Row],[Sub]],NA()) ->  | I21: =IF(AND(Table2[[#This Row],[Cumulative revenue %]]>INDEX(Table1[Break point],Table2[[#Headers],[1]:[6]]), Table2[[#This Row],[Cumulative revenue %]]<=INDEX(Table1[Break point],Table2[[#Headers],[1]:[6]]+1)),Table2[[#This Row],[Sub]],NA()) ->  | J21: =IF(AND(Table2[[#This Row],[Cumulative revenue %]]>INDEX(Table1[Break point],Table2[[#Headers],[1]:[6]]), Table2[[#This Row],[Cumulative revenue %]]<=INDEX(Table1[Break point],Table2[[#Headers],[1]:[6]]+1)),Table2[[#This Row],[Sub]],NA()) -> 
A22: =ROW()-ROW(Table2[[#Headers],[Position]]) -> 21 | B22: 6859.95 | C22: 332414.58 | D22: =Table2[[#This Row],[Cumulative revenue]]/SUM(Table2[Sub]) -> 0.4360260423 | E22: =IF(AND(Table2[[#This Row],[Cumulative revenue %]]>INDEX(Table1[Break point],Table2[[#Headers],[1]:[6]]), Table2[[#This Row],[Cumulative revenue %]]<=INDEX(Table1[Break point],Table2[[#Headers],[1]:[6]]+1)),Table2[[#This Row],[Sub]],NA()) ->  | F22: =IF(AND(Table2[[#This Row],[Cumulative revenue %]]>INDEX(Table1[Break point],Table2[[#Headers],[1]:[6]]), Table2[[#This Row],[Cumulative revenue %]]<=INDEX(Table1[Break point],Table2[[#Headers],[1]:[6]]+1)),Table2[[#This Row],[Sub]],NA()) ->  | G22: =IF(AND(Table2[[#This Row],[Cumulative revenue %]]>INDEX(Table1[Break point],Table2[[#Headers],[1]:[6]]), Table2[[#This Row],[Cumulative revenue %]]<=INDEX(Table1[Break point],Table2[[#Headers],[1]:[6]]+1)),Table2[[#This Row],[Sub]],NA()) -> 6859.95 | H22: =IF(AND(Table2[[#This Row],[Cumulative revenue %]]>INDEX(Table1[Break point],Table2[[#Headers],[1]:[6]]), Table2[[#This Row],[Cumulative revenue %]]<=INDEX(Table1[Break point],Table2[[#Headers],[1]:[6]]+1)),Table2[[#This Row],[Sub]],NA()) ->  | I22: =IF(AND(Table2[[#This Row],[Cumulative revenue %]]>INDEX(Table1[Break point],Table2[[#Headers],[1]:[6]]), Table2[[#This Row],[Cumulative revenue %]]<=INDEX(Table1[Break point],Table2[[#Headers],[1]:[6]]+1)),Table2[[#This Row],[Sub]],NA()) ->  | J22: =IF(AND(Table2[[#This Row],[Cumulative revenue %]]>INDEX(Table1[Break point],Table2[[#Headers],[1]:[6]]), Table2[[#This Row],[Cumulative revenue %]]<=INDEX(Table1[Break point],Table2[[#Headers],[1]:[6]]+1)),Table2[[#This Row],[Sub]],NA()) -> 
A23: =ROW()-ROW(Table2[[#Headers],[Position]]) -> 22 | B23: 6599.99 | C23: 339014.57 | D23: =Table2[[#This Row],[Cumulative revenue]]/SUM(Table2[Sub]) -> 0.4446832063 | E23: =IF(AND(Table2[[#This Row],[Cumulative revenue %]]>INDEX(Table1[Break point],Table2[[#Headers],[1]:[6]]), Table2[[#This Row],[Cumulative revenue %]]<=INDEX(Table1[Break point],Table2[[#Headers],[1]:[6]]+1)),Table2[[#This Row],[Sub]],NA()) ->  | F23: =IF(AND(Table2[[#This Row],[Cumulative revenue %]]>INDEX(Table1[Break point],Table2[[#Headers],[1]:[6]]), Table2[[#This Row],[Cumulative revenue %]]<=INDEX(Table1[Break point],Table2[[#Headers],[1]:[6]]+1)),Table2[[#This Row],[Sub]],NA()) ->  | G23: =IF(AND(Table2[[#This Row],[Cumulative revenue %]]>INDEX(Table1[Break point],Table2[[#Headers],[1]:[6]]), Table2[[#This Row],[Cumulative revenue %]]<=INDEX(Table1[Break point],Table2[[#Headers],[1]:[6]]+1)),Table2[[#This Row],[Sub]],NA()) -> 6599.99 | H23: =IF(AND(Table2[[#This Row],[Cumulative revenue %]]>INDEX(Table1[Break point],Table2[[#Headers],[1]:[6]]), Table2[[#This Row],[Cumulative revenue %]]<=INDEX(Table1[Break point],Table2[[#Headers],[1]:[6]]+1)),Table2[[#This Row],[Sub]],NA()) ->  | I23: =IF(AND(Table2[[#This Row],[Cumulative revenue %]]>INDEX(Table1[Break point],Table2[[#Headers],[1]:[6]]), Table2[[#This Row],[Cumulative revenue %]]<=INDEX(Table1[Break point],Table2[[#Headers],[1]:[6]]+1)),Table2[[#This Row],[Sub]],NA()) ->  | J23: =IF(AND(Table2[[#This Row],[Cumulative revenue %]]>INDEX(Table1[Break point],Table2[[#Headers],[1]:[6]]), Table2[[#This Row],[Cumulative revenue %]]<=INDEX(Table1[Break point],Table2[[#Headers],[1]:[6]]+1)),Table2[[#This Row],[Sub]],NA()) -> 
A24: =ROW()-ROW(Table2[[#Headers],[Position]]) -> 23 | B24: 6474.08 | C24: 345488.65 | D24: =Table2[[#This Row],[Cumulative revenue]]/SUM(Table2[Sub]) -> 0.4531752149 | E24: =IF(AND(Table2[[#This Row],[Cumulative revenue %]]>INDEX(Table1[Break point],Table2[[#Headers],[1]:[6]]), Table2[[#This Row],[Cumulative revenue %]]<=INDEX(Table1[Break point],Table2[[#Headers],[1]:[6]]+1)),Table2[[#This Row],[Sub]],NA()) ->  | F24: =IF(AND(Table2[[#This Row],[Cumulative revenue %]]>INDEX(Table1[Break point],Table2[[#Headers],[1]:[6]]), Table2[[#This Row],[Cumulative revenue %]]<=INDEX(Table1[Break point],Table2[[#Headers],[1]:[6]]+1)),Table2[[#This Row],[Sub]],NA()) ->  | G24: =IF(AND(Table2[[#This Row],[Cumulative revenue %]]>INDEX(Table1[Break point],Table2[[#Headers],[1]:[6]]), Table2[[#This Row],[Cumulative revenue %]]<=INDEX(Table1[Break point],Table2[[#Headers],[1]:[6]]+1)),Table2[[#This Row],[Sub]],NA()) -> 6474.08 | H24: =IF(AND(Table2[[#This Row],[Cumulative revenue %]]>INDEX(Table1[Break point],Table2[[#Headers],[1]:[6]]), Table2[[#This Row],[Cumulative revenue %]]<=INDEX(Table1[Break point],Table2[[#Headers],[1]:[6]]+1)),Table2[[#This Row],[Sub]],NA()) ->  | I24: =IF(AND(Table2[[#This Row],[Cumulative revenue %]]>INDEX(Table1[Break point],Table2[[#Headers],[1]:[6]]), Table2[[#This Row],[Cumulative revenue %]]<=INDEX(Table1[Break point],Table2[[#Headers],[1]:[6]]+1)),Table2[[#This Row],[Sub]],NA()) ->  | J24: =IF(AND(Table2[[#This Row],[Cumulative revenue %]]>INDEX(Table1[Break point],Table2[[#Headers],[1]:[6]]), Table2[[#This Row],[Cumulative revenue %]]<=INDEX(Table1[Break point],Table2[[#Headers],[1]:[6]]+1)),Table2[[#This Row],[Sub]],NA()) -> 
A25: =ROW()-ROW(Table2[[#Headers],[Position]]) -> 24 | B25: 6335.16 | C25: 351823.81 | D25: =Table2[[#This Row],[Cumulative revenue]]/SUM(Table2[Sub]) -> 0.4614850031 | E25: =IF(AND(Table2[[#This Row],[Cumulative revenue %]]>INDEX(Table1[Break point],Table2[[#Headers],[1]:[6]]), Table2[[#This Row],[Cumulative revenue %]]<=INDEX(Table1[Break point],Table2[[#Headers],[1]:[6]]+1)),Table2[[#This Row],[Sub]],NA()) ->  | F25: =IF(AND(Table2[[#This Row],[Cumulative revenue %]]>INDEX(Table1[Break point],Table2[[#Headers],[1]:[6]]), Table2[[#This Row],[Cumulative revenue %]]<=INDEX(Table1[Break point],Table2[[#Headers],[1]:[6]]+1)),Table2[[#This Row],[Sub]],NA()) ->  | G25: =IF(AND(Table2[[#This Row],[Cumulative revenue %]]>INDEX(Table1[Break point],Table2[[#Headers],[1]:[6]]), Table2[[#This Row],[Cumulative revenue %]]<=INDEX(Table1[Break point],Table2[[#Headers],[1]:[6]]+1)),Table2[[#This Row],[Sub]],NA()) -> 6335.16 | H25: =IF(AND(Table2[[#This Row],[Cumulative revenue %]]>INDEX(Table1[Break point],Table2[[#Headers],[1]:[6]]), Table2[[#This Row],[Cumulative revenue %]]<=INDEX(Table1[Break point],Table2[[#Headers],[1]:[6]]+1)),Table2[[#This Row],[Sub]],NA()) ->  | I25: =IF(AND(Table2[[#This Row],[Cumulative revenue %]]>INDEX(Table1[Break point],Table2[[#Headers],[1]:[6]]), Table2[[#This Row],[Cumulative revenue %]]<=INDEX(Table1[Break point],Table2[[#Headers],[1]:[6]]+1)),Table2[[#This Row],[Sub]],NA()) ->  | J25: =IF(AND(Table2[[#This Row],[Cumulative revenue %]]>INDEX(Table1[Break point],Table2[[#Headers],[1]:[6]]), Table2[[#This Row],[Cumulative revenue %]]<=INDEX(Table1[Break point],Table2[[#Headers],[1]:[6]]+1)),Table2[[#This Row],[Sub]],NA()) -> 
A26: =ROW()-ROW(Table2[[#Headers],[Position]]) -> 25 | B26: 6032.71 | C26: 357856.52 | D26: =Table2[[#This Row],[Cumulative revenue]]/SUM(Table2[Sub]) -> 0.4693980696 | E26: =IF(AND(Table2[[#This Row],[Cumulative revenue %]]>INDEX(Table1[Break point],Table2[[#Headers],[1]:[6]]), Table2[[#This Row],[Cumulative revenue %]]<=INDEX(Table1[Break point],Table2[[#Headers],[1]:[6]]+1)),Table2[[#This Row],[Sub]],NA()) ->  | F26: =IF(AND(Table2[[#This Row],[Cumulative revenue %]]>INDEX(Table1[Break point],Table2[[#Headers],[1]:[6]]), Table2[[#This Row],[Cumulative revenue %]]<=INDEX(Table1[Break point],Table2[[#Headers],[1]:[6]]+1)),Table2[[#This Row],[Sub]],NA()) ->  | G26: =IF(AND(Table2[[#This Row],[Cumulative revenue %]]>INDEX(Table1[Break point],Table2[[#Headers],[1]:[6]]), Table2[[#This Row],[Cumulative revenue %]]<=INDEX(Table1[Break point],Table2[[#Headers],[1]:[6]]+1)),Table2[[#This Row],[Sub]],NA()) -> 6032.71 | H26: =IF(AND(Table2[[#This Row],[Cumulative revenue %]]>INDEX(Table1[Break point],Table2[[#Headers],[1]:[6]]), Table2[[#This Row],[Cumulative revenue %]]<=INDEX(Table1[Break point],Table2[[#Headers],[1]:[6]]+1)),Table2[[#This Row],[Sub]],NA()) ->  | I26: =IF(AND(Table2[[#This Row],[Cumulative revenue %]]>INDEX(Table1[Break point],Table2[[#Headers],[1]:[6]]), Table2[[#This Row],[Cumulative revenue %]]<=INDEX(Table1[Break point],Table2[[#Headers],[1]:[6]]+1)),Table2[[#This Row],[Sub]],NA()) ->  | J26: =IF(AND(Table2[[#This Row],[Cumulative revenue %]]>INDEX(Table1[Break point],Table2[[#Headers],[1]:[6]]), Table2[[#This Row],[Cumulative revenue %]]<=INDEX(Table1[Break point],Table2[[#Headers],[1]:[6]]+1)),Table2[[#This Row],[Sub]],NA()) -> 
A27: =ROW()-ROW(Table2[[#Headers],[Position]]) -> 26 | B27: 5974.97 | C27: 363831.49 | D27: =Table2[[#This Row],[Cumulative revenue]]/SUM(Table2[Sub]) -> 0.4772353988 | E27: =IF(AND(Table2[[#This Row],[Cumulative revenue %]]>INDEX(Table1[Break point],Table2[[#Headers],[1]:[6]]), Table2[[#This Row],[Cumulative revenue %]]<=INDEX(Table1[Break point],Table2[[#Headers],[1]:[6]]+1)),Table2[[#This Row],[Sub]],NA()) ->  | F27: =IF(AND(Table2[[#This Row],[Cumulative revenue %]]>INDEX(Table1[Break point],Table2[[#Headers],[1]:[6]]), Table2[[#This Row],[Cumulative revenue %]]<=INDEX(Table1[Break point],Table2[[#Headers],[1]:[6]]+1)),Table2[[#This Row],[Sub]],NA()) ->  | G27: =IF(AND(Table2[[#This Row],[Cumulative revenue %]]>INDEX(Table1[Break point],Table2[[#Headers],[1]:[6]]), Table2[[#This Row],[Cumulative revenue %]]<=INDEX(Table1[Break point],Table2[[#Headers],[1]:[6]]+1)),Table2[[#This Row],[Sub]],NA()) -> 5974.97 | H27: =IF(AND(Table2[[#This Row],[Cumulative revenue %]]>INDEX(Table1[Break point],Table2[[#Headers],[1]:[6]]), Table2[[#This Row],[Cumulative revenue %]]<=INDEX(Table1[Break point],Table2[[#Headers],[1]:[6]]+1)),Table2[[#This Row],[Sub]],NA()) ->  | I27: =IF(AND(Table2[[#This Row],[Cumulative revenue %]]>INDEX(Table1[Break point],Table2[[#Headers],[1]:[6]]), Table2[[#This Row],[Cumulative revenue %]]<=INDEX(Table1[Break point],Table2[[#Headers],[1]:[6]]+1)),Table2[[#This Row],[Sub]],NA()) ->  | J27: =IF(AND(Table2[[#This Row],[Cumulative revenue %]]>INDEX(Table1[Break point],Table2[[#Headers],[1]:[6]]), Table2[[#This Row],[Cumulative revenue %]]<=INDEX(Table1[Break point],Table2[[#Headers],[1]:[6]]+1)),Table2[[#This Row],[Sub]],NA()) -> 
A28: =ROW()-ROW(Table2[[#Headers],[Position]]) -> 27 | B28: 5966.23 | C28: 369797.72 | D28: =Table2[[#This Row],[Cumulative revenue]]/SUM(Table2[Sub]) -> 0.4850612639 | E28: =IF(AND(Table2[[#This Row],[Cumulative revenue %]]>INDEX(Table1[Break point],Table2[[#Headers],[1]:[6]]), Table2[[#This Row],[Cumulative revenue %]]<=INDEX(Table1[Break point],Table2[[#Headers],[1]:[6]]+1)),Table2[[#This Row],[Sub]],NA()) ->  | F28: =IF(AND(Table2[[#This Row],[Cumulative revenue %]]>INDEX(Table1[Break point],Table2[[#Headers],[1]:[6]]), Table2[[#This Row],[Cumulative revenue %]]<=INDEX(Table1[Break point],Table2[[#Headers],[1]:[6]]+1)),Table2[[#This Row],[Sub]],NA()) ->  | G28: =IF(AND(Table2[[#This Row],[Cumulative revenue %]]>INDEX(Table1[Break point],Table2[[#Headers],[1]:[6]]), Table2[[#This Row],[Cumulative revenue %]]<=INDEX(Table1[Break point],Table2[[#Headers],[1]:[6]]+1)),Table2[[#This Row],[Sub]],NA()) -> 5966.23 | H28: =IF(AND(Table2[[#This Row],[Cumulative revenue %]]>INDEX(Table1[Break point],Table2[[#Headers],[1]:[6]]), Table2[[#This Row],[Cumulative revenue %]]<=INDEX(Table1[Break point],Table2[[#Headers],[1]:[6]]+1)),Table2[[#This Row],[Sub]],NA()) ->  | I28: =IF(AND(Table2[[#This Row],[Cumulative revenue %]]>INDEX(Table1[Break point],Table2[[#Headers],[1]:[6]]), Table2[[#This Row],[Cumulative revenue %]]<=INDEX(Table1[Break point],Table2[[#Headers],[1]:[6]]+1)),Table2[[#This Row],[Sub]],NA()) ->  | J28: =IF(AND(Table2[[#This Row],[Cumulative revenue %]]>INDEX(Table1[Break point],Table2[[#Headers],[1]:[6]]), Table2[[#This Row],[Cumulative revenue %]]<=INDEX(Table1[Break point],Table2[[#Headers],[1]:[6]]+1)),Table2[[#This Row],[Sub]],NA()) -> 
A29: =ROW()-ROW(Table2[[#Headers],[Position]]) -> 28 | B29: 5940 | C29: 375737.72 | D29: =Table2[[#This Row],[Cumulative revenue]]/SUM(Table2[Sub]) -> 0.4928527233 | E29: =IF(AND(Table2[[#This Row],[Cumulative revenue %]]>INDEX(Table1[Break point],Table2[[#Headers],[1]:[6]]), Table2[[#This Row],[Cumulative revenue %]]<=INDEX(Table1[Break point],Table2[[#Headers],[1]:[6]]+1)),Table2[[#This Row],[Sub]],NA()) ->  | F29: =IF(AND(Table2[[#This Row],[Cumulative revenue %]]>INDEX(Table1[Break point],Table2[[#Headers],[1]:[6]]), Table2[[#This Row],[Cumulative revenue %]]<=INDEX(Table1[Break point],Table2[[#Headers],[1]:[6]]+1)),Table2[[#This Row],[Sub]],NA()) ->  | G29: =IF(AND(Table2[[#This Row],[Cumulative revenue %]]>INDEX(Table1[Break point],Table2[[#Headers],[1]:[6]]), Table2[[#This Row],[Cumulative revenue %]]<=INDEX(Table1[Break point],Table2[[#Headers],[1]:[6]]+1)),Table2[[#This Row],[Sub]],NA()) -> 5940 | H29: =IF(AND(Table2[[#This Row],[Cumulative revenue %]]>INDEX(Table1[Break point],Table2[[#Headers],[1]:[6]]), Table2[[#This Row],[Cumulative revenue %]]<=INDEX(Table1[Break point],Table2[[#Headers],[1]:[6]]+1)),Table2[[#This Row],[Sub]],NA()) ->  | I29: =IF(AND(Table2[[#This Row],[Cumulative revenue %]]>INDEX(Table1[Break point],Table2[[#Headers],[1]:[6]]), Table2[[#This Row],[Cumulative revenue %]]<=INDEX(Table1[Break point],Table2[[#Headers],[1]:[6]]+1)),Table2[[#This Row],[Sub]],NA()) ->  | J29: =IF(AND(Table2[[#This Row],[Cumulative revenue %]]>INDEX(Table1[Break point],Table2[[#Headers],[1]:[6]]), Table2[[#This Row],[Cumulative revenue %]]<=INDEX(Table1[Break point],Table2[[#Headers],[1]:[6]]+1)),Table2[[#This Row],[Sub]],NA()) -> 
A30: =ROW()-ROW(Table2[[#Headers],[Position]]) -> 29 | B30: 5804.9 | C30: 381542.62 | D30: =Table2[[#This Row],[Cumulative revenue]]/SUM(Table2[Sub]) -> 0.5004669729 | E30: =IF(AND(Table2[[#This Row],[Cumulative revenue %]]>INDEX(Table1[Break point],Table2[[#Headers],[1]:[6]]), Table2[[#This Row],[Cumulative revenue %]]<=INDEX(Table1[Break point],Table2[[#Headers],[1]:[6]]+1)),Table2[[#This Row],[Sub]],NA()) ->  | F30: =IF(AND(Table2[[#This Row],[Cumulative revenue %]]>INDEX(Table1[Break point],Table2[[#Headers],[1]:[6]]), Table2[[#This Row],[Cumulative revenue %]]<=INDEX(Table1[Break point],Table2[[#Headers],[1]:[6]]+1)),Table2[[#This Row],[Sub]],NA()) ->  | G30: =IF(AND(Table2[[#This Row],[Cumulative revenue %]]>INDEX(Table1[Break point],Table2[[#Headers],[1]:[6]]), Table2[[#This Row],[Cumulative revenue %]]<=INDEX(Table1[Break point],Table2[[#Headers],[1]:[6]]+1)),Table2[[#This Row],[Sub]],NA()) -> 5804.9 | H30: =IF(AND(Table2[[#This Row],[Cumulative revenue %]]>INDEX(Table1[Break point],Table2[[#Headers],[1]:[6]]), Table2[[#This Row],[Cumulative revenue %]]<=INDEX(Table1[Break point],Table2[[#Headers],[1]:[6]]+1)),Table2[[#This Row],[Sub]],NA()) ->  | I30: =IF(AND(Table2[[#This Row],[Cumulative revenue %]]>INDEX(Table1[Break point],Table2[[#Headers],[1]:[6]]), Table2[[#This Row],[Cumulative revenue %]]<=INDEX(Table1[Break point],Table2[[#Headers],[1]:[6]]+1)),Table2[[#This Row],[Sub]],NA()) ->  | J30: =IF(AND(Table2[[#This Row],[Cumulative revenue %]]>INDEX(Table1[Break point],Table2[[#Headers],[1]:[6]]), Table2[[#This Row],[Cumulative revenue %]]<=INDEX(Table1[Break point],Table2[[#Headers],[1]:[6]]+1)),Table2[[#This Row],[Sub]],NA()) -> 
A31: =ROW()-ROW(Table2[[#Headers],[Position]]) -> 30 | B31: 5327.66 | C31: 386870.28 | D31: =Table2[[#This Row],[Cumulative revenue]]/SUM(Table2[Sub]) -> 0.5074552298 | E31: =IF(AND(Table2[[#This Row],[Cumulative revenue %]]>INDEX(Table1[Break point],Table2[[#Headers],[1]:[6]]), Table2[[#This Row],[Cumulative revenue %]]<=INDEX(Table1[Break point],Table2[[#Headers],[1]:[6]]+1)),Table2[[#This Row],[Sub]],NA()) ->  | F31: =IF(AND(Table2[[#This Row],[Cumulative revenue %]]>INDEX(Table1[Break point],Table2[[#Headers],[1]:[6]]), Table2[[#This Row],[Cumulative revenue %]]<=INDEX(Table1[Break point],Table2[[#Headers],[1]:[6]]+1)),Table2[[#This Row],[Sub]],NA()) ->  | G31: =IF(AND(Table2[[#This Row],[Cumulative revenue %]]>INDEX(Table1[Break point],Table2[[#Headers],[1]:[6]]), Table2[[#This Row],[Cumulative revenue %]]<=INDEX(Table1[Break point],Table2[[#Headers],[1]:[6]]+1)),Table2[[#This Row],[Sub]],NA()) -> 5327.66 | H31: =IF(AND(Table2[[#This Row],[Cumulative revenue %]]>INDEX(Table1[Break point],Table2[[#Headers],[1]:[6]]), Table2[[#This Row],[Cumulative revenue %]]<=INDEX(Table1[Break point],Table2[[#Headers],[1]:[6]]+1)),Table2[[#This Row],[Sub]],NA()) ->  | I31: =IF(AND(Table2[[#This Row],[Cumulative revenue %]]>INDEX(Table1[Break point],Table2[[#Headers],[1]:[6]]), Table2[[#This Row],[Cumulative revenue %]]<=INDEX(Table1[Break point],Table2[[#Headers],[1]:[6]]+1)),Table2[[#This Row],[Sub]],NA()) ->  | J31: =IF(AND(Table2[[#This Row],[Cumulative revenue %]]>INDEX(Table1[Break point],Table2[[#Headers],[1]:[6]]), Table2[[#This Row],[Cumulative revenue %]]<=INDEX(Table1[Break point],Table2[[#Headers],[1]:[6]]+1)),Table2[[#This Row],[Sub]],NA()) -> 
A32: =ROW()-ROW(Table2[[#Headers],[Position]]) -> 31 | B32: 5280.29 | C32: 392150.57 | D32: =Table2[[#This Row],[Cumulative revenue]]/SUM(Table2[Sub]) -> 0.5143813519 | E32: =IF(AND(Table2[[#This Row],[Cumulative revenue %]]>INDEX(Table1[Break point],Table2[[#Headers],[1]:[6]]), Table2[[#This Row],[Cumulative revenue %]]<=INDEX(Table1[Break point],Table2[[#Headers],[1]:[6]]+1)),Table2[[#This Row],[Sub]],NA()) ->  | F32: =IF(AND(Table2[[#This Row],[Cumulative revenue %]]>INDEX(Table1[Break point],Table2[[#Headers],[1]:[6]]), Table2[[#This Row],[Cumulative revenue %]]<=INDEX(Table1[Break point],Table2[[#Headers],[1]:[6]]+1)),Table2[[#This Row],[Sub]],NA()) ->  | G32: =IF(AND(Table2[[#This Row],[Cumulative revenue %]]>INDEX(Table1[Break point],Table2[[#Headers],[1]:[6]]), Table2[[#This Row],[Cumulative revenue %]]<=INDEX(Table1[Break point],Table2[[#Headers],[1]:[6]]+1)),Table2[[#This Row],[Sub]],NA()) -> 5280.29 | H32: =IF(AND(Table2[[#This Row],[Cumulative revenue %]]>INDEX(Table1[Break point],Table2[[#Headers],[1]:[6]]), Table2[[#This Row],[Cumulative revenue %]]<=INDEX(Table1[Break point],Table2[[#Headers],[1]:[6]]+1)),Table2[[#This Row],[Sub]],NA()) ->  | I32: =IF(AND(Table2[[#This Row],[Cumulative revenue %]]>INDEX(Table1[Break point],Table2[[#Headers],[1]:[6]]), Table2[[#This Row],[Cumulative revenue %]]<=INDEX(Table1[Break point],Table2[[#Headers],[1]:[6]]+1)),Table2[[#This Row],[Sub]],NA()) ->  | J32: =IF(AND(Table2[[#This Row],[Cumulative revenue %]]>INDEX(Table1[Break point],Table2[[#Headers],[1]:[6]]), Table2[[#This Row],[Cumulative revenue %]]<=INDEX(Table1[Break point],Table2[[#Headers],[1]:[6]]+1)),Table2[[#This Row],[Sub]],NA()) -> 
A33: =ROW()-ROW(Table2[[#Headers],[Position]]) -> 32 | B33: 4937.5 | C33: 397088.07 | D33: =Table2[[#This Row],[Cumulative revenue]]/SUM(Table2[Sub]) -> 0.5208578385 | E33: =IF(AND(Table2[[#This Row],[Cumulative revenue %]]>INDEX(Table1[Break point],Table2[[#Headers],[1]:[6]]), Table2[[#This Row],[Cumulative revenue %]]<=INDEX(Table1[Break point],Table2[[#Headers],[1]:[6]]+1)),Table2[[#This Row],[Sub]],NA()) ->  | F33: =IF(AND(Table2[[#This Row],[Cumulative revenue %]]>INDEX(Table1[Break point],Table2[[#Headers],[1]:[6]]), Table2[[#This Row],[Cumulative revenue %]]<=INDEX(Table1[Break point],Table2[[#Headers],[1]:[6]]+1)),Table2[[#This Row],[Sub]],NA()) ->  | G33: =IF(AND(Table2[[#This Row],[Cumulative revenue %]]>INDEX(Table1[Break point],Table2[[#Headers],[1]:[6]]), Table2[[#This Row],[Cumulative revenue %]]<=INDEX(Table1[Break point],Table2[[#Headers],[1]:[6]]+1)),Table2[[#This Row],[Sub]],NA()) -> 4937.5 | H33: =IF(AND(Table2[[#This Row],[Cumulative revenue %]]>INDEX(Table1[Break point],Table2[[#Headers],[1]:[6]]), Table2[[#This Row],[Cumulative revenue %]]<=INDEX(Table1[Break point],Table2[[#Headers],[1]:[6]]+1)),Table2[[#This Row],[Sub]],NA()) ->  | I33: =IF(AND(Table2[[#This Row],[Cumulative revenue %]]>INDEX(Table1[Break point],Table2[[#Headers],[1]:[6]]), Table2[[#This Row],[Cumulative revenue %]]<=INDEX(Table1[Break point],Table2[[#Headers],[1]:[6]]+1)),Table2[[#This Row],[Sub]],NA()) ->  | J33: =IF(AND(Table2[[#This Row],[Cumulative revenue %]]>INDEX(Table1[Break point],Table2[[#Headers],[1]:[6]]), Table2[[#This Row],[Cumulative revenue %]]<=INDEX(Table1[Break point],Table2[[#Headers],[1]:[6]]+1)),Table2[[#This Row],[Sub]],NA()) -> 
A34: =ROW()-ROW(Table2[[#Headers],[Position]]) -> 33 | B34: 4712.72 | C34: 401800.79 | D34: =Table2[[#This Row],[Cumulative revenue]]/SUM(Table2[Sub]) -> 0.5270394827 | E34: =IF(AND(Table2[[#This Row],[Cumulative revenue %]]>INDEX(Table1[Break point],Table2[[#Headers],[1]:[6]]), Table2[[#This Row],[Cumulative revenue %]]<=INDEX(Table1[Break point],Table2[[#Headers],[1]:[6]]+1)),Table2[[#This Row],[Sub]],NA()) ->  | F34: =IF(AND(Table2[[#This Row],[Cumulative revenue %]]>INDEX(Table1[Break point],Table2[[#Headers],[1]:[6]]), Table2[[#This Row],[Cumulative revenue %]]<=INDEX(Table1[Break point],Table2[[#Headers],[1]:[6]]+1)),Table2[[#This Row],[Sub]],NA()) ->  | G34: =IF(AND(Table2[[#This Row],[Cumulative revenue %]]>INDEX(Table1[Break point],Table2[[#Headers],[1]:[6]]), Table2[[#This Row],[Cumulative revenue %]]<=INDEX(Table1[Break point],Table2[[#Headers],[1]:[6]]+1)),Table2[[#This Row],[Sub]],NA()) -> 4712.72 | H34: =IF(AND(Table2[[#This Row],[Cumulative revenue %]]>INDEX(Table1[Break point],Table2[[#Headers],[1]:[6]]), Table2[[#This Row],[Cumulative revenue %]]<=INDEX(Table1[Break point],Table2[[#Headers],[1]:[6]]+1)),Table2[[#This Row],[Sub]],NA()) ->  | I34: =IF(AND(Table2[[#This Row],[Cumulative revenue %]]>INDEX(Table1[Break point],Table2[[#Headers],[1]:[6]]), Table2[[#This Row],[Cumulative revenue %]]<=INDEX(Table1[Break point],Table2[[#Headers],[1]:[6]]+1)),Table2[[#This Row],[Sub]],NA()) ->  | J34: =IF(AND(Table2[[#This Row],[Cumulative revenue %]]>INDEX(Table1[Break point],Table2[[#Headers],[1]:[6]]), Table2[[#This Row],[Cumulative revenue %]]<=INDEX(Table1[Break point],Table2[[#Headers],[1]:[6]]+1)),Table2[[#This Row],[Sub]],NA()) -> 
A35: =ROW()-ROW(Table2[[#Headers],[Position]]) -> 34 | B35: 4656.178 | C35: 406456.968 | D35: =Table2[[#This Row],[Cumulative revenue]]/SUM(Table2[Sub]) -> 0.5331469611 | E35: =IF(AND(Table2[[#This Row],[Cumulative revenue %]]>INDEX(Table1[Break point],Table2[[#Headers],[1]:[6]]), Table2[[#This Row],[Cumulative revenue %]]<=INDEX(Table1[Break point],Table2[[#Headers],[1]:[6]]+1)),Table2[[#This Row],[Sub]],NA()) ->  | F35: =IF(AND(Table2[[#This Row],[Cumulative revenue %]]>INDEX(Table1[Break point],Table2[[#Headers],[1]:[6]]), Table2[[#This Row],[Cumulative revenue %]]<=INDEX(Table1[Break point],Table2[[#Headers],[1]:[6]]+1)),Table2[[#This Row],[Sub]],NA()) ->  | G35: =IF(AND(Table2[[#This Row],[Cumulative revenue %]]>INDEX(Table1[Break point],Table2[[#Headers],[1]:[6]]), Table2[[#This Row],[Cumulative revenue %]]<=INDEX(Table1[Break point],Table2[[#Headers],[1]:[6]]+1)),Table2[[#This Row],[Sub]],NA()) -> 4656.178 | H35: =IF(AND(Table2[[#This Row],[Cumulative revenue %]]>INDEX(Table1[Break point],Table2[[#Headers],[1]:[6]]), Table2[[#This Row],[Cumulative revenue %]]<=INDEX(Table1[Break point],Table2[[#Headers],[1]:[6]]+1)),Table2[[#This Row],[Sub]],NA()) ->  | I35: =IF(AND(Table2[[#This Row],[Cumulative revenue %]]>INDEX(Table1[Break point],Table2[[#Headers],[1]:[6]]), Table2[[#This Row],[Cumulative revenue %]]<=INDEX(Table1[Break point],Table2[[#Headers],[1]:[6]]+1)),Table2[[#This Row],[Sub]],NA()) ->  | J35: =IF(AND(Table2[[#This Row],[Cumulative revenue %]]>INDEX(Table1[Break point],Table2[[#Headers],[1]:[6]]), Table2[[#This Row],[Cumulative revenue %]]<=INDEX(Table1[Break point],Table2[[#Headers],[1]:[6]]+1)),Table2[[#This Row],[Sub]],NA()) -> 
A36: =ROW()-ROW(Table2[[#Headers],[Position]]) -> 35 | B36: 4288.6 | C36: 410745.568 | D36: =Table2[[#This Row],[Cumulative revenue]]/SUM(Table2[Sub]) -> 0.5387722898 | E36: =IF(AND(Table2[[#This Row],[Cumulative revenue %]]>INDEX(Table1[Break point],Table2[[#Headers],[1]:[6]]), Table2[[#This Row],[Cumulative revenue %]]<=INDEX(Table1[Break point],Table2[[#Headers],[1]:[6]]+1)),Table2[[#This Row],[Sub]],NA()) ->  | F36: =IF(AND(Table2[[#This Row],[Cumulative revenue %]]>INDEX(Table1[Break point],Table2[[#Headers],[1]:[6]]), Table2[[#This Row],[Cumulative revenue %]]<=INDEX(Table1[Break point],Table2[[#Headers],[1]:[6]]+1)),Table2[[#This Row],[Sub]],NA()) ->  | G36: =IF(AND(Table2[[#This Row],[Cumulative revenue %]]>INDEX(Table1[Break point],Table2[[#Headers],[1]:[6]]), Table2[[#This Row],[Cumulative revenue %]]<=INDEX(Table1[Break point],Table2[[#Headers],[1]:[6]]+1)),Table2[[#This Row],[Sub]],NA()) -> 4288.6 | H36: =IF(AND(Table2[[#This Row],[Cumulative revenue %]]>INDEX(Table1[Break point],Table2[[#Headers],[1]:[6]]), Table2[[#This Row],[Cumulative revenue %]]<=INDEX(Table1[Break point],Table2[[#Headers],[1]:[6]]+1)),Table2[[#This Row],[Sub]],NA()) ->  | I36: =IF(AND(Table2[[#This Row],[Cumulative revenue %]]>INDEX(Table1[Break point],Table2[[#Headers],[1]:[6]]), Table2[[#This Row],[Cumulative revenue %]]<=INDEX(Table1[Break point],Table2[[#Headers],[1]:[6]]+1)),Table2[[#This Row],[Sub]],NA()) ->  | J36: =IF(AND(Table2[[#This Row],[Cumulative revenue %]]>INDEX(Table1[Break point],Table2[[#Headers],[1]:[6]]), Table2[[#This Row],[Cumulative revenue %]]<=INDEX(Table1[Break point],Table2[[#Headers],[1]:[6]]+1)),Table2[[#This Row],[Sub]],NA()) -> 
A37: =ROW()-ROW(Table2[[#Headers],[Position]]) -> 36 | B37: 4137.4 | C37: 414882.968 | D37: =Table2[[#This Row],[Cumulative revenue]]/SUM(Table2[Sub]) -> 0.5441992905 | E37: =IF(AND(Table2[[#This Row],[Cumulative revenue %]]>INDEX(Table1[Break point],Table2[[#Headers],[1]:[6]]), Table2[[#This Row],[Cumulative revenue %]]<=INDEX(Table1[Break point],Table2[[#Headers],[1]:[6]]+1)),Table2[[#This Row],[Sub]],NA()) ->  | F37: =IF(AND(Table2[[#This Row],[Cumulative revenue %]]>INDEX(Table1[Break point],Table2[[#Headers],[1]:[6]]), Table2[[#This Row],[Cumulative revenue %]]<=INDEX(Table1[Break point],Table2[[#Headers],[1]:[6]]+1)),Table2[[#This Row],[Sub]],NA()) ->  | G37: =IF(AND(Table2[[#This Row],[Cumulative revenue %]]>INDEX(Table1[Break point],Table2[[#Headers],[1]:[6]]), Table2[[#This Row],[Cumulative revenue %]]<=INDEX(Table1[Break point],Table2[[#Headers],[1]:[6]]+1)),Table2[[#This Row],[Sub]],NA()) -> 4137.4 | H37: =IF(AND(Table2[[#This Row],[Cumulative revenue %]]>INDEX(Table1[Break point],Table2[[#Headers],[1]:[6]]), Table2[[#This Row],[Cumulative revenue %]]<=INDEX(Table1[Break point],Table2[[#Headers],[1]:[6]]+1)),Table2[[#This Row],[Sub]],NA()) ->  | I37: =IF(AND(Table2[[#This Row],[Cumulative revenue %]]>INDEX(Table1[Break point],Table2[[#Headers],[1]:[6]]), Table2[[#This Row],[Cumulative revenue %]]<=INDEX(Table1[Break point],Table2[[#Headers],[1]:[6]]+1)),Table2[[#This Row],[Sub]],NA()) ->  | J37: =IF(AND(Table2[[#This Row],[Cumulative revenue %]]>INDEX(Table1[Break point],Table2[[#Headers],[1]:[6]]), Table2[[#This Row],[Cumulative revenue %]]<=INDEX(Table1[Break point],Table2[[#Headers],[1]:[6]]+1)),Table2[[#This Row],[Sub]],NA()) -> 
A38: =ROW()-ROW(Table2[[#Headers],[Position]]) -> 37 | B38: 4130 | C38: 419012.968 | D38: =Table2[[#This Row],[Cumulative revenue]]/SUM(Table2[Sub]) -> 0.5496165846 | E38: =IF(AND(Table2[[#This Row],[Cumulative revenue %]]>INDEX(Table1[Break point],Table2[[#Headers],[1]:[6]]), Table2[[#This Row],[Cumulative revenue %]]<=INDEX(Table1[Break point],Table2[[#Headers],[1]:[6]]+1)),Table2[[#This Row],[Sub]],NA()) ->  | F38: =IF(AND(Table2[[#This Row],[Cumulative revenue %]]>INDEX(Table1[Break point],Table2[[#Headers],[1]:[6]]), Table2[[#This Row],[Cumulative revenue %]]<=INDEX(Table1[Break point],Table2[[#Headers],[1]:[6]]+1)),Table2[[#This Row],[Sub]],NA()) ->  | G38: =IF(AND(Table2[[#This Row],[Cumulative revenue %]]>INDEX(Table1[Break point],Table2[[#Headers],[1]:[6]]), Table2[[#This Row],[Cumulative revenue %]]<=INDEX(Table1[Break point],Table2[[#Headers],[1]:[6]]+1)),Table2[[#This Row],[Sub]],NA()) -> 4130 | H38: =IF(AND(Table2[[#This Row],[Cumulative revenue %]]>INDEX(Table1[Break point],Table2[[#Headers],[1]:[6]]), Table2[[#This Row],[Cumulative revenue %]]<=INDEX(Table1[Break point],Table2[[#Headers],[1]:[6]]+1)),Table2[[#This Row],[Sub]],NA()) ->  | I38: =IF(AND(Table2[[#This Row],[Cumulative revenue %]]>INDEX(Table1[Break point],Table2[[#Headers],[1]:[6]]), Table2[[#This Row],[Cumulative revenue %]]<=INDEX(Table1[Break point],Table2[[#Headers],[1]:[6]]+1)),Table2[[#This Row],[Sub]],NA()) ->  | J38: =IF(AND(Table2[[#This Row],[Cumulative revenue %]]>INDEX(Table1[Break point],Table2[[#Headers],[1]:[6]]), Table2[[#This Row],[Cumulative revenue %]]<=INDEX(Table1[Break point],Table2[[#Headers],[1]:[6]]+1)),Table2[[#This Row],[Sub]],NA()) -> 
A39: =ROW()-ROW(Table2[[#Headers],[Position]]) -> 38 | B39: 4124.25 | C39: 423137.218 | D39: =Table2[[#This Row],[Cumulative revenue]]/SUM(Table2[Sub]) -> 0.5550263365 | E39: =IF(AND(Table2[[#This Row],[Cumulative revenue %]]>INDEX(Table1[Break point],Table2[[#Headers],[1]:[6]]), Table2[[#This Row],[Cumulative revenue %]]<=INDEX(Table1[Break point],Table2[[#Headers],[1]:[6]]+1)),Table2[[#This Row],[Sub]],NA()) ->  | F39: =IF(AND(Table2[[#This Row],[Cumulative revenue %]]>INDEX(Table1[Break point],Table2[[#Headers],[1]:[6]]), Table2[[#This Row],[Cumulative revenue %]]<=INDEX(Table1[Break point],Table2[[#Headers],[1]:[6]]+1)),Table2[[#This Row],[Sub]],NA()) ->  | G39: =IF(AND(Table2[[#This Row],[Cumulative revenue %]]>INDEX(Table1[Break point],Table2[[#Headers],[1]:[6]]), Table2[[#This Row],[Cumulative revenue %]]<=INDEX(Table1[Break point],Table2[[#Headers],[1]:[6]]+1)),Table2[[#This Row],[Sub]],NA()) -> 4124.25 | H39: =IF(AND(Table2[[#This Row],[Cumulative revenue %]]>INDEX(Table1[Break point],Table2[[#Headers],[1]:[6]]), Table2[[#This Row],[Cumulative revenue %]]<=INDEX(Table1[Break point],Table2[[#Headers],[1]:[6]]+1)),Table2[[#This Row],[Sub]],NA()) ->  | I39: =IF(AND(Table2[[#This Row],[Cumulative revenue %]]>INDEX(Table1[Break point],Table2[[#Headers],[1]:[6]]), Table2[[#This Row],[Cumulative revenue %]]<=INDEX(Table1[Break point],Table2[[#Headers],[1]:[6]]+1)),Table2[[#This Row],[Sub]],NA()) ->  | J39: =IF(AND(Table2[[#This Row],[Cumulative revenue %]]>INDEX(Table1[Break point],Table2[[#Headers],[1]:[6]]), Table2[[#This Row],[Cumulative revenue %]]<=INDEX(Table1[Break point],Table2[[#Headers],[1]:[6]]+1)),Table2[[#This Row],[Sub]],NA()) -> 
A40: =ROW()-ROW(Table2[[#Headers],[Position]]) -> 39 | B40: 4095.72 | C40: 427232.938 | D40: =Table2[[#This Row],[Cumulative revenue]]/SUM(Table2[Sub]) -> 0.5603986658 | E40: =IF(AND(Table2[[#This Row],[Cumulative revenue %]]>INDEX(Table1[Break point],Table2[[#Headers],[1]:[6]]), Table2[[#This Row],[Cumulative revenue %]]<=INDEX(Table1[Break point],Table2[[#Headers],[1]:[6]]+1)),Table2[[#This Row],[Sub]],NA()) ->  | F40: =IF(AND(Table2[[#This Row],[Cumulative revenue %]]>INDEX(Table1[Break point],Table2[[#Headers],[1]:[6]]), Table2[[#This Row],[Cumulative revenue %]]<=INDEX(Table1[Break point],Table2[[#Headers],[1]:[6]]+1)),Table2[[#This Row],[Sub]],NA()) ->  | G40: =IF(AND(Table2[[#This Row],[Cumulative revenue %]]>INDEX(Table1[Break point],Table2[[#Headers],[1]:[6]]), Table2[[#This Row],[Cumulative revenue %]]<=INDEX(Table1[Break point],Table2[[#Headers],[1]:[6]]+1)),Table2[[#This Row],[Sub]],NA()) -> 4095.72 | H40: =IF(AND(Table2[[#This Row],[Cumulative revenue %]]>INDEX(Table1[Break point],Table2[[#Headers],[1]:[6]]), Table2[[#This Row],[Cumulative revenue %]]<=INDEX(Table1[Break point],Table2[[#Headers],[1]:[6]]+1)),Table2[[#This Row],[Sub]],NA()) ->  | I40: =IF(AND(Table2[[#This Row],[Cumulative revenue %]]>INDEX(Table1[Break point],Table2[[#Headers],[1]:[6]]), Table2[[#This Row],[Cumulative revenue %]]<=INDEX(Table1[Break point],Table2[[#Headers],[1]:[6]]+1)),Table2[[#This Row],[Sub]],NA()) ->  | J40: =IF(AND(Table2[[#This Row],[Cumulative revenue %]]>INDEX(Table1[Break point],Table2[[#Headers],[1]:[6]]), Table2[[#This Row],[Cumulative revenue %]]<=INDEX(Table1[Break point],Table2[[#Headers],[1]:[6]]+1)),Table2[[#This Row],[Sub]],NA()) -> 
A41: =ROW()-ROW(Table2[[#Headers],[Position]]) -> 40 | B41: 4043.8 | C41: 431276.738 | D41: =Table2[[#This Row],[Cumulative revenue]]/SUM(Table2[Sub]) -> 0.5657028919 | E41: =IF(AND(Table2[[#This Row],[Cumulative revenue %]]>INDEX(Table1[Break point],Table2[[#Headers],[1]:[6]]), Table2[[#This Row],[Cumulative revenue %]]<=INDEX(Table1[Break point],Table2[[#Headers],[1]:[6]]+1)),Table2[[#This Row],[Sub]],NA()) ->  | F41: =IF(AND(Table2[[#This Row],[Cumulative revenue %]]>INDEX(Table1[Break point],Table2[[#Headers],[1]:[6]]), Table2[[#This Row],[Cumulative revenue %]]<=INDEX(Table1[Break point],Table2[[#Headers],[1]:[6]]+1)),Table2[[#This Row],[Sub]],NA()) ->  | G41: =IF(AND(Table2[[#This Row],[Cumulative revenue %]]>INDEX(Table1[Break point],Table2[[#Headers],[1]:[6]]), Table2[[#This Row],[Cumulative revenue %]]<=INDEX(Table1[Break point],Table2[[#Headers],[1]:[6]]+1)),Table2[[#This Row],[Sub]],NA()) -> 4043.8 | H41: =IF(AND(Table2[[#This Row],[Cumulative revenue %]]>INDEX(Table1[Break point],Table2[[#Headers],[1]:[6]]), Table2[[#This Row],[Cumulative revenue %]]<=INDEX(Table1[Break point],Table2[[#Headers],[1]:[6]]+1)),Table2[[#This Row],[Sub]],NA()) ->  | I41: =IF(AND(Table2[[#This Row],[Cumulative revenue %]]>INDEX(Table1[Break point],Table2[[#Headers],[1]:[6]]), Table2[[#This Row],[Cumulative revenue %]]<=INDEX(Table1[Break point],Table2[[#Headers],[1]:[6]]+1)),Table2[[#This Row],[Sub]],NA()) ->  | J41: =IF(AND(Table2[[#This Row],[Cumulative revenue %]]>INDEX(Table1[Break point],Table2[[#Headers],[1]:[6]]), Table2[[#This Row],[Cumulative revenue %]]<=INDEX(Table1[Break point],Table2[[#Headers],[1]:[6]]+1)),Table2[[#This Row],[Sub]],NA()) -> 
A42: =ROW()-ROW(Table2[[#Headers],[Position]]) -> 41 | B42: 4038.09 | C42: 435314.828 | D42: =Table2[[#This Row],[Cumulative revenue]]/SUM(Table2[Sub]) -> 0.5709996283 | E42: =IF(AND(Table2[[#This Row],[Cumulative revenue %]]>INDEX(Table1[Break point],Table2[[#Headers],[1]:[6]]), Table2[[#This Row],[Cumulative revenue %]]<=INDEX(Table1[Break point],Table2[[#Headers],[1]:[6]]+1)),Table2[[#This Row],[Sub]],NA()) ->  | F42: =IF(AND(Table2[[#This Row],[Cumulative revenue %]]>INDEX(Table1[Break point],Table2[[#Headers],[1]:[6]]), Table2[[#This Row],[Cumulative revenue %]]<=INDEX(Table1[Break point],Table2[[#Headers],[1]:[6]]+1)),Table2[[#This Row],[Sub]],NA()) ->  | G42: =IF(AND(Table2[[#This Row],[Cumulative revenue %]]>INDEX(Table1[Break point],Table2[[#Headers],[1]:[6]]), Table2[[#This Row],[Cumulative revenue %]]<=INDEX(Table1[Break point],Table2[[#Headers],[1]:[6]]+1)),Table2[[#This Row],[Sub]],NA()) -> 4038.09 | H42: =IF(AND(Table2[[#This Row],[Cumulative revenue %]]>INDEX(Table1[Break point],Table2[[#Headers],[1]:[6]]), Table2[[#This Row],[Cumulative revenue %]]<=INDEX(Table1[Break point],Table2[[#Headers],[1]:[6]]+1)),Table2[[#This Row],[Sub]],NA()) ->  | I42: =IF(AND(Table2[[#This Row],[Cumulative revenue %]]>INDEX(Table1[Break point],Table2[[#Headers],[1]:[6]]), Table2[[#This Row],[Cumulative revenue %]]<=INDEX(Table1[Break point],Table2[[#Headers],[1]:[6]]+1)),Table2[[#This Row],[Sub]],NA()) ->  | J42: =IF(AND(Table2[[#This Row],[Cumulative revenue %]]>INDEX(Table1[Break point],Table2[[#Headers],[1]:[6]]), Table2[[#This Row],[Cumulative revenue %]]<=INDEX(Table1[Break point],Table2[[#Headers],[1]:[6]]+1)),Table2[[#This Row],[Sub]],NA()) -> 
A43: =ROW()-ROW(Table2[[#Headers],[Position]]) -> 42 | B43: 4011.9 | C43: 439326.728 | D43: =Table2[[#This Row],[Cumulative revenue]]/SUM(Table2[Sub]) -> 0.5762620115 | E43: =IF(AND(Table2[[#This Row],[Cumulative revenue %]]>INDEX(Table1[Break point],Table2[[#Headers],[1]:[6]]), Table2[[#This Row],[Cumulative revenue %]]<=INDEX(Table1[Break point],Table2[[#Headers],[1]:[6]]+1)),Table2[[#This Row],[Sub]],NA()) ->  | F43: =IF(AND(Table2[[#This Row],[Cumulative revenue %]]>INDEX(Table1[Break point],Table2[[#Headers],[1]:[6]]), Table2[[#This Row],[Cumulative revenue %]]<=INDEX(Table1[Break point],Table2[[#Headers],[1]:[6]]+1)),Table2[[#This Row],[Sub]],NA()) ->  | G43: =IF(AND(Table2[[#This Row],[Cumulative revenue %]]>INDEX(Table1[Break point],Table2[[#Headers],[1]:[6]]), Table2[[#This Row],[Cumulative revenue %]]<=INDEX(Table1[Break point],Table2[[#Headers],[1]:[6]]+1)),Table2[[#This Row],[Sub]],NA()) -> 4011.9 | H43: =IF(AND(Table2[[#This Row],[Cumulative revenue %]]>INDEX(Table1[Break point],Table2[[#Headers],[1]:[6]]), Table2[[#This Row],[Cumulative revenue %]]<=INDEX(Table1[Break point],Table2[[#Headers],[1]:[6]]+1)),Table2[[#This Row],[Sub]],NA()) ->  | I43: =IF(AND(Table2[[#This Row],[Cumulative revenue %]]>INDEX(Table1[Break point],Table2[[#Headers],[1]:[6]]), Table2[[#This Row],[Cumulative revenue %]]<=INDEX(Table1[Break point],Table2[[#Headers],[1]:[6]]+1)),Table2[[#This Row],[Sub]],NA()) ->  | J43: =IF(AND(Table2[[#This Row],[Cumulative revenue %]]>INDEX(Table1[Break point],Table2[[#Headers],[1]:[6]]), Table2[[#This Row],[Cumulative revenue %]]<=INDEX(Table1[Break point],Table2[[#Headers],[1]:[6]]+1)),Table2[[#This Row],[Sub]],NA()) -> 
A44: =ROW()-ROW(Table2[[#Headers],[Position]]) -> 43 | B44: 3995.8 | C44: 443322.528 | D44: =Table2[[#This Row],[Cumulative revenue]]/SUM(Table2[Sub]) -> 0.5815032763 | E44: =IF(AND(Table2[[#This Row],[Cumulative revenue %]]>INDEX(Table1[Break point],Table2[[#Headers],[1]:[6]]), Table2[[#This Row],[Cumulative revenue %]]<=INDEX(Table1[Break point],Table2[[#Headers],[1]:[6]]+1)),Table2[[#This Row],[Sub]],NA()) ->  | F44: =IF(AND(Table2[[#This Row],[Cumulative revenue %]]>INDEX(Table1[Break point],Table2[[#Headers],[1]:[6]]), Table2[[#This Row],[Cumulative revenue %]]<=INDEX(Table1[Break point],Table2[[#Headers],[1]:[6]]+1)),Table2[[#This Row],[Sub]],NA()) ->  | G44: =IF(AND(Table2[[#This Row],[Cumulative revenue %]]>INDEX(Table1[Break point],Table2[[#Headers],[1]:[6]]), Table2[[#This Row],[Cumulative revenue %]]<=INDEX(Table1[Break point],Table2[[#Headers],[1]:[6]]+1)),Table2[[#This Row],[Sub]],NA()) -> 3995.8 | H44: =IF(AND(Table2[[#This Row],[Cumulative revenue %]]>INDEX(Table1[Break point],Table2[[#Headers],[1]:[6]]), Table2[[#This Row],[Cumulative revenue %]]<=INDEX(Table1[Break point],Table2[[#Headers],[1]:[6]]+1)),Table2[[#This Row],[Sub]],NA()) ->  | I44: =IF(AND(Table2[[#This Row],[Cumulative revenue %]]>INDEX(Table1[Break point],Table2[[#Headers],[1]:[6]]), Table2[[#This Row],[Cumulative revenue %]]<=INDEX(Table1[Break point],Table2[[#Headers],[1]:[6]]+1)),Table2[[#This Row],[Sub]],NA()) ->  | J44: =IF(AND(Table2[[#This Row],[Cumulative revenue %]]>INDEX(Table1[Break point],Table2[[#Headers],[1]:[6]]), Table2[[#This Row],[Cumulative revenue %]]<=INDEX(Table1[Break point],Table2[[#Headers],[1]:[6]]+1)),Table2[[#This Row],[Sub]],NA()) -> 
A45: =ROW()-ROW(Table2[[#Headers],[Position]]) -> 44 | B45: 3995.8 | C45: 447318.328 | D45: =Table2[[#This Row],[Cumulative revenue]]/SUM(Table2[Sub]) -> 0.5867445412 | E45: =IF(AND(Table2[[#This Row],[Cumulative revenue %]]>INDEX(Table1[Break point],Table2[[#Headers],[1]:[6]]), Table2[[#This Row],[Cumulative revenue %]]<=INDEX(Table1[Break point],Table2[[#Headers],[1]:[6]]+1)),Table2[[#This Row],[Sub]],NA()) ->  | F45: =IF(AND(Table2[[#This Row],[Cumulative revenue %]]>INDEX(Table1[Break point],Table2[[#Headers],[1]:[6]]), Table2[[#This Row],[Cumulative revenue %]]<=INDEX(Table1[Break point],Table2[[#Headers],[1]:[6]]+1)),Table2[[#This Row],[Sub]],NA()) ->  | G45: =IF(AND(Table2[[#This Row],[Cumulative revenue %]]>INDEX(Table1[Break point],Table2[[#Headers],[1]:[6]]), Table2[[#This Row],[Cumulative revenue %]]<=INDEX(Table1[Break point],Table2[[#Headers],[1]:[6]]+1)),Table2[[#This Row],[Sub]],NA()) -> 3995.8 | H45: =IF(AND(Table2[[#This Row],[Cumulative revenue %]]>INDEX(Table1[Break point],Table2[[#Headers],[1]:[6]]), Table2[[#This Row],[Cumulative revenue %]]<=INDEX(Table1[Break point],Table2[[#Headers],[1]:[6]]+1)),Table2[[#This Row],[Sub]],NA()) ->  | I45: =IF(AND(Table2[[#This Row],[Cumulative revenue %]]>INDEX(Table1[Break point],Table2[[#Headers],[1]:[6]]), Table2[[#This Row],[Cumulative revenue %]]<=INDEX(Table1[Break point],Table2[[#Headers],[1]:[6]]+1)),Table2[[#This Row],[Sub]],NA()) ->  | J45: =IF(AND(Table2[[#This Row],[Cumulative revenue %]]>INDEX(Table1[Break point],Table2[[#Headers],[1]:[6]]), Table2[[#This Row],[Cumulative revenue %]]<=INDEX(Table1[Break point],Table2[[#Headers],[1]:[6]]+1)),Table2[[#This Row],[Sub]],NA()) -> 
A46: =ROW()-ROW(Table2[[#Headers],[Position]]) -> 45 | B46: 3995.8 | C46: 451314.128 | D46: =Table2[[#This Row],[Cumulative revenue]]/SUM(Table2[Sub]) -> 0.5919858061 | E46: =IF(AND(Table2[[#This Row],[Cumulative revenue %]]>INDEX(Table1[Break point],Table2[[#Headers],[1]:[6]]), Table2[[#This Row],[Cumulative revenue %]]<=INDEX(Table1[Break point],Table2[[#Headers],[1]:[6]]+1)),Table2[[#This Row],[Sub]],NA()) ->  | F46: =IF(AND(Table2[[#This Row],[Cumulative revenue %]]>INDEX(Table1[Break point],Table2[[#Headers],[1]:[6]]), Table2[[#This Row],[Cumulative revenue %]]<=INDEX(Table1[Break point],Table2[[#Headers],[1]:[6]]+1)),Table2[[#This Row],[Sub]],NA()) ->  | G46: =IF(AND(Table2[[#This Row],[Cumulative revenue %]]>INDEX(Table1[Break point],Table2[[#Headers],[1]:[6]]), Table2[[#This Row],[Cumulative revenue %]]<=INDEX(Table1[Break point],Table2[[#Headers],[1]:[6]]+1)),Table2[[#This Row],[Sub]],NA()) -> 3995.8 | H46: =IF(AND(Table2[[#This Row],[Cumulative revenue %]]>INDEX(Table1[Break point],Table2[[#Headers],[1]:[6]]), Table2[[#This Row],[Cumulative revenue %]]<=INDEX(Table1[Break point],Table2[[#Headers],[1]:[6]]+1)),Table2[[#This Row],[Sub]],NA()) ->  | I46: =IF(AND(Table2[[#This Row],[Cumulative revenue %]]>INDEX(Table1[Break point],Table2[[#Headers],[1]:[6]]), Table2[[#This Row],[Cumulative revenue %]]<=INDEX(Table1[Break point],Table2[[#Headers],[1]:[6]]+1)),Table2[[#This Row],[Sub]],NA()) ->  | J46: =IF(AND(Table2[[#This Row],[Cumulative revenue %]]>INDEX(Table1[Break point],Table2[[#Headers],[1]:[6]]), Table2[[#This Row],[Cumulative revenue %]]<=INDEX(Table1[Break point],Table2[[#Headers],[1]:[6]]+1)),Table2[[#This Row],[Sub]],NA()) -> 
A47: =ROW()-ROW(Table2[[#Headers],[Position]]) -> 46 | B47: 3995.8 | C47: 455309.928 | D47: =Table2[[#This Row],[Cumulative revenue]]/SUM(Table2[Sub]) -> 0.5972270709 | E47: =IF(AND(Table2[[#This Row],[Cumulative revenue %]]>INDEX(Table1[Break point],Table2[[#Headers],[1]:[6]]), Table2[[#This Row],[Cumulative revenue %]]<=INDEX(Table1[Break point],Table2[[#Headers],[1]:[6]]+1)),Table2[[#This Row],[Sub]],NA()) ->  | F47: =IF(AND(Table2[[#This Row],[Cumulative revenue %]]>INDEX(Table1[Break point],Table2[[#Headers],[1]:[6]]), Table2[[#This Row],[Cumulative revenue %]]<=INDEX(Table1[Break point],Table2[[#Headers],[1]:[6]]+1)),Table2[[#This Row],[Sub]],NA()) ->  | G47: =IF(AND(Table2[[#This Row],[Cumulative revenue %]]>INDEX(Table1[Break point],Table2[[#Headers],[1]:[6]]), Table2[[#This Row],[Cumulative revenue %]]<=INDEX(Table1[Break point],Table2[[#Headers],[1]:[6]]+1)),Table2[[#This Row],[Sub]],NA()) -> 3995.8 | H47: =IF(AND(Table2[[#This Row],[Cumulative revenue %]]>INDEX(Table1[Break point],Table2[[#Headers],[1]:[6]]), Table2[[#This Row],[Cumulative revenue %]]<=INDEX(Table1[Break point],Table2[[#Headers],[1]:[6]]+1)),Table2[[#This Row],[Sub]],NA()) ->  | I47: =IF(AND(Table2[[#This Row],[Cumulative revenue %]]>INDEX(Table1[Break point],Table2[[#Headers],[1]:[6]]), Table2[[#This Row],[Cumulative revenue %]]<=INDEX(Table1[Break point],Table2[[#Headers],[1]:[6]]+1)),Table2[[#This Row],[Sub]],NA()) ->  | J47: =IF(AND(Table2[[#This Row],[Cumulative revenue %]]>INDEX(Table1[Break point],Table2[[#Headers],[1]:[6]]), Table2[[#This Row],[Cumulative revenue %]]<=INDEX(Table1[Break point],Table2[[#Headers],[1]:[6]]+1)),Table2[[#This Row],[Sub]],NA()) -> 
A48: =ROW()-ROW(Table2[[#Headers],[Position]]) -> 47 | B48: 3995.8 | C48: 459305.728 | D48: =Table2[[#This Row],[Cumulative revenue]]/SUM(Table2[Sub]) -> 0.6024683358 | E48: =IF(AND(Table2[[#This Row],[Cumulative revenue %]]>INDEX(Table1[Break point],Table2[[#Headers],[1]:[6]]), Table2[[#This Row],[Cumulative revenue %]]<=INDEX(Table1[Break point],Table2[[#Headers],[1]:[6]]+1)),Table2[[#This Row],[Sub]],NA()) ->  | F48: =IF(AND(Table2[[#This Row],[Cumulative revenue %]]>INDEX(Table1[Break point],Table2[[#Headers],[1]:[6]]), Table2[[#This Row],[Cumulative revenue %]]<=INDEX(Table1[Break point],Table2[[#Headers],[1]:[6]]+1)),Table2[[#This Row],[Sub]],NA()) ->  | G48: =IF(AND(Table2[[#This Row],[Cumulative revenue %]]>INDEX(Table1[Break point],Table2[[#Headers],[1]:[6]]), Table2[[#This Row],[Cumulative revenue %]]<=INDEX(Table1[Break point],Table2[[#Headers],[1]:[6]]+1)),Table2[[#This Row],[Sub]],NA()) ->  | H48: =IF(AND(Table2[[#This Row],[Cumulative revenue %]]>INDEX(Table1[Break point],Table2[[#Headers],[1]:[6]]), Table2[[#This Row],[Cumulative revenue %]]<=INDEX(Table1[Break point],Table2[[#Headers],[1]:[6]]+1)),Table2[[#This Row],[Sub]],NA()) -> 3995.8 | I48: =IF(AND(Table2[[#This Row],[Cumulative revenue %]]>INDEX(Table1[Break point],Table2[[#Headers],[1]:[6]]), Table2[[#This Row],[Cumulative revenue %]]<=INDEX(Table1[Break point],Table2[[#Headers],[1]:[6]]+1)),Table2[[#This Row],[Sub]],NA()) ->  | J48: =IF(AND(Table2[[#This Row],[Cumulative revenue %]]>INDEX(Table1[Break point],Table2[[#Headers],[1]:[6]]), Table2[[#This Row],[Cumulative revenue %]]<=INDEX(Table1[Break point],Table2[[#Headers],[1]:[6]]+1)),Table2[[#This Row],[Sub]],NA()) -> 
A49: =ROW()-ROW(Table2[[#Headers],[Position]]) -> 48 | B49: 3995.8 | C49: 463301.528 | D49: =Table2[[#This Row],[Cumulative revenue]]/SUM(Table2[Sub]) -> 0.6077096007 | E49: =IF(AND(Table2[[#This Row],[Cumulative revenue %]]>INDEX(Table1[Break point],Table2[[#Headers],[1]:[6]]), Table2[[#This Row],[Cumulative revenue %]]<=INDEX(Table1[Break point],Table2[[#Headers],[1]:[6]]+1)),Table2[[#This Row],[Sub]],NA()) ->  | F49: =IF(AND(Table2[[#This Row],[Cumulative revenue %]]>INDEX(Table1[Break point],Table2[[#Headers],[1]:[6]]), Table2[[#This Row],[Cumulative revenue %]]<=INDEX(Table1[Break point],Table2[[#Headers],[1]:[6]]+1)),Table2[[#This Row],[Sub]],NA()) ->  | G49: =IF(AND(Table2[[#This Row],[Cumulative revenue %]]>INDEX(Table1[Break point],Table2[[#Headers],[1]:[6]]), Table2[[#This Row],[Cumulative revenue %]]<=INDEX(Table1[Break point],Table2[[#Headers],[1]:[6]]+1)),Table2[[#This Row],[Sub]],NA()) ->  | H49: =IF(AND(Table2[[#This Row],[Cumulative revenue %]]>INDEX(Table1[Break point],Table2[[#Headers],[1]:[6]]), Table2[[#This Row],[Cumulative revenue %]]<=INDEX(Table1[Break point],Table2[[#Headers],[1]:[6]]+1)),Table2[[#This Row],[Sub]],NA()) -> 3995.8 | I49: =IF(AND(Table2[[#This Row],[Cumulative revenue %]]>INDEX(Table1[Break point],Table2[[#Headers],[1]:[6]]), Table2[[#This Row],[Cumulative revenue %]]<=INDEX(Table1[Break point],Table2[[#Headers],[1]:[6]]+1)),Table2[[#This Row],[Sub]],NA()) ->  | J49: =IF(AND(Table2[[#This Row],[Cumulative revenue %]]>INDEX(Table1[Break point],Table2[[#Headers],[1]:[6]]), Table2[[#This Row],[Cumulative revenue %]]<=INDEX(Table1[Break point],Table2[[#Headers],[1]:[6]]+1)),Table2[[#This Row],[Sub]],NA()) -> 
A50: =ROW()-ROW(Table2[[#Headers],[Position]]) -> 49 | B50: 3995.8 | C50: 467297.328 | D50: =Table2[[#This Row],[Cumulative revenue]]/SUM(Table2[Sub]) -> 0.6129508655 | E50: =IF(AND(Table2[[#This Row],[Cumulative revenue %]]>INDEX(Table1[Break point],Table2[[#Headers],[1]:[6]]), Table2[[#This Row],[Cumulative revenue %]]<=INDEX(Table1[Break point],Table2[[#Headers],[1]:[6]]+1)),Table2[[#This Row],[Sub]],NA()) ->  | F50: =IF(AND(Table2[[#This Row],[Cumulative revenue %]]>INDEX(Table1[Break point],Table2[[#Headers],[1]:[6]]), Table2[[#This Row],[Cumulative revenue %]]<=INDEX(Table1[Break point],Table2[[#Headers],[1]:[6]]+1)),Table2[[#This Row],[Sub]],NA()) ->  | G50: =IF(AND(Table2[[#This Row],[Cumulative revenue %]]>INDEX(Table1[Break point],Table2[[#Headers],[1]:[6]]), Table2[[#This Row],[Cumulative revenue %]]<=INDEX(Table1[Break point],Table2[[#Headers],[1]:[6]]+1)),Table2[[#This Row],[Sub]],NA()) ->  | H50: =IF(AND(Table2[[#This Row],[Cumulative revenue %]]>INDEX(Table1[Break point],Table2[[#Headers],[1]:[6]]), Table2[[#This Row],[Cumulative revenue %]]<=INDEX(Table1[Break point],Table2[[#Headers],[1]:[6]]+1)),Table2[[#This Row],[Sub]],NA()) -> 3995.8 | I50: =IF(AND(Table2[[#This Row],[Cumulative revenue %]]>INDEX(Table1[Break point],Table2[[#Headers],[1]:[6]]), Table2[[#This Row],[Cumulative revenue %]]<=INDEX(Table1[Break point],Table2[[#Headers],[1]:[6]]+1)),Table2[[#This Row],[Sub]],NA()) ->  | J50: =IF(AND(Table2[[#This Row],[Cumulative revenue %]]>INDEX(Table1[Break point],Table2[[#Headers],[1]:[6]]), Table2[[#This Row],[Cumulative revenue %]]<=INDEX(Table1[Break point],Table2[[#Headers],[1]:[6]]+1)),Table2[[#This Row],[Sub]],NA()) -> 
A51: =ROW()-ROW(Table2[[#Headers],[Position]]) -> 50 | B51: 3995.8 | C51: 471293.128 | D51: =Table2[[#This Row],[Cumulative revenue]]/SUM(Table2[Sub]) -> 0.6181921304 | E51: =IF(AND(Table2[[#This Row],[Cumulative revenue %]]>INDEX(Table1[Break point],Table2[[#Headers],[1]:[6]]), Table2[[#This Row],[Cumulative revenue %]]<=INDEX(Table1[Break point],Table2[[#Headers],[1]:[6]]+1)),Table2[[#This Row],[Sub]],NA()) ->  | F51: =IF(AND(Table2[[#This Row],[Cumulative revenue %]]>INDEX(Table1[Break point],Table2[[#Headers],[1]:[6]]), Table2[[#This Row],[Cumulative revenue %]]<=INDEX(Table1[Break point],Table2[[#Headers],[1]:[6]]+1)),Table2[[#This Row],[Sub]],NA()) ->  | G51: =IF(AND(Table2[[#This Row],[Cumulative revenue %]]>INDEX(Table1[Break point],Table2[[#Headers],[1]:[6]]), Table2[[#This Row],[Cumulative revenue %]]<=INDEX(Table1[Break point],Table2[[#Headers],[1]:[6]]+1)),Table2[[#This Row],[Sub]],NA()) ->  | H51: =IF(AND(Table2[[#This Row],[Cumulative revenue %]]>INDEX(Table1[Break point],Table2[[#Headers],[1]:[6]]), Table2[[#This Row],[Cumulative revenue %]]<=INDEX(Table1[Break point],Table2[[#Headers],[1]:[6]]+1)),Table2[[#This Row],[Sub]],NA()) -> 3995.8 | I51: =IF(AND(Table2[[#This Row],[Cumulative revenue %]]>INDEX(Table1[Break point],Table2[[#Headers],[1]:[6]]), Table2[[#This Row],[Cumulative revenue %]]<=INDEX(Table1[Break point],Table2[[#Headers],[1]:[6]]+1)),Table2[[#This Row],[Sub]],NA()) ->  | J51: =IF(AND(Table2[[#This Row],[Cumulative revenue %]]>INDEX(Table1[Break point],Table2[[#Headers],[1]:[6]]), Table2[[#This Row],[Cumulative revenue %]]<=INDEX(Table1[Break point],Table2[[#Headers],[1]:[6]]+1)),Table2[[#This Row],[Sub]],NA()) -> 
A52: =ROW()-ROW(Table2[[#Headers],[Position]]) -> 51 | B52: 3995.8 | C52: 475288.928 | D52: =Table2[[#This Row],[Cumulative revenue]]/SUM(Table2[Sub]) -> 0.6234333953 | E52: =IF(AND(Table2[[#This Row],[Cumulative revenue %]]>INDEX(Table1[Break point],Table2[[#Headers],[1]:[6]]), Table2[[#This Row],[Cumulative revenue %]]<=INDEX(Table1[Break point],Table2[[#Headers],[1]:[6]]+1)),Table2[[#This Row],[Sub]],NA()) ->  | F52: =IF(AND(Table2[[#This Row],[Cumulative revenue %]]>INDEX(Table1[Break point],Table2[[#Headers],[1]:[6]]), Table2[[#This Row],[Cumulative revenue %]]<=INDEX(Table1[Break point],Table2[[#Headers],[1]:[6]]+1)),Table2[[#This Row],[Sub]],NA()) ->  | G52: =IF(AND(Table2[[#This Row],[Cumulative revenue %]]>INDEX(Table1[Break point],Table2[[#Headers],[1]:[6]]), Table2[[#This Row],[Cumulative revenue %]]<=INDEX(Table1[Break point],Table2[[#Headers],[1]:[6]]+1)),Table2[[#This Row],[Sub]],NA()) ->  | H52: =IF(AND(Table2[[#This Row],[Cumulative revenue %]]>INDEX(Table1[Break point],Table2[[#Headers],[1]:[6]]), Table2[[#This Row],[Cumulative revenue %]]<=INDEX(Table1[Break point],Table2[[#Headers],[1]:[6]]+1)),Table2[[#This Row],[Sub]],NA()) -> 3995.8 | I52: =IF(AND(Table2[[#This Row],[Cumulative revenue %]]>INDEX(Table1[Break point],Table2[[#Headers],[1]:[6]]), Table2[[#This Row],[Cumulative revenue %]]<=INDEX(Table1[Break point],Table2[[#Headers],[1]:[6]]+1)),Table2[[#This Row],[Sub]],NA()) ->  | J52: =IF(AND(Table2[[#This Row],[Cumulative revenue %]]>INDEX(Table1[Break point],Table2[[#Headers],[1]:[6]]), Table2[[#This Row],[Cumulative revenue %]]<=INDEX(Table1[Break point],Table2[[#Headers],[1]:[6]]+1)),Table2[[#This Row],[Sub]],NA()) -> 
A53: =ROW()-ROW(Table2[[#Headers],[Position]]) -> 52 | B53: 3995.8 | C53: 479284.728 | D53: =Table2[[#This Row],[Cumulative revenue]]/SUM(Table2[Sub]) -> 0.6286746601 | E53: =IF(AND(Table2[[#This Row],[Cumulative revenue %]]>INDEX(Table1[Break point],Table2[[#Headers],[1]:[6]]), Table2[[#This Row],[Cumulative revenue %]]<=INDEX(Table1[Break point],Table2[[#Headers],[1]:[6]]+1)),Table2[[#This Row],[Sub]],NA()) ->  | F53: =IF(AND(Table2[[#This Row],[Cumulative revenue %]]>INDEX(Table1[Break point],Table2[[#Headers],[1]:[6]]), Table2[[#This Row],[Cumulative revenue %]]<=INDEX(Table1[Break point],Table2[[#Headers],[1]:[6]]+1)),Table2[[#This Row],[Sub]],NA()) ->  | G53: =IF(AND(Table2[[#This Row],[Cumulative revenue %]]>INDEX(Table1[Break point],Table2[[#Headers],[1]:[6]]), Table2[[#This Row],[Cumulative revenue %]]<=INDEX(Table1[Break point],Table2[[#Headers],[1]:[6]]+1)),Table2[[#This Row],[Sub]],NA()) ->  | H53: =IF(AND(Table2[[#This Row],[Cumulative revenue %]]>INDEX(Table1[Break point],Table2[[#Headers],[1]:[6]]), Table2[[#This Row],[Cumulative revenue %]]<=INDEX(Table1[Break point],Table2[[#Headers],[1]:[6]]+1)),Table2[[#This Row],[Sub]],NA()) -> 3995.8 | I53: =IF(AND(Table2[[#This Row],[Cumulative revenue %]]>INDEX(Table1[Break point],Table2[[#Headers],[1]:[6]]), Table2[[#This Row],[Cumulative revenue %]]<=INDEX(Table1[Break point],Table2[[#Headers],[1]:[6]]+1)),Table2[[#This Row],[Sub]],NA()) ->  | J53: =IF(AND(Table2[[#This Row],[Cumulative revenue %]]>INDEX(Table1[Break point],Table2[[#Headers],[1]:[6]]), Table2[[#This Row],[Cumulative revenue %]]<=INDEX(Table1[Break point],Table2[[#Headers],[1]:[6]]+1)),Table2[[#This Row],[Sub]],NA()) -> 
A54: =ROW()-ROW(Table2[[#Headers],[Position]]) -> 53 | B54: 3995.8 | C54: 483280.528 | D54: =Table2[[#This Row],[Cumulative revenue]]/SUM(Table2[Sub]) -> 0.633915925 | E54: =IF(AND(Table2[[#This Row],[Cumulative revenue %]]>INDEX(Table1[Break point],Table2[[#Headers],[1]:[6]]), Table2[[#This Row],[Cumulative revenue %]]<=INDEX(Table1[Break point],Table2[[#Headers],[1]:[6]]+1)),Table2[[#This Row],[Sub]],NA()) ->  | F54: =IF(AND(Table2[[#This Row],[Cumulative revenue %]]>INDEX(Table1[Break point],Table2[[#Headers],[1]:[6]]), Table2[[#This Row],[Cumulative revenue %]]<=INDEX(Table1[Break point],Table2[[#Headers],[1]:[6]]+1)),Table2[[#This Row],[Sub]],NA()) ->  | G54: =IF(AND(Table2[[#This Row],[Cumulative revenue %]]>INDEX(Table1[Break point],Table2[[#Headers],[1]:[6]]), Table2[[#This Row],[Cumulative revenue %]]<=INDEX(Table1[Break point],Table2[[#Headers],[1]:[6]]+1)),Table2[[#This Row],[Sub]],NA()) ->  | H54: =IF(AND(Table2[[#This Row],[Cumulative revenue %]]>INDEX(Table1[Break point],Table2[[#Headers],[1]:[6]]), Table2[[#This Row],[Cumulative revenue %]]<=INDEX(Table1[Break point],Table2[[#Headers],[1]:[6]]+1)),Table2[[#This Row],[Sub]],NA()) -> 3995.8 | I54: =IF(AND(Table2[[#This Row],[Cumulative revenue %]]>INDEX(Table1[Break point],Table2[[#Headers],[1]:[6]]), Table2[[#This Row],[Cumulative revenue %]]<=INDEX(Table1[Break point],Table2[[#Headers],[1]:[6]]+1)),Table2[[#This Row],[Sub]],NA()) ->  | J54: =IF(AND(Table2[[#This Row],[Cumulative revenue %]]>INDEX(Table1[Break point],Table2[[#Headers],[1]:[6]]), Table2[[#This Row],[Cumulative revenue %]]<=INDEX(Table1[Break point],Table2[[#Headers],[1]:[6]]+1)),Table2[[#This Row],[Sub]],NA()) -> 
A55: =ROW()-ROW(Table2[[#Headers],[Position]]) -> 54 | B55: 3995.8 | C55: 487276.328 | D55: =Table2[[#This Row],[Cumulative revenue]]/SUM(Table2[Sub]) -> 0.6391571899 | E55: =IF(AND(Table2[[#This Row],[Cumulative revenue %]]>INDEX(Table1[Break point],Table2[[#Headers],[1]:[6]]), Table2[[#This Row],[Cumulative revenue %]]<=INDEX(Table1[Break point],Table2[[#Headers],[1]:[6]]+1)),Table2[[#This Row],[Sub]],NA()) ->  | F55: =IF(AND(Table2[[#This Row],[Cumulative revenue %]]>INDEX(Table1[Break point],Table2[[#Headers],[1]:[6]]), Table2[[#This Row],[Cumulative revenue %]]<=INDEX(Table1[Break point],Table2[[#Headers],[1]:[6]]+1)),Table2[[#This Row],[Sub]],NA()) ->  | G55: =IF(AND(Table2[[#This Row],[Cumulative revenue %]]>INDEX(Table1[Break point],Table2[[#Headers],[1]:[6]]), Table2[[#This Row],[Cumulative revenue %]]<=INDEX(Table1[Break point],Table2[[#Headers],[1]:[6]]+1)),Table2[[#This Row],[Sub]],NA()) ->  | H55: =IF(AND(Table2[[#This Row],[Cumulative revenue %]]>INDEX(Table1[Break point],Table2[[#Headers],[1]:[6]]), Table2[[#This Row],[Cumulative revenue %]]<=INDEX(Table1[Break point],Table2[[#Headers],[1]:[6]]+1)),Table2[[#This Row],[Sub]],NA()) -> 3995.8 | I55: =IF(AND(Table2[[#This Row],[Cumulative revenue %]]>INDEX(Table1[Break point],Table2[[#Headers],[1]:[6]]), Table2[[#This Row],[Cumulative revenue %]]<=INDEX(Table1[Break point],Table2[[#Headers],[1]:[6]]+1)),Table2[[#This Row],[Sub]],NA()) ->  | J55: =IF(AND(Table2[[#This Row],[Cumulative revenue %]]>INDEX(Table1[Break point],Table2[[#Headers],[1]:[6]]), Table2[[#This Row],[Cumulative revenue %]]<=INDEX(Table1[Break point],Table2[[#Headers],[1]:[6]]+1)),Table2[[#This Row],[Sub]],NA()) -> 
A56: =ROW()-ROW(Table2[[#Headers],[Position]]) -> 55 | B56: 3995.8 | C56: 491272.128 | D56: =Table2[[#This Row],[Cumulative revenue]]/SUM(Table2[Sub]) -> 0.6443984547 | E56: =IF(AND(Table2[[#This Row],[Cumulative revenue %]]>INDEX(Table1[Break point],Table2[[#Headers],[1]:[6]]), Table2[[#This Row],[Cumulative revenue %]]<=INDEX(Table1[Break point],Table2[[#Headers],[1]:[6]]+1)),Table2[[#This Row],[Sub]],NA()) ->  | F56: =IF(AND(Table2[[#This Row],[Cumulative revenue %]]>INDEX(Table1[Break point],Table2[[#Headers],[1]:[6]]), Table2[[#This Row],[Cumulative revenue %]]<=INDEX(Table1[Break point],Table2[[#Headers],[1]:[6]]+1)),Table2[[#This Row],[Sub]],NA()) ->  | G56: =IF(AND(Table2[[#This Row],[Cumulative revenue %]]>INDEX(Table1[Break point],Table2[[#Headers],[1]:[6]]), Table2[[#This Row],[Cumulative revenue %]]<=INDEX(Table1[Break point],Table2[[#Headers],[1]:[6]]+1)),Table2[[#This Row],[Sub]],NA()) ->  | H56: =IF(AND(Table2[[#This Row],[Cumulative revenue %]]>INDEX(Table1[Break point],Table2[[#Headers],[1]:[6]]), Table2[[#This Row],[Cumulative revenue %]]<=INDEX(Table1[Break point],Table2[[#Headers],[1]:[6]]+1)),Table2[[#This Row],[Sub]],NA()) -> 3995.8 | I56: =IF(AND(Table2[[#This Row],[Cumulative revenue %]]>INDEX(Table1[Break point],Table2[[#Headers],[1]:[6]]), Table2[[#This Row],[Cumulative revenue %]]<=INDEX(Table1[Break point],Table2[[#Headers],[1]:[6]]+1)),Table2[[#This Row],[Sub]],NA()) ->  | J56: =IF(AND(Table2[[#This Row],[Cumulative revenue %]]>INDEX(Table1[Break point],Table2[[#Headers],[1]:[6]]), Table2[[#This Row],[Cumulative revenue %]]<=INDEX(Table1[Break point],Table2[[#Headers],[1]:[6]]+1)),Table2[[#This Row],[Sub]],NA()) -> 
A57: =ROW()-ROW(Table2[[#Headers],[Position]]) -> 56 | B57: 3995.8 | C57: 495267.928 | D57: =Table2[[#This Row],[Cumulative revenue]]/SUM(Table2[Sub]) -> 0.6496397196 | E57: =IF(AND(Table2[[#This Row],[Cumulative revenue %]]>INDEX(Table1[Break point],Table2[[#Headers],[1]:[6]]), Table2[[#This Row],[Cumulative revenue %]]<=INDEX(Table1[Break point],Table2[[#Headers],[1]:[6]]+1)),Table2[[#This Row],[Sub]],NA()) ->  | F57: =IF(AND(Table2[[#This Row],[Cumulative revenue %]]>INDEX(Table1[Break point],Table2[[#Headers],[1]:[6]]), Table2[[#This Row],[Cumulative revenue %]]<=INDEX(Table1[Break point],Table2[[#Headers],[1]:[6]]+1)),Table2[[#This Row],[Sub]],NA()) ->  | G57: =IF(AND(Table2[[#This Row],[Cumulative revenue %]]>INDEX(Table1[Break point],Table2[[#Headers],[1]:[6]]), Table2[[#This Row],[Cumulative revenue %]]<=INDEX(Table1[Break point],Table2[[#Headers],[1]:[6]]+1)),Table2[[#This Row],[Sub]],NA()) ->  | H57: =IF(AND(Table2[[#This Row],[Cumulative revenue %]]>INDEX(Table1[Break point],Table2[[#Headers],[1]:[6]]), Table2[[#This Row],[Cumulative revenue %]]<=INDEX(Table1[Break point],Table2[[#Headers],[1]:[6]]+1)),Table2[[#This Row],[Sub]],NA()) -> 3995.8 | I57: =IF(AND(Table2[[#This Row],[Cumulative revenue %]]>INDEX(Table1[Break point],Table2[[#Headers],[1]:[6]]), Table2[[#This Row],[Cumulative revenue %]]<=INDEX(Table1[Break point],Table2[[#Headers],[1]:[6]]+1)),Table2[[#This Row],[Sub]],NA()) ->  | J57: =IF(AND(Table2[[#This Row],[Cumulative revenue %]]>INDEX(Table1[Break point],Table2[[#Headers],[1]:[6]]), Table2[[#This Row],[Cumulative revenue %]]<=INDEX(Table1[Break point],Table2[[#Headers],[1]:[6]]+1)),Table2[[#This Row],[Sub]],NA()) -> 
A58: =ROW()-ROW(Table2[[#Headers],[Position]]) -> 57 | B58: 3995.75 | C58: 499263.678 | D58: =Table2[[#This Row],[Cumulative revenue]]/SUM(Table2[Sub]) -> 0.6548809189 | E58: =IF(AND(Table2[[#This Row],[Cumulative revenue %]]>INDEX(Table1[Break point],Table2[[#Headers],[1]:[6]]), Table2[[#This Row],[Cumulative revenue %]]<=INDEX(Table1[Break point],Table2[[#Headers],[1]:[6]]+1)),Table2[[#This Row],[Sub]],NA()) ->  | F58: =IF(AND(Table2[[#This Row],[Cumulative revenue %]]>INDEX(Table1[Break point],Table2[[#Headers],[1]:[6]]), Table2[[#This Row],[Cumulative revenue %]]<=INDEX(Table1[Break point],Table2[[#Headers],[1]:[6]]+1)),Table2[[#This Row],[Sub]],NA()) ->  | G58: =IF(AND(Table2[[#This Row],[Cumulative revenue %]]>INDEX(Table1[Break point],Table2[[#Headers],[1]:[6]]), Table2[[#This Row],[Cumulative revenue %]]<=INDEX(Table1[Break point],Table2[[#Headers],[1]:[6]]+1)),Table2[[#This Row],[Sub]],NA()) ->  | H58: =IF(AND(Table2[[#This Row],[Cumulative revenue %]]>INDEX(Table1[Break point],Table2[[#Headers],[1]:[6]]), Table2[[#This Row],[Cumulative revenue %]]<=INDEX(Table1[Break point],Table2[[#Headers],[1]:[6]]+1)),Table2[[#This Row],[Sub]],NA()) -> 3995.75 | I58: =IF(AND(Table2[[#This Row],[Cumulative revenue %]]>INDEX(Table1[Break point],Table2[[#Headers],[1]:[6]]), Table2[[#This Row],[Cumulative revenue %]]<=INDEX(Table1[Break point],Table2[[#Headers],[1]:[6]]+1)),Table2[[#This Row],[Sub]],NA()) ->  | J58: =IF(AND(Table2[[#This Row],[Cumulative revenue %]]>INDEX(Table1[Break point],Table2[[#Headers],[1]:[6]]), Table2[[#This Row],[Cumulative revenue %]]<=INDEX(Table1[Break point],Table2[[#Headers],[1]:[6]]+1)),Table2[[#This Row],[Sub]],NA()) -> 
A59: =ROW()-ROW(Table2[[#Headers],[Position]]) -> 58 | B59: 3995.75 | C59: 503259.428 | D59: =Table2[[#This Row],[Cumulative revenue]]/SUM(Table2[Sub]) -> 0.6601221182 | E59: =IF(AND(Table2[[#This Row],[Cumulative revenue %]]>INDEX(Table1[Break point],Table2[[#Headers],[1]:[6]]), Table2[[#This Row],[Cumulative revenue %]]<=INDEX(Table1[Break point],Table2[[#Headers],[1]:[6]]+1)),Table2[[#This Row],[Sub]],NA()) ->  | F59: =IF(AND(Table2[[#This Row],[Cumulative revenue %]]>INDEX(Table1[Break point],Table2[[#Headers],[1]:[6]]), Table2[[#This Row],[Cumulative revenue %]]<=INDEX(Table1[Break point],Table2[[#Headers],[1]:[6]]+1)),Table2[[#This Row],[Sub]],NA()) ->  | G59: =IF(AND(Table2[[#This Row],[Cumulative revenue %]]>INDEX(Table1[Break point],Table2[[#Headers],[1]:[6]]), Table2[[#This Row],[Cumulative revenue %]]<=INDEX(Table1[Break point],Table2[[#Headers],[1]:[6]]+1)),Table2[[#This Row],[Sub]],NA()) ->  | H59: =IF(AND(Table2[[#This Row],[Cumulative revenue %]]>INDEX(Table1[Break point],Table2[[#Headers],[1]:[6]]), Table2[[#This Row],[Cumulative revenue %]]<=INDEX(Table1[Break point],Table2[[#Headers],[1]:[6]]+1)),Table2[[#This Row],[Sub]],NA()) -> 3995.75 | I59: =IF(AND(Table2[[#This Row],[Cumulative revenue %]]>INDEX(Table1[Break point],Table2[[#Headers],[1]:[6]]), Table2[[#This Row],[Cumulative revenue %]]<=INDEX(Table1[Break point],Table2[[#Headers],[1]:[6]]+1)),Table2[[#This Row],[Sub]],NA()) ->  | J59: =IF(AND(Table2[[#This Row],[Cumulative revenue %]]>INDEX(Table1[Break point],Table2[[#Headers],[1]:[6]]), Table2[[#This Row],[Cumulative revenue %]]<=INDEX(Table1[Break point],Table2[[#Headers],[1]:[6]]+1)),Table2[[#This Row],[Sub]],NA()) -> 
A60: =ROW()-ROW(Table2[[#Headers],[Position]]) -> 59 | B60: 3995.7 | C60: 507255.128 | D60: =Table2[[#This Row],[Cumulative revenue]]/SUM(Table2[Sub]) -> 0.6653632519 | E60: =IF(AND(Table2[[#This Row],[Cumulative revenue %]]>INDEX(Table1[Break point],Table2[[#Headers],[1]:[6]]), Table2[[#This Row],[Cumulative revenue %]]<=INDEX(Table1[Break point],Table2[[#Headers],[1]:[6]]+1)),Table2[[#This Row],[Sub]],NA()) ->  | F60: =IF(AND(Table2[[#This Row],[Cumulative revenue %]]>INDEX(Table1[Break point],Table2[[#Headers],[1]:[6]]), Table2[[#This Row],[Cumulative revenue %]]<=INDEX(Table1[Break point],Table2[[#Headers],[1]:[6]]+1)),Table2[[#This Row],[Sub]],NA()) ->  | G60: =IF(AND(Table2[[#This Row],[Cumulative revenue %]]>INDEX(Table1[Break point],Table2[[#Headers],[1]:[6]]), Table2[[#This Row],[Cumulative revenue %]]<=INDEX(Table1[Break point],Table2[[#Headers],[1]:[6]]+1)),Table2[[#This Row],[Sub]],NA()) ->  | H60: =IF(AND(Table2[[#This Row],[Cumulative revenue %]]>INDEX(Table1[Break point],Table2[[#Headers],[1]:[6]]), Table2[[#This Row],[Cumulative revenue %]]<=INDEX(Table1[Break point],Table2[[#Headers],[1]:[6]]+1)),Table2[[#This Row],[Sub]],NA()) -> 3995.7 | I60: =IF(AND(Table2[[#This Row],[Cumulative revenue %]]>INDEX(Table1[Break point],Table2[[#Headers],[1]:[6]]), Table2[[#This Row],[Cumulative revenue %]]<=INDEX(Table1[Break point],Table2[[#Headers],[1]:[6]]+1)),Table2[[#This Row],[Sub]],NA()) ->  | J60: =IF(AND(Table2[[#This Row],[Cumulative revenue %]]>INDEX(Table1[Break point],Table2[[#Headers],[1]:[6]]), Table2[[#This Row],[Cumulative revenue %]]<=INDEX(Table1[Break point],Table2[[#Headers],[1]:[6]]+1)),Table2[[#This Row],[Sub]],NA()) -> 
A61: =ROW()-ROW(Table2[[#Headers],[Position]]) -> 60 | B61: 3995.7 | C61: 511250.828 | D61: =Table2[[#This Row],[Cumulative revenue]]/SUM(Table2[Sub]) -> 0.6706043856 | E61: =IF(AND(Table2[[#This Row],[Cumulative revenue %]]>INDEX(Table1[Break point],Table2[[#Headers],[1]:[6]]), Table2[[#This Row],[Cumulative revenue %]]<=INDEX(Table1[Break point],Table2[[#Headers],[1]:[6]]+1)),Table2[[#This Row],[Sub]],NA()) ->  | F61: =IF(AND(Table2[[#This Row],[Cumulative revenue %]]>INDEX(Table1[Break point],Table2[[#Headers],[1]:[6]]), Table2[[#This Row],[Cumulative revenue %]]<=INDEX(Table1[Break point],Table2[[#Headers],[1]:[6]]+1)),Table2[[#This Row],[Sub]],NA()) ->  | G61: =IF(AND(Table2[[#This Row],[Cumulative revenue %]]>INDEX(Table1[Break point],Table2[[#Headers],[1]:[6]]), Table2[[#This Row],[Cumulative revenue %]]<=INDEX(Table1[Break point],Table2[[#Headers],[1]:[6]]+1)),Table2[[#This Row],[Sub]],NA()) ->  | H61: =IF(AND(Table2[[#This Row],[Cumulative revenue %]]>INDEX(Table1[Break point],Table2[[#Headers],[1]:[6]]), Table2[[#This Row],[Cumulative revenue %]]<=INDEX(Table1[Break point],Table2[[#Headers],[1]:[6]]+1)),Table2[[#This Row],[Sub]],NA()) -> 3995.7 | I61: =IF(AND(Table2[[#This Row],[Cumulative revenue %]]>INDEX(Table1[Break point],Table2[[#Headers],[1]:[6]]), Table2[[#This Row],[Cumulative revenue %]]<=INDEX(Table1[Break point],Table2[[#Headers],[1]:[6]]+1)),Table2[[#This Row],[Sub]],NA()) ->  | J61: =IF(AND(Table2[[#This Row],[Cumulative revenue %]]>INDEX(Table1[Break point],Table2[[#Headers],[1]:[6]]), Table2[[#This Row],[Cumulative revenue %]]<=INDEX(Table1[Break point],Table2[[#Headers],[1]:[6]]+1)),Table2[[#This Row],[Sub]],NA()) -> 
A62: =ROW()-ROW(Table2[[#Headers],[Position]]) -> 61 | B62: 3991.17 | C62: 515241.998 | D62: =Table2[[#This Row],[Cumulative revenue]]/SUM(Table2[Sub]) -> 0.6758395773 | E62: =IF(AND(Table2[[#This Row],[Cumulative revenue %]]>INDEX(Table1[Break point],Table2[[#Headers],[1]:[6]]), Table2[[#This Row],[Cumulative revenue %]]<=INDEX(Table1[Break point],Table2[[#Headers],[1]:[6]]+1)),Table2[[#This Row],[Sub]],NA()) ->  | F62: =IF(AND(Table2[[#This Row],[Cumulative revenue %]]>INDEX(Table1[Break point],Table2[[#Headers],[1]:[6]]), Table2[[#This Row],[Cumulative revenue %]]<=INDEX(Table1[Break point],Table2[[#Headers],[1]:[6]]+1)),Table2[[#This Row],[Sub]],NA()) ->  | G62: =IF(AND(Table2[[#This Row],[Cumulative revenue %]]>INDEX(Table1[Break point],Table2[[#Headers],[1]:[6]]), Table2[[#This Row],[Cumulative revenue %]]<=INDEX(Table1[Break point],Table2[[#Headers],[1]:[6]]+1)),Table2[[#This Row],[Sub]],NA()) ->  | H62: =IF(AND(Table2[[#This Row],[Cumulative revenue %]]>INDEX(Table1[Break point],Table2[[#Headers],[1]:[6]]), Table2[[#This Row],[Cumulative revenue %]]<=INDEX(Table1[Break point],Table2[[#Headers],[1]:[6]]+1)),Table2[[#This Row],[Sub]],NA()) -> 3991.17 | I62: =IF(AND(Table2[[#This Row],[Cumulative revenue %]]>INDEX(Table1[Break point],Table2[[#Headers],[1]:[6]]), Table2[[#This Row],[Cumulative revenue %]]<=INDEX(Table1[Break point],Table2[[#Headers],[1]:[6]]+1)),Table2[[#This Row],[Sub]],NA()) ->  | J62: =IF(AND(Table2[[#This Row],[Cumulative revenue %]]>INDEX(Table1[Break point],Table2[[#Headers],[1]:[6]]), Table2[[#This Row],[Cumulative revenue %]]<=INDEX(Table1[Break point],Table2[[#Headers],[1]:[6]]+1)),Table2[[#This Row],[Sub]],NA()) -> 
A63: =ROW()-ROW(Table2[[#Headers],[Position]]) -> 62 | B63: 3955.7 | C63: 519197.698 | D63: =Table2[[#This Row],[Cumulative revenue]]/SUM(Table2[Sub]) -> 0.6810282433 | E63: =IF(AND(Table2[[#This Row],[Cumulative revenue %]]>INDEX(Table1[Break point],Table2[[#Headers],[1]:[6]]), Table2[[#This Row],[Cumulative revenue %]]<=INDEX(Table1[Break point],Table2[[#Headers],[1]:[6]]+1)),Table2[[#This Row],[Sub]],NA()) ->  | F63: =IF(AND(Table2[[#This Row],[Cumulative revenue %]]>INDEX(Table1[Break point],Table2[[#Headers],[1]:[6]]), Table2[[#This Row],[Cumulative revenue %]]<=INDEX(Table1[Break point],Table2[[#Headers],[1]:[6]]+1)),Table2[[#This Row],[Sub]],NA()) ->  | G63: =IF(AND(Table2[[#This Row],[Cumulative revenue %]]>INDEX(Table1[Break point],Table2[[#Headers],[1]:[6]]), Table2[[#This Row],[Cumulative revenue %]]<=INDEX(Table1[Break point],Table2[[#Headers],[1]:[6]]+1)),Table2[[#This Row],[Sub]],NA()) ->  | H63: =IF(AND(Table2[[#This Row],[Cumulative revenue %]]>INDEX(Table1[Break point],Table2[[#Headers],[1]:[6]]), Table2[[#This Row],[Cumulative revenue %]]<=INDEX(Table1[Break point],Table2[[#Headers],[1]:[6]]+1)),Table2[[#This Row],[Sub]],NA()) -> 3955.7 | I63: =IF(AND(Table2[[#This Row],[Cumulative revenue %]]>INDEX(Table1[Break point],Table2[[#Headers],[1]:[6]]), Table2[[#This Row],[Cumulative revenue %]]<=INDEX(Table1[Break point],Table2[[#Headers],[1]:[6]]+1)),Table2[[#This Row],[Sub]],NA()) ->  | J63: =IF(AND(Table2[[#This Row],[Cumulative revenue %]]>INDEX(Table1[Break point],Table2[[#Headers],[1]:[6]]), Table2[[#This Row],[Cumulative revenue %]]<=INDEX(Table1[Break point],Table2[[#Headers],[1]:[6]]+1)),Table2[[#This Row],[Sub]],NA()) -> 
A64: =ROW()-ROW(Table2[[#Headers],[Position]]) -> 63 | B64: 3752.5 | C64: 522950.198 | D64: =Table2[[#This Row],[Cumulative revenue]]/SUM(Table2[Sub]) -> 0.6859503731 | E64: =IF(AND(Table2[[#This Row],[Cumulative revenue %]]>INDEX(Table1[Break point],Table2[[#Headers],[1]:[6]]), Table2[[#This Row],[Cumulative revenue %]]<=INDEX(Table1[Break point],Table2[[#Headers],[1]:[6]]+1)),Table2[[#This Row],[Sub]],NA()) ->  | F64: =IF(AND(Table2[[#This Row],[Cumulative revenue %]]>INDEX(Table1[Break point],Table2[[#Headers],[1]:[6]]), Table2[[#This Row],[Cumulative revenue %]]<=INDEX(Table1[Break point],Table2[[#Headers],[1]:[6]]+1)),Table2[[#This Row],[Sub]],NA()) ->  | G64: =IF(AND(Table2[[#This Row],[Cumulative revenue %]]>INDEX(Table1[Break point],Table2[[#Headers],[1]:[6]]), Table2[[#This Row],[Cumulative revenue %]]<=INDEX(Table1[Break point],Table2[[#Headers],[1]:[6]]+1)),Table2[[#This Row],[Sub]],NA()) ->  | H64: =IF(AND(Table2[[#This Row],[Cumulative revenue %]]>INDEX(Table1[Break point],Table2[[#Headers],[1]:[6]]), Table2[[#This Row],[Cumulative revenue %]]<=INDEX(Table1[Break point],Table2[[#Headers],[1]:[6]]+1)),Table2[[#This Row],[Sub]],NA()) -> 3752.5 | I64: =IF(AND(Table2[[#This Row],[Cumulative revenue %]]>INDEX(Table1[Break point],Table2[[#Headers],[1]:[6]]), Table2[[#This Row],[Cumulative revenue %]]<=INDEX(Table1[Break point],Table2[[#Headers],[1]:[6]]+1)),Table2[[#This Row],[Sub]],NA()) ->  | J64: =IF(AND(Table2[[#This Row],[Cumulative revenue %]]>INDEX(Table1[Break point],Table2[[#Headers],[1]:[6]]), Table2[[#This Row],[Cumulative revenue %]]<=INDEX(Table1[Break point],Table2[[#Headers],[1]:[6]]+1)),Table2[[#This Row],[Sub]],NA()) -> 
A65: =ROW()-ROW(Table2[[#Headers],[Position]]) -> 64 | B65: 3713.38 | C65: 526663.578 | D65: =Table2[[#This Row],[Cumulative revenue]]/SUM(Table2[Sub]) -> 0.6908211895 | E65: =IF(AND(Table2[[#This Row],[Cumulative revenue %]]>INDEX(Table1[Break point],Table2[[#Headers],[1]:[6]]), Table2[[#This Row],[Cumulative revenue %]]<=INDEX(Table1[Break point],Table2[[#Headers],[1]:[6]]+1)),Table2[[#This Row],[Sub]],NA()) ->  | F65: =IF(AND(Table2[[#This Row],[Cumulative revenue %]]>INDEX(Table1[Break point],Table2[[#Headers],[1]:[6]]), Table2[[#This Row],[Cumulative revenue %]]<=INDEX(Table1[Break point],Table2[[#Headers],[1]:[6]]+1)),Table2[[#This Row],[Sub]],NA()) ->  | G65: =IF(AND(Table2[[#This Row],[Cumulative revenue %]]>INDEX(Table1[Break point],Table2[[#Headers],[1]:[6]]), Table2[[#This Row],[Cumulative revenue %]]<=INDEX(Table1[Break point],Table2[[#Headers],[1]:[6]]+1)),Table2[[#This Row],[Sub]],NA()) ->  | H65: =IF(AND(Table2[[#This Row],[Cumulative revenue %]]>INDEX(Table1[Break point],Table2[[#Headers],[1]:[6]]), Table2[[#This Row],[Cumulative revenue %]]<=INDEX(Table1[Break point],Table2[[#Headers],[1]:[6]]+1)),Table2[[#This Row],[Sub]],NA()) -> 3713.38 | I65: =IF(AND(Table2[[#This Row],[Cumulative revenue %]]>INDEX(Table1[Break point],Table2[[#Headers],[1]:[6]]), Table2[[#This Row],[Cumulative revenue %]]<=INDEX(Table1[Break point],Table2[[#Headers],[1]:[6]]+1)),Table2[[#This Row],[Sub]],NA()) ->  | J65: =IF(AND(Table2[[#This Row],[Cumulative revenue %]]>INDEX(Table1[Break point],Table2[[#Headers],[1]:[6]]), Table2[[#This Row],[Cumulative revenue %]]<=INDEX(Table1[Break point],Table2[[#Headers],[1]:[6]]+1)),Table2[[#This Row],[Sub]],NA()) -> 
A66: =ROW()-ROW(Table2[[#Headers],[Position]]) -> 65 | B66: 3689.16 | C66: 530352.738 | D66: =Table2[[#This Row],[Cumulative revenue]]/SUM(Table2[Sub]) -> 0.6956602367 | E66: =IF(AND(Table2[[#This Row],[Cumulative revenue %]]>INDEX(Table1[Break point],Table2[[#Headers],[1]:[6]]), Table2[[#This Row],[Cumulative revenue %]]<=INDEX(Table1[Break point],Table2[[#Headers],[1]:[6]]+1)),Table2[[#This Row],[Sub]],NA()) ->  | F66: =IF(AND(Table2[[#This Row],[Cumulative revenue %]]>INDEX(Table1[Break point],Table2[[#Headers],[1]:[6]]), Table2[[#This Row],[Cumulative revenue %]]<=INDEX(Table1[Break point],Table2[[#Headers],[1]:[6]]+1)),Table2[[#This Row],[Sub]],NA()) ->  | G66: =IF(AND(Table2[[#This Row],[Cumulative revenue %]]>INDEX(Table1[Break point],Table2[[#Headers],[1]:[6]]), Table2[[#This Row],[Cumulative revenue %]]<=INDEX(Table1[Break point],Table2[[#Headers],[1]:[6]]+1)),Table2[[#This Row],[Sub]],NA()) ->  | H66: =IF(AND(Table2[[#This Row],[Cumulative revenue %]]>INDEX(Table1[Break point],Table2[[#Headers],[1]:[6]]), Table2[[#This Row],[Cumulative revenue %]]<=INDEX(Table1[Break point],Table2[[#Headers],[1]:[6]]+1)),Table2[[#This Row],[Sub]],NA()) -> 3689.16 | I66: =IF(AND(Table2[[#This Row],[Cumulative revenue %]]>INDEX(Table1[Break point],Table2[[#Headers],[1]:[6]]), Table2[[#This Row],[Cumulative revenue %]]<=INDEX(Table1[Break point],Table2[[#Headers],[1]:[6]]+1)),Table2[[#This Row],[Sub]],NA()) ->  | J66: =IF(AND(Table2[[#This Row],[Cumulative revenue %]]>INDEX(Table1[Break point],Table2[[#Headers],[1]:[6]]), Table2[[#This Row],[Cumulative revenue %]]<=INDEX(Table1[Break point],Table2[[#Headers],[1]:[6]]+1)),Table2[[#This Row],[Sub]],NA()) -> 
A67: =ROW()-ROW(Table2[[#Headers],[Position]]) -> 66 | B67: 3518.5 | C67: =B67+C66 -> 533871.238 | D67: =Table2[[#This Row],[Cumulative revenue]]/SUM(Table2[Sub]) -> 0.7002754302 | E67: =IF(AND(Table2[[#This Row],[Cumulative revenue %]]>INDEX(Table1[Break point],Table2[[#Headers],[1]:[6]]), Table2[[#This Row],[Cumulative revenue %]]<=INDEX(Table1[Break point],Table2[[#Headers],[1]:[6]]+1)),Table2[[#This Row],[Sub]],NA()) ->  | F67: =IF(AND(Table2[[#This Row],[Cumulative revenue %]]>INDEX(Table1[Break point],Table2[[#Headers],[1]:[6]]), Table2[[#This Row],[Cumulative revenue %]]<=INDEX(Table1[Break point],Table2[[#Headers],[1]:[6]]+1)),Table2[[#This Row],[Sub]],NA()) ->  | G67: =IF(AND(Table2[[#This Row],[Cumulative revenue %]]>INDEX(Table1[Break point],Table2[[#Headers],[1]:[6]]), Table2[[#This Row],[Cumulative revenue %]]<=INDEX(Table1[Break point],Table2[[#Headers],[1]:[6]]+1)),Table2[[#This Row],[Sub]],NA()) ->  | H67: =IF(AND(Table2[[#This Row],[Cumulative revenue %]]>INDEX(Table1[Break point],Table2[[#Headers],[1]:[6]]), Table2[[#This Row],[Cumulative revenue %]]<=INDEX(Table1[Break point],Table2[[#Headers],[1]:[6]]+1)),Table2[[#This Row],[Sub]],NA()) -> 3518.5 | I67: =IF(AND(Table2[[#This Row],[Cumulative revenue %]]>INDEX(Table1[Break point],Table2[[#Headers],[1]:[6]]), Table2[[#This Row],[Cumulative revenue %]]<=INDEX(Table1[Break point],Table2[[#Headers],[1]:[6]]+1)),Table2[[#This Row],[Sub]],NA()) ->  | J67: =IF(AND(Table2[[#This Row],[Cumulative revenue %]]>INDEX(Table1[Break point],Table2[[#Headers],[1]:[6]]), Table2[[#This Row],[Cumulative revenue %]]<=INDEX(Table1[Break point],Table2[[#Headers],[1]:[6]]+1)),Table2[[#This Row],[Sub]],NA()) -> 
A68: =ROW()-ROW(Table2[[#Headers],[Position]]) -> 67 | B68: 3515.48 | C68: 537386.718 | D68: =Table2[[#This Row],[Cumulative revenue]]/SUM(Table2[Sub]) -> 0.7048866625 | E68: =IF(AND(Table2[[#This Row],[Cumulative revenue %]]>INDEX(Table1[Break point],Table2[[#Headers],[1]:[6]]), Table2[[#This Row],[Cumulative revenue %]]<=INDEX(Table1[Break point],Table2[[#Headers],[1]:[6]]+1)),Table2[[#This Row],[Sub]],NA()) ->  | F68: =IF(AND(Table2[[#This Row],[Cumulative revenue %]]>INDEX(Table1[Break point],Table2[[#Headers],[1]:[6]]), Table2[[#This Row],[Cumulative revenue %]]<=INDEX(Table1[Break point],Table2[[#Headers],[1]:[6]]+1)),Table2[[#This Row],[Sub]],NA()) ->  | G68: =IF(AND(Table2[[#This Row],[Cumulative revenue %]]>INDEX(Table1[Break point],Table2[[#Headers],[1]:[6]]), Table2[[#This Row],[Cumulative revenue %]]<=INDEX(Table1[Break point],Table2[[#Headers],[1]:[6]]+1)),Table2[[#This Row],[Sub]],NA()) ->  | H68: =IF(AND(Table2[[#This Row],[Cumulative revenue %]]>INDEX(Table1[Break point],Table2[[#Headers],[1]:[6]]), Table2[[#This Row],[Cumulative revenue %]]<=INDEX(Table1[Break point],Table2[[#Headers],[1]:[6]]+1)),Table2[[#This Row],[Sub]],NA()) -> 3515.48 | I68: =IF(AND(Table2[[#This Row],[Cumulative revenue %]]>INDEX(Table1[Break point],Table2[[#Headers],[1]:[6]]), Table2[[#This Row],[Cumulative revenue %]]<=INDEX(Table1[Break point],Table2[[#Headers],[1]:[6]]+1)),Table2[[#This Row],[Sub]],NA()) ->  | J68: =IF(AND(Table2[[#This Row],[Cumulative revenue %]]>INDEX(Table1[Break point],Table2[[#Headers],[1]:[6]]), Table2[[#This Row],[Cumulative revenue %]]<=INDEX(Table1[Break point],Table2[[#Headers],[1]:[6]]+1)),Table2[[#This Row],[Sub]],NA()) -> 
A69: =ROW()-ROW(Table2[[#Headers],[Position]]) -> 68 | B69: 3509.67 | C69: 540896.388 | D69: =Table2[[#This Row],[Cumulative revenue]]/SUM(Table2[Sub]) -> 0.7094902738 | E69: =IF(AND(Table2[[#This Row],[Cumulative revenue %]]>INDEX(Table1[Break point],Table2[[#Headers],[1]:[6]]), Table2[[#This Row],[Cumulative revenue %]]<=INDEX(Table1[Break point],Table2[[#Headers],[1]:[6]]+1)),Table2[[#This Row],[Sub]],NA()) ->  | F69: =IF(AND(Table2[[#This Row],[Cumulative revenue %]]>INDEX(Table1[Break point],Table2[[#Headers],[1]:[6]]), Table2[[#This Row],[Cumulative revenue %]]<=INDEX(Table1[Break point],Table2[[#Headers],[1]:[6]]+1)),Table2[[#This Row],[Sub]],NA()) ->  | G69: =IF(AND(Table2[[#This Row],[Cumulative revenue %]]>INDEX(Table1[Break point],Table2[[#Headers],[1]:[6]]), Table2[[#This Row],[Cumulative revenue %]]<=INDEX(Table1[Break point],Table2[[#Headers],[1]:[6]]+1)),Table2[[#This Row],[Sub]],NA()) ->  | H69: =IF(AND(Table2[[#This Row],[Cumulative revenue %]]>INDEX(Table1[Break point],Table2[[#Headers],[1]:[6]]), Table2[[#This Row],[Cumulative revenue %]]<=INDEX(Table1[Break point],Table2[[#Headers],[1]:[6]]+1)),Table2[[#This Row],[Sub]],NA()) -> 3509.67 | I69: =IF(AND(Table2[[#This Row],[Cumulative revenue %]]>INDEX(Table1[Break point],Table2[[#Headers],[1]:[6]]), Table2[[#This Row],[Cumulative revenue %]]<=INDEX(Table1[Break point],Table2[[#Headers],[1]:[6]]+1)),Table2[[#This Row],[Sub]],NA()) ->  | J69: =IF(AND(Table2[[#This Row],[Cumulative revenue %]]>INDEX(Table1[Break point],Table2[[#Headers],[1]:[6]]), Table2[[#This Row],[Cumulative revenue %]]<=INDEX(Table1[Break point],Table2[[#Headers],[1]:[6]]+1)),Table2[[#This Row],[Sub]],NA()) -> 
A70: =ROW()-ROW(Table2[[#Headers],[Position]]) -> 69 | B70: 3477.34 | C70: 544373.728 | D70: =Table2[[#This Row],[Cumulative revenue]]/SUM(Table2[Sub]) -> 0.7140514781 | E70: =IF(AND(Table2[[#This Row],[Cumulative revenue %]]>INDEX(Table1[Break point],Table2[[#Headers],[1]:[6]]), Table2[[#This Row],[Cumulative revenue %]]<=INDEX(Table1[Break point],Table2[[#Headers],[1]:[6]]+1)),Table2[[#This Row],[Sub]],NA()) ->  | F70: =IF(AND(Table2[[#This Row],[Cumulative revenue %]]>INDEX(Table1[Break point],Table2[[#Headers],[1]:[6]]), Table2[[#This Row],[Cumulative revenue %]]<=INDEX(Table1[Break point],Table2[[#Headers],[1]:[6]]+1)),Table2[[#This Row],[Sub]],NA()) ->  | G70: =IF(AND(Table2[[#This Row],[Cumulative revenue %]]>INDEX(Table1[Break point],Table2[[#Headers],[1]:[6]]), Table2[[#This Row],[Cumulative revenue %]]<=INDEX(Table1[Break point],Table2[[#Headers],[1]:[6]]+1)),Table2[[#This Row],[Sub]],NA()) ->  | H70: =IF(AND(Table2[[#This Row],[Cumulative revenue %]]>INDEX(Table1[Break point],Table2[[#Headers],[1]:[6]]), Table2[[#This Row],[Cumulative revenue %]]<=INDEX(Table1[Break point],Table2[[#Headers],[1]:[6]]+1)),Table2[[#This Row],[Sub]],NA()) -> 3477.34 | I70: =IF(AND(Table2[[#This Row],[Cumulative revenue %]]>INDEX(Table1[Break point],Table2[[#Headers],[1]:[6]]), Table2[[#This Row],[Cumulative revenue %]]<=INDEX(Table1[Break point],Table2[[#Headers],[1]:[6]]+1)),Table2[[#This Row],[Sub]],NA()) ->  | J70: =IF(AND(Table2[[#This Row],[Cumulative revenue %]]>INDEX(Table1[Break point],Table2[[#Headers],[1]:[6]]), Table2[[#This Row],[Cumulative revenue %]]<=INDEX(Table1[Break point],Table2[[#Headers],[1]:[6]]+1)),Table2[[#This Row],[Sub]],NA()) -> 
A71: =ROW()-ROW(Table2[[#Headers],[Position]]) -> 70 | B71: 3311.4 | C71: 547685.128 | D71: =Table2[[#This Row],[Cumulative revenue]]/SUM(Table2[Sub]) -> 0.7183950199 | E71: =IF(AND(Table2[[#This Row],[Cumulative revenue %]]>INDEX(Table1[Break point],Table2[[#Headers],[1]:[6]]), Table2[[#This Row],[Cumulative revenue %]]<=INDEX(Table1[Break point],Table2[[#Headers],[1]:[6]]+1)),Table2[[#This Row],[Sub]],NA()) ->  | F71: =IF(AND(Table2[[#This Row],[Cumulative revenue %]]>INDEX(Table1[Break point],Table2[[#Headers],[1]:[6]]), Table2[[#This Row],[Cumulative revenue %]]<=INDEX(Table1[Break point],Table2[[#Headers],[1]:[6]]+1)),Table2[[#This Row],[Sub]],NA()) ->  | G71: =IF(AND(Table2[[#This Row],[Cumulative revenue %]]>INDEX(Table1[Break point],Table2[[#Headers],[1]:[6]]), Table2[[#This Row],[Cumulative revenue %]]<=INDEX(Table1[Break point],Table2[[#Headers],[1]:[6]]+1)),Table2[[#This Row],[Sub]],NA()) ->  | H71: =IF(AND(Table2[[#This Row],[Cumulative revenue %]]>INDEX(Table1[Break point],Table2[[#Headers],[1]:[6]]), Table2[[#This Row],[Cumulative revenue %]]<=INDEX(Table1[Break point],Table2[[#Headers],[1]:[6]]+1)),Table2[[#This Row],[Sub]],NA()) -> 3311.4 | I71: =IF(AND(Table2[[#This Row],[Cumulative revenue %]]>INDEX(Table1[Break point],Table2[[#Headers],[1]:[6]]), Table2[[#This Row],[Cumulative revenue %]]<=INDEX(Table1[Break point],Table2[[#Headers],[1]:[6]]+1)),Table2[[#This Row],[Sub]],NA()) ->  | J71: =IF(AND(Table2[[#This Row],[Cumulative revenue %]]>INDEX(Table1[Break point],Table2[[#Headers],[1]:[6]]), Table2[[#This Row],[Cumulative revenue %]]<=INDEX(Table1[Break point],Table2[[#Headers],[1]:[6]]+1)),Table2[[#This Row],[Sub]],NA()) -> 
A72: =ROW()-ROW(Table2[[#Headers],[Position]]) -> 71 | B72: 3258.75 | C72: 550943.878 | D72: =Table2[[#This Row],[Cumulative revenue]]/SUM(Table2[Sub]) -> 0.7226695011 | E72: =IF(AND(Table2[[#This Row],[Cumulative revenue %]]>INDEX(Table1[Break point],Table2[[#Headers],[1]:[6]]), Table2[[#This Row],[Cumulative revenue %]]<=INDEX(Table1[Break point],Table2[[#Headers],[1]:[6]]+1)),Table2[[#This Row],[Sub]],NA()) ->  | F72: =IF(AND(Table2[[#This Row],[Cumulative revenue %]]>INDEX(Table1[Break point],Table2[[#Headers],[1]:[6]]), Table2[[#This Row],[Cumulative revenue %]]<=INDEX(Table1[Break point],Table2[[#Headers],[1]:[6]]+1)),Table2[[#This Row],[Sub]],NA()) ->  | G72: =IF(AND(Table2[[#This Row],[Cumulative revenue %]]>INDEX(Table1[Break point],Table2[[#Headers],[1]:[6]]), Table2[[#This Row],[Cumulative revenue %]]<=INDEX(Table1[Break point],Table2[[#Headers],[1]:[6]]+1)),Table2[[#This Row],[Sub]],NA()) ->  | H72: =IF(AND(Table2[[#This Row],[Cumulative revenue %]]>INDEX(Table1[Break point],Table2[[#Headers],[1]:[6]]), Table2[[#This Row],[Cumulative revenue %]]<=INDEX(Table1[Break point],Table2[[#Headers],[1]:[6]]+1)),Table2[[#This Row],[Sub]],NA()) -> 3258.75 | I72: =IF(AND(Table2[[#This Row],[Cumulative revenue %]]>INDEX(Table1[Break point],Table2[[#Headers],[1]:[6]]), Table2[[#This Row],[Cumulative revenue %]]<=INDEX(Table1[Break point],Table2[[#Headers],[1]:[6]]+1)),Table2[[#This Row],[Sub]],NA()) ->  | J72: =IF(AND(Table2[[#This Row],[Cumulative revenue %]]>INDEX(Table1[Break point],Table2[[#Headers],[1]:[6]]), Table2[[#This Row],[Cumulative revenue %]]<=INDEX(Table1[Break point],Table2[[#Headers],[1]:[6]]+1)),Table2[[#This Row],[Sub]],NA()) -> 
A73: =ROW()-ROW(Table2[[#Headers],[Position]]) -> 72 | B73: 3258.75 | C73: 554202.628 | D73: =Table2[[#This Row],[Cumulative revenue]]/SUM(Table2[Sub]) -> 0.7269439823 | E73: =IF(AND(Table2[[#This Row],[Cumulative revenue %]]>INDEX(Table1[Break point],Table2[[#Headers],[1]:[6]]), Table2[[#This Row],[Cumulative revenue %]]<=INDEX(Table1[Break point],Table2[[#Headers],[1]:[6]]+1)),Table2[[#This Row],[Sub]],NA()) ->  | F73: =IF(AND(Table2[[#This Row],[Cumulative revenue %]]>INDEX(Table1[Break point],Table2[[#Headers],[1]:[6]]), Table2[[#This Row],[Cumulative revenue %]]<=INDEX(Table1[Break point],Table2[[#Headers],[1]:[6]]+1)),Table2[[#This Row],[Sub]],NA()) ->  | G73: =IF(AND(Table2[[#This Row],[Cumulative revenue %]]>INDEX(Table1[Break point],Table2[[#Headers],[1]:[6]]), Table2[[#This Row],[Cumulative revenue %]]<=INDEX(Table1[Break point],Table2[[#Headers],[1]:[6]]+1)),Table2[[#This Row],[Sub]],NA()) ->  | H73: =IF(AND(Table2[[#This Row],[Cumulative revenue %]]>INDEX(Table1[Break point],Table2[[#Headers],[1]:[6]]), Table2[[#This Row],[Cumulative revenue %]]<=INDEX(Table1[Break point],Table2[[#Headers],[1]:[6]]+1)),Table2[[#This Row],[Sub]],NA()) -> 3258.75 | I73: =IF(AND(Table2[[#This Row],[Cumulative revenue %]]>INDEX(Table1[Break point],Table2[[#Headers],[1]:[6]]), Table2[[#This Row],[Cumulative revenue %]]<=INDEX(Table1[Break point],Table2[[#Headers],[1]:[6]]+1)),Table2[[#This Row],[Sub]],NA()) ->  | J73: =IF(AND(Table2[[#This Row],[Cumulative revenue %]]>INDEX(Table1[Break point],Table2[[#Headers],[1]:[6]]), Table2[[#This Row],[Cumulative revenue %]]<=INDEX(Table1[Break point],Table2[[#Headers],[1]:[6]]+1)),Table2[[#This Row],[Sub]],NA()) -> 
A74: =ROW()-ROW(Table2[[#Headers],[Position]]) -> 73 | B74: 3189.15 | C74: 557391.778 | D74: =Table2[[#This Row],[Cumulative revenue]]/SUM(Table2[Sub]) -> 0.7311271696 | E74: =IF(AND(Table2[[#This Row],[Cumulative revenue %]]>INDEX(Table1[Break point],Table2[[#Headers],[1]:[6]]), Table2[[#This Row],[Cumulative revenue %]]<=INDEX(Table1[Break point],Table2[[#Headers],[1]:[6]]+1)),Table2[[#This Row],[Sub]],NA()) ->  | F74: =IF(AND(Table2[[#This Row],[Cumulative revenue %]]>INDEX(Table1[Break point],Table2[[#Headers],[1]:[6]]), Table2[[#This Row],[Cumulative revenue %]]<=INDEX(Table1[Break point],Table2[[#Headers],[1]:[6]]+1)),Table2[[#This Row],[Sub]],NA()) ->  | G74: =IF(AND(Table2[[#This Row],[Cumulative revenue %]]>INDEX(Table1[Break point],Table2[[#Headers],[1]:[6]]), Table2[[#This Row],[Cumulative revenue %]]<=INDEX(Table1[Break point],Table2[[#Headers],[1]:[6]]+1)),Table2[[#This Row],[Sub]],NA()) ->  | H74: =IF(AND(Table2[[#This Row],[Cumulative revenue %]]>INDEX(Table1[Break point],Table2[[#Headers],[1]:[6]]), Table2[[#This Row],[Cumulative revenue %]]<=INDEX(Table1[Break point],Table2[[#Headers],[1]:[6]]+1)),Table2[[#This Row],[Sub]],NA()) -> 3189.15 | I74: =IF(AND(Table2[[#This Row],[Cumulative revenue %]]>INDEX(Table1[Break point],Table2[[#Headers],[1]:[6]]), Table2[[#This Row],[Cumulative revenue %]]<=INDEX(Table1[Break point],Table2[[#Headers],[1]:[6]]+1)),Table2[[#This Row],[Sub]],NA()) ->  | J74: =IF(AND(Table2[[#This Row],[Cumulative revenue %]]>INDEX(Table1[Break point],Table2[[#Headers],[1]:[6]]), Table2[[#This Row],[Cumulative revenue %]]<=INDEX(Table1[Break point],Table2[[#Headers],[1]:[6]]+1)),Table2[[#This Row],[Sub]],NA()) -> 
A75: =ROW()-ROW(Table2[[#Headers],[Position]]) -> 74 | B75: 3118.89 | C75: 560510.668 | D75: =Table2[[#This Row],[Cumulative revenue]]/SUM(Table2[Sub]) -> 0.7352181973 | E75: =IF(AND(Table2[[#This Row],[Cumulative revenue %]]>INDEX(Table1[Break point],Table2[[#Headers],[1]:[6]]), Table2[[#This Row],[Cumulative revenue %]]<=INDEX(Table1[Break point],Table2[[#Headers],[1]:[6]]+1)),Table2[[#This Row],[Sub]],NA()) ->  | F75: =IF(AND(Table2[[#This Row],[Cumulative revenue %]]>INDEX(Table1[Break point],Table2[[#Headers],[1]:[6]]), Table2[[#This Row],[Cumulative revenue %]]<=INDEX(Table1[Break point],Table2[[#Headers],[1]:[6]]+1)),Table2[[#This Row],[Sub]],NA()) ->  | G75: =IF(AND(Table2[[#This Row],[Cumulative revenue %]]>INDEX(Table1[Break point],Table2[[#Headers],[1]:[6]]), Table2[[#This Row],[Cumulative revenue %]]<=INDEX(Table1[Break point],Table2[[#Headers],[1]:[6]]+1)),Table2[[#This Row],[Sub]],NA()) ->  | H75: =IF(AND(Table2[[#This Row],[Cumulative revenue %]]>INDEX(Table1[Break point],Table2[[#Headers],[1]:[6]]), Table2[[#This Row],[Cumulative revenue %]]<=INDEX(Table1[Break point],Table2[[#Headers],[1]:[6]]+1)),Table2[[#This Row],[Sub]],NA()) -> 3118.89 | I75: =IF(AND(Table2[[#This Row],[Cumulative revenue %]]>INDEX(Table1[Break point],Table2[[#Headers],[1]:[6]]), Table2[[#This Row],[Cumulative revenue %]]<=INDEX(Table1[Break point],Table2[[#Headers],[1]:[6]]+1)),Table2[[#This Row],[Sub]],NA()) ->  | J75: =IF(AND(Table2[[#This Row],[Cumulative revenue %]]>INDEX(Table1[Break point],Table2[[#Headers],[1]:[6]]), Table2[[#This Row],[Cumulative revenue %]]<=INDEX(Table1[Break point],Table2[[#Headers],[1]:[6]]+1)),Table2[[#This Row],[Sub]],NA()) -> 
A76: =ROW()-ROW(Table2[[#Headers],[Position]]) -> 75 | B76: 3000 | C76: 563510.668 | D76: =Table2[[#This Row],[Cumulative revenue]]/SUM(Table2[Sub]) -> 0.7391532778 | E76: =IF(AND(Table2[[#This Row],[Cumulative revenue %]]>INDEX(Table1[Break point],Table2[[#Headers],[1]:[6]]), Table2[[#This Row],[Cumulative revenue %]]<=INDEX(Table1[Break point],Table2[[#Headers],[1]:[6]]+1)),Table2[[#This Row],[Sub]],NA()) ->  | F76: =IF(AND(Table2[[#This Row],[Cumulative revenue %]]>INDEX(Table1[Break point],Table2[[#Headers],[1]:[6]]), Table2[[#This Row],[Cumulative revenue %]]<=INDEX(Table1[Break point],Table2[[#Headers],[1]:[6]]+1)),Table2[[#This Row],[Sub]],NA()) ->  | G76: =IF(AND(Table2[[#This Row],[Cumulative revenue %]]>INDEX(Table1[Break point],Table2[[#Headers],[1]:[6]]), Table2[[#This Row],[Cumulative revenue %]]<=INDEX(Table1[Break point],Table2[[#Headers],[1]:[6]]+1)),Table2[[#This Row],[Sub]],NA()) ->  | H76: =IF(AND(Table2[[#This Row],[Cumulative revenue %]]>INDEX(Table1[Break point],Table2[[#Headers],[1]:[6]]), Table2[[#This Row],[Cumulative revenue %]]<=INDEX(Table1[Break point],Table2[[#Headers],[1]:[6]]+1)),Table2[[#This Row],[Sub]],NA()) -> 3000 | I76: =IF(AND(Table2[[#This Row],[Cumulative revenue %]]>INDEX(Table1[Break point],Table2[[#Headers],[1]:[6]]), Table2[[#This Row],[Cumulative revenue %]]<=INDEX(Table1[Break point],Table2[[#Headers],[1]:[6]]+1)),Table2[[#This Row],[Sub]],NA()) ->  | J76: =IF(AND(Table2[[#This Row],[Cumulative revenue %]]>INDEX(Table1[Break point],Table2[[#Headers],[1]:[6]]), Table2[[#This Row],[Cumulative revenue %]]<=INDEX(Table1[Break point],Table2[[#Headers],[1]:[6]]+1)),Table2[[#This Row],[Sub]],NA()) -> 
A77: =ROW()-ROW(Table2[[#Headers],[Position]]) -> 76 | B77: 2973.89 | C77: 566484.558 | D77: =Table2[[#This Row],[Cumulative revenue]]/SUM(Table2[Sub]) -> 0.7430541099 | E77: =IF(AND(Table2[[#This Row],[Cumulative revenue %]]>INDEX(Table1[Break point],Table2[[#Headers],[1]:[6]]), Table2[[#This Row],[Cumulative revenue %]]<=INDEX(Table1[Break point],Table2[[#Headers],[1]:[6]]+1)),Table2[[#This Row],[Sub]],NA()) ->  | F77: =IF(AND(Table2[[#This Row],[Cumulative revenue %]]>INDEX(Table1[Break point],Table2[[#Headers],[1]:[6]]), Table2[[#This Row],[Cumulative revenue %]]<=INDEX(Table1[Break point],Table2[[#Headers],[1]:[6]]+1)),Table2[[#This Row],[Sub]],NA()) ->  | G77: =IF(AND(Table2[[#This Row],[Cumulative revenue %]]>INDEX(Table1[Break point],Table2[[#Headers],[1]:[6]]), Table2[[#This Row],[Cumulative revenue %]]<=INDEX(Table1[Break point],Table2[[#Headers],[1]:[6]]+1)),Table2[[#This Row],[Sub]],NA()) ->  | H77: =IF(AND(Table2[[#This Row],[Cumulative revenue %]]>INDEX(Table1[Break point],Table2[[#Headers],[1]:[6]]), Table2[[#This Row],[Cumulative revenue %]]<=INDEX(Table1[Break point],Table2[[#Headers],[1]:[6]]+1)),Table2[[#This Row],[Sub]],NA()) -> 2973.89 | I77: =IF(AND(Table2[[#This Row],[Cumulative revenue %]]>INDEX(Table1[Break point],Table2[[#Headers],[1]:[6]]), Table2[[#This Row],[Cumulative revenue %]]<=INDEX(Table1[Break point],Table2[[#Headers],[1]:[6]]+1)),Table2[[#This Row],[Sub]],NA()) ->  | J77: =IF(AND(Table2[[#This Row],[Cumulative revenue %]]>INDEX(Table1[Break point],Table2[[#Headers],[1]:[6]]), Table2[[#This Row],[Cumulative revenue %]]<=INDEX(Table1[Break point],Table2[[#Headers],[1]:[6]]+1)),Table2[[#This Row],[Sub]],NA()) -> 
A78: =ROW()-ROW(Table2[[#Headers],[Position]]) -> 77 | B78: 2935.98 | C78: 569420.538 | D78: =Table2[[#This Row],[Cumulative revenue]]/SUM(Table2[Sub]) -> 0.7469052158 | E78: =IF(AND(Table2[[#This Row],[Cumulative revenue %]]>INDEX(Table1[Break point],Table2[[#Headers],[1]:[6]]), Table2[[#This Row],[Cumulative revenue %]]<=INDEX(Table1[Break point],Table2[[#Headers],[1]:[6]]+1)),Table2[[#This Row],[Sub]],NA()) ->  | F78: =IF(AND(Table2[[#This Row],[Cumulative revenue %]]>INDEX(Table1[Break point],Table2[[#Headers],[1]:[6]]), Table2[[#This Row],[Cumulative revenue %]]<=INDEX(Table1[Break point],Table2[[#Headers],[1]:[6]]+1)),Table2[[#This Row],[Sub]],NA()) ->  | G78: =IF(AND(Table2[[#This Row],[Cumulative revenue %]]>INDEX(Table1[Break point],Table2[[#Headers],[1]:[6]]), Table2[[#This Row],[Cumulative revenue %]]<=INDEX(Table1[Break point],Table2[[#Headers],[1]:[6]]+1)),Table2[[#This Row],[Sub]],NA()) ->  | H78: =IF(AND(Table2[[#This Row],[Cumulative revenue %]]>INDEX(Table1[Break point],Table2[[#Headers],[1]:[6]]), Table2[[#This Row],[Cumulative revenue %]]<=INDEX(Table1[Break point],Table2[[#Headers],[1]:[6]]+1)),Table2[[#This Row],[Sub]],NA()) -> 2935.98 | I78: =IF(AND(Table2[[#This Row],[Cumulative revenue %]]>INDEX(Table1[Break point],Table2[[#Headers],[1]:[6]]), Table2[[#This Row],[Cumulative revenue %]]<=INDEX(Table1[Break point],Table2[[#Headers],[1]:[6]]+1)),Table2[[#This Row],[Sub]],NA()) ->  | J78: =IF(AND(Table2[[#This Row],[Cumulative revenue %]]>INDEX(Table1[Break point],Table2[[#Headers],[1]:[6]]), Table2[[#This Row],[Cumulative revenue %]]<=INDEX(Table1[Break point],Table2[[#Headers],[1]:[6]]+1)),Table2[[#This Row],[Sub]],NA()) -> 
A79: =ROW()-ROW(Table2[[#Headers],[Position]]) -> 78 | B79: 2842.9 | C79: 572263.438 | D79: =Table2[[#This Row],[Cumulative revenue]]/SUM(Table2[Sub]) -> 0.7506342293 | E79: =IF(AND(Table2[[#This Row],[Cumulative revenue %]]>INDEX(Table1[Break point],Table2[[#Headers],[1]:[6]]), Table2[[#This Row],[Cumulative revenue %]]<=INDEX(Table1[Break point],Table2[[#Headers],[1]:[6]]+1)),Table2[[#This Row],[Sub]],NA()) ->  | F79: =IF(AND(Table2[[#This Row],[Cumulative revenue %]]>INDEX(Table1[Break point],Table2[[#Headers],[1]:[6]]), Table2[[#This Row],[Cumulative revenue %]]<=INDEX(Table1[Break point],Table2[[#Headers],[1]:[6]]+1)),Table2[[#This Row],[Sub]],NA()) ->  | G79: =IF(AND(Table2[[#This Row],[Cumulative revenue %]]>INDEX(Table1[Break point],Table2[[#Headers],[1]:[6]]), Table2[[#This Row],[Cumulative revenue %]]<=INDEX(Table1[Break point],Table2[[#Headers],[1]:[6]]+1)),Table2[[#This Row],[Sub]],NA()) ->  | H79: =IF(AND(Table2[[#This Row],[Cumulative revenue %]]>INDEX(Table1[Break point],Table2[[#Headers],[1]:[6]]), Table2[[#This Row],[Cumulative revenue %]]<=INDEX(Table1[Break point],Table2[[#Headers],[1]:[6]]+1)),Table2[[#This Row],[Sub]],NA()) -> 2842.9 | I79: =IF(AND(Table2[[#This Row],[Cumulative revenue %]]>INDEX(Table1[Break point],Table2[[#Headers],[1]:[6]]), Table2[[#This Row],[Cumulative revenue %]]<=INDEX(Table1[Break point],Table2[[#Headers],[1]:[6]]+1)),Table2[[#This Row],[Sub]],NA()) ->  | J79: =IF(AND(Table2[[#This Row],[Cumulative revenue %]]>INDEX(Table1[Break point],Table2[[#Headers],[1]:[6]]), Table2[[#This Row],[Cumulative revenue %]]<=INDEX(Table1[Break point],Table2[[#Headers],[1]:[6]]+1)),Table2[[#This Row],[Sub]],NA()) -> 
A80: =ROW()-ROW(Table2[[#Headers],[Position]]) -> 79 | B80: 2819.4 | C80: 575082.838 | D80: =Table2[[#This Row],[Cumulative revenue]]/SUM(Table2[Sub]) -> 0.7543324179 | E80: =IF(AND(Table2[[#This Row],[Cumulative revenue %]]>INDEX(Table1[Break point],Table2[[#Headers],[1]:[6]]), Table2[[#This Row],[Cumulative revenue %]]<=INDEX(Table1[Break point],Table2[[#Headers],[1]:[6]]+1)),Table2[[#This Row],[Sub]],NA()) ->  | F80: =IF(AND(Table2[[#This Row],[Cumulative revenue %]]>INDEX(Table1[Break point],Table2[[#Headers],[1]:[6]]), Table2[[#This Row],[Cumulative revenue %]]<=INDEX(Table1[Break point],Table2[[#Headers],[1]:[6]]+1)),Table2[[#This Row],[Sub]],NA()) ->  | G80: =IF(AND(Table2[[#This Row],[Cumulative revenue %]]>INDEX(Table1[Break point],Table2[[#Headers],[1]:[6]]), Table2[[#This Row],[Cumulative revenue %]]<=INDEX(Table1[Break point],Table2[[#Headers],[1]:[6]]+1)),Table2[[#This Row],[Sub]],NA()) ->  | H80: =IF(AND(Table2[[#This Row],[Cumulative revenue %]]>INDEX(Table1[Break point],Table2[[#Headers],[1]:[6]]), Table2[[#This Row],[Cumulative revenue %]]<=INDEX(Table1[Break point],Table2[[#Headers],[1]:[6]]+1)),Table2[[#This Row],[Sub]],NA()) -> 2819.4 | I80: =IF(AND(Table2[[#This Row],[Cumulative revenue %]]>INDEX(Table1[Break point],Table2[[#Headers],[1]:[6]]), Table2[[#This Row],[Cumulative revenue %]]<=INDEX(Table1[Break point],Table2[[#Headers],[1]:[6]]+1)),Table2[[#This Row],[Sub]],NA()) ->  | J80: =IF(AND(Table2[[#This Row],[Cumulative revenue %]]>INDEX(Table1[Break point],Table2[[#Headers],[1]:[6]]), Table2[[#This Row],[Cumulative revenue %]]<=INDEX(Table1[Break point],Table2[[#Headers],[1]:[6]]+1)),Table2[[#This Row],[Sub]],NA()) -> 
A81: =ROW()-ROW(Table2[[#Headers],[Position]]) -> 80 | B81: 2765 | C81: 577847.838 | D81: =Table2[[#This Row],[Cumulative revenue]]/SUM(Table2[Sub]) -> 0.7579592504 | E81: =IF(AND(Table2[[#This Row],[Cumulative revenue %]]>INDEX(Table1[Break point],Table2[[#Headers],[1]:[6]]), Table2[[#This Row],[Cumulative revenue %]]<=INDEX(Table1[Break point],Table2[[#Headers],[1]:[6]]+1)),Table2[[#This Row],[Sub]],NA()) ->  | F81: =IF(AND(Table2[[#This Row],[Cumulative revenue %]]>INDEX(Table1[Break point],Table2[[#Headers],[1]:[6]]), Table2[[#This Row],[Cumulative revenue %]]<=INDEX(Table1[Break point],Table2[[#Headers],[1]:[6]]+1)),Table2[[#This Row],[Sub]],NA()) ->  | G81: =IF(AND(Table2[[#This Row],[Cumulative revenue %]]>INDEX(Table1[Break point],Table2[[#Headers],[1]:[6]]), Table2[[#This Row],[Cumulative revenue %]]<=INDEX(Table1[Break point],Table2[[#Headers],[1]:[6]]+1)),Table2[[#This Row],[Sub]],NA()) ->  | H81: =IF(AND(Table2[[#This Row],[Cumulative revenue %]]>INDEX(Table1[Break point],Table2[[#Headers],[1]:[6]]), Table2[[#This Row],[Cumulative revenue %]]<=INDEX(Table1[Break point],Table2[[#Headers],[1]:[6]]+1)),Table2[[#This Row],[Sub]],NA()) -> 2765 | I81: =IF(AND(Table2[[#This Row],[Cumulative revenue %]]>INDEX(Table1[Break point],Table2[[#Headers],[1]:[6]]), Table2[[#This Row],[Cumulative revenue %]]<=INDEX(Table1[Break point],Table2[[#Headers],[1]:[6]]+1)),Table2[[#This Row],[Sub]],NA()) ->  | J81: =IF(AND(Table2[[#This Row],[Cumulative revenue %]]>INDEX(Table1[Break point],Table2[[#Headers],[1]:[6]]), Table2[[#This Row],[Cumulative revenue %]]<=INDEX(Table1[Break point],Table2[[#Headers],[1]:[6]]+1)),Table2[[#This Row],[Sub]],NA()) -> 
A82: =ROW()-ROW(Table2[[#Headers],[Position]]) -> 81 | B82: 2765 | C82: 580612.838 | D82: =Table2[[#This Row],[Cumulative revenue]]/SUM(Table2[Sub]) -> 0.7615860829 | E82: =IF(AND(Table2[[#This Row],[Cumulative revenue %]]>INDEX(Table1[Break point],Table2[[#Headers],[1]:[6]]), Table2[[#This Row],[Cumulative revenue %]]<=INDEX(Table1[Break point],Table2[[#Headers],[1]:[6]]+1)),Table2[[#This Row],[Sub]],NA()) ->  | F82: =IF(AND(Table2[[#This Row],[Cumulative revenue %]]>INDEX(Table1[Break point],Table2[[#Headers],[1]:[6]]), Table2[[#This Row],[Cumulative revenue %]]<=INDEX(Table1[Break point],Table2[[#Headers],[1]:[6]]+1)),Table2[[#This Row],[Sub]],NA()) ->  | G82: =IF(AND(Table2[[#This Row],[Cumulative revenue %]]>INDEX(Table1[Break point],Table2[[#Headers],[1]:[6]]), Table2[[#This Row],[Cumulative revenue %]]<=INDEX(Table1[Break point],Table2[[#Headers],[1]:[6]]+1)),Table2[[#This Row],[Sub]],NA()) ->  | H82: =IF(AND(Table2[[#This Row],[Cumulative revenue %]]>INDEX(Table1[Break point],Table2[[#Headers],[1]:[6]]), Table2[[#This Row],[Cumulative revenue %]]<=INDEX(Table1[Break point],Table2[[#Headers],[1]:[6]]+1)),Table2[[#This Row],[Sub]],NA()) -> 2765 | I82: =IF(AND(Table2[[#This Row],[Cumulative revenue %]]>INDEX(Table1[Break point],Table2[[#Headers],[1]:[6]]), Table2[[#This Row],[Cumulative revenue %]]<=INDEX(Table1[Break point],Table2[[#Headers],[1]:[6]]+1)),Table2[[#This Row],[Sub]],NA()) ->  | J82: =IF(AND(Table2[[#This Row],[Cumulative revenue %]]>INDEX(Table1[Break point],Table2[[#Headers],[1]:[6]]), Table2[[#This Row],[Cumulative revenue %]]<=INDEX(Table1[Break point],Table2[[#Headers],[1]:[6]]+1)),Table2[[#This Row],[Sub]],NA()) -> 
A83: =ROW()-ROW(Table2[[#Headers],[Position]]) -> 82 | B83: 2733.73 | C83: 583346.568 | D83: =Table2[[#This Row],[Cumulative revenue]]/SUM(Table2[Sub]) -> 0.7651718988 | E83: =IF(AND(Table2[[#This Row],[Cumulative revenue %]]>INDEX(Table1[Break point],Table2[[#Headers],[1]:[6]]), Table2[[#This Row],[Cumulative revenue %]]<=INDEX(Table1[Break point],Table2[[#Headers],[1]:[6]]+1)),Table2[[#This Row],[Sub]],NA()) ->  | F83: =IF(AND(Table2[[#This Row],[Cumulative revenue %]]>INDEX(Table1[Break point],Table2[[#Headers],[1]:[6]]), Table2[[#This Row],[Cumulative revenue %]]<=INDEX(Table1[Break point],Table2[[#Headers],[1]:[6]]+1)),Table2[[#This Row],[Sub]],NA()) ->  | G83: =IF(AND(Table2[[#This Row],[Cumulative revenue %]]>INDEX(Table1[Break point],Table2[[#Headers],[1]:[6]]), Table2[[#This Row],[Cumulative revenue %]]<=INDEX(Table1[Break point],Table2[[#Headers],[1]:[6]]+1)),Table2[[#This Row],[Sub]],NA()) ->  | H83: =IF(AND(Table2[[#This Row],[Cumulative revenue %]]>INDEX(Table1[Break point],Table2[[#Headers],[1]:[6]]), Table2[[#This Row],[Cumulative revenue %]]<=INDEX(Table1[Break point],Table2[[#Headers],[1]:[6]]+1)),Table2[[#This Row],[Sub]],NA()) -> 2733.73 | I83: =IF(AND(Table2[[#This Row],[Cumulative revenue %]]>INDEX(Table1[Break point],Table2[[#Headers],[1]:[6]]), Table2[[#This Row],[Cumulative revenue %]]<=INDEX(Table1[Break point],Table2[[#Headers],[1]:[6]]+1)),Table2[[#This Row],[Sub]],NA()) ->  | J83: =IF(AND(Table2[[#This Row],[Cumulative revenue %]]>INDEX(Table1[Break point],Table2[[#Headers],[1]:[6]]), Table2[[#This Row],[Cumulative revenue %]]<=INDEX(Table1[Break point],Table2[[#Headers],[1]:[6]]+1)),Table2[[#This Row],[Sub]],NA()) -> 
A84: =ROW()-ROW(Table2[[#Headers],[Position]]) -> 83 | B84: 2708 | C84: 586054.568 | D84: =Table2[[#This Row],[Cumulative revenue]]/SUM(Table2[Sub]) -> 0.7687239648 | E84: =IF(AND(Table2[[#This Row],[Cumulative revenue %]]>INDEX(Table1[Break point],Table2[[#Headers],[1]:[6]]), Table2[[#This Row],[Cumulative revenue %]]<=INDEX(Table1[Break point],Table2[[#Headers],[1]:[6]]+1)),Table2[[#This Row],[Sub]],NA()) ->  | F84: =IF(AND(Table2[[#This Row],[Cumulative revenue %]]>INDEX(Table1[Break point],Table2[[#Headers],[1]:[6]]), Table2[[#This Row],[Cumulative revenue %]]<=INDEX(Table1[Break point],Table2[[#Headers],[1]:[6]]+1)),Table2[[#This Row],[Sub]],NA()) ->  | G84: =IF(AND(Table2[[#This Row],[Cumulative revenue %]]>INDEX(Table1[Break point],Table2[[#Headers],[1]:[6]]), Table2[[#This Row],[Cumulative revenue %]]<=INDEX(Table1[Break point],Table2[[#Headers],[1]:[6]]+1)),Table2[[#This Row],[Sub]],NA()) ->  | H84: =IF(AND(Table2[[#This Row],[Cumulative revenue %]]>INDEX(Table1[Break point],Table2[[#Headers],[1]:[6]]), Table2[[#This Row],[Cumulative revenue %]]<=INDEX(Table1[Break point],Table2[[#Headers],[1]:[6]]+1)),Table2[[#This Row],[Sub]],NA()) -> 2708 | I84: =IF(AND(Table2[[#This Row],[Cumulative revenue %]]>INDEX(Table1[Break point],Table2[[#Headers],[1]:[6]]), Table2[[#This Row],[Cumulative revenue %]]<=INDEX(Table1[Break point],Table2[[#Headers],[1]:[6]]+1)),Table2[[#This Row],[Sub]],NA()) ->  | J84: =IF(AND(Table2[[#This Row],[Cumulative revenue %]]>INDEX(Table1[Break point],Table2[[#Headers],[1]:[6]]), Table2[[#This Row],[Cumulative revenue %]]<=INDEX(Table1[Break point],Table2[[#Headers],[1]:[6]]+1)),Table2[[#This Row],[Sub]],NA()) -> 
A85: =ROW()-ROW(Table2[[#Headers],[Position]]) -> 84 | B85: 2595.42 | C85: 588649.988 | D85: =Table2[[#This Row],[Cumulative revenue]]/SUM(Table2[Sub]) -> 0.7721283603 | E85: =IF(AND(Table2[[#This Row],[Cumulative revenue %]]>INDEX(Table1[Break point],Table2[[#Headers],[1]:[6]]), Table2[[#This Row],[Cumulative revenue %]]<=INDEX(Table1[Break point],Table2[[#Headers],[1]:[6]]+1)),Table2[[#This Row],[Sub]],NA()) ->  | F85: =IF(AND(Table2[[#This Row],[Cumulative revenue %]]>INDEX(Table1[Break point],Table2[[#Headers],[1]:[6]]), Table2[[#This Row],[Cumulative revenue %]]<=INDEX(Table1[Break point],Table2[[#Headers],[1]:[6]]+1)),Table2[[#This Row],[Sub]],NA()) ->  | G85: =IF(AND(Table2[[#This Row],[Cumulative revenue %]]>INDEX(Table1[Break point],Table2[[#Headers],[1]:[6]]), Table2[[#This Row],[Cumulative revenue %]]<=INDEX(Table1[Break point],Table2[[#Headers],[1]:[6]]+1)),Table2[[#This Row],[Sub]],NA()) ->  | H85: =IF(AND(Table2[[#This Row],[Cumulative revenue %]]>INDEX(Table1[Break point],Table2[[#Headers],[1]:[6]]), Table2[[#This Row],[Cumulative revenue %]]<=INDEX(Table1[Break point],Table2[[#Headers],[1]:[6]]+1)),Table2[[#This Row],[Sub]],NA()) -> 2595.42 | I85: =IF(AND(Table2[[#This Row],[Cumulative revenue %]]>INDEX(Table1[Break point],Table2[[#Headers],[1]:[6]]), Table2[[#This Row],[Cumulative revenue %]]<=INDEX(Table1[Break point],Table2[[#Headers],[1]:[6]]+1)),Table2[[#This Row],[Sub]],NA()) ->  | J85: =IF(AND(Table2[[#This Row],[Cumulative revenue %]]>INDEX(Table1[Break point],Table2[[#Headers],[1]:[6]]), Table2[[#This Row],[Cumulative revenue %]]<=INDEX(Table1[Break point],Table2[[#Headers],[1]:[6]]+1)),Table2[[#This Row],[Sub]],NA()) -> 
A86: =ROW()-ROW(Table2[[#Headers],[Position]]) -> 85 | B86: 2548.58 | C86: 591198.568 | D86: =Table2[[#This Row],[Cumulative revenue]]/SUM(Table2[Sub]) -> 0.7754713161 | E86: =IF(AND(Table2[[#This Row],[Cumulative revenue %]]>INDEX(Table1[Break point],Table2[[#Headers],[1]:[6]]), Table2[[#This Row],[Cumulative revenue %]]<=INDEX(Table1[Break point],Table2[[#Headers],[1]:[6]]+1)),Table2[[#This Row],[Sub]],NA()) ->  | F86: =IF(AND(Table2[[#This Row],[Cumulative revenue %]]>INDEX(Table1[Break point],Table2[[#Headers],[1]:[6]]), Table2[[#This Row],[Cumulative revenue %]]<=INDEX(Table1[Break point],Table2[[#Headers],[1]:[6]]+1)),Table2[[#This Row],[Sub]],NA()) ->  | G86: =IF(AND(Table2[[#This Row],[Cumulative revenue %]]>INDEX(Table1[Break point],Table2[[#Headers],[1]:[6]]), Table2[[#This Row],[Cumulative revenue %]]<=INDEX(Table1[Break point],Table2[[#Headers],[1]:[6]]+1)),Table2[[#This Row],[Sub]],NA()) ->  | H86: =IF(AND(Table2[[#This Row],[Cumulative revenue %]]>INDEX(Table1[Break point],Table2[[#Headers],[1]:[6]]), Table2[[#This Row],[Cumulative revenue %]]<=INDEX(Table1[Break point],Table2[[#Headers],[1]:[6]]+1)),Table2[[#This Row],[Sub]],NA()) -> 2548.58 | I86: =IF(AND(Table2[[#This Row],[Cumulative revenue %]]>INDEX(Table1[Break point],Table2[[#Headers],[1]:[6]]), Table2[[#This Row],[Cumulative revenue %]]<=INDEX(Table1[Break point],Table2[[#Headers],[1]:[6]]+1)),Table2[[#This Row],[Sub]],NA()) ->  | J86: =IF(AND(Table2[[#This Row],[Cumulative revenue %]]>INDEX(Table1[Break point],Table2[[#Headers],[1]:[6]]), Table2[[#This Row],[Cumulative revenue %]]<=INDEX(Table1[Break point],Table2[[#Headers],[1]:[6]]+1)),Table2[[#This Row],[Sub]],NA()) -> 
A87: =ROW()-ROW(Table2[[#Headers],[Position]]) -> 86 | B87: 2538.48 | C87: 593737.048 | D87: =Table2[[#This Row],[Cumulative revenue]]/SUM(Table2[Sub]) -> 0.7788010238 | E87: =IF(AND(Table2[[#This Row],[Cumulative revenue %]]>INDEX(Table1[Break point],Table2[[#Headers],[1]:[6]]), Table2[[#This Row],[Cumulative revenue %]]<=INDEX(Table1[Break point],Table2[[#Headers],[1]:[6]]+1)),Table2[[#This Row],[Sub]],NA()) ->  | F87: =IF(AND(Table2[[#This Row],[Cumulative revenue %]]>INDEX(Table1[Break point],Table2[[#Headers],[1]:[6]]), Table2[[#This Row],[Cumulative revenue %]]<=INDEX(Table1[Break point],Table2[[#Headers],[1]:[6]]+1)),Table2[[#This Row],[Sub]],NA()) ->  | G87: =IF(AND(Table2[[#This Row],[Cumulative revenue %]]>INDEX(Table1[Break point],Table2[[#Headers],[1]:[6]]), Table2[[#This Row],[Cumulative revenue %]]<=INDEX(Table1[Break point],Table2[[#Headers],[1]:[6]]+1)),Table2[[#This Row],[Sub]],NA()) ->  | H87: =IF(AND(Table2[[#This Row],[Cumulative revenue %]]>INDEX(Table1[Break point],Table2[[#Headers],[1]:[6]]), Table2[[#This Row],[Cumulative revenue %]]<=INDEX(Table1[Break point],Table2[[#Headers],[1]:[6]]+1)),Table2[[#This Row],[Sub]],NA()) -> 2538.48 | I87: =IF(AND(Table2[[#This Row],[Cumulative revenue %]]>INDEX(Table1[Break point],Table2[[#Headers],[1]:[6]]), Table2[[#This Row],[Cumulative revenue %]]<=INDEX(Table1[Break point],Table2[[#Headers],[1]:[6]]+1)),Table2[[#This Row],[Sub]],NA()) ->  | J87: =IF(AND(Table2[[#This Row],[Cumulative revenue %]]>INDEX(Table1[Break point],Table2[[#Headers],[1]:[6]]), Table2[[#This Row],[Cumulative revenue %]]<=INDEX(Table1[Break point],Table2[[#Headers],[1]:[6]]+1)),Table2[[#This Row],[Sub]],NA()) -> 
A88: =ROW()-ROW(Table2[[#Headers],[Position]]) -> 87 | B88: 2535.64 | C88: 596272.688 | D88: =Table2[[#This Row],[Cumulative revenue]]/SUM(Table2[Sub]) -> 0.7821270063 | E88: =IF(AND(Table2[[#This Row],[Cumulative revenue %]]>INDEX(Table1[Break point],Table2[[#Headers],[1]:[6]]), Table2[[#This Row],[Cumulative revenue %]]<=INDEX(Table1[Break point],Table2[[#Headers],[1]:[6]]+1)),Table2[[#This Row],[Sub]],NA()) ->  | F88: =IF(AND(Table2[[#This Row],[Cumulative revenue %]]>INDEX(Table1[Break point],Table2[[#Headers],[1]:[6]]), Table2[[#This Row],[Cumulative revenue %]]<=INDEX(Table1[Break point],Table2[[#Headers],[1]:[6]]+1)),Table2[[#This Row],[Sub]],NA()) ->  | G88: =IF(AND(Table2[[#This Row],[Cumulative revenue %]]>INDEX(Table1[Break point],Table2[[#Headers],[1]:[6]]), Table2[[#This Row],[Cumulative revenue %]]<=INDEX(Table1[Break point],Table2[[#Headers],[1]:[6]]+1)),Table2[[#This Row],[Sub]],NA()) ->  | H88: =IF(AND(Table2[[#This Row],[Cumulative revenue %]]>INDEX(Table1[Break point],Table2[[#Headers],[1]:[6]]), Table2[[#This Row],[Cumulative revenue %]]<=INDEX(Table1[Break point],Table2[[#Headers],[1]:[6]]+1)),Table2[[#This Row],[Sub]],NA()) -> 2535.64 | I88: =IF(AND(Table2[[#This Row],[Cumulative revenue %]]>INDEX(Table1[Break point],Table2[[#Headers],[1]:[6]]), Table2[[#This Row],[Cumulative revenue %]]<=INDEX(Table1[Break point],Table2[[#Headers],[1]:[6]]+1)),Table2[[#This Row],[Sub]],NA()) ->  | J88: =IF(AND(Table2[[#This Row],[Cumulative revenue %]]>INDEX(Table1[Break point],Table2[[#Headers],[1]:[6]]), Table2[[#This Row],[Cumulative revenue %]]<=INDEX(Table1[Break point],Table2[[#Headers],[1]:[6]]+1)),Table2[[#This Row],[Sub]],NA()) -> 
A89: =ROW()-ROW(Table2[[#Headers],[Position]]) -> 88 | B89: 2429.81 | C89: 598702.498 | D89: =Table2[[#This Row],[Cumulative revenue]]/SUM(Table2[Sub]) -> 0.7853141723 | E89: =IF(AND(Table2[[#This Row],[Cumulative revenue %]]>INDEX(Table1[Break point],Table2[[#Headers],[1]:[6]]), Table2[[#This Row],[Cumulative revenue %]]<=INDEX(Table1[Break point],Table2[[#Headers],[1]:[6]]+1)),Table2[[#This Row],[Sub]],NA()) ->  | F89: =IF(AND(Table2[[#This Row],[Cumulative revenue %]]>INDEX(Table1[Break point],Table2[[#Headers],[1]:[6]]), Table2[[#This Row],[Cumulative revenue %]]<=INDEX(Table1[Break point],Table2[[#Headers],[1]:[6]]+1)),Table2[[#This Row],[Sub]],NA()) ->  | G89: =IF(AND(Table2[[#This Row],[Cumulative revenue %]]>INDEX(Table1[Break point],Table2[[#Headers],[1]:[6]]), Table2[[#This Row],[Cumulative revenue %]]<=INDEX(Table1[Break point],Table2[[#Headers],[1]:[6]]+1)),Table2[[#This Row],[Sub]],NA()) ->  | H89: =IF(AND(Table2[[#This Row],[Cumulative revenue %]]>INDEX(Table1[Break point],Table2[[#Headers],[1]:[6]]), Table2[[#This Row],[Cumulative revenue %]]<=INDEX(Table1[Break point],Table2[[#Headers],[1]:[6]]+1)),Table2[[#This Row],[Sub]],NA()) -> 2429.81 | I89: =IF(AND(Table2[[#This Row],[Cumulative revenue %]]>INDEX(Table1[Break point],Table2[[#Headers],[1]:[6]]), Table2[[#This Row],[Cumulative revenue %]]<=INDEX(Table1[Break point],Table2[[#Headers],[1]:[6]]+1)),Table2[[#This Row],[Sub]],NA()) ->  | J89: =IF(AND(Table2[[#This Row],[Cumulative revenue %]]>INDEX(Table1[Break point],Table2[[#Headers],[1]:[6]]), Table2[[#This Row],[Cumulative revenue %]]<=INDEX(Table1[Break point],Table2[[#Headers],[1]:[6]]+1)),Table2[[#This Row],[Sub]],NA()) -> 
A90: =ROW()-ROW(Table2[[#Headers],[Position]]) -> 89 | B90: 2373.62 | C90: 601076.118 | D90: =Table2[[#This Row],[Cumulative revenue]]/SUM(Table2[Sub]) -> 0.7884276342 | E90: =IF(AND(Table2[[#This Row],[Cumulative revenue %]]>INDEX(Table1[Break point],Table2[[#Headers],[1]:[6]]), Table2[[#This Row],[Cumulative revenue %]]<=INDEX(Table1[Break point],Table2[[#Headers],[1]:[6]]+1)),Table2[[#This Row],[Sub]],NA()) ->  | F90: =IF(AND(Table2[[#This Row],[Cumulative revenue %]]>INDEX(Table1[Break point],Table2[[#Headers],[1]:[6]]), Table2[[#This Row],[Cumulative revenue %]]<=INDEX(Table1[Break point],Table2[[#Headers],[1]:[6]]+1)),Table2[[#This Row],[Sub]],NA()) ->  | G90: =IF(AND(Table2[[#This Row],[Cumulative revenue %]]>INDEX(Table1[Break point],Table2[[#Headers],[1]:[6]]), Table2[[#This Row],[Cumulative revenue %]]<=INDEX(Table1[Break point],Table2[[#Headers],[1]:[6]]+1)),Table2[[#This Row],[Sub]],NA()) ->  | H90: =IF(AND(Table2[[#This Row],[Cumulative revenue %]]>INDEX(Table1[Break point],Table2[[#Headers],[1]:[6]]), Table2[[#This Row],[Cumulative revenue %]]<=INDEX(Table1[Break point],Table2[[#Headers],[1]:[6]]+1)),Table2[[#This Row],[Sub]],NA()) -> 2373.62 | I90: =IF(AND(Table2[[#This Row],[Cumulative revenue %]]>INDEX(Table1[Break point],Table2[[#Headers],[1]:[6]]), Table2[[#This Row],[Cumulative revenue %]]<=INDEX(Table1[Break point],Table2[[#Headers],[1]:[6]]+1)),Table2[[#This Row],[Sub]],NA()) ->  | J90: =IF(AND(Table2[[#This Row],[Cumulative revenue %]]>INDEX(Table1[Break point],Table2[[#Headers],[1]:[6]]), Table2[[#This Row],[Cumulative revenue %]]<=INDEX(Table1[Break point],Table2[[#Headers],[1]:[6]]+1)),Table2[[#This Row],[Sub]],NA()) -> 
A91: =ROW()-ROW(Table2[[#Headers],[Position]]) -> 90 | B91: 2310.75 | C91: 603386.868 | D91: =Table2[[#This Row],[Cumulative revenue]]/SUM(Table2[Sub]) -> 0.7914586299 | E91: =IF(AND(Table2[[#This Row],[Cumulative revenue %]]>INDEX(Table1[Break point],Table2[[#Headers],[1]:[6]]), Table2[[#This Row],[Cumulative revenue %]]<=INDEX(Table1[Break point],Table2[[#Headers],[1]:[6]]+1)),Table2[[#This Row],[Sub]],NA()) ->  | F91: =IF(AND(Table2[[#This Row],[Cumulative revenue %]]>INDEX(Table1[Break point],Table2[[#Headers],[1]:[6]]), Table2[[#This Row],[Cumulative revenue %]]<=INDEX(Table1[Break point],Table2[[#Headers],[1]:[6]]+1)),Table2[[#This Row],[Sub]],NA()) ->  | G91: =IF(AND(Table2[[#This Row],[Cumulative revenue %]]>INDEX(Table1[Break point],Table2[[#Headers],[1]:[6]]), Table2[[#This Row],[Cumulative revenue %]]<=INDEX(Table1[Break point],Table2[[#Headers],[1]:[6]]+1)),Table2[[#This Row],[Sub]],NA()) ->  | H91: =IF(AND(Table2[[#This Row],[Cumulative revenue %]]>INDEX(Table1[Break point],Table2[[#Headers],[1]:[6]]), Table2[[#This Row],[Cumulative revenue %]]<=INDEX(Table1[Break point],Table2[[#Headers],[1]:[6]]+1)),Table2[[#This Row],[Sub]],NA()) -> 2310.75 | I91: =IF(AND(Table2[[#This Row],[Cumulative revenue %]]>INDEX(Table1[Break point],Table2[[#Headers],[1]:[6]]), Table2[[#This Row],[Cumulative revenue %]]<=INDEX(Table1[Break point],Table2[[#Headers],[1]:[6]]+1)),Table2[[#This Row],[Sub]],NA()) ->  | J91: =IF(AND(Table2[[#This Row],[Cumulative revenue %]]>INDEX(Table1[Break point],Table2[[#Headers],[1]:[6]]), Table2[[#This Row],[Cumulative revenue %]]<=INDEX(Table1[Break point],Table2[[#Headers],[1]:[6]]+1)),Table2[[#This Row],[Sub]],NA()) -> 
A92: =ROW()-ROW(Table2[[#Headers],[Position]]) -> 91 | B92: 2302.05 | C92: 605688.918 | D92: =Table2[[#This Row],[Cumulative revenue]]/SUM(Table2[Sub]) -> 0.7944782139 | E92: =IF(AND(Table2[[#This Row],[Cumulative revenue %]]>INDEX(Table1[Break point],Table2[[#Headers],[1]:[6]]), Table2[[#This Row],[Cumulative revenue %]]<=INDEX(Table1[Break point],Table2[[#Headers],[1]:[6]]+1)),Table2[[#This Row],[Sub]],NA()) ->  | F92: =IF(AND(Table2[[#This Row],[Cumulative revenue %]]>INDEX(Table1[Break point],Table2[[#Headers],[1]:[6]]), Table2[[#This Row],[Cumulative revenue %]]<=INDEX(Table1[Break point],Table2[[#Headers],[1]:[6]]+1)),Table2[[#This Row],[Sub]],NA()) ->  | G92: =IF(AND(Table2[[#This Row],[Cumulative revenue %]]>INDEX(Table1[Break point],Table2[[#Headers],[1]:[6]]), Table2[[#This Row],[Cumulative revenue %]]<=INDEX(Table1[Break point],Table2[[#Headers],[1]:[6]]+1)),Table2[[#This Row],[Sub]],NA()) ->  | H92: =IF(AND(Table2[[#This Row],[Cumulative revenue %]]>INDEX(Table1[Break point],Table2[[#Headers],[1]:[6]]), Table2[[#This Row],[Cumulative revenue %]]<=INDEX(Table1[Break point],Table2[[#Headers],[1]:[6]]+1)),Table2[[#This Row],[Sub]],NA()) -> 2302.05 | I92: =IF(AND(Table2[[#This Row],[Cumulative revenue %]]>INDEX(Table1[Break point],Table2[[#Headers],[1]:[6]]), Table2[[#This Row],[Cumulative revenue %]]<=INDEX(Table1[Break point],Table2[[#Headers],[1]:[6]]+1)),Table2[[#This Row],[Sub]],NA()) ->  | J92: =IF(AND(Table2[[#This Row],[Cumulative revenue %]]>INDEX(Table1[Break point],Table2[[#Headers],[1]:[6]]), Table2[[#This Row],[Cumulative revenue %]]<=INDEX(Table1[Break point],Table2[[#Headers],[1]:[6]]+1)),Table2[[#This Row],[Sub]],NA()) -> 
A93: =ROW()-ROW(Table2[[#Headers],[Position]]) -> 92 | B93: 2248.61 | C93: 607937.528 | D93: =Table2[[#This Row],[Cumulative revenue]]/SUM(Table2[Sub]) -> 0.7974277011 | E93: =IF(AND(Table2[[#This Row],[Cumulative revenue %]]>INDEX(Table1[Break point],Table2[[#Headers],[1]:[6]]), Table2[[#This Row],[Cumulative revenue %]]<=INDEX(Table1[Break point],Table2[[#Headers],[1]:[6]]+1)),Table2[[#This Row],[Sub]],NA()) ->  | F93: =IF(AND(Table2[[#This Row],[Cumulative revenue %]]>INDEX(Table1[Break point],Table2[[#Headers],[1]:[6]]), Table2[[#This Row],[Cumulative revenue %]]<=INDEX(Table1[Break point],Table2[[#Headers],[1]:[6]]+1)),Table2[[#This Row],[Sub]],NA()) ->  | G93: =IF(AND(Table2[[#This Row],[Cumulative revenue %]]>INDEX(Table1[Break point],Table2[[#Headers],[1]:[6]]), Table2[[#This Row],[Cumulative revenue %]]<=INDEX(Table1[Break point],Table2[[#Headers],[1]:[6]]+1)),Table2[[#This Row],[Sub]],NA()) ->  | H93: =IF(AND(Table2[[#This Row],[Cumulative revenue %]]>INDEX(Table1[Break point],Table2[[#Headers],[1]:[6]]), Table2[[#This Row],[Cumulative revenue %]]<=INDEX(Table1[Break point],Table2[[#Headers],[1]:[6]]+1)),Table2[[#This Row],[Sub]],NA()) -> 2248.61 | I93: =IF(AND(Table2[[#This Row],[Cumulative revenue %]]>INDEX(Table1[Break point],Table2[[#Headers],[1]:[6]]), Table2[[#This Row],[Cumulative revenue %]]<=INDEX(Table1[Break point],Table2[[#Headers],[1]:[6]]+1)),Table2[[#This Row],[Sub]],NA()) ->  | J93: =IF(AND(Table2[[#This Row],[Cumulative revenue %]]>INDEX(Table1[Break point],Table2[[#Headers],[1]:[6]]), Table2[[#This Row],[Cumulative revenue %]]<=INDEX(Table1[Break point],Table2[[#Headers],[1]:[6]]+1)),Table2[[#This Row],[Sub]],NA()) -> 
A94: =ROW()-ROW(Table2[[#Headers],[Position]]) -> 93 | B94: 2192.61 | C94: 610130.138 | D94: =Table2[[#This Row],[Cumulative revenue]]/SUM(Table2[Sub]) -> 0.8003037333 | E94: =IF(AND(Table2[[#This Row],[Cumulative revenue %]]>INDEX(Table1[Break point],Table2[[#Headers],[1]:[6]]), Table2[[#This Row],[Cumulative revenue %]]<=INDEX(Table1[Break point],Table2[[#Headers],[1]:[6]]+1)),Table2[[#This Row],[Sub]],NA()) ->  | F94: =IF(AND(Table2[[#This Row],[Cumulative revenue %]]>INDEX(Table1[Break point],Table2[[#Headers],[1]:[6]]), Table2[[#This Row],[Cumulative revenue %]]<=INDEX(Table1[Break point],Table2[[#Headers],[1]:[6]]+1)),Table2[[#This Row],[Sub]],NA()) ->  | G94: =IF(AND(Table2[[#This Row],[Cumulative revenue %]]>INDEX(Table1[Break point],Table2[[#Headers],[1]:[6]]), Table2[[#This Row],[Cumulative revenue %]]<=INDEX(Table1[Break point],Table2[[#Headers],[1]:[6]]+1)),Table2[[#This Row],[Sub]],NA()) ->  | H94: =IF(AND(Table2[[#This Row],[Cumulative revenue %]]>INDEX(Table1[Break point],Table2[[#Headers],[1]:[6]]), Table2[[#This Row],[Cumulative revenue %]]<=INDEX(Table1[Break point],Table2[[#Headers],[1]:[6]]+1)),Table2[[#This Row],[Sub]],NA()) ->  | I94: =IF(AND(Table2[[#This Row],[Cumulative revenue %]]>INDEX(Table1[Break point],Table2[[#Headers],[1]:[6]]), Table2[[#This Row],[Cumulative revenue %]]<=INDEX(Table1[Break point],Table2[[#Headers],[1]:[6]]+1)),Table2[[#This Row],[Sub]],NA()) -> 2192.61 | J94: =IF(AND(Table2[[#This Row],[Cumulative revenue %]]>INDEX(Table1[Break point],Table2[[#Headers],[1]:[6]]), Table2[[#This Row],[Cumulative revenue %]]<=INDEX(Table1[Break point],Table2[[#Headers],[1]:[6]]+1)),Table2[[#This Row],[Sub]],NA()) -> 
A95: =ROW()-ROW(Table2[[#Headers],[Position]]) -> 94 | B95: 2155.46 | C95: 612285.598 | D95: =Table2[[#This Row],[Cumulative revenue]]/SUM(Table2[Sub]) -> 0.8031310362 | E95: =IF(AND(Table2[[#This Row],[Cumulative revenue %]]>INDEX(Table1[Break point],Table2[[#Headers],[1]:[6]]), Table2[[#This Row],[Cumulative revenue %]]<=INDEX(Table1[Break point],Table2[[#Headers],[1]:[6]]+1)),Table2[[#This Row],[Sub]],NA()) ->  | F95: =IF(AND(Table2[[#This Row],[Cumulative revenue %]]>INDEX(Table1[Break point],Table2[[#Headers],[1]:[6]]), Table2[[#This Row],[Cumulative revenue %]]<=INDEX(Table1[Break point],Table2[[#Headers],[1]:[6]]+1)),Table2[[#This Row],[Sub]],NA()) ->  | G95: =IF(AND(Table2[[#This Row],[Cumulative revenue %]]>INDEX(Table1[Break point],Table2[[#Headers],[1]:[6]]), Table2[[#This Row],[Cumulative revenue %]]<=INDEX(Table1[Break point],Table2[[#Headers],[1]:[6]]+1)),Table2[[#This Row],[Sub]],NA()) ->  | H95: =IF(AND(Table2[[#This Row],[Cumulative revenue %]]>INDEX(Table1[Break point],Table2[[#Headers],[1]:[6]]), Table2[[#This Row],[Cumulative revenue %]]<=INDEX(Table1[Break point],Table2[[#Headers],[1]:[6]]+1)),Table2[[#This Row],[Sub]],NA()) ->  | I95: =IF(AND(Table2[[#This Row],[Cumulative revenue %]]>INDEX(Table1[Break point],Table2[[#Headers],[1]:[6]]), Table2[[#This Row],[Cumulative revenue %]]<=INDEX(Table1[Break point],Table2[[#Headers],[1]:[6]]+1)),Table2[[#This Row],[Sub]],NA()) -> 2155.46 | J95: =IF(AND(Table2[[#This Row],[Cumulative revenue %]]>INDEX(Table1[Break point],Table2[[#Headers],[1]:[6]]), Table2[[#This Row],[Cumulative revenue %]]<=INDEX(Table1[Break point],Table2[[#Headers],[1]:[6]]+1)),Table2[[#This Row],[Sub]],NA()) -> 
A96: =ROW()-ROW(Table2[[#Headers],[Position]]) -> 95 | B96: 2154.25 | C96: 614439.848 | D96: =Table2[[#This Row],[Cumulative revenue]]/SUM(Table2[Sub]) -> 0.8059567519 | E96: =IF(AND(Table2[[#This Row],[Cumulative revenue %]]>INDEX(Table1[Break point],Table2[[#Headers],[1]:[6]]), Table2[[#This Row],[Cumulative revenue %]]<=INDEX(Table1[Break point],Table2[[#Headers],[1]:[6]]+1)),Table2[[#This Row],[Sub]],NA()) ->  | F96: =IF(AND(Table2[[#This Row],[Cumulative revenue %]]>INDEX(Table1[Break point],Table2[[#Headers],[1]:[6]]), Table2[[#This Row],[Cumulative revenue %]]<=INDEX(Table1[Break point],Table2[[#Headers],[1]:[6]]+1)),Table2[[#This Row],[Sub]],NA()) ->  | G96: =IF(AND(Table2[[#This Row],[Cumulative revenue %]]>INDEX(Table1[Break point],Table2[[#Headers],[1]:[6]]), Table2[[#This Row],[Cumulative revenue %]]<=INDEX(Table1[Break point],Table2[[#Headers],[1]:[6]]+1)),Table2[[#This Row],[Sub]],NA()) ->  | H96: =IF(AND(Table2[[#This Row],[Cumulative revenue %]]>INDEX(Table1[Break point],Table2[[#Headers],[1]:[6]]), Table2[[#This Row],[Cumulative revenue %]]<=INDEX(Table1[Break point],Table2[[#Headers],[1]:[6]]+1)),Table2[[#This Row],[Sub]],NA()) ->  | I96: =IF(AND(Table2[[#This Row],[Cumulative revenue %]]>INDEX(Table1[Break point],Table2[[#Headers],[1]:[6]]), Table2[[#This Row],[Cumulative revenue %]]<=INDEX(Table1[Break point],Table2[[#Headers],[1]:[6]]+1)),Table2[[#This Row],[Sub]],NA()) -> 2154.25 | J96: =IF(AND(Table2[[#This Row],[Cumulative revenue %]]>INDEX(Table1[Break point],Table2[[#Headers],[1]:[6]]), Table2[[#This Row],[Cumulative revenue %]]<=INDEX(Table1[Break point],Table2[[#Headers],[1]:[6]]+1)),Table2[[#This Row],[Sub]],NA()) -> 
A97: =ROW()-ROW(Table2[[#Headers],[Position]]) -> 96 | B97: 2124.71 | C97: 616564.558 | D97: =Table2[[#This Row],[Cumulative revenue]]/SUM(Table2[Sub]) -> 0.8087437202 | E97: =IF(AND(Table2[[#This Row],[Cumulative revenue %]]>INDEX(Table1[Break point],Table2[[#Headers],[1]:[6]]), Table2[[#This Row],[Cumulative revenue %]]<=INDEX(Table1[Break point],Table2[[#Headers],[1]:[6]]+1)),Table2[[#This Row],[Sub]],NA()) ->  | F97: =IF(AND(Table2[[#This Row],[Cumulative revenue %]]>INDEX(Table1[Break point],Table2[[#Headers],[1]:[6]]), Table2[[#This Row],[Cumulative revenue %]]<=INDEX(Table1[Break point],Table2[[#Headers],[1]:[6]]+1)),Table2[[#This Row],[Sub]],NA()) ->  | G97: =IF(AND(Table2[[#This Row],[Cumulative revenue %]]>INDEX(Table1[Break point],Table2[[#Headers],[1]:[6]]), Table2[[#This Row],[Cumulative revenue %]]<=INDEX(Table1[Break point],Table2[[#Headers],[1]:[6]]+1)),Table2[[#This Row],[Sub]],NA()) ->  | H97: =IF(AND(Table2[[#This Row],[Cumulative revenue %]]>INDEX(Table1[Break point],Table2[[#Headers],[1]:[6]]), Table2[[#This Row],[Cumulative revenue %]]<=INDEX(Table1[Break point],Table2[[#Headers],[1]:[6]]+1)),Table2[[#This Row],[Sub]],NA()) ->  | I97: =IF(AND(Table2[[#This Row],[Cumulative revenue %]]>INDEX(Table1[Break point],Table2[[#Headers],[1]:[6]]), Table2[[#This Row],[Cumulative revenue %]]<=INDEX(Table1[Break point],Table2[[#Headers],[1]:[6]]+1)),Table2[[#This Row],[Sub]],NA()) -> 2124.71 | J97: =IF(AND(Table2[[#This Row],[Cumulative revenue %]]>INDEX(Table1[Break point],Table2[[#Headers],[1]:[6]]), Table2[[#This Row],[Cumulative revenue %]]<=INDEX(Table1[Break point],Table2[[#Headers],[1]:[6]]+1)),Table2[[#This Row],[Sub]],NA()) -> 
A98: =ROW()-ROW(Table2[[#Headers],[Position]]) -> 97 | B98: 2121.18 | C98: 618685.738 | D98: =Table2[[#This Row],[Cumulative revenue]]/SUM(Table2[Sub]) -> 0.8115260582 | E98: =IF(AND(Table2[[#This Row],[Cumulative revenue %]]>INDEX(Table1[Break point],Table2[[#Headers],[1]:[6]]), Table2[[#This Row],[Cumulative revenue %]]<=INDEX(Table1[Break point],Table2[[#Headers],[1]:[6]]+1)),Table2[[#This Row],[Sub]],NA()) ->  | F98: =IF(AND(Table2[[#This Row],[Cumulative revenue %]]>INDEX(Table1[Break point],Table2[[#Headers],[1]:[6]]), Table2[[#This Row],[Cumulative revenue %]]<=INDEX(Table1[Break point],Table2[[#Headers],[1]:[6]]+1)),Table2[[#This Row],[Sub]],NA()) ->  | G98: =IF(AND(Table2[[#This Row],[Cumulative revenue %]]>INDEX(Table1[Break point],Table2[[#Headers],[1]:[6]]), Table2[[#This Row],[Cumulative revenue %]]<=INDEX(Table1[Break point],Table2[[#Headers],[1]:[6]]+1)),Table2[[#This Row],[Sub]],NA()) ->  | H98: =IF(AND(Table2[[#This Row],[Cumulative revenue %]]>INDEX(Table1[Break point],Table2[[#Headers],[1]:[6]]), Table2[[#This Row],[Cumulative revenue %]]<=INDEX(Table1[Break point],Table2[[#Headers],[1]:[6]]+1)),Table2[[#This Row],[Sub]],NA()) ->  | I98: =IF(AND(Table2[[#This Row],[Cumulative revenue %]]>INDEX(Table1[Break point],Table2[[#Headers],[1]:[6]]), Table2[[#This Row],[Cumulative revenue %]]<=INDEX(Table1[Break point],Table2[[#Headers],[1]:[6]]+1)),Table2[[#This Row],[Sub]],NA()) -> 2121.18 | J98: =IF(AND(Table2[[#This Row],[Cumulative revenue %]]>INDEX(Table1[Break point],Table2[[#Headers],[1]:[6]]), Table2[[#This Row],[Cumulative revenue %]]<=INDEX(Table1[Break point],Table2[[#Headers],[1]:[6]]+1)),Table2[[#This Row],[Sub]],NA()) -> 
A99: =ROW()-ROW(Table2[[#Headers],[Position]]) -> 98 | B99: 2106.53 | C99: 620792.268 | D99: =Table2[[#This Row],[Cumulative revenue]]/SUM(Table2[Sub]) -> 0.8142891799 | E99: =IF(AND(Table2[[#This Row],[Cumulative revenue %]]>INDEX(Table1[Break point],Table2[[#Headers],[1]:[6]]), Table2[[#This Row],[Cumulative revenue %]]<=INDEX(Table1[Break point],Table2[[#Headers],[1]:[6]]+1)),Table2[[#This Row],[Sub]],NA()) ->  | F99: =IF(AND(Table2[[#This Row],[Cumulative revenue %]]>INDEX(Table1[Break point],Table2[[#Headers],[1]:[6]]), Table2[[#This Row],[Cumulative revenue %]]<=INDEX(Table1[Break point],Table2[[#Headers],[1]:[6]]+1)),Table2[[#This Row],[Sub]],NA()) ->  | G99: =IF(AND(Table2[[#This Row],[Cumulative revenue %]]>INDEX(Table1[Break point],Table2[[#Headers],[1]:[6]]), Table2[[#This Row],[Cumulative revenue %]]<=INDEX(Table1[Break point],Table2[[#Headers],[1]:[6]]+1)),Table2[[#This Row],[Sub]],NA()) ->  | H99: =IF(AND(Table2[[#This Row],[Cumulative revenue %]]>INDEX(Table1[Break point],Table2[[#Headers],[1]:[6]]), Table2[[#This Row],[Cumulative revenue %]]<=INDEX(Table1[Break point],Table2[[#Headers],[1]:[6]]+1)),Table2[[#This Row],[Sub]],NA()) ->  | I99: =IF(AND(Table2[[#This Row],[Cumulative revenue %]]>INDEX(Table1[Break point],Table2[[#Headers],[1]:[6]]), Table2[[#This Row],[Cumulative revenue %]]<=INDEX(Table1[Break point],Table2[[#Headers],[1]:[6]]+1)),Table2[[#This Row],[Sub]],NA()) -> 2106.53 | J99: =IF(AND(Table2[[#This Row],[Cumulative revenue %]]>INDEX(Table1[Break point],Table2[[#Headers],[1]:[6]]), Table2[[#This Row],[Cumulative revenue %]]<=INDEX(Table1[Break point],Table2[[#Headers],[1]:[6]]+1)),Table2[[#This Row],[Sub]],NA()) -> 
A100: =ROW()-ROW(Table2[[#Headers],[Position]]) -> 99 | B100: 2047.31 | C100: 622839.578 | D100: =Table2[[#This Row],[Cumulative revenue]]/SUM(Table2[Sub]) -> 0.8169746231 | E100: =IF(AND(Table2[[#This Row],[Cumulative revenue %]]>INDEX(Table1[Break point],Table2[[#Headers],[1]:[6]]), Table2[[#This Row],[Cumulative revenue %]]<=INDEX(Table1[Break point],Table2[[#Headers],[1]:[6]]+1)),Table2[[#This Row],[Sub]],NA()) ->  | F100: =IF(AND(Table2[[#This Row],[Cumulative revenue %]]>INDEX(Table1[Break point],Table2[[#Headers],[1]:[6]]), Table2[[#This Row],[Cumulative revenue %]]<=INDEX(Table1[Break point],Table2[[#Headers],[1]:[6]]+1)),Table2[[#This Row],[Sub]],NA()) ->  | G100: =IF(AND(Table2[[#This Row],[Cumulative revenue %]]>INDEX(Table1[Break point],Table2[[#Headers],[1]:[6]]), Table2[[#This Row],[Cumulative revenue %]]<=INDEX(Table1[Break point],Table2[[#Headers],[1]:[6]]+1)),Table2[[#This Row],[Sub]],NA()) ->  | H100: =IF(AND(Table2[[#This Row],[Cumulative revenue %]]>INDEX(Table1[Break point],Table2[[#Headers],[1]:[6]]), Table2[[#This Row],[Cumulative revenue %]]<=INDEX(Table1[Break point],Table2[[#Headers],[1]:[6]]+1)),Table2[[#This Row],[Sub]],NA()) ->  | I100: =IF(AND(Table2[[#This Row],[Cumulative revenue %]]>INDEX(Table1[Break point],Table2[[#Headers],[1]:[6]]), Table2[[#This Row],[Cumulative revenue %]]<=INDEX(Table1[Break point],Table2[[#Headers],[1]:[6]]+1)),Table2[[#This Row],[Sub]],NA()) -> 2047.31 | J100: =IF(AND(Table2[[#This Row],[Cumulative revenue %]]>INDEX(Table1[Break point],Table2[[#Headers],[1]:[6]]), Table2[[#This Row],[Cumulative revenue %]]<=INDEX(Table1[Break point],Table2[[#Headers],[1]:[6]]+1)),Table2[[#This Row],[Sub]],NA()) -> 
A101: =ROW()-ROW(Table2[[#Headers],[Position]]) -> 100 | B101: 2035.19 | C101: 624874.768 | D101: =Table2[[#This Row],[Cumulative revenue]]/SUM(Table2[Sub]) -> 0.8196441686 | E101: =IF(AND(Table2[[#This Row],[Cumulative revenue %]]>INDEX(Table1[Break point],Table2[[#Headers],[1]:[6]]), Table2[[#This Row],[Cumulative revenue %]]<=INDEX(Table1[Break point],Table2[[#Headers],[1]:[6]]+1)),Table2[[#This Row],[Sub]],NA()) ->  | F101: =IF(AND(Table2[[#This Row],[Cumulative revenue %]]>INDEX(Table1[Break point],Table2[[#Headers],[1]:[6]]), Table2[[#This Row],[Cumulative revenue %]]<=INDEX(Table1[Break point],Table2[[#Headers],[1]:[6]]+1)),Table2[[#This Row],[Sub]],NA()) ->  | G101: =IF(AND(Table2[[#This Row],[Cumulative revenue %]]>INDEX(Table1[Break point],Table2[[#Headers],[1]:[6]]), Table2[[#This Row],[Cumulative revenue %]]<=INDEX(Table1[Break point],Table2[[#Headers],[1]:[6]]+1)),Table2[[#This Row],[Sub]],NA()) ->  | H101: =IF(AND(Table2[[#This Row],[Cumulative revenue %]]>INDEX(Table1[Break point],Table2[[#Headers],[1]:[6]]), Table2[[#This Row],[Cumulative revenue %]]<=INDEX(Table1[Break point],Table2[[#Headers],[1]:[6]]+1)),Table2[[#This Row],[Sub]],NA()) ->  | I101: =IF(AND(Table2[[#This Row],[Cumulative revenue %]]>INDEX(Table1[Break point],Table2[[#Headers],[1]:[6]]), Table2[[#This Row],[Cumulative revenue %]]<=INDEX(Table1[Break point],Table2[[#Headers],[1]:[6]]+1)),Table2[[#This Row],[Sub]],NA()) -> 2035.19 | J101: =IF(AND(Table2[[#This Row],[Cumulative revenue %]]>INDEX(Table1[Break point],Table2[[#Headers],[1]:[6]]), Table2[[#This Row],[Cumulative revenue %]]<=INDEX(Table1[Break point],Table2[[#Headers],[1]:[6]]+1)),Table2[[#This Row],[Sub]],NA()) -> 
A102: =ROW()-ROW(Table2[[#Headers],[Position]]) -> 101 | B102: 2034.25 | C102: 626909.018 | D102: =Table2[[#This Row],[Cumulative revenue]]/SUM(Table2[Sub]) -> 0.8223124811 | E102: =IF(AND(Table2[[#This Row],[Cumulative revenue %]]>INDEX(Table1[Break point],Table2[[#Headers],[1]:[6]]), Table2[[#This Row],[Cumulative revenue %]]<=INDEX(Table1[Break point],Table2[[#Headers],[1]:[6]]+1)),Table2[[#This Row],[Sub]],NA()) ->  | F102: =IF(AND(Table2[[#This Row],[Cumulative revenue %]]>INDEX(Table1[Break point],Table2[[#Headers],[1]:[6]]), Table2[[#This Row],[Cumulative revenue %]]<=INDEX(Table1[Break point],Table2[[#Headers],[1]:[6]]+1)),Table2[[#This Row],[Sub]],NA()) ->  | G102: =IF(AND(Table2[[#This Row],[Cumulative revenue %]]>INDEX(Table1[Break point],Table2[[#Headers],[1]:[6]]), Table2[[#This Row],[Cumulative revenue %]]<=INDEX(Table1[Break point],Table2[[#Headers],[1]:[6]]+1)),Table2[[#This Row],[Sub]],NA()) ->  | H102: =IF(AND(Table2[[#This Row],[Cumulative revenue %]]>INDEX(Table1[Break point],Table2[[#Headers],[1]:[6]]), Table2[[#This Row],[Cumulative revenue %]]<=INDEX(Table1[Break point],Table2[[#Headers],[1]:[6]]+1)),Table2[[#This Row],[Sub]],NA()) ->  | I102: =IF(AND(Table2[[#This Row],[Cumulative revenue %]]>INDEX(Table1[Break point],Table2[[#Headers],[1]:[6]]), Table2[[#This Row],[Cumulative revenue %]]<=INDEX(Table1[Break point],Table2[[#Headers],[1]:[6]]+1)),Table2[[#This Row],[Sub]],NA()) -> 2034.25 | J102: =IF(AND(Table2[[#This Row],[Cumulative revenue %]]>INDEX(Table1[Break point],Table2[[#Headers],[1]:[6]]), Table2[[#This Row],[Cumulative revenue %]]<=INDEX(Table1[Break point],Table2[[#Headers],[1]:[6]]+1)),Table2[[#This Row],[Sub]],NA()) -> 
A103: =ROW()-ROW(Table2[[#Headers],[Position]]) -> 102 | B103: 1994.75 | C103: 628903.768 | D103: =Table2[[#This Row],[Cumulative revenue]]/SUM(Table2[Sub]) -> 0.8249289817 | E103: =IF(AND(Table2[[#This Row],[Cumulative revenue %]]>INDEX(Table1[Break point],Table2[[#Headers],[1]:[6]]), Table2[[#This Row],[Cumulative revenue %]]<=INDEX(Table1[Break point],Table2[[#Headers],[1]:[6]]+1)),Table2[[#This Row],[Sub]],NA()) ->  | F103: =IF(AND(Table2[[#This Row],[Cumulative revenue %]]>INDEX(Table1[Break point],Table2[[#Headers],[1]:[6]]), Table2[[#This Row],[Cumulative revenue %]]<=INDEX(Table1[Break point],Table2[[#Headers],[1]:[6]]+1)),Table2[[#This Row],[Sub]],NA()) ->  | G103: =IF(AND(Table2[[#This Row],[Cumulative revenue %]]>INDEX(Table1[Break point],Table2[[#Headers],[1]:[6]]), Table2[[#This Row],[Cumulative revenue %]]<=INDEX(Table1[Break point],Table2[[#Headers],[1]:[6]]+1)),Table2[[#This Row],[Sub]],NA()) ->  | H103: =IF(AND(Table2[[#This Row],[Cumulative revenue %]]>INDEX(Table1[Break point],Table2[[#Headers],[1]:[6]]), Table2[[#This Row],[Cumulative revenue %]]<=INDEX(Table1[Break point],Table2[[#Headers],[1]:[6]]+1)),Table2[[#This Row],[Sub]],NA()) ->  | I103: =IF(AND(Table2[[#This Row],[Cumulative revenue %]]>INDEX(Table1[Break point],Table2[[#Headers],[1]:[6]]), Table2[[#This Row],[Cumulative revenue %]]<=INDEX(Table1[Break point],Table2[[#Headers],[1]:[6]]+1)),Table2[[#This Row],[Sub]],NA()) -> 1994.75 | J103: =IF(AND(Table2[[#This Row],[Cumulative revenue %]]>INDEX(Table1[Break point],Table2[[#Headers],[1]:[6]]), Table2[[#This Row],[Cumulative revenue %]]<=INDEX(Table1[Break point],Table2[[#Headers],[1]:[6]]+1)),Table2[[#This Row],[Sub]],NA()) -> 
A104: =ROW()-ROW(Table2[[#Headers],[Position]]) -> 103 | B104: 1994.75 | C104: 630898.518 | D104: =Table2[[#This Row],[Cumulative revenue]]/SUM(Table2[Sub]) -> 0.8275454823 | E104: =IF(AND(Table2[[#This Row],[Cumulative revenue %]]>INDEX(Table1[Break point],Table2[[#Headers],[1]:[6]]), Table2[[#This Row],[Cumulative revenue %]]<=INDEX(Table1[Break point],Table2[[#Headers],[1]:[6]]+1)),Table2[[#This Row],[Sub]],NA()) ->  | F104: =IF(AND(Table2[[#This Row],[Cumulative revenue %]]>INDEX(Table1[Break point],Table2[[#Headers],[1]:[6]]), Table2[[#This Row],[Cumulative revenue %]]<=INDEX(Table1[Break point],Table2[[#Headers],[1]:[6]]+1)),Table2[[#This Row],[Sub]],NA()) ->  | G104: =IF(AND(Table2[[#This Row],[Cumulative revenue %]]>INDEX(Table1[Break point],Table2[[#Headers],[1]:[6]]), Table2[[#This Row],[Cumulative revenue %]]<=INDEX(Table1[Break point],Table2[[#Headers],[1]:[6]]+1)),Table2[[#This Row],[Sub]],NA()) ->  | H104: =IF(AND(Table2[[#This Row],[Cumulative revenue %]]>INDEX(Table1[Break point],Table2[[#Headers],[1]:[6]]), Table2[[#This Row],[Cumulative revenue %]]<=INDEX(Table1[Break point],Table2[[#Headers],[1]:[6]]+1)),Table2[[#This Row],[Sub]],NA()) ->  | I104: =IF(AND(Table2[[#This Row],[Cumulative revenue %]]>INDEX(Table1[Break point],Table2[[#Headers],[1]:[6]]), Table2[[#This Row],[Cumulative revenue %]]<=INDEX(Table1[Break point],Table2[[#Headers],[1]:[6]]+1)),Table2[[#This Row],[Sub]],NA()) -> 1994.75 | J104: =IF(AND(Table2[[#This Row],[Cumulative revenue %]]>INDEX(Table1[Break point],Table2[[#Headers],[1]:[6]]), Table2[[#This Row],[Cumulative revenue %]]<=INDEX(Table1[Break point],Table2[[#Headers],[1]:[6]]+1)),Table2[[#This Row],[Sub]],NA()) -> 
A105: =ROW()-ROW(Table2[[#Headers],[Position]]) -> 104 | B105: 1984.75 | C105: 632883.268 | D105: =Table2[[#This Row],[Cumulative revenue]]/SUM(Table2[Sub]) -> 0.830148866 | E105: =IF(AND(Table2[[#This Row],[Cumulative revenue %]]>INDEX(Table1[Break point],Table2[[#Headers],[1]:[6]]), Table2[[#This Row],[Cumulative revenue %]]<=INDEX(Table1[Break point],Table2[[#Headers],[1]:[6]]+1)),Table2[[#This Row],[Sub]],NA()) ->  | F105: =IF(AND(Table2[[#This Row],[Cumulative revenue %]]>INDEX(Table1[Break point],Table2[[#Headers],[1]:[6]]), Table2[[#This Row],[Cumulative revenue %]]<=INDEX(Table1[Break point],Table2[[#Headers],[1]:[6]]+1)),Table2[[#This Row],[Sub]],NA()) ->  | G105: =IF(AND(Table2[[#This Row],[Cumulative revenue %]]>INDEX(Table1[Break point],Table2[[#Headers],[1]:[6]]), Table2[[#This Row],[Cumulative revenue %]]<=INDEX(Table1[Break point],Table2[[#Headers],[1]:[6]]+1)),Table2[[#This Row],[Sub]],NA()) ->  | H105: =IF(AND(Table2[[#This Row],[Cumulative revenue %]]>INDEX(Table1[Break point],Table2[[#Headers],[1]:[6]]), Table2[[#This Row],[Cumulative revenue %]]<=INDEX(Table1[Break point],Table2[[#Headers],[1]:[6]]+1)),Table2[[#This Row],[Sub]],NA()) ->  | I105: =IF(AND(Table2[[#This Row],[Cumulative revenue %]]>INDEX(Table1[Break point],Table2[[#Headers],[1]:[6]]), Table2[[#This Row],[Cumulative revenue %]]<=INDEX(Table1[Break point],Table2[[#Headers],[1]:[6]]+1)),Table2[[#This Row],[Sub]],NA()) -> 1984.75 | J105: =IF(AND(Table2[[#This Row],[Cumulative revenue %]]>INDEX(Table1[Break point],Table2[[#Headers],[1]:[6]]), Table2[[#This Row],[Cumulative revenue %]]<=INDEX(Table1[Break point],Table2[[#Headers],[1]:[6]]+1)),Table2[[#This Row],[Sub]],NA()) -> 
A106: =ROW()-ROW(Table2[[#Headers],[Position]]) -> 105 | B106: 1944.75 | C106: 634828.018 | D106: =Table2[[#This Row],[Cumulative revenue]]/SUM(Table2[Sub]) -> 0.8326997819 | E106: =IF(AND(Table2[[#This Row],[Cumulative revenue %]]>INDEX(Table1[Break point],Table2[[#Headers],[1]:[6]]), Table2[[#This Row],[Cumulative revenue %]]<=INDEX(Table1[Break point],Table2[[#Headers],[1]:[6]]+1)),Table2[[#This Row],[Sub]],NA()) ->  | F106: =IF(AND(Table2[[#This Row],[Cumulative revenue %]]>INDEX(Table1[Break point],Table2[[#Headers],[1]:[6]]), Table2[[#This Row],[Cumulative revenue %]]<=INDEX(Table1[Break point],Table2[[#Headers],[1]:[6]]+1)),Table2[[#This Row],[Sub]],NA()) ->  | G106: =IF(AND(Table2[[#This Row],[Cumulative revenue %]]>INDEX(Table1[Break point],Table2[[#Headers],[1]:[6]]), Table2[[#This Row],[Cumulative revenue %]]<=INDEX(Table1[Break point],Table2[[#Headers],[1]:[6]]+1)),Table2[[#This Row],[Sub]],NA()) ->  | H106: =IF(AND(Table2[[#This Row],[Cumulative revenue %]]>INDEX(Table1[Break point],Table2[[#Headers],[1]:[6]]), Table2[[#This Row],[Cumulative revenue %]]<=INDEX(Table1[Break point],Table2[[#Headers],[1]:[6]]+1)),Table2[[#This Row],[Sub]],NA()) ->  | I106: =IF(AND(Table2[[#This Row],[Cumulative revenue %]]>INDEX(Table1[Break point],Table2[[#Headers],[1]:[6]]), Table2[[#This Row],[Cumulative revenue %]]<=INDEX(Table1[Break point],Table2[[#Headers],[1]:[6]]+1)),Table2[[#This Row],[Sub]],NA()) -> 1944.75 | J106: =IF(AND(Table2[[#This Row],[Cumulative revenue %]]>INDEX(Table1[Break point],Table2[[#Headers],[1]:[6]]), Table2[[#This Row],[Cumulative revenue %]]<=INDEX(Table1[Break point],Table2[[#Headers],[1]:[6]]+1)),Table2[[#This Row],[Sub]],NA()) -> 
A107: =ROW()-ROW(Table2[[#Headers],[Position]]) -> 106 | B107: 1943.78 | C107: 636771.798 | D107: =Table2[[#This Row],[Cumulative revenue]]/SUM(Table2[Sub]) -> 0.8352494255 | E107: =IF(AND(Table2[[#This Row],[Cumulative revenue %]]>INDEX(Table1[Break point],Table2[[#Headers],[1]:[6]]), Table2[[#This Row],[Cumulative revenue %]]<=INDEX(Table1[Break point],Table2[[#Headers],[1]:[6]]+1)),Table2[[#This Row],[Sub]],NA()) ->  | F107: =IF(AND(Table2[[#This Row],[Cumulative revenue %]]>INDEX(Table1[Break point],Table2[[#Headers],[1]:[6]]), Table2[[#This Row],[Cumulative revenue %]]<=INDEX(Table1[Break point],Table2[[#Headers],[1]:[6]]+1)),Table2[[#This Row],[Sub]],NA()) ->  | G107: =IF(AND(Table2[[#This Row],[Cumulative revenue %]]>INDEX(Table1[Break point],Table2[[#Headers],[1]:[6]]), Table2[[#This Row],[Cumulative revenue %]]<=INDEX(Table1[Break point],Table2[[#Headers],[1]:[6]]+1)),Table2[[#This Row],[Sub]],NA()) ->  | H107: =IF(AND(Table2[[#This Row],[Cumulative revenue %]]>INDEX(Table1[Break point],Table2[[#Headers],[1]:[6]]), Table2[[#This Row],[Cumulative revenue %]]<=INDEX(Table1[Break point],Table2[[#Headers],[1]:[6]]+1)),Table2[[#This Row],[Sub]],NA()) ->  | I107: =IF(AND(Table2[[#This Row],[Cumulative revenue %]]>INDEX(Table1[Break point],Table2[[#Headers],[1]:[6]]), Table2[[#This Row],[Cumulative revenue %]]<=INDEX(Table1[Break point],Table2[[#Headers],[1]:[6]]+1)),Table2[[#This Row],[Sub]],NA()) -> 1943.78 | J107: =IF(AND(Table2[[#This Row],[Cumulative revenue %]]>INDEX(Table1[Break point],Table2[[#Headers],[1]:[6]]), Table2[[#This Row],[Cumulative revenue %]]<=INDEX(Table1[Break point],Table2[[#Headers],[1]:[6]]+1)),Table2[[#This Row],[Sub]],NA()) -> 
A108: =ROW()-ROW(Table2[[#Headers],[Position]]) -> 107 | B108: 1939.78 | C108: 638711.578 | D108: =Table2[[#This Row],[Cumulative revenue]]/SUM(Table2[Sub]) -> 0.8377938223 | E108: =IF(AND(Table2[[#This Row],[Cumulative revenue %]]>INDEX(Table1[Break point],Table2[[#Headers],[1]:[6]]), Table2[[#This Row],[Cumulative revenue %]]<=INDEX(Table1[Break point],Table2[[#Headers],[1]:[6]]+1)),Table2[[#This Row],[Sub]],NA()) ->  | F108: =IF(AND(Table2[[#This Row],[Cumulative revenue %]]>INDEX(Table1[Break point],Table2[[#Headers],[1]:[6]]), Table2[[#This Row],[Cumulative revenue %]]<=INDEX(Table1[Break point],Table2[[#Headers],[1]:[6]]+1)),Table2[[#This Row],[Sub]],NA()) ->  | G108: =IF(AND(Table2[[#This Row],[Cumulative revenue %]]>INDEX(Table1[Break point],Table2[[#Headers],[1]:[6]]), Table2[[#This Row],[Cumulative revenue %]]<=INDEX(Table1[Break point],Table2[[#Headers],[1]:[6]]+1)),Table2[[#This Row],[Sub]],NA()) ->  | H108: =IF(AND(Table2[[#This Row],[Cumulative revenue %]]>INDEX(Table1[Break point],Table2[[#Headers],[1]:[6]]), Table2[[#This Row],[Cumulative revenue %]]<=INDEX(Table1[Break point],Table2[[#Headers],[1]:[6]]+1)),Table2[[#This Row],[Sub]],NA()) ->  | I108: =IF(AND(Table2[[#This Row],[Cumulative revenue %]]>INDEX(Table1[Break point],Table2[[#Headers],[1]:[6]]), Table2[[#This Row],[Cumulative revenue %]]<=INDEX(Table1[Break point],Table2[[#Headers],[1]:[6]]+1)),Table2[[#This Row],[Sub]],NA()) -> 1939.78 | J108: =IF(AND(Table2[[#This Row],[Cumulative revenue %]]>INDEX(Table1[Break point],Table2[[#Headers],[1]:[6]]), Table2[[#This Row],[Cumulative revenue %]]<=INDEX(Table1[Break point],Table2[[#Headers],[1]:[6]]+1)),Table2[[#This Row],[Sub]],NA()) -> 
A109: =ROW()-ROW(Table2[[#Headers],[Position]]) -> 108 | B109: 1878.96 | C109: 640590.538 | D109: =Table2[[#This Row],[Cumulative revenue]]/SUM(Table2[Sub]) -> 0.8402584419 | E109: =IF(AND(Table2[[#This Row],[Cumulative revenue %]]>INDEX(Table1[Break point],Table2[[#Headers],[1]:[6]]), Table2[[#This Row],[Cumulative revenue %]]<=INDEX(Table1[Break point],Table2[[#Headers],[1]:[6]]+1)),Table2[[#This Row],[Sub]],NA()) ->  | F109: =IF(AND(Table2[[#This Row],[Cumulative revenue %]]>INDEX(Table1[Break point],Table2[[#Headers],[1]:[6]]), Table2[[#This Row],[Cumulative revenue %]]<=INDEX(Table1[Break point],Table2[[#Headers],[1]:[6]]+1)),Table2[[#This Row],[Sub]],NA()) ->  | G109: =IF(AND(Table2[[#This Row],[Cumulative revenue %]]>INDEX(Table1[Break point],Table2[[#Headers],[1]:[6]]), Table2[[#This Row],[Cumulative revenue %]]<=INDEX(Table1[Break point],Table2[[#Headers],[1]:[6]]+1)),Table2[[#This Row],[Sub]],NA()) ->  | H109: =IF(AND(Table2[[#This Row],[Cumulative revenue %]]>INDEX(Table1[Break point],Table2[[#Headers],[1]:[6]]), Table2[[#This Row],[Cumulative revenue %]]<=INDEX(Table1[Break point],Table2[[#Headers],[1]:[6]]+1)),Table2[[#This Row],[Sub]],NA()) ->  | I109: =IF(AND(Table2[[#This Row],[Cumulative revenue %]]>INDEX(Table1[Break point],Table2[[#Headers],[1]:[6]]), Table2[[#This Row],[Cumulative revenue %]]<=INDEX(Table1[Break point],Table2[[#Headers],[1]:[6]]+1)),Table2[[#This Row],[Sub]],NA()) -> 1878.96 | J109: =IF(AND(Table2[[#This Row],[Cumulative revenue %]]>INDEX(Table1[Break point],Table2[[#Headers],[1]:[6]]), Table2[[#This Row],[Cumulative revenue %]]<=INDEX(Table1[Break point],Table2[[#Headers],[1]:[6]]+1)),Table2[[#This Row],[Sub]],NA()) -> 
A110: =ROW()-ROW(Table2[[#Headers],[Position]]) -> 109 | B110: 1857.25 | C110: 642447.788 | D110: =Table2[[#This Row],[Cumulative revenue]]/SUM(Table2[Sub]) -> 0.8426945846 | E110: =IF(AND(Table2[[#This Row],[Cumulative revenue %]]>INDEX(Table1[Break point],Table2[[#Headers],[1]:[6]]), Table2[[#This Row],[Cumulative revenue %]]<=INDEX(Table1[Break point],Table2[[#Headers],[1]:[6]]+1)),Table2[[#This Row],[Sub]],NA()) ->  | F110: =IF(AND(Table2[[#This Row],[Cumulative revenue %]]>INDEX(Table1[Break point],Table2[[#Headers],[1]:[6]]), Table2[[#This Row],[Cumulative revenue %]]<=INDEX(Table1[Break point],Table2[[#Headers],[1]:[6]]+1)),Table2[[#This Row],[Sub]],NA()) ->  | G110: =IF(AND(Table2[[#This Row],[Cumulative revenue %]]>INDEX(Table1[Break point],Table2[[#Headers],[1]:[6]]), Table2[[#This Row],[Cumulative revenue %]]<=INDEX(Table1[Break point],Table2[[#Headers],[1]:[6]]+1)),Table2[[#This Row],[Sub]],NA()) ->  | H110: =IF(AND(Table2[[#This Row],[Cumulative revenue %]]>INDEX(Table1[Break point],Table2[[#Headers],[1]:[6]]), Table2[[#This Row],[Cumulative revenue %]]<=INDEX(Table1[Break point],Table2[[#Headers],[1]:[6]]+1)),Table2[[#This Row],[Sub]],NA()) ->  | I110: =IF(AND(Table2[[#This Row],[Cumulative revenue %]]>INDEX(Table1[Break point],Table2[[#Headers],[1]:[6]]), Table2[[#This Row],[Cumulative revenue %]]<=INDEX(Table1[Break point],Table2[[#Headers],[1]:[6]]+1)),Table2[[#This Row],[Sub]],NA()) -> 1857.25 | J110: =IF(AND(Table2[[#This Row],[Cumulative revenue %]]>INDEX(Table1[Break point],Table2[[#Headers],[1]:[6]]), Table2[[#This Row],[Cumulative revenue %]]<=INDEX(Table1[Break point],Table2[[#Headers],[1]:[6]]+1)),Table2[[#This Row],[Sub]],NA()) -> 
A111: =ROW()-ROW(Table2[[#Headers],[Position]]) -> 110 | B111: 1850.63 | C111: 644298.418 | D111: =Table2[[#This Row],[Cumulative revenue]]/SUM(Table2[Sub]) -> 0.845122044 | E111: =IF(AND(Table2[[#This Row],[Cumulative revenue %]]>INDEX(Table1[Break point],Table2[[#Headers],[1]:[6]]), Table2[[#This Row],[Cumulative revenue %]]<=INDEX(Table1[Break point],Table2[[#Headers],[1]:[6]]+1)),Table2[[#This Row],[Sub]],NA()) ->  | F111: =IF(AND(Table2[[#This Row],[Cumulative revenue %]]>INDEX(Table1[Break point],Table2[[#Headers],[1]:[6]]), Table2[[#This Row],[Cumulative revenue %]]<=INDEX(Table1[Break point],Table2[[#Headers],[1]:[6]]+1)),Table2[[#This Row],[Sub]],NA()) ->  | G111: =IF(AND(Table2[[#This Row],[Cumulative revenue %]]>INDEX(Table1[Break point],Table2[[#Headers],[1]:[6]]), Table2[[#This Row],[Cumulative revenue %]]<=INDEX(Table1[Break point],Table2[[#Headers],[1]:[6]]+1)),Table2[[#This Row],[Sub]],NA()) ->  | H111: =IF(AND(Table2[[#This Row],[Cumulative revenue %]]>INDEX(Table1[Break point],Table2[[#Headers],[1]:[6]]), Table2[[#This Row],[Cumulative revenue %]]<=INDEX(Table1[Break point],Table2[[#Headers],[1]:[6]]+1)),Table2[[#This Row],[Sub]],NA()) ->  | I111: =IF(AND(Table2[[#This Row],[Cumulative revenue %]]>INDEX(Table1[Break point],Table2[[#Headers],[1]:[6]]), Table2[[#This Row],[Cumulative revenue %]]<=INDEX(Table1[Break point],Table2[[#Headers],[1]:[6]]+1)),Table2[[#This Row],[Sub]],NA()) -> 1850.63 | J111: =IF(AND(Table2[[#This Row],[Cumulative revenue %]]>INDEX(Table1[Break point],Table2[[#Headers],[1]:[6]]), Table2[[#This Row],[Cumulative revenue %]]<=INDEX(Table1[Break point],Table2[[#Headers],[1]:[6]]+1)),Table2[[#This Row],[Sub]],NA()) -> 
A112: =ROW()-ROW(Table2[[#Headers],[Position]]) -> 111 | B112: 1819.93 | C112: 646118.348 | D112: =Table2[[#This Row],[Cumulative revenue]]/SUM(Table2[Sub]) -> 0.8475092343 | E112: =IF(AND(Table2[[#This Row],[Cumulative revenue %]]>INDEX(Table1[Break point],Table2[[#Headers],[1]:[6]]), Table2[[#This Row],[Cumulative revenue %]]<=INDEX(Table1[Break point],Table2[[#Headers],[1]:[6]]+1)),Table2[[#This Row],[Sub]],NA()) ->  | F112: =IF(AND(Table2[[#This Row],[Cumulative revenue %]]>INDEX(Table1[Break point],Table2[[#Headers],[1]:[6]]), Table2[[#This Row],[Cumulative revenue %]]<=INDEX(Table1[Break point],Table2[[#Headers],[1]:[6]]+1)),Table2[[#This Row],[Sub]],NA()) ->  | G112: =IF(AND(Table2[[#This Row],[Cumulative revenue %]]>INDEX(Table1[Break point],Table2[[#Headers],[1]:[6]]), Table2[[#This Row],[Cumulative revenue %]]<=INDEX(Table1[Break point],Table2[[#Headers],[1]:[6]]+1)),Table2[[#This Row],[Sub]],NA()) ->  | H112: =IF(AND(Table2[[#This Row],[Cumulative revenue %]]>INDEX(Table1[Break point],Table2[[#Headers],[1]:[6]]), Table2[[#This Row],[Cumulative revenue %]]<=INDEX(Table1[Break point],Table2[[#Headers],[1]:[6]]+1)),Table2[[#This Row],[Sub]],NA()) ->  | I112: =IF(AND(Table2[[#This Row],[Cumulative revenue %]]>INDEX(Table1[Break point],Table2[[#Headers],[1]:[6]]), Table2[[#This Row],[Cumulative revenue %]]<=INDEX(Table1[Break point],Table2[[#Headers],[1]:[6]]+1)),Table2[[#This Row],[Sub]],NA()) -> 1819.93 | J112: =IF(AND(Table2[[#This Row],[Cumulative revenue %]]>INDEX(Table1[Break point],Table2[[#Headers],[1]:[6]]), Table2[[#This Row],[Cumulative revenue %]]<=INDEX(Table1[Break point],Table2[[#Headers],[1]:[6]]+1)),Table2[[#This Row],[Sub]],NA()) -> 
A113: =ROW()-ROW(Table2[[#Headers],[Position]]) -> 112 | B113: 1788.4 | C113: 647906.748 | D113: =Table2[[#This Row],[Cumulative revenue]]/SUM(Table2[Sub]) -> 0.8498550669 | E113: =IF(AND(Table2[[#This Row],[Cumulative revenue %]]>INDEX(Table1[Break point],Table2[[#Headers],[1]:[6]]), Table2[[#This Row],[Cumulative revenue %]]<=INDEX(Table1[Break point],Table2[[#Headers],[1]:[6]]+1)),Table2[[#This Row],[Sub]],NA()) ->  | F113: =IF(AND(Table2[[#This Row],[Cumulative revenue %]]>INDEX(Table1[Break point],Table2[[#Headers],[1]:[6]]), Table2[[#This Row],[Cumulative revenue %]]<=INDEX(Table1[Break point],Table2[[#Headers],[1]:[6]]+1)),Table2[[#This Row],[Sub]],NA()) ->  | G113: =IF(AND(Table2[[#This Row],[Cumulative revenue %]]>INDEX(Table1[Break point],Table2[[#Headers],[1]:[6]]), Table2[[#This Row],[Cumulative revenue %]]<=INDEX(Table1[Break point],Table2[[#Headers],[1]:[6]]+1)),Table2[[#This Row],[Sub]],NA()) ->  | H113: =IF(AND(Table2[[#This Row],[Cumulative revenue %]]>INDEX(Table1[Break point],Table2[[#Headers],[1]:[6]]), Table2[[#This Row],[Cumulative revenue %]]<=INDEX(Table1[Break point],Table2[[#Headers],[1]:[6]]+1)),Table2[[#This Row],[Sub]],NA()) ->  | I113: =IF(AND(Table2[[#This Row],[Cumulative revenue %]]>INDEX(Table1[Break point],Table2[[#Headers],[1]:[6]]), Table2[[#This Row],[Cumulative revenue %]]<=INDEX(Table1[Break point],Table2[[#Headers],[1]:[6]]+1)),Table2[[#This Row],[Sub]],NA()) -> 1788.4 | J113: =IF(AND(Table2[[#This Row],[Cumulative revenue %]]>INDEX(Table1[Break point],Table2[[#Headers],[1]:[6]]), Table2[[#This Row],[Cumulative revenue %]]<=INDEX(Table1[Break point],Table2[[#Headers],[1]:[6]]+1)),Table2[[#This Row],[Sub]],NA()) -> 
A114: =ROW()-ROW(Table2[[#Headers],[Position]]) -> 113 | B114: 1726.5 | C114: 649633.248 | D114: =Table2[[#This Row],[Cumulative revenue]]/SUM(Table2[Sub]) -> 0.8521197058 | E114: =IF(AND(Table2[[#This Row],[Cumulative revenue %]]>INDEX(Table1[Break point],Table2[[#Headers],[1]:[6]]), Table2[[#This Row],[Cumulative revenue %]]<=INDEX(Table1[Break point],Table2[[#Headers],[1]:[6]]+1)),Table2[[#This Row],[Sub]],NA()) ->  | F114: =IF(AND(Table2[[#This Row],[Cumulative revenue %]]>INDEX(Table1[Break point],Table2[[#Headers],[1]:[6]]), Table2[[#This Row],[Cumulative revenue %]]<=INDEX(Table1[Break point],Table2[[#Headers],[1]:[6]]+1)),Table2[[#This Row],[Sub]],NA()) ->  | G114: =IF(AND(Table2[[#This Row],[Cumulative revenue %]]>INDEX(Table1[Break point],Table2[[#Headers],[1]:[6]]), Table2[[#This Row],[Cumulative revenue %]]<=INDEX(Table1[Break point],Table2[[#Headers],[1]:[6]]+1)),Table2[[#This Row],[Sub]],NA()) ->  | H114: =IF(AND(Table2[[#This Row],[Cumulative revenue %]]>INDEX(Table1[Break point],Table2[[#Headers],[1]:[6]]), Table2[[#This Row],[Cumulative revenue %]]<=INDEX(Table1[Break point],Table2[[#Headers],[1]:[6]]+1)),Table2[[#This Row],[Sub]],NA()) ->  | I114: =IF(AND(Table2[[#This Row],[Cumulative revenue %]]>INDEX(Table1[Break point],Table2[[#Headers],[1]:[6]]), Table2[[#This Row],[Cumulative revenue %]]<=INDEX(Table1[Break point],Table2[[#Headers],[1]:[6]]+1)),Table2[[#This Row],[Sub]],NA()) -> 1726.5 | J114: =IF(AND(Table2[[#This Row],[Cumulative revenue %]]>INDEX(Table1[Break point],Table2[[#Headers],[1]:[6]]), Table2[[#This Row],[Cumulative revenue %]]<=INDEX(Table1[Break point],Table2[[#Headers],[1]:[6]]+1)),Table2[[#This Row],[Sub]],NA()) -> 
A115: =ROW()-ROW(Table2[[#Headers],[Position]]) -> 114 | B115: 1681.57 | C115: 651314.818 | D115: =Table2[[#This Row],[Cumulative revenue]]/SUM(Table2[Sub]) -> 0.8543254102 | E115: =IF(AND(Table2[[#This Row],[Cumulative revenue %]]>INDEX(Table1[Break point],Table2[[#Headers],[1]:[6]]), Table2[[#This Row],[Cumulative revenue %]]<=INDEX(Table1[Break point],Table2[[#Headers],[1]:[6]]+1)),Table2[[#This Row],[Sub]],NA()) ->  | F115: =IF(AND(Table2[[#This Row],[Cumulative revenue %]]>INDEX(Table1[Break point],Table2[[#Headers],[1]:[6]]), Table2[[#This Row],[Cumulative revenue %]]<=INDEX(Table1[Break point],Table2[[#Headers],[1]:[6]]+1)),Table2[[#This Row],[Sub]],NA()) ->  | G115: =IF(AND(Table2[[#This Row],[Cumulative revenue %]]>INDEX(Table1[Break point],Table2[[#Headers],[1]:[6]]), Table2[[#This Row],[Cumulative revenue %]]<=INDEX(Table1[Break point],Table2[[#Headers],[1]:[6]]+1)),Table2[[#This Row],[Sub]],NA()) ->  | H115: =IF(AND(Table2[[#This Row],[Cumulative revenue %]]>INDEX(Table1[Break point],Table2[[#Headers],[1]:[6]]), Table2[[#This Row],[Cumulative revenue %]]<=INDEX(Table1[Break point],Table2[[#Headers],[1]:[6]]+1)),Table2[[#This Row],[Sub]],NA()) ->  | I115: =IF(AND(Table2[[#This Row],[Cumulative revenue %]]>INDEX(Table1[Break point],Table2[[#Headers],[1]:[6]]), Table2[[#This Row],[Cumulative revenue %]]<=INDEX(Table1[Break point],Table2[[#Headers],[1]:[6]]+1)),Table2[[#This Row],[Sub]],NA()) -> 1681.57 | J115: =IF(AND(Table2[[#This Row],[Cumulative revenue %]]>INDEX(Table1[Break point],Table2[[#Headers],[1]:[6]]), Table2[[#This Row],[Cumulative revenue %]]<=INDEX(Table1[Break point],Table2[[#Headers],[1]:[6]]+1)),Table2[[#This Row],[Sub]],NA()) -> 
A116: =ROW()-ROW(Table2[[#Headers],[Position]]) -> 115 | B116: 1678.75 | C116: 652993.568 | D116: =Table2[[#This Row],[Cumulative revenue]]/SUM(Table2[Sub]) -> 0.8565274157 | E116: =IF(AND(Table2[[#This Row],[Cumulative revenue %]]>INDEX(Table1[Break point],Table2[[#Headers],[1]:[6]]), Table2[[#This Row],[Cumulative revenue %]]<=INDEX(Table1[Break point],Table2[[#Headers],[1]:[6]]+1)),Table2[[#This Row],[Sub]],NA()) ->  | F116: =IF(AND(Table2[[#This Row],[Cumulative revenue %]]>INDEX(Table1[Break point],Table2[[#Headers],[1]:[6]]), Table2[[#This Row],[Cumulative revenue %]]<=INDEX(Table1[Break point],Table2[[#Headers],[1]:[6]]+1)),Table2[[#This Row],[Sub]],NA()) ->  | G116: =IF(AND(Table2[[#This Row],[Cumulative revenue %]]>INDEX(Table1[Break point],Table2[[#Headers],[1]:[6]]), Table2[[#This Row],[Cumulative revenue %]]<=INDEX(Table1[Break point],Table2[[#Headers],[1]:[6]]+1)),Table2[[#This Row],[Sub]],NA()) ->  | H116: =IF(AND(Table2[[#This Row],[Cumulative revenue %]]>INDEX(Table1[Break point],Table2[[#Headers],[1]:[6]]), Table2[[#This Row],[Cumulative revenue %]]<=INDEX(Table1[Break point],Table2[[#Headers],[1]:[6]]+1)),Table2[[#This Row],[Sub]],NA()) ->  | I116: =IF(AND(Table2[[#This Row],[Cumulative revenue %]]>INDEX(Table1[Break point],Table2[[#Headers],[1]:[6]]), Table2[[#This Row],[Cumulative revenue %]]<=INDEX(Table1[Break point],Table2[[#Headers],[1]:[6]]+1)),Table2[[#This Row],[Sub]],NA()) -> 1678.75 | J116: =IF(AND(Table2[[#This Row],[Cumulative revenue %]]>INDEX(Table1[Break point],Table2[[#Headers],[1]:[6]]), Table2[[#This Row],[Cumulative revenue %]]<=INDEX(Table1[Break point],Table2[[#Headers],[1]:[6]]+1)),Table2[[#This Row],[Sub]],NA()) -> 
A117: =ROW()-ROW(Table2[[#Headers],[Position]]) -> 116 | B117: 1646.53 | C117: 654640.098 | D117: =Table2[[#This Row],[Cumulative revenue]]/SUM(Table2[Sub]) -> 0.8586871583 | E117: =IF(AND(Table2[[#This Row],[Cumulative revenue %]]>INDEX(Table1[Break point],Table2[[#Headers],[1]:[6]]), Table2[[#This Row],[Cumulative revenue %]]<=INDEX(Table1[Break point],Table2[[#Headers],[1]:[6]]+1)),Table2[[#This Row],[Sub]],NA()) ->  | F117: =IF(AND(Table2[[#This Row],[Cumulative revenue %]]>INDEX(Table1[Break point],Table2[[#Headers],[1]:[6]]), Table2[[#This Row],[Cumulative revenue %]]<=INDEX(Table1[Break point],Table2[[#Headers],[1]:[6]]+1)),Table2[[#This Row],[Sub]],NA()) ->  | G117: =IF(AND(Table2[[#This Row],[Cumulative revenue %]]>INDEX(Table1[Break point],Table2[[#Headers],[1]:[6]]), Table2[[#This Row],[Cumulative revenue %]]<=INDEX(Table1[Break point],Table2[[#Headers],[1]:[6]]+1)),Table2[[#This Row],[Sub]],NA()) ->  | H117: =IF(AND(Table2[[#This Row],[Cumulative revenue %]]>INDEX(Table1[Break point],Table2[[#Headers],[1]:[6]]), Table2[[#This Row],[Cumulative revenue %]]<=INDEX(Table1[Break point],Table2[[#Headers],[1]:[6]]+1)),Table2[[#This Row],[Sub]],NA()) ->  | I117: =IF(AND(Table2[[#This Row],[Cumulative revenue %]]>INDEX(Table1[Break point],Table2[[#Headers],[1]:[6]]), Table2[[#This Row],[Cumulative revenue %]]<=INDEX(Table1[Break point],Table2[[#Headers],[1]:[6]]+1)),Table2[[#This Row],[Sub]],NA()) -> 1646.53 | J117: =IF(AND(Table2[[#This Row],[Cumulative revenue %]]>INDEX(Table1[Break point],Table2[[#Headers],[1]:[6]]), Table2[[#This Row],[Cumulative revenue %]]<=INDEX(Table1[Break point],Table2[[#Headers],[1]:[6]]+1)),Table2[[#This Row],[Sub]],NA()) -> 
A118: =ROW()-ROW(Table2[[#Headers],[Position]]) -> 117 | B118: 1639.25 | C118: 656279.348 | D118: =Table2[[#This Row],[Cumulative revenue]]/SUM(Table2[Sub]) -> 0.8608373519 | E118: =IF(AND(Table2[[#This Row],[Cumulative revenue %]]>INDEX(Table1[Break point],Table2[[#Headers],[1]:[6]]), Table2[[#This Row],[Cumulative revenue %]]<=INDEX(Table1[Break point],Table2[[#Headers],[1]:[6]]+1)),Table2[[#This Row],[Sub]],NA()) ->  | F118: =IF(AND(Table2[[#This Row],[Cumulative revenue %]]>INDEX(Table1[Break point],Table2[[#Headers],[1]:[6]]), Table2[[#This Row],[Cumulative revenue %]]<=INDEX(Table1[Break point],Table2[[#Headers],[1]:[6]]+1)),Table2[[#This Row],[Sub]],NA()) ->  | G118: =IF(AND(Table2[[#This Row],[Cumulative revenue %]]>INDEX(Table1[Break point],Table2[[#Headers],[1]:[6]]), Table2[[#This Row],[Cumulative revenue %]]<=INDEX(Table1[Break point],Table2[[#Headers],[1]:[6]]+1)),Table2[[#This Row],[Sub]],NA()) ->  | H118: =IF(AND(Table2[[#This Row],[Cumulative revenue %]]>INDEX(Table1[Break point],Table2[[#Headers],[1]:[6]]), Table2[[#This Row],[Cumulative revenue %]]<=INDEX(Table1[Break point],Table2[[#Headers],[1]:[6]]+1)),Table2[[#This Row],[Sub]],NA()) ->  | I118: =IF(AND(Table2[[#This Row],[Cumulative revenue %]]>INDEX(Table1[Break point],Table2[[#Headers],[1]:[6]]), Table2[[#This Row],[Cumulative revenue %]]<=INDEX(Table1[Break point],Table2[[#Headers],[1]:[6]]+1)),Table2[[#This Row],[Sub]],NA()) -> 1639.25 | J118: =IF(AND(Table2[[#This Row],[Cumulative revenue %]]>INDEX(Table1[Break point],Table2[[#Headers],[1]:[6]]), Table2[[#This Row],[Cumulative revenue %]]<=INDEX(Table1[Break point],Table2[[#Headers],[1]:[6]]+1)),Table2[[#This Row],[Sub]],NA()) -> 
A119: =ROW()-ROW(Table2[[#Headers],[Position]]) -> 118 | B119: 1639.25 | C119: 657918.598 | D119: =Table2[[#This Row],[Cumulative revenue]]/SUM(Table2[Sub]) -> 0.8629875455 | E119: =IF(AND(Table2[[#This Row],[Cumulative revenue %]]>INDEX(Table1[Break point],Table2[[#Headers],[1]:[6]]), Table2[[#This Row],[Cumulative revenue %]]<=INDEX(Table1[Break point],Table2[[#Headers],[1]:[6]]+1)),Table2[[#This Row],[Sub]],NA()) ->  | F119: =IF(AND(Table2[[#This Row],[Cumulative revenue %]]>INDEX(Table1[Break point],Table2[[#Headers],[1]:[6]]), Table2[[#This Row],[Cumulative revenue %]]<=INDEX(Table1[Break point],Table2[[#Headers],[1]:[6]]+1)),Table2[[#This Row],[Sub]],NA()) ->  | G119: =IF(AND(Table2[[#This Row],[Cumulative revenue %]]>INDEX(Table1[Break point],Table2[[#Headers],[1]:[6]]), Table2[[#This Row],[Cumulative revenue %]]<=INDEX(Table1[Break point],Table2[[#Headers],[1]:[6]]+1)),Table2[[#This Row],[Sub]],NA()) ->  | H119: =IF(AND(Table2[[#This Row],[Cumulative revenue %]]>INDEX(Table1[Break point],Table2[[#Headers],[1]:[6]]), Table2[[#This Row],[Cumulative revenue %]]<=INDEX(Table1[Break point],Table2[[#Headers],[1]:[6]]+1)),Table2[[#This Row],[Sub]],NA()) ->  | I119: =IF(AND(Table2[[#This Row],[Cumulative revenue %]]>INDEX(Table1[Break point],Table2[[#Headers],[1]:[6]]), Table2[[#This Row],[Cumulative revenue %]]<=INDEX(Table1[Break point],Table2[[#Headers],[1]:[6]]+1)),Table2[[#This Row],[Sub]],NA()) -> 1639.25 | J119: =IF(AND(Table2[[#This Row],[Cumulative revenue %]]>INDEX(Table1[Break point],Table2[[#Headers],[1]:[6]]), Table2[[#This Row],[Cumulative revenue %]]<=INDEX(Table1[Break point],Table2[[#Headers],[1]:[6]]+1)),Table2[[#This Row],[Sub]],NA()) -> 
A120: =ROW()-ROW(Table2[[#Headers],[Position]]) -> 119 | B120: 1580 | C120: 659498.598 | D120: =Table2[[#This Row],[Cumulative revenue]]/SUM(Table2[Sub]) -> 0.8650600212 | E120: =IF(AND(Table2[[#This Row],[Cumulative revenue %]]>INDEX(Table1[Break point],Table2[[#Headers],[1]:[6]]), Table2[[#This Row],[Cumulative revenue %]]<=INDEX(Table1[Break point],Table2[[#Headers],[1]:[6]]+1)),Table2[[#This Row],[Sub]],NA()) ->  | F120: =IF(AND(Table2[[#This Row],[Cumulative revenue %]]>INDEX(Table1[Break point],Table2[[#Headers],[1]:[6]]), Table2[[#This Row],[Cumulative revenue %]]<=INDEX(Table1[Break point],Table2[[#Headers],[1]:[6]]+1)),Table2[[#This Row],[Sub]],NA()) ->  | G120: =IF(AND(Table2[[#This Row],[Cumulative revenue %]]>INDEX(Table1[Break point],Table2[[#Headers],[1]:[6]]), Table2[[#This Row],[Cumulative revenue %]]<=INDEX(Table1[Break point],Table2[[#Headers],[1]:[6]]+1)),Table2[[#This Row],[Sub]],NA()) ->  | H120: =IF(AND(Table2[[#This Row],[Cumulative revenue %]]>INDEX(Table1[Break point],Table2[[#Headers],[1]:[6]]), Table2[[#This Row],[Cumulative revenue %]]<=INDEX(Table1[Break point],Table2[[#Headers],[1]:[6]]+1)),Table2[[#This Row],[Sub]],NA()) ->  | I120: =IF(AND(Table2[[#This Row],[Cumulative revenue %]]>INDEX(Table1[Break point],Table2[[#Headers],[1]:[6]]), Table2[[#This Row],[Cumulative revenue %]]<=INDEX(Table1[Break point],Table2[[#Headers],[1]:[6]]+1)),Table2[[#This Row],[Sub]],NA()) -> 1580 | J120: =IF(AND(Table2[[#This Row],[Cumulative revenue %]]>INDEX(Table1[Break point],Table2[[#Headers],[1]:[6]]), Table2[[#This Row],[Cumulative revenue %]]<=INDEX(Table1[Break point],Table2[[#Headers],[1]:[6]]+1)),Table2[[#This Row],[Sub]],NA()) -> 
A121: =ROW()-ROW(Table2[[#Headers],[Position]]) -> 120 | B121: 1566.94 | C121: 661065.538 | D121: =Table2[[#This Row],[Cumulative revenue]]/SUM(Table2[Sub]) -> 0.8671153662 | E121: =IF(AND(Table2[[#This Row],[Cumulative revenue %]]>INDEX(Table1[Break point],Table2[[#Headers],[1]:[6]]), Table2[[#This Row],[Cumulative revenue %]]<=INDEX(Table1[Break point],Table2[[#Headers],[1]:[6]]+1)),Table2[[#This Row],[Sub]],NA()) ->  | F121: =IF(AND(Table2[[#This Row],[Cumulative revenue %]]>INDEX(Table1[Break point],Table2[[#Headers],[1]:[6]]), Table2[[#This Row],[Cumulative revenue %]]<=INDEX(Table1[Break point],Table2[[#Headers],[1]:[6]]+1)),Table2[[#This Row],[Sub]],NA()) ->  | G121: =IF(AND(Table2[[#This Row],[Cumulative revenue %]]>INDEX(Table1[Break point],Table2[[#Headers],[1]:[6]]), Table2[[#This Row],[Cumulative revenue %]]<=INDEX(Table1[Break point],Table2[[#Headers],[1]:[6]]+1)),Table2[[#This Row],[Sub]],NA()) ->  | H121: =IF(AND(Table2[[#This Row],[Cumulative revenue %]]>INDEX(Table1[Break point],Table2[[#Headers],[1]:[6]]), Table2[[#This Row],[Cumulative revenue %]]<=INDEX(Table1[Break point],Table2[[#Headers],[1]:[6]]+1)),Table2[[#This Row],[Sub]],NA()) ->  | I121: =IF(AND(Table2[[#This Row],[Cumulative revenue %]]>INDEX(Table1[Break point],Table2[[#Headers],[1]:[6]]), Table2[[#This Row],[Cumulative revenue %]]<=INDEX(Table1[Break point],Table2[[#Headers],[1]:[6]]+1)),Table2[[#This Row],[Sub]],NA()) -> 1566.94 | J121: =IF(AND(Table2[[#This Row],[Cumulative revenue %]]>INDEX(Table1[Break point],Table2[[#Headers],[1]:[6]]), Table2[[#This Row],[Cumulative revenue %]]<=INDEX(Table1[Break point],Table2[[#Headers],[1]:[6]]+1)),Table2[[#This Row],[Sub]],NA()) -> 
A122: =ROW()-ROW(Table2[[#Headers],[Position]]) -> 121 | B122: 1520.75 | C122: 662586.288 | D122: =Table2[[#This Row],[Cumulative revenue]]/SUM(Table2[Sub]) -> 0.8691101241 | E122: =IF(AND(Table2[[#This Row],[Cumulative revenue %]]>INDEX(Table1[Break point],Table2[[#Headers],[1]:[6]]), Table2[[#This Row],[Cumulative revenue %]]<=INDEX(Table1[Break point],Table2[[#Headers],[1]:[6]]+1)),Table2[[#This Row],[Sub]],NA()) ->  | F122: =IF(AND(Table2[[#This Row],[Cumulative revenue %]]>INDEX(Table1[Break point],Table2[[#Headers],[1]:[6]]), Table2[[#This Row],[Cumulative revenue %]]<=INDEX(Table1[Break point],Table2[[#Headers],[1]:[6]]+1)),Table2[[#This Row],[Sub]],NA()) ->  | G122: =IF(AND(Table2[[#This Row],[Cumulative revenue %]]>INDEX(Table1[Break point],Table2[[#Headers],[1]:[6]]), Table2[[#This Row],[Cumulative revenue %]]<=INDEX(Table1[Break point],Table2[[#Headers],[1]:[6]]+1)),Table2[[#This Row],[Sub]],NA()) ->  | H122: =IF(AND(Table2[[#This Row],[Cumulative revenue %]]>INDEX(Table1[Break point],Table2[[#Headers],[1]:[6]]), Table2[[#This Row],[Cumulative revenue %]]<=INDEX(Table1[Break point],Table2[[#Headers],[1]:[6]]+1)),Table2[[#This Row],[Sub]],NA()) ->  | I122: =IF(AND(Table2[[#This Row],[Cumulative revenue %]]>INDEX(Table1[Break point],Table2[[#Headers],[1]:[6]]), Table2[[#This Row],[Cumulative revenue %]]<=INDEX(Table1[Break point],Table2[[#Headers],[1]:[6]]+1)),Table2[[#This Row],[Sub]],NA()) -> 1520.75 | J122: =IF(AND(Table2[[#This Row],[Cumulative revenue %]]>INDEX(Table1[Break point],Table2[[#Headers],[1]:[6]]), Table2[[#This Row],[Cumulative revenue %]]<=INDEX(Table1[Break point],Table2[[#Headers],[1]:[6]]+1)),Table2[[#This Row],[Sub]],NA()) -> 
A123: =ROW()-ROW(Table2[[#Headers],[Position]]) -> 122 | B123: 1520.75 | C123: 664107.038 | D123: =Table2[[#This Row],[Cumulative revenue]]/SUM(Table2[Sub]) -> 0.871104882 | E123: =IF(AND(Table2[[#This Row],[Cumulative revenue %]]>INDEX(Table1[Break point],Table2[[#Headers],[1]:[6]]), Table2[[#This Row],[Cumulative revenue %]]<=INDEX(Table1[Break point],Table2[[#Headers],[1]:[6]]+1)),Table2[[#This Row],[Sub]],NA()) ->  | F123: =IF(AND(Table2[[#This Row],[Cumulative revenue %]]>INDEX(Table1[Break point],Table2[[#Headers],[1]:[6]]), Table2[[#This Row],[Cumulative revenue %]]<=INDEX(Table1[Break point],Table2[[#Headers],[1]:[6]]+1)),Table2[[#This Row],[Sub]],NA()) ->  | G123: =IF(AND(Table2[[#This Row],[Cumulative revenue %]]>INDEX(Table1[Break point],Table2[[#Headers],[1]:[6]]), Table2[[#This Row],[Cumulative revenue %]]<=INDEX(Table1[Break point],Table2[[#Headers],[1]:[6]]+1)),Table2[[#This Row],[Sub]],NA()) ->  | H123: =IF(AND(Table2[[#This Row],[Cumulative revenue %]]>INDEX(Table1[Break point],Table2[[#Headers],[1]:[6]]), Table2[[#This Row],[Cumulative revenue %]]<=INDEX(Table1[Break point],Table2[[#Headers],[1]:[6]]+1)),Table2[[#This Row],[Sub]],NA()) ->  | I123: =IF(AND(Table2[[#This Row],[Cumulative revenue %]]>INDEX(Table1[Break point],Table2[[#Headers],[1]:[6]]), Table2[[#This Row],[Cumulative revenue %]]<=INDEX(Table1[Break point],Table2[[#Headers],[1]:[6]]+1)),Table2[[#This Row],[Sub]],NA()) -> 1520.75 | J123: =IF(AND(Table2[[#This Row],[Cumulative revenue %]]>INDEX(Table1[Break point],Table2[[#Headers],[1]:[6]]), Table2[[#This Row],[Cumulative revenue %]]<=INDEX(Table1[Break point],Table2[[#Headers],[1]:[6]]+1)),Table2[[#This Row],[Sub]],NA()) -> 
A124: =ROW()-ROW(Table2[[#Headers],[Position]]) -> 123 | B124: 1492.82 | C124: 665599.858 | D124: =Table2[[#This Row],[Cumulative revenue]]/SUM(Table2[Sub]) -> 0.8730630042 | E124: =IF(AND(Table2[[#This Row],[Cumulative revenue %]]>INDEX(Table1[Break point],Table2[[#Headers],[1]:[6]]), Table2[[#This Row],[Cumulative revenue %]]<=INDEX(Table1[Break point],Table2[[#Headers],[1]:[6]]+1)),Table2[[#This Row],[Sub]],NA()) ->  | F124: =IF(AND(Table2[[#This Row],[Cumulative revenue %]]>INDEX(Table1[Break point],Table2[[#Headers],[1]:[6]]), Table2[[#This Row],[Cumulative revenue %]]<=INDEX(Table1[Break point],Table2[[#Headers],[1]:[6]]+1)),Table2[[#This Row],[Sub]],NA()) ->  | G124: =IF(AND(Table2[[#This Row],[Cumulative revenue %]]>INDEX(Table1[Break point],Table2[[#Headers],[1]:[6]]), Table2[[#This Row],[Cumulative revenue %]]<=INDEX(Table1[Break point],Table2[[#Headers],[1]:[6]]+1)),Table2[[#This Row],[Sub]],NA()) ->  | H124: =IF(AND(Table2[[#This Row],[Cumulative revenue %]]>INDEX(Table1[Break point],Table2[[#Headers],[1]:[6]]), Table2[[#This Row],[Cumulative revenue %]]<=INDEX(Table1[Break point],Table2[[#Headers],[1]:[6]]+1)),Table2[[#This Row],[Sub]],NA()) ->  | I124: =IF(AND(Table2[[#This Row],[Cumulative revenue %]]>INDEX(Table1[Break point],Table2[[#Headers],[1]:[6]]), Table2[[#This Row],[Cumulative revenue %]]<=INDEX(Table1[Break point],Table2[[#Headers],[1]:[6]]+1)),Table2[[#This Row],[Sub]],NA()) -> 1492.82 | J124: =IF(AND(Table2[[#This Row],[Cumulative revenue %]]>INDEX(Table1[Break point],Table2[[#Headers],[1]:[6]]), Table2[[#This Row],[Cumulative revenue %]]<=INDEX(Table1[Break point],Table2[[#Headers],[1]:[6]]+1)),Table2[[#This Row],[Sub]],NA()) -> 
A125: =ROW()-ROW(Table2[[#Headers],[Position]]) -> 124 | B125: 1464.36 | C125: 667064.218 | D125: =Table2[[#This Row],[Cumulative revenue]]/SUM(Table2[Sub]) -> 0.8749837957 | E125: =IF(AND(Table2[[#This Row],[Cumulative revenue %]]>INDEX(Table1[Break point],Table2[[#Headers],[1]:[6]]), Table2[[#This Row],[Cumulative revenue %]]<=INDEX(Table1[Break point],Table2[[#Headers],[1]:[6]]+1)),Table2[[#This Row],[Sub]],NA()) ->  | F125: =IF(AND(Table2[[#This Row],[Cumulative revenue %]]>INDEX(Table1[Break point],Table2[[#Headers],[1]:[6]]), Table2[[#This Row],[Cumulative revenue %]]<=INDEX(Table1[Break point],Table2[[#Headers],[1]:[6]]+1)),Table2[[#This Row],[Sub]],NA()) ->  | G125: =IF(AND(Table2[[#This Row],[Cumulative revenue %]]>INDEX(Table1[Break point],Table2[[#Headers],[1]:[6]]), Table2[[#This Row],[Cumulative revenue %]]<=INDEX(Table1[Break point],Table2[[#Headers],[1]:[6]]+1)),Table2[[#This Row],[Sub]],NA()) ->  | H125: =IF(AND(Table2[[#This Row],[Cumulative revenue %]]>INDEX(Table1[Break point],Table2[[#Headers],[1]:[6]]), Table2[[#This Row],[Cumulative revenue %]]<=INDEX(Table1[Break point],Table2[[#Headers],[1]:[6]]+1)),Table2[[#This Row],[Sub]],NA()) ->  | I125: =IF(AND(Table2[[#This Row],[Cumulative revenue %]]>INDEX(Table1[Break point],Table2[[#Headers],[1]:[6]]), Table2[[#This Row],[Cumulative revenue %]]<=INDEX(Table1[Break point],Table2[[#Headers],[1]:[6]]+1)),Table2[[#This Row],[Sub]],NA()) -> 1464.36 | J125: =IF(AND(Table2[[#This Row],[Cumulative revenue %]]>INDEX(Table1[Break point],Table2[[#Headers],[1]:[6]]), Table2[[#This Row],[Cumulative revenue %]]<=INDEX(Table1[Break point],Table2[[#Headers],[1]:[6]]+1)),Table2[[#This Row],[Sub]],NA()) -> 
A126: =ROW()-ROW(Table2[[#Headers],[Position]]) -> 125 | B126: 1439.75 | C126: 668503.968 | D126: =Table2[[#This Row],[Cumulative revenue]]/SUM(Table2[Sub]) -> 0.8768723064 | E126: =IF(AND(Table2[[#This Row],[Cumulative revenue %]]>INDEX(Table1[Break point],Table2[[#Headers],[1]:[6]]), Table2[[#This Row],[Cumulative revenue %]]<=INDEX(Table1[Break point],Table2[[#Headers],[1]:[6]]+1)),Table2[[#This Row],[Sub]],NA()) ->  | F126: =IF(AND(Table2[[#This Row],[Cumulative revenue %]]>INDEX(Table1[Break point],Table2[[#Headers],[1]:[6]]), Table2[[#This Row],[Cumulative revenue %]]<=INDEX(Table1[Break point],Table2[[#Headers],[1]:[6]]+1)),Table2[[#This Row],[Sub]],NA()) ->  | G126: =IF(AND(Table2[[#This Row],[Cumulative revenue %]]>INDEX(Table1[Break point],Table2[[#Headers],[1]:[6]]), Table2[[#This Row],[Cumulative revenue %]]<=INDEX(Table1[Break point],Table2[[#Headers],[1]:[6]]+1)),Table2[[#This Row],[Sub]],NA()) ->  | H126: =IF(AND(Table2[[#This Row],[Cumulative revenue %]]>INDEX(Table1[Break point],Table2[[#Headers],[1]:[6]]), Table2[[#This Row],[Cumulative revenue %]]<=INDEX(Table1[Break point],Table2[[#Headers],[1]:[6]]+1)),Table2[[#This Row],[Sub]],NA()) ->  | I126: =IF(AND(Table2[[#This Row],[Cumulative revenue %]]>INDEX(Table1[Break point],Table2[[#Headers],[1]:[6]]), Table2[[#This Row],[Cumulative revenue %]]<=INDEX(Table1[Break point],Table2[[#Headers],[1]:[6]]+1)),Table2[[#This Row],[Sub]],NA()) -> 1439.75 | J126: =IF(AND(Table2[[#This Row],[Cumulative revenue %]]>INDEX(Table1[Break point],Table2[[#Headers],[1]:[6]]), Table2[[#This Row],[Cumulative revenue %]]<=INDEX(Table1[Break point],Table2[[#Headers],[1]:[6]]+1)),Table2[[#This Row],[Sub]],NA()) -> 
A127: =ROW()-ROW(Table2[[#Headers],[Position]]) -> 126 | B127: 1417.9 | C127: 669921.868 | D127: =Table2[[#This Row],[Cumulative revenue]]/SUM(Table2[Sub]) -> 0.8787321566 | E127: =IF(AND(Table2[[#This Row],[Cumulative revenue %]]>INDEX(Table1[Break point],Table2[[#Headers],[1]:[6]]), Table2[[#This Row],[Cumulative revenue %]]<=INDEX(Table1[Break point],Table2[[#Headers],[1]:[6]]+1)),Table2[[#This Row],[Sub]],NA()) ->  | F127: =IF(AND(Table2[[#This Row],[Cumulative revenue %]]>INDEX(Table1[Break point],Table2[[#Headers],[1]:[6]]), Table2[[#This Row],[Cumulative revenue %]]<=INDEX(Table1[Break point],Table2[[#Headers],[1]:[6]]+1)),Table2[[#This Row],[Sub]],NA()) ->  | G127: =IF(AND(Table2[[#This Row],[Cumulative revenue %]]>INDEX(Table1[Break point],Table2[[#Headers],[1]:[6]]), Table2[[#This Row],[Cumulative revenue %]]<=INDEX(Table1[Break point],Table2[[#Headers],[1]:[6]]+1)),Table2[[#This Row],[Sub]],NA()) ->  | H127: =IF(AND(Table2[[#This Row],[Cumulative revenue %]]>INDEX(Table1[Break point],Table2[[#Headers],[1]:[6]]), Table2[[#This Row],[Cumulative revenue %]]<=INDEX(Table1[Break point],Table2[[#Headers],[1]:[6]]+1)),Table2[[#This Row],[Sub]],NA()) ->  | I127: =IF(AND(Table2[[#This Row],[Cumulative revenue %]]>INDEX(Table1[Break point],Table2[[#Headers],[1]:[6]]), Table2[[#This Row],[Cumulative revenue %]]<=INDEX(Table1[Break point],Table2[[#Headers],[1]:[6]]+1)),Table2[[#This Row],[Sub]],NA()) -> 1417.9 | J127: =IF(AND(Table2[[#This Row],[Cumulative revenue %]]>INDEX(Table1[Break point],Table2[[#Headers],[1]:[6]]), Table2[[#This Row],[Cumulative revenue %]]<=INDEX(Table1[Break point],Table2[[#Headers],[1]:[6]]+1)),Table2[[#This Row],[Sub]],NA()) -> 
A128: =ROW()-ROW(Table2[[#Headers],[Position]]) -> 127 | B128: 1370.81 | C128: 671292.678 | D128: =Table2[[#This Row],[Cumulative revenue]]/SUM(Table2[Sub]) -> 0.8805302392 | E128: =IF(AND(Table2[[#This Row],[Cumulative revenue %]]>INDEX(Table1[Break point],Table2[[#Headers],[1]:[6]]), Table2[[#This Row],[Cumulative revenue %]]<=INDEX(Table1[Break point],Table2[[#Headers],[1]:[6]]+1)),Table2[[#This Row],[Sub]],NA()) ->  | F128: =IF(AND(Table2[[#This Row],[Cumulative revenue %]]>INDEX(Table1[Break point],Table2[[#Headers],[1]:[6]]), Table2[[#This Row],[Cumulative revenue %]]<=INDEX(Table1[Break point],Table2[[#Headers],[1]:[6]]+1)),Table2[[#This Row],[Sub]],NA()) ->  | G128: =IF(AND(Table2[[#This Row],[Cumulative revenue %]]>INDEX(Table1[Break point],Table2[[#Headers],[1]:[6]]), Table2[[#This Row],[Cumulative revenue %]]<=INDEX(Table1[Break point],Table2[[#Headers],[1]:[6]]+1)),Table2[[#This Row],[Sub]],NA()) ->  | H128: =IF(AND(Table2[[#This Row],[Cumulative revenue %]]>INDEX(Table1[Break point],Table2[[#Headers],[1]:[6]]), Table2[[#This Row],[Cumulative revenue %]]<=INDEX(Table1[Break point],Table2[[#Headers],[1]:[6]]+1)),Table2[[#This Row],[Sub]],NA()) ->  | I128: =IF(AND(Table2[[#This Row],[Cumulative revenue %]]>INDEX(Table1[Break point],Table2[[#Headers],[1]:[6]]), Table2[[#This Row],[Cumulative revenue %]]<=INDEX(Table1[Break point],Table2[[#Headers],[1]:[6]]+1)),Table2[[#This Row],[Sub]],NA()) -> 1370.81 | J128: =IF(AND(Table2[[#This Row],[Cumulative revenue %]]>INDEX(Table1[Break point],Table2[[#Headers],[1]:[6]]), Table2[[#This Row],[Cumulative revenue %]]<=INDEX(Table1[Break point],Table2[[#Headers],[1]:[6]]+1)),Table2[[#This Row],[Sub]],NA()) -> 
A129: =ROW()-ROW(Table2[[#Headers],[Position]]) -> 128 | B129: 1360.34 | C129: 672653.018 | D129: =Table2[[#This Row],[Cumulative revenue]]/SUM(Table2[Sub]) -> 0.8823145883 | E129: =IF(AND(Table2[[#This Row],[Cumulative revenue %]]>INDEX(Table1[Break point],Table2[[#Headers],[1]:[6]]), Table2[[#This Row],[Cumulative revenue %]]<=INDEX(Table1[Break point],Table2[[#Headers],[1]:[6]]+1)),Table2[[#This Row],[Sub]],NA()) ->  | F129: =IF(AND(Table2[[#This Row],[Cumulative revenue %]]>INDEX(Table1[Break point],Table2[[#Headers],[1]:[6]]), Table2[[#This Row],[Cumulative revenue %]]<=INDEX(Table1[Break point],Table2[[#Headers],[1]:[6]]+1)),Table2[[#This Row],[Sub]],NA()) ->  | G129: =IF(AND(Table2[[#This Row],[Cumulative revenue %]]>INDEX(Table1[Break point],Table2[[#Headers],[1]:[6]]), Table2[[#This Row],[Cumulative revenue %]]<=INDEX(Table1[Break point],Table2[[#Headers],[1]:[6]]+1)),Table2[[#This Row],[Sub]],NA()) ->  | H129: =IF(AND(Table2[[#This Row],[Cumulative revenue %]]>INDEX(Table1[Break point],Table2[[#Headers],[1]:[6]]), Table2[[#This Row],[Cumulative revenue %]]<=INDEX(Table1[Break point],Table2[[#Headers],[1]:[6]]+1)),Table2[[#This Row],[Sub]],NA()) ->  | I129: =IF(AND(Table2[[#This Row],[Cumulative revenue %]]>INDEX(Table1[Break point],Table2[[#Headers],[1]:[6]]), Table2[[#This Row],[Cumulative revenue %]]<=INDEX(Table1[Break point],Table2[[#Headers],[1]:[6]]+1)),Table2[[#This Row],[Sub]],NA()) -> 1360.34 | J129: =IF(AND(Table2[[#This Row],[Cumulative revenue %]]>INDEX(Table1[Break point],Table2[[#Headers],[1]:[6]]), Table2[[#This Row],[Cumulative revenue %]]<=INDEX(Table1[Break point],Table2[[#Headers],[1]:[6]]+1)),Table2[[#This Row],[Sub]],NA()) -> 
A130: =ROW()-ROW(Table2[[#Headers],[Position]]) -> 129 | B130: 1343.75 | C130: 673996.768 | D130: =Table2[[#This Row],[Cumulative revenue]]/SUM(Table2[Sub]) -> 0.8840771765 | E130: =IF(AND(Table2[[#This Row],[Cumulative revenue %]]>INDEX(Table1[Break point],Table2[[#Headers],[1]:[6]]), Table2[[#This Row],[Cumulative revenue %]]<=INDEX(Table1[Break point],Table2[[#Headers],[1]:[6]]+1)),Table2[[#This Row],[Sub]],NA()) ->  | F130: =IF(AND(Table2[[#This Row],[Cumulative revenue %]]>INDEX(Table1[Break point],Table2[[#Headers],[1]:[6]]), Table2[[#This Row],[Cumulative revenue %]]<=INDEX(Table1[Break point],Table2[[#Headers],[1]:[6]]+1)),Table2[[#This Row],[Sub]],NA()) ->  | G130: =IF(AND(Table2[[#This Row],[Cumulative revenue %]]>INDEX(Table1[Break point],Table2[[#Headers],[1]:[6]]), Table2[[#This Row],[Cumulative revenue %]]<=INDEX(Table1[Break point],Table2[[#Headers],[1]:[6]]+1)),Table2[[#This Row],[Sub]],NA()) ->  | H130: =IF(AND(Table2[[#This Row],[Cumulative revenue %]]>INDEX(Table1[Break point],Table2[[#Headers],[1]:[6]]), Table2[[#This Row],[Cumulative revenue %]]<=INDEX(Table1[Break point],Table2[[#Headers],[1]:[6]]+1)),Table2[[#This Row],[Sub]],NA()) ->  | I130: =IF(AND(Table2[[#This Row],[Cumulative revenue %]]>INDEX(Table1[Break point],Table2[[#Headers],[1]:[6]]), Table2[[#This Row],[Cumulative revenue %]]<=INDEX(Table1[Break point],Table2[[#Headers],[1]:[6]]+1)),Table2[[#This Row],[Sub]],NA()) -> 1343.75 | J130: =IF(AND(Table2[[#This Row],[Cumulative revenue %]]>INDEX(Table1[Break point],Table2[[#Headers],[1]:[6]]), Table2[[#This Row],[Cumulative revenue %]]<=INDEX(Table1[Break point],Table2[[#Headers],[1]:[6]]+1)),Table2[[#This Row],[Sub]],NA()) -> 
A131: =ROW()-ROW(Table2[[#Headers],[Position]]) -> 130 | B131: 1335.1 | C131: =B131+C130 -> 675331.868 | D131: =Table2[[#This Row],[Cumulative revenue]]/SUM(Table2[Sub]) -> 0.8858284185 | E131: =IF(AND(Table2[[#This Row],[Cumulative revenue %]]>INDEX(Table1[Break point],Table2[[#Headers],[1]:[6]]), Table2[[#This Row],[Cumulative revenue %]]<=INDEX(Table1[Break point],Table2[[#Headers],[1]:[6]]+1)),Table2[[#This Row],[Sub]],NA()) ->  | F131: =IF(AND(Table2[[#This Row],[Cumulative revenue %]]>INDEX(Table1[Break point],Table2[[#Headers],[1]:[6]]), Table2[[#This Row],[Cumulative revenue %]]<=INDEX(Table1[Break point],Table2[[#Headers],[1]:[6]]+1)),Table2[[#This Row],[Sub]],NA()) ->  | G131: =IF(AND(Table2[[#This Row],[Cumulative revenue %]]>INDEX(Table1[Break point],Table2[[#Headers],[1]:[6]]), Table2[[#This Row],[Cumulative revenue %]]<=INDEX(Table1[Break point],Table2[[#Headers],[1]:[6]]+1)),Table2[[#This Row],[Sub]],NA()) ->  | H131: =IF(AND(Table2[[#This Row],[Cumulative revenue %]]>INDEX(Table1[Break point],Table2[[#Headers],[1]:[6]]), Table2[[#This Row],[Cumulative revenue %]]<=INDEX(Table1[Break point],Table2[[#Headers],[1]:[6]]+1)),Table2[[#This Row],[Sub]],NA()) ->  | I131: =IF(AND(Table2[[#This Row],[Cumulative revenue %]]>INDEX(Table1[Break point],Table2[[#Headers],[1]:[6]]), Table2[[#This Row],[Cumulative revenue %]]<=INDEX(Table1[Break point],Table2[[#Headers],[1]:[6]]+1)),Table2[[#This Row],[Sub]],NA()) -> 1335.1 | J131: =IF(AND(Table2[[#This Row],[Cumulative revenue %]]>INDEX(Table1[Break point],Table2[[#Headers],[1]:[6]]), Table2[[#This Row],[Cumulative revenue %]]<=INDEX(Table1[Break point],Table2[[#Headers],[1]:[6]]+1)),Table2[[#This Row],[Sub]],NA()) -> 
A132: =ROW()-ROW(Table2[[#Headers],[Position]]) -> 131 | B132: 1331.59 | C132: 676663.458 | D132: =Table2[[#This Row],[Cumulative revenue]]/SUM(Table2[Sub]) -> 0.8875750564 | E132: =IF(AND(Table2[[#This Row],[Cumulative revenue %]]>INDEX(Table1[Break point],Table2[[#Headers],[1]:[6]]), Table2[[#This Row],[Cumulative revenue %]]<=INDEX(Table1[Break point],Table2[[#Headers],[1]:[6]]+1)),Table2[[#This Row],[Sub]],NA()) ->  | F132: =IF(AND(Table2[[#This Row],[Cumulative revenue %]]>INDEX(Table1[Break point],Table2[[#Headers],[1]:[6]]), Table2[[#This Row],[Cumulative revenue %]]<=INDEX(Table1[Break point],Table2[[#Headers],[1]:[6]]+1)),Table2[[#This Row],[Sub]],NA()) ->  | G132: =IF(AND(Table2[[#This Row],[Cumulative revenue %]]>INDEX(Table1[Break point],Table2[[#Headers],[1]:[6]]), Table2[[#This Row],[Cumulative revenue %]]<=INDEX(Table1[Break point],Table2[[#Headers],[1]:[6]]+1)),Table2[[#This Row],[Sub]],NA()) ->  | H132: =IF(AND(Table2[[#This Row],[Cumulative revenue %]]>INDEX(Table1[Break point],Table2[[#Headers],[1]:[6]]), Table2[[#This Row],[Cumulative revenue %]]<=INDEX(Table1[Break point],Table2[[#Headers],[1]:[6]]+1)),Table2[[#This Row],[Sub]],NA()) ->  | I132: =IF(AND(Table2[[#This Row],[Cumulative revenue %]]>INDEX(Table1[Break point],Table2[[#Headers],[1]:[6]]), Table2[[#This Row],[Cumulative revenue %]]<=INDEX(Table1[Break point],Table2[[#Headers],[1]:[6]]+1)),Table2[[#This Row],[Sub]],NA()) -> 1331.59 | J132: =IF(AND(Table2[[#This Row],[Cumulative revenue %]]>INDEX(Table1[Break point],Table2[[#Headers],[1]:[6]]), Table2[[#This Row],[Cumulative revenue %]]<=INDEX(Table1[Break point],Table2[[#Headers],[1]:[6]]+1)),Table2[[#This Row],[Sub]],NA()) -> 
A133: =ROW()-ROW(Table2[[#Headers],[Position]]) -> 132 | B133: 1324.42 | C133: 677987.878 | D133: =Table2[[#This Row],[Cumulative revenue]]/SUM(Table2[Sub]) -> 0.8893122895 | E133: =IF(AND(Table2[[#This Row],[Cumulative revenue %]]>INDEX(Table1[Break point],Table2[[#Headers],[1]:[6]]), Table2[[#This Row],[Cumulative revenue %]]<=INDEX(Table1[Break point],Table2[[#Headers],[1]:[6]]+1)),Table2[[#This Row],[Sub]],NA()) ->  | F133: =IF(AND(Table2[[#This Row],[Cumulative revenue %]]>INDEX(Table1[Break point],Table2[[#Headers],[1]:[6]]), Table2[[#This Row],[Cumulative revenue %]]<=INDEX(Table1[Break point],Table2[[#Headers],[1]:[6]]+1)),Table2[[#This Row],[Sub]],NA()) ->  | G133: =IF(AND(Table2[[#This Row],[Cumulative revenue %]]>INDEX(Table1[Break point],Table2[[#Headers],[1]:[6]]), Table2[[#This Row],[Cumulative revenue %]]<=INDEX(Table1[Break point],Table2[[#Headers],[1]:[6]]+1)),Table2[[#This Row],[Sub]],NA()) ->  | H133: =IF(AND(Table2[[#This Row],[Cumulative revenue %]]>INDEX(Table1[Break point],Table2[[#Headers],[1]:[6]]), Table2[[#This Row],[Cumulative revenue %]]<=INDEX(Table1[Break point],Table2[[#Headers],[1]:[6]]+1)),Table2[[#This Row],[Sub]],NA()) ->  | I133: =IF(AND(Table2[[#This Row],[Cumulative revenue %]]>INDEX(Table1[Break point],Table2[[#Headers],[1]:[6]]), Table2[[#This Row],[Cumulative revenue %]]<=INDEX(Table1[Break point],Table2[[#Headers],[1]:[6]]+1)),Table2[[#This Row],[Sub]],NA()) -> 1324.42 | J133: =IF(AND(Table2[[#This Row],[Cumulative revenue %]]>INDEX(Table1[Break point],Table2[[#Headers],[1]:[6]]), Table2[[#This Row],[Cumulative revenue %]]<=INDEX(Table1[Break point],Table2[[#Headers],[1]:[6]]+1)),Table2[[#This Row],[Sub]],NA()) -> 
A134: =ROW()-ROW(Table2[[#Headers],[Position]]) -> 133 | B134: 1324.01 | C134: 679311.888 | D134: =Table2[[#This Row],[Cumulative revenue]]/SUM(Table2[Sub]) -> 0.8910489848 | E134: =IF(AND(Table2[[#This Row],[Cumulative revenue %]]>INDEX(Table1[Break point],Table2[[#Headers],[1]:[6]]), Table2[[#This Row],[Cumulative revenue %]]<=INDEX(Table1[Break point],Table2[[#Headers],[1]:[6]]+1)),Table2[[#This Row],[Sub]],NA()) ->  | F134: =IF(AND(Table2[[#This Row],[Cumulative revenue %]]>INDEX(Table1[Break point],Table2[[#Headers],[1]:[6]]), Table2[[#This Row],[Cumulative revenue %]]<=INDEX(Table1[Break point],Table2[[#Headers],[1]:[6]]+1)),Table2[[#This Row],[Sub]],NA()) ->  | G134: =IF(AND(Table2[[#This Row],[Cumulative revenue %]]>INDEX(Table1[Break point],Table2[[#Headers],[1]:[6]]), Table2[[#This Row],[Cumulative revenue %]]<=INDEX(Table1[Break point],Table2[[#Headers],[1]:[6]]+1)),Table2[[#This Row],[Sub]],NA()) ->  | H134: =IF(AND(Table2[[#This Row],[Cumulative revenue %]]>INDEX(Table1[Break point],Table2[[#Headers],[1]:[6]]), Table2[[#This Row],[Cumulative revenue %]]<=INDEX(Table1[Break point],Table2[[#Headers],[1]:[6]]+1)),Table2[[#This Row],[Sub]],NA()) ->  | I134: =IF(AND(Table2[[#This Row],[Cumulative revenue %]]>INDEX(Table1[Break point],Table2[[#Headers],[1]:[6]]), Table2[[#This Row],[Cumulative revenue %]]<=INDEX(Table1[Break point],Table2[[#Headers],[1]:[6]]+1)),Table2[[#This Row],[Sub]],NA()) -> 1324.01 | J134: =IF(AND(Table2[[#This Row],[Cumulative revenue %]]>INDEX(Table1[Break point],Table2[[#Headers],[1]:[6]]), Table2[[#This Row],[Cumulative revenue %]]<=INDEX(Table1[Break point],Table2[[#Headers],[1]:[6]]+1)),Table2[[#This Row],[Sub]],NA()) -> 
A135: =ROW()-ROW(Table2[[#Headers],[Position]]) -> 134 | B135: 1307.27 | C135: 680619.158 | D135: =Table2[[#This Row],[Cumulative revenue]]/SUM(Table2[Sub]) -> 0.8927637224 | E135: =IF(AND(Table2[[#This Row],[Cumulative revenue %]]>INDEX(Table1[Break point],Table2[[#Headers],[1]:[6]]), Table2[[#This Row],[Cumulative revenue %]]<=INDEX(Table1[Break point],Table2[[#Headers],[1]:[6]]+1)),Table2[[#This Row],[Sub]],NA()) ->  | F135: =IF(AND(Table2[[#This Row],[Cumulative revenue %]]>INDEX(Table1[Break point],Table2[[#Headers],[1]:[6]]), Table2[[#This Row],[Cumulative revenue %]]<=INDEX(Table1[Break point],Table2[[#Headers],[1]:[6]]+1)),Table2[[#This Row],[Sub]],NA()) ->  | G135: =IF(AND(Table2[[#This Row],[Cumulative revenue %]]>INDEX(Table1[Break point],Table2[[#Headers],[1]:[6]]), Table2[[#This Row],[Cumulative revenue %]]<=INDEX(Table1[Break point],Table2[[#Headers],[1]:[6]]+1)),Table2[[#This Row],[Sub]],NA()) ->  | H135: =IF(AND(Table2[[#This Row],[Cumulative revenue %]]>INDEX(Table1[Break point],Table2[[#Headers],[1]:[6]]), Table2[[#This Row],[Cumulative revenue %]]<=INDEX(Table1[Break point],Table2[[#Headers],[1]:[6]]+1)),Table2[[#This Row],[Sub]],NA()) ->  | I135: =IF(AND(Table2[[#This Row],[Cumulative revenue %]]>INDEX(Table1[Break point],Table2[[#Headers],[1]:[6]]), Table2[[#This Row],[Cumulative revenue %]]<=INDEX(Table1[Break point],Table2[[#Headers],[1]:[6]]+1)),Table2[[#This Row],[Sub]],NA()) -> 1307.27 | J135: =IF(AND(Table2[[#This Row],[Cumulative revenue %]]>INDEX(Table1[Break point],Table2[[#Headers],[1]:[6]]), Table2[[#This Row],[Cumulative revenue %]]<=INDEX(Table1[Break point],Table2[[#Headers],[1]:[6]]+1)),Table2[[#This Row],[Sub]],NA()) -> 
A136: =ROW()-ROW(Table2[[#Headers],[Position]]) -> 135 | B136: 1286.74 | C136: 681905.898 | D136: =Table2[[#This Row],[Cumulative revenue]]/SUM(Table2[Sub]) -> 0.8944515308 | E136: =IF(AND(Table2[[#This Row],[Cumulative revenue %]]>INDEX(Table1[Break point],Table2[[#Headers],[1]:[6]]), Table2[[#This Row],[Cumulative revenue %]]<=INDEX(Table1[Break point],Table2[[#Headers],[1]:[6]]+1)),Table2[[#This Row],[Sub]],NA()) ->  | F136: =IF(AND(Table2[[#This Row],[Cumulative revenue %]]>INDEX(Table1[Break point],Table2[[#Headers],[1]:[6]]), Table2[[#This Row],[Cumulative revenue %]]<=INDEX(Table1[Break point],Table2[[#Headers],[1]:[6]]+1)),Table2[[#This Row],[Sub]],NA()) ->  | G136: =IF(AND(Table2[[#This Row],[Cumulative revenue %]]>INDEX(Table1[Break point],Table2[[#Headers],[1]:[6]]), Table2[[#This Row],[Cumulative revenue %]]<=INDEX(Table1[Break point],Table2[[#Headers],[1]:[6]]+1)),Table2[[#This Row],[Sub]],NA()) ->  | H136: =IF(AND(Table2[[#This Row],[Cumulative revenue %]]>INDEX(Table1[Break point],Table2[[#Headers],[1]:[6]]), Table2[[#This Row],[Cumulative revenue %]]<=INDEX(Table1[Break point],Table2[[#Headers],[1]:[6]]+1)),Table2[[#This Row],[Sub]],NA()) ->  | I136: =IF(AND(Table2[[#This Row],[Cumulative revenue %]]>INDEX(Table1[Break point],Table2[[#Headers],[1]:[6]]), Table2[[#This Row],[Cumulative revenue %]]<=INDEX(Table1[Break point],Table2[[#Headers],[1]:[6]]+1)),Table2[[#This Row],[Sub]],NA()) -> 1286.74 | J136: =IF(AND(Table2[[#This Row],[Cumulative revenue %]]>INDEX(Table1[Break point],Table2[[#Headers],[1]:[6]]), Table2[[#This Row],[Cumulative revenue %]]<=INDEX(Table1[Break point],Table2[[#Headers],[1]:[6]]+1)),Table2[[#This Row],[Sub]],NA()) -> 
A137: =ROW()-ROW(Table2[[#Headers],[Position]]) -> 136 | B137: 1264 | C137: 683169.898 | D137: =Table2[[#This Row],[Cumulative revenue]]/SUM(Table2[Sub]) -> 0.8961095114 | E137: =IF(AND(Table2[[#This Row],[Cumulative revenue %]]>INDEX(Table1[Break point],Table2[[#Headers],[1]:[6]]), Table2[[#This Row],[Cumulative revenue %]]<=INDEX(Table1[Break point],Table2[[#Headers],[1]:[6]]+1)),Table2[[#This Row],[Sub]],NA()) ->  | F137: =IF(AND(Table2[[#This Row],[Cumulative revenue %]]>INDEX(Table1[Break point],Table2[[#Headers],[1]:[6]]), Table2[[#This Row],[Cumulative revenue %]]<=INDEX(Table1[Break point],Table2[[#Headers],[1]:[6]]+1)),Table2[[#This Row],[Sub]],NA()) ->  | G137: =IF(AND(Table2[[#This Row],[Cumulative revenue %]]>INDEX(Table1[Break point],Table2[[#Headers],[1]:[6]]), Table2[[#This Row],[Cumulative revenue %]]<=INDEX(Table1[Break point],Table2[[#Headers],[1]:[6]]+1)),Table2[[#This Row],[Sub]],NA()) ->  | H137: =IF(AND(Table2[[#This Row],[Cumulative revenue %]]>INDEX(Table1[Break point],Table2[[#Headers],[1]:[6]]), Table2[[#This Row],[Cumulative revenue %]]<=INDEX(Table1[Break point],Table2[[#Headers],[1]:[6]]+1)),Table2[[#This Row],[Sub]],NA()) ->  | I137: =IF(AND(Table2[[#This Row],[Cumulative revenue %]]>INDEX(Table1[Break point],Table2[[#Headers],[1]:[6]]), Table2[[#This Row],[Cumulative revenue %]]<=INDEX(Table1[Break point],Table2[[#Headers],[1]:[6]]+1)),Table2[[#This Row],[Sub]],NA()) -> 1264 | J137: =IF(AND(Table2[[#This Row],[Cumulative revenue %]]>INDEX(Table1[Break point],Table2[[#Headers],[1]:[6]]), Table2[[#This Row],[Cumulative revenue %]]<=INDEX(Table1[Break point],Table2[[#Headers],[1]:[6]]+1)),Table2[[#This Row],[Sub]],NA()) -> 
A138: =ROW()-ROW(Table2[[#Headers],[Position]]) -> 137 | B138: 1264 | C138: 684433.898 | D138: =Table2[[#This Row],[Cumulative revenue]]/SUM(Table2[Sub]) -> 0.897767492 | E138: =IF(AND(Table2[[#This Row],[Cumulative revenue %]]>INDEX(Table1[Break point],Table2[[#Headers],[1]:[6]]), Table2[[#This Row],[Cumulative revenue %]]<=INDEX(Table1[Break point],Table2[[#Headers],[1]:[6]]+1)),Table2[[#This Row],[Sub]],NA()) ->  | F138: =IF(AND(Table2[[#This Row],[Cumulative revenue %]]>INDEX(Table1[Break point],Table2[[#Headers],[1]:[6]]), Table2[[#This Row],[Cumulative revenue %]]<=INDEX(Table1[Break point],Table2[[#Headers],[1]:[6]]+1)),Table2[[#This Row],[Sub]],NA()) ->  | G138: =IF(AND(Table2[[#This Row],[Cumulative revenue %]]>INDEX(Table1[Break point],Table2[[#Headers],[1]:[6]]), Table2[[#This Row],[Cumulative revenue %]]<=INDEX(Table1[Break point],Table2[[#Headers],[1]:[6]]+1)),Table2[[#This Row],[Sub]],NA()) ->  | H138: =IF(AND(Table2[[#This Row],[Cumulative revenue %]]>INDEX(Table1[Break point],Table2[[#Headers],[1]:[6]]), Table2[[#This Row],[Cumulative revenue %]]<=INDEX(Table1[Break point],Table2[[#Headers],[1]:[6]]+1)),Table2[[#This Row],[Sub]],NA()) ->  | I138: =IF(AND(Table2[[#This Row],[Cumulative revenue %]]>INDEX(Table1[Break point],Table2[[#Headers],[1]:[6]]), Table2[[#This Row],[Cumulative revenue %]]<=INDEX(Table1[Break point],Table2[[#Headers],[1]:[6]]+1)),Table2[[#This Row],[Sub]],NA()) -> 1264 | J138: =IF(AND(Table2[[#This Row],[Cumulative revenue %]]>INDEX(Table1[Break point],Table2[[#Headers],[1]:[6]]), Table2[[#This Row],[Cumulative revenue %]]<=INDEX(Table1[Break point],Table2[[#Headers],[1]:[6]]+1)),Table2[[#This Row],[Sub]],NA()) -> 
A139: =ROW()-ROW(Table2[[#Headers],[Position]]) -> 138 | B139: 1257.89 | C139: 685691.788 | D139: =Table2[[#This Row],[Cumulative revenue]]/SUM(Table2[Sub]) -> 0.8994174581 | E139: =IF(AND(Table2[[#This Row],[Cumulative revenue %]]>INDEX(Table1[Break point],Table2[[#Headers],[1]:[6]]), Table2[[#This Row],[Cumulative revenue %]]<=INDEX(Table1[Break point],Table2[[#Headers],[1]:[6]]+1)),Table2[[#This Row],[Sub]],NA()) ->  | F139: =IF(AND(Table2[[#This Row],[Cumulative revenue %]]>INDEX(Table1[Break point],Table2[[#Headers],[1]:[6]]), Table2[[#This Row],[Cumulative revenue %]]<=INDEX(Table1[Break point],Table2[[#Headers],[1]:[6]]+1)),Table2[[#This Row],[Sub]],NA()) ->  | G139: =IF(AND(Table2[[#This Row],[Cumulative revenue %]]>INDEX(Table1[Break point],Table2[[#Headers],[1]:[6]]), Table2[[#This Row],[Cumulative revenue %]]<=INDEX(Table1[Break point],Table2[[#Headers],[1]:[6]]+1)),Table2[[#This Row],[Sub]],NA()) ->  | H139: =IF(AND(Table2[[#This Row],[Cumulative revenue %]]>INDEX(Table1[Break point],Table2[[#Headers],[1]:[6]]), Table2[[#This Row],[Cumulative revenue %]]<=INDEX(Table1[Break point],Table2[[#Headers],[1]:[6]]+1)),Table2[[#This Row],[Sub]],NA()) ->  | I139: =IF(AND(Table2[[#This Row],[Cumulative revenue %]]>INDEX(Table1[Break point],Table2[[#Headers],[1]:[6]]), Table2[[#This Row],[Cumulative revenue %]]<=INDEX(Table1[Break point],Table2[[#Headers],[1]:[6]]+1)),Table2[[#This Row],[Sub]],NA()) -> 1257.89 | J139: =IF(AND(Table2[[#This Row],[Cumulative revenue %]]>INDEX(Table1[Break point],Table2[[#Headers],[1]:[6]]), Table2[[#This Row],[Cumulative revenue %]]<=INDEX(Table1[Break point],Table2[[#Headers],[1]:[6]]+1)),Table2[[#This Row],[Sub]],NA()) -> 
A140: =ROW()-ROW(Table2[[#Headers],[Position]]) -> 139 | B140: 1256.31 | C140: 686948.098 | D140: =Table2[[#This Row],[Cumulative revenue]]/SUM(Table2[Sub]) -> 0.9010653518 | E140: =IF(AND(Table2[[#This Row],[Cumulative revenue %]]>INDEX(Table1[Break point],Table2[[#Headers],[1]:[6]]), Table2[[#This Row],[Cumulative revenue %]]<=INDEX(Table1[Break point],Table2[[#Headers],[1]:[6]]+1)),Table2[[#This Row],[Sub]],NA()) ->  | F140: =IF(AND(Table2[[#This Row],[Cumulative revenue %]]>INDEX(Table1[Break point],Table2[[#Headers],[1]:[6]]), Table2[[#This Row],[Cumulative revenue %]]<=INDEX(Table1[Break point],Table2[[#Headers],[1]:[6]]+1)),Table2[[#This Row],[Sub]],NA()) ->  | G140: =IF(AND(Table2[[#This Row],[Cumulative revenue %]]>INDEX(Table1[Break point],Table2[[#Headers],[1]:[6]]), Table2[[#This Row],[Cumulative revenue %]]<=INDEX(Table1[Break point],Table2[[#Headers],[1]:[6]]+1)),Table2[[#This Row],[Sub]],NA()) ->  | H140: =IF(AND(Table2[[#This Row],[Cumulative revenue %]]>INDEX(Table1[Break point],Table2[[#Headers],[1]:[6]]), Table2[[#This Row],[Cumulative revenue %]]<=INDEX(Table1[Break point],Table2[[#Headers],[1]:[6]]+1)),Table2[[#This Row],[Sub]],NA()) ->  | I140: =IF(AND(Table2[[#This Row],[Cumulative revenue %]]>INDEX(Table1[Break point],Table2[[#Headers],[1]:[6]]), Table2[[#This Row],[Cumulative revenue %]]<=INDEX(Table1[Break point],Table2[[#Headers],[1]:[6]]+1)),Table2[[#This Row],[Sub]],NA()) -> 1256.31 | J140: =IF(AND(Table2[[#This Row],[Cumulative revenue %]]>INDEX(Table1[Break point],Table2[[#Headers],[1]:[6]]), Table2[[#This Row],[Cumulative revenue %]]<=INDEX(Table1[Break point],Table2[[#Headers],[1]:[6]]+1)),Table2[[#This Row],[Sub]],NA()) -> 
A141: =ROW()-ROW(Table2[[#Headers],[Position]]) -> 140 | B141: 1250.16 | C141: 688198.258 | D141: =Table2[[#This Row],[Cumulative revenue]]/SUM(Table2[Sub]) -> 0.9027051785 | E141: =IF(AND(Table2[[#This Row],[Cumulative revenue %]]>INDEX(Table1[Break point],Table2[[#Headers],[1]:[6]]), Table2[[#This Row],[Cumulative revenue %]]<=INDEX(Table1[Break point],Table2[[#Headers],[1]:[6]]+1)),Table2[[#This Row],[Sub]],NA()) ->  | F141: =IF(AND(Table2[[#This Row],[Cumulative revenue %]]>INDEX(Table1[Break point],Table2[[#Headers],[1]:[6]]), Table2[[#This Row],[Cumulative revenue %]]<=INDEX(Table1[Break point],Table2[[#Headers],[1]:[6]]+1)),Table2[[#This Row],[Sub]],NA()) ->  | G141: =IF(AND(Table2[[#This Row],[Cumulative revenue %]]>INDEX(Table1[Break point],Table2[[#Headers],[1]:[6]]), Table2[[#This Row],[Cumulative revenue %]]<=INDEX(Table1[Break point],Table2[[#Headers],[1]:[6]]+1)),Table2[[#This Row],[Sub]],NA()) ->  | H141: =IF(AND(Table2[[#This Row],[Cumulative revenue %]]>INDEX(Table1[Break point],Table2[[#Headers],[1]:[6]]), Table2[[#This Row],[Cumulative revenue %]]<=INDEX(Table1[Break point],Table2[[#Headers],[1]:[6]]+1)),Table2[[#This Row],[Sub]],NA()) ->  | I141: =IF(AND(Table2[[#This Row],[Cumulative revenue %]]>INDEX(Table1[Break point],Table2[[#Headers],[1]:[6]]), Table2[[#This Row],[Cumulative revenue %]]<=INDEX(Table1[Break point],Table2[[#Headers],[1]:[6]]+1)),Table2[[#This Row],[Sub]],NA()) -> 1250.16 | J141: =IF(AND(Table2[[#This Row],[Cumulative revenue %]]>INDEX(Table1[Break point],Table2[[#Headers],[1]:[6]]), Table2[[#This Row],[Cumulative revenue %]]<=INDEX(Table1[Break point],Table2[[#Headers],[1]:[6]]+1)),Table2[[#This Row],[Sub]],NA()) -> 
A142: =ROW()-ROW(Table2[[#Headers],[Position]]) -> 141 | B142: 1196.57 | C142: 689394.828 | D142: =Table2[[#This Row],[Cumulative revenue]]/SUM(Table2[Sub]) -> 0.9042747116 | E142: =IF(AND(Table2[[#This Row],[Cumulative revenue %]]>INDEX(Table1[Break point],Table2[[#Headers],[1]:[6]]), Table2[[#This Row],[Cumulative revenue %]]<=INDEX(Table1[Break point],Table2[[#Headers],[1]:[6]]+1)),Table2[[#This Row],[Sub]],NA()) ->  | F142: =IF(AND(Table2[[#This Row],[Cumulative revenue %]]>INDEX(Table1[Break point],Table2[[#Headers],[1]:[6]]), Table2[[#This Row],[Cumulative revenue %]]<=INDEX(Table1[Break point],Table2[[#Headers],[1]:[6]]+1)),Table2[[#This Row],[Sub]],NA()) ->  | G142: =IF(AND(Table2[[#This Row],[Cumulative revenue %]]>INDEX(Table1[Break point],Table2[[#Headers],[1]:[6]]), Table2[[#This Row],[Cumulative revenue %]]<=INDEX(Table1[Break point],Table2[[#Headers],[1]:[6]]+1)),Table2[[#This Row],[Sub]],NA()) ->  | H142: =IF(AND(Table2[[#This Row],[Cumulative revenue %]]>INDEX(Table1[Break point],Table2[[#Headers],[1]:[6]]), Table2[[#This Row],[Cumulative revenue %]]<=INDEX(Table1[Break point],Table2[[#Headers],[1]:[6]]+1)),Table2[[#This Row],[Sub]],NA()) ->  | I142: =IF(AND(Table2[[#This Row],[Cumulative revenue %]]>INDEX(Table1[Break point],Table2[[#Headers],[1]:[6]]), Table2[[#This Row],[Cumulative revenue %]]<=INDEX(Table1[Break point],Table2[[#Headers],[1]:[6]]+1)),Table2[[#This Row],[Sub]],NA()) -> 1196.57 | J142: =IF(AND(Table2[[#This Row],[Cumulative revenue %]]>INDEX(Table1[Break point],Table2[[#Headers],[1]:[6]]), Table2[[#This Row],[Cumulative revenue %]]<=INDEX(Table1[Break point],Table2[[#Headers],[1]:[6]]+1)),Table2[[#This Row],[Sub]],NA()) -> 
A143: =ROW()-ROW(Table2[[#Headers],[Position]]) -> 142 | B143: 1193.39 | C143: 690588.218 | D143: =Table2[[#This Row],[Cumulative revenue]]/SUM(Table2[Sub]) -> 0.9058400735 | E143: =IF(AND(Table2[[#This Row],[Cumulative revenue %]]>INDEX(Table1[Break point],Table2[[#Headers],[1]:[6]]), Table2[[#This Row],[Cumulative revenue %]]<=INDEX(Table1[Break point],Table2[[#Headers],[1]:[6]]+1)),Table2[[#This Row],[Sub]],NA()) ->  | F143: =IF(AND(Table2[[#This Row],[Cumulative revenue %]]>INDEX(Table1[Break point],Table2[[#Headers],[1]:[6]]), Table2[[#This Row],[Cumulative revenue %]]<=INDEX(Table1[Break point],Table2[[#Headers],[1]:[6]]+1)),Table2[[#This Row],[Sub]],NA()) ->  | G143: =IF(AND(Table2[[#This Row],[Cumulative revenue %]]>INDEX(Table1[Break point],Table2[[#Headers],[1]:[6]]), Table2[[#This Row],[Cumulative revenue %]]<=INDEX(Table1[Break point],Table2[[#Headers],[1]:[6]]+1)),Table2[[#This Row],[Sub]],NA()) ->  | H143: =IF(AND(Table2[[#This Row],[Cumulative revenue %]]>INDEX(Table1[Break point],Table2[[#Headers],[1]:[6]]), Table2[[#This Row],[Cumulative revenue %]]<=INDEX(Table1[Break point],Table2[[#Headers],[1]:[6]]+1)),Table2[[#This Row],[Sub]],NA()) ->  | I143: =IF(AND(Table2[[#This Row],[Cumulative revenue %]]>INDEX(Table1[Break point],Table2[[#Headers],[1]:[6]]), Table2[[#This Row],[Cumulative revenue %]]<=INDEX(Table1[Break point],Table2[[#Headers],[1]:[6]]+1)),Table2[[#This Row],[Sub]],NA()) -> 1193.39 | J143: =IF(AND(Table2[[#This Row],[Cumulative revenue %]]>INDEX(Table1[Break point],Table2[[#Headers],[1]:[6]]), Table2[[#This Row],[Cumulative revenue %]]<=INDEX(Table1[Break point],Table2[[#Headers],[1]:[6]]+1)),Table2[[#This Row],[Sub]],NA()) -> 
A144: =ROW()-ROW(Table2[[#Headers],[Position]]) -> 143 | B144: 1168.43 | C144: 691756.648 | D144: =Table2[[#This Row],[Cumulative revenue]]/SUM(Table2[Sub]) -> 0.9073726955 | E144: =IF(AND(Table2[[#This Row],[Cumulative revenue %]]>INDEX(Table1[Break point],Table2[[#Headers],[1]:[6]]), Table2[[#This Row],[Cumulative revenue %]]<=INDEX(Table1[Break point],Table2[[#Headers],[1]:[6]]+1)),Table2[[#This Row],[Sub]],NA()) ->  | F144: =IF(AND(Table2[[#This Row],[Cumulative revenue %]]>INDEX(Table1[Break point],Table2[[#Headers],[1]:[6]]), Table2[[#This Row],[Cumulative revenue %]]<=INDEX(Table1[Break point],Table2[[#Headers],[1]:[6]]+1)),Table2[[#This Row],[Sub]],NA()) ->  | G144: =IF(AND(Table2[[#This Row],[Cumulative revenue %]]>INDEX(Table1[Break point],Table2[[#Headers],[1]:[6]]), Table2[[#This Row],[Cumulative revenue %]]<=INDEX(Table1[Break point],Table2[[#Headers],[1]:[6]]+1)),Table2[[#This Row],[Sub]],NA()) ->  | H144: =IF(AND(Table2[[#This Row],[Cumulative revenue %]]>INDEX(Table1[Break point],Table2[[#Headers],[1]:[6]]), Table2[[#This Row],[Cumulative revenue %]]<=INDEX(Table1[Break point],Table2[[#Headers],[1]:[6]]+1)),Table2[[#This Row],[Sub]],NA()) ->  | I144: =IF(AND(Table2[[#This Row],[Cumulative revenue %]]>INDEX(Table1[Break point],Table2[[#Headers],[1]:[6]]), Table2[[#This Row],[Cumulative revenue %]]<=INDEX(Table1[Break point],Table2[[#Headers],[1]:[6]]+1)),Table2[[#This Row],[Sub]],NA()) -> 1168.43 | J144: =IF(AND(Table2[[#This Row],[Cumulative revenue %]]>INDEX(Table1[Break point],Table2[[#Headers],[1]:[6]]), Table2[[#This Row],[Cumulative revenue %]]<=INDEX(Table1[Break point],Table2[[#Headers],[1]:[6]]+1)),Table2[[#This Row],[Sub]],NA()) -> 
A145: =ROW()-ROW(Table2[[#Headers],[Position]]) -> 144 | B145: 1168.3 | C145: 692924.948 | D145: =Table2[[#This Row],[Cumulative revenue]]/SUM(Table2[Sub]) -> 0.9089051471 | E145: =IF(AND(Table2[[#This Row],[Cumulative revenue %]]>INDEX(Table1[Break point],Table2[[#Headers],[1]:[6]]), Table2[[#This Row],[Cumulative revenue %]]<=INDEX(Table1[Break point],Table2[[#Headers],[1]:[6]]+1)),Table2[[#This Row],[Sub]],NA()) ->  | F145: =IF(AND(Table2[[#This Row],[Cumulative revenue %]]>INDEX(Table1[Break point],Table2[[#Headers],[1]:[6]]), Table2[[#This Row],[Cumulative revenue %]]<=INDEX(Table1[Break point],Table2[[#Headers],[1]:[6]]+1)),Table2[[#This Row],[Sub]],NA()) ->  | G145: =IF(AND(Table2[[#This Row],[Cumulative revenue %]]>INDEX(Table1[Break point],Table2[[#Headers],[1]:[6]]), Table2[[#This Row],[Cumulative revenue %]]<=INDEX(Table1[Break point],Table2[[#Headers],[1]:[6]]+1)),Table2[[#This Row],[Sub]],NA()) ->  | H145: =IF(AND(Table2[[#This Row],[Cumulative revenue %]]>INDEX(Table1[Break point],Table2[[#Headers],[1]:[6]]), Table2[[#This Row],[Cumulative revenue %]]<=INDEX(Table1[Break point],Table2[[#Headers],[1]:[6]]+1)),Table2[[#This Row],[Sub]],NA()) ->  | I145: =IF(AND(Table2[[#This Row],[Cumulative revenue %]]>INDEX(Table1[Break point],Table2[[#Headers],[1]:[6]]), Table2[[#This Row],[Cumulative revenue %]]<=INDEX(Table1[Break point],Table2[[#Headers],[1]:[6]]+1)),Table2[[#This Row],[Sub]],NA()) -> 1168.3 | J145: =IF(AND(Table2[[#This Row],[Cumulative revenue %]]>INDEX(Table1[Break point],Table2[[#Headers],[1]:[6]]), Table2[[#This Row],[Cumulative revenue %]]<=INDEX(Table1[Break point],Table2[[#Headers],[1]:[6]]+1)),Table2[[#This Row],[Sub]],NA()) -> 
A146: =ROW()-ROW(Table2[[#Headers],[Position]]) -> 145 | B146: 1162.63 | C146: 694087.578 | D146: =Table2[[#This Row],[Cumulative revenue]]/SUM(Table2[Sub]) -> 0.9104301613 | E146: =IF(AND(Table2[[#This Row],[Cumulative revenue %]]>INDEX(Table1[Break point],Table2[[#Headers],[1]:[6]]), Table2[[#This Row],[Cumulative revenue %]]<=INDEX(Table1[Break point],Table2[[#Headers],[1]:[6]]+1)),Table2[[#This Row],[Sub]],NA()) ->  | F146: =IF(AND(Table2[[#This Row],[Cumulative revenue %]]>INDEX(Table1[Break point],Table2[[#Headers],[1]:[6]]), Table2[[#This Row],[Cumulative revenue %]]<=INDEX(Table1[Break point],Table2[[#Headers],[1]:[6]]+1)),Table2[[#This Row],[Sub]],NA()) ->  | G146: =IF(AND(Table2[[#This Row],[Cumulative revenue %]]>INDEX(Table1[Break point],Table2[[#Headers],[1]:[6]]), Table2[[#This Row],[Cumulative revenue %]]<=INDEX(Table1[Break point],Table2[[#Headers],[1]:[6]]+1)),Table2[[#This Row],[Sub]],NA()) ->  | H146: =IF(AND(Table2[[#This Row],[Cumulative revenue %]]>INDEX(Table1[Break point],Table2[[#Headers],[1]:[6]]), Table2[[#This Row],[Cumulative revenue %]]<=INDEX(Table1[Break point],Table2[[#Headers],[1]:[6]]+1)),Table2[[#This Row],[Sub]],NA()) ->  | I146: =IF(AND(Table2[[#This Row],[Cumulative revenue %]]>INDEX(Table1[Break point],Table2[[#Headers],[1]:[6]]), Table2[[#This Row],[Cumulative revenue %]]<=INDEX(Table1[Break point],Table2[[#Headers],[1]:[6]]+1)),Table2[[#This Row],[Sub]],NA()) -> 1162.63 | J146: =IF(AND(Table2[[#This Row],[Cumulative revenue %]]>INDEX(Table1[Break point],Table2[[#Headers],[1]:[6]]), Table2[[#This Row],[Cumulative revenue %]]<=INDEX(Table1[Break point],Table2[[#Headers],[1]:[6]]+1)),Table2[[#This Row],[Sub]],NA()) -> 
A147: =ROW()-ROW(Table2[[#Headers],[Position]]) -> 146 | B147: 1145.93 | C147: 695233.508 | D147: =Table2[[#This Row],[Cumulative revenue]]/SUM(Table2[Sub]) -> 0.9119332702 | E147: =IF(AND(Table2[[#This Row],[Cumulative revenue %]]>INDEX(Table1[Break point],Table2[[#Headers],[1]:[6]]), Table2[[#This Row],[Cumulative revenue %]]<=INDEX(Table1[Break point],Table2[[#Headers],[1]:[6]]+1)),Table2[[#This Row],[Sub]],NA()) ->  | F147: =IF(AND(Table2[[#This Row],[Cumulative revenue %]]>INDEX(Table1[Break point],Table2[[#Headers],[1]:[6]]), Table2[[#This Row],[Cumulative revenue %]]<=INDEX(Table1[Break point],Table2[[#Headers],[1]:[6]]+1)),Table2[[#This Row],[Sub]],NA()) ->  | G147: =IF(AND(Table2[[#This Row],[Cumulative revenue %]]>INDEX(Table1[Break point],Table2[[#Headers],[1]:[6]]), Table2[[#This Row],[Cumulative revenue %]]<=INDEX(Table1[Break point],Table2[[#Headers],[1]:[6]]+1)),Table2[[#This Row],[Sub]],NA()) ->  | H147: =IF(AND(Table2[[#This Row],[Cumulative revenue %]]>INDEX(Table1[Break point],Table2[[#Headers],[1]:[6]]), Table2[[#This Row],[Cumulative revenue %]]<=INDEX(Table1[Break point],Table2[[#Headers],[1]:[6]]+1)),Table2[[#This Row],[Sub]],NA()) ->  | I147: =IF(AND(Table2[[#This Row],[Cumulative revenue %]]>INDEX(Table1[Break point],Table2[[#Headers],[1]:[6]]), Table2[[#This Row],[Cumulative revenue %]]<=INDEX(Table1[Break point],Table2[[#Headers],[1]:[6]]+1)),Table2[[#This Row],[Sub]],NA()) -> 1145.93 | J147: =IF(AND(Table2[[#This Row],[Cumulative revenue %]]>INDEX(Table1[Break point],Table2[[#Headers],[1]:[6]]), Table2[[#This Row],[Cumulative revenue %]]<=INDEX(Table1[Break point],Table2[[#Headers],[1]:[6]]+1)),Table2[[#This Row],[Sub]],NA()) -> 
A148: =ROW()-ROW(Table2[[#Headers],[Position]]) -> 147 | B148: 1144.45 | C148: 696377.958 | D148: =Table2[[#This Row],[Cumulative revenue]]/SUM(Table2[Sub]) -> 0.9134344378 | E148: =IF(AND(Table2[[#This Row],[Cumulative revenue %]]>INDEX(Table1[Break point],Table2[[#Headers],[1]:[6]]), Table2[[#This Row],[Cumulative revenue %]]<=INDEX(Table1[Break point],Table2[[#Headers],[1]:[6]]+1)),Table2[[#This Row],[Sub]],NA()) ->  | F148: =IF(AND(Table2[[#This Row],[Cumulative revenue %]]>INDEX(Table1[Break point],Table2[[#Headers],[1]:[6]]), Table2[[#This Row],[Cumulative revenue %]]<=INDEX(Table1[Break point],Table2[[#Headers],[1]:[6]]+1)),Table2[[#This Row],[Sub]],NA()) ->  | G148: =IF(AND(Table2[[#This Row],[Cumulative revenue %]]>INDEX(Table1[Break point],Table2[[#Headers],[1]:[6]]), Table2[[#This Row],[Cumulative revenue %]]<=INDEX(Table1[Break point],Table2[[#Headers],[1]:[6]]+1)),Table2[[#This Row],[Sub]],NA()) ->  | H148: =IF(AND(Table2[[#This Row],[Cumulative revenue %]]>INDEX(Table1[Break point],Table2[[#Headers],[1]:[6]]), Table2[[#This Row],[Cumulative revenue %]]<=INDEX(Table1[Break point],Table2[[#Headers],[1]:[6]]+1)),Table2[[#This Row],[Sub]],NA()) ->  | I148: =IF(AND(Table2[[#This Row],[Cumulative revenue %]]>INDEX(Table1[Break point],Table2[[#Headers],[1]:[6]]), Table2[[#This Row],[Cumulative revenue %]]<=INDEX(Table1[Break point],Table2[[#Headers],[1]:[6]]+1)),Table2[[#This Row],[Sub]],NA()) -> 1144.45 | J148: =IF(AND(Table2[[#This Row],[Cumulative revenue %]]>INDEX(Table1[Break point],Table2[[#Headers],[1]:[6]]), Table2[[#This Row],[Cumulative revenue %]]<=INDEX(Table1[Break point],Table2[[#Headers],[1]:[6]]+1)),Table2[[#This Row],[Sub]],NA()) -> 
A149: =ROW()-ROW(Table2[[#Headers],[Position]]) -> 148 | B149: 1136.15 | C149: 697514.108 | D149: =Table2[[#This Row],[Cumulative revenue]]/SUM(Table2[Sub]) -> 0.9149247184 | E149: =IF(AND(Table2[[#This Row],[Cumulative revenue %]]>INDEX(Table1[Break point],Table2[[#Headers],[1]:[6]]), Table2[[#This Row],[Cumulative revenue %]]<=INDEX(Table1[Break point],Table2[[#Headers],[1]:[6]]+1)),Table2[[#This Row],[Sub]],NA()) ->  | F149: =IF(AND(Table2[[#This Row],[Cumulative revenue %]]>INDEX(Table1[Break point],Table2[[#Headers],[1]:[6]]), Table2[[#This Row],[Cumulative revenue %]]<=INDEX(Table1[Break point],Table2[[#Headers],[1]:[6]]+1)),Table2[[#This Row],[Sub]],NA()) ->  | G149: =IF(AND(Table2[[#This Row],[Cumulative revenue %]]>INDEX(Table1[Break point],Table2[[#Headers],[1]:[6]]), Table2[[#This Row],[Cumulative revenue %]]<=INDEX(Table1[Break point],Table2[[#Headers],[1]:[6]]+1)),Table2[[#This Row],[Sub]],NA()) ->  | H149: =IF(AND(Table2[[#This Row],[Cumulative revenue %]]>INDEX(Table1[Break point],Table2[[#Headers],[1]:[6]]), Table2[[#This Row],[Cumulative revenue %]]<=INDEX(Table1[Break point],Table2[[#Headers],[1]:[6]]+1)),Table2[[#This Row],[Sub]],NA()) ->  | I149: =IF(AND(Table2[[#This Row],[Cumulative revenue %]]>INDEX(Table1[Break point],Table2[[#Headers],[1]:[6]]), Table2[[#This Row],[Cumulative revenue %]]<=INDEX(Table1[Break point],Table2[[#Headers],[1]:[6]]+1)),Table2[[#This Row],[Sub]],NA()) -> 1136.15 | J149: =IF(AND(Table2[[#This Row],[Cumulative revenue %]]>INDEX(Table1[Break point],Table2[[#Headers],[1]:[6]]), Table2[[#This Row],[Cumulative revenue %]]<=INDEX(Table1[Break point],Table2[[#Headers],[1]:[6]]+1)),Table2[[#This Row],[Sub]],NA()) -> 
A150: =ROW()-ROW(Table2[[#Headers],[Position]]) -> 149 | B150: 1086.25 | C150: 698600.358 | D150: =Table2[[#This Row],[Cumulative revenue]]/SUM(Table2[Sub]) -> 0.9163495454 | E150: =IF(AND(Table2[[#This Row],[Cumulative revenue %]]>INDEX(Table1[Break point],Table2[[#Headers],[1]:[6]]), Table2[[#This Row],[Cumulative revenue %]]<=INDEX(Table1[Break point],Table2[[#Headers],[1]:[6]]+1)),Table2[[#This Row],[Sub]],NA()) ->  | F150: =IF(AND(Table2[[#This Row],[Cumulative revenue %]]>INDEX(Table1[Break point],Table2[[#Headers],[1]:[6]]), Table2[[#This Row],[Cumulative revenue %]]<=INDEX(Table1[Break point],Table2[[#Headers],[1]:[6]]+1)),Table2[[#This Row],[Sub]],NA()) ->  | G150: =IF(AND(Table2[[#This Row],[Cumulative revenue %]]>INDEX(Table1[Break point],Table2[[#Headers],[1]:[6]]), Table2[[#This Row],[Cumulative revenue %]]<=INDEX(Table1[Break point],Table2[[#Headers],[1]:[6]]+1)),Table2[[#This Row],[Sub]],NA()) ->  | H150: =IF(AND(Table2[[#This Row],[Cumulative revenue %]]>INDEX(Table1[Break point],Table2[[#Headers],[1]:[6]]), Table2[[#This Row],[Cumulative revenue %]]<=INDEX(Table1[Break point],Table2[[#Headers],[1]:[6]]+1)),Table2[[#This Row],[Sub]],NA()) ->  | I150: =IF(AND(Table2[[#This Row],[Cumulative revenue %]]>INDEX(Table1[Break point],Table2[[#Headers],[1]:[6]]), Table2[[#This Row],[Cumulative revenue %]]<=INDEX(Table1[Break point],Table2[[#Headers],[1]:[6]]+1)),Table2[[#This Row],[Sub]],NA()) -> 1086.25 | J150: =IF(AND(Table2[[#This Row],[Cumulative revenue %]]>INDEX(Table1[Break point],Table2[[#Headers],[1]:[6]]), Table2[[#This Row],[Cumulative revenue %]]<=INDEX(Table1[Break point],Table2[[#Headers],[1]:[6]]+1)),Table2[[#This Row],[Sub]],NA()) -> 
A151: =ROW()-ROW(Table2[[#Headers],[Position]]) -> 150 | B151: 1086.25 | C151: 699686.608 | D151: =Table2[[#This Row],[Cumulative revenue]]/SUM(Table2[Sub]) -> 0.9177743725 | E151: =IF(AND(Table2[[#This Row],[Cumulative revenue %]]>INDEX(Table1[Break point],Table2[[#Headers],[1]:[6]]), Table2[[#This Row],[Cumulative revenue %]]<=INDEX(Table1[Break point],Table2[[#Headers],[1]:[6]]+1)),Table2[[#This Row],[Sub]],NA()) ->  | F151: =IF(AND(Table2[[#This Row],[Cumulative revenue %]]>INDEX(Table1[Break point],Table2[[#Headers],[1]:[6]]), Table2[[#This Row],[Cumulative revenue %]]<=INDEX(Table1[Break point],Table2[[#Headers],[1]:[6]]+1)),Table2[[#This Row],[Sub]],NA()) ->  | G151: =IF(AND(Table2[[#This Row],[Cumulative revenue %]]>INDEX(Table1[Break point],Table2[[#Headers],[1]:[6]]), Table2[[#This Row],[Cumulative revenue %]]<=INDEX(Table1[Break point],Table2[[#Headers],[1]:[6]]+1)),Table2[[#This Row],[Sub]],NA()) ->  | H151: =IF(AND(Table2[[#This Row],[Cumulative revenue %]]>INDEX(Table1[Break point],Table2[[#Headers],[1]:[6]]), Table2[[#This Row],[Cumulative revenue %]]<=INDEX(Table1[Break point],Table2[[#Headers],[1]:[6]]+1)),Table2[[#This Row],[Sub]],NA()) ->  | I151: =IF(AND(Table2[[#This Row],[Cumulative revenue %]]>INDEX(Table1[Break point],Table2[[#Headers],[1]:[6]]), Table2[[#This Row],[Cumulative revenue %]]<=INDEX(Table1[Break point],Table2[[#Headers],[1]:[6]]+1)),Table2[[#This Row],[Sub]],NA()) -> 1086.25 | J151: =IF(AND(Table2[[#This Row],[Cumulative revenue %]]>INDEX(Table1[Break point],Table2[[#Headers],[1]:[6]]), Table2[[#This Row],[Cumulative revenue %]]<=INDEX(Table1[Break point],Table2[[#Headers],[1]:[6]]+1)),Table2[[#This Row],[Sub]],NA()) -> 
A152: =ROW()-ROW(Table2[[#Headers],[Position]]) -> 151 | B152: 1086.25 | C152: 700772.858 | D152: =Table2[[#This Row],[Cumulative revenue]]/SUM(Table2[Sub]) -> 0.9191991996 | E152: =IF(AND(Table2[[#This Row],[Cumulative revenue %]]>INDEX(Table1[Break point],Table2[[#Headers],[1]:[6]]), Table2[[#This Row],[Cumulative revenue %]]<=INDEX(Table1[Break point],Table2[[#Headers],[1]:[6]]+1)),Table2[[#This Row],[Sub]],NA()) ->  | F152: =IF(AND(Table2[[#This Row],[Cumulative revenue %]]>INDEX(Table1[Break point],Table2[[#Headers],[1]:[6]]), Table2[[#This Row],[Cumulative revenue %]]<=INDEX(Table1[Break point],Table2[[#Headers],[1]:[6]]+1)),Table2[[#This Row],[Sub]],NA()) ->  | G152: =IF(AND(Table2[[#This Row],[Cumulative revenue %]]>INDEX(Table1[Break point],Table2[[#Headers],[1]:[6]]), Table2[[#This Row],[Cumulative revenue %]]<=INDEX(Table1[Break point],Table2[[#Headers],[1]:[6]]+1)),Table2[[#This Row],[Sub]],NA()) ->  | H152: =IF(AND(Table2[[#This Row],[Cumulative revenue %]]>INDEX(Table1[Break point],Table2[[#Headers],[1]:[6]]), Table2[[#This Row],[Cumulative revenue %]]<=INDEX(Table1[Break point],Table2[[#Headers],[1]:[6]]+1)),Table2[[#This Row],[Sub]],NA()) ->  | I152: =IF(AND(Table2[[#This Row],[Cumulative revenue %]]>INDEX(Table1[Break point],Table2[[#Headers],[1]:[6]]), Table2[[#This Row],[Cumulative revenue %]]<=INDEX(Table1[Break point],Table2[[#Headers],[1]:[6]]+1)),Table2[[#This Row],[Sub]],NA()) -> 1086.25 | J152: =IF(AND(Table2[[#This Row],[Cumulative revenue %]]>INDEX(Table1[Break point],Table2[[#Headers],[1]:[6]]), Table2[[#This Row],[Cumulative revenue %]]<=INDEX(Table1[Break point],Table2[[#Headers],[1]:[6]]+1)),Table2[[#This Row],[Sub]],NA()) -> 
A153: =ROW()-ROW(Table2[[#Headers],[Position]]) -> 152 | B153: 1027.49 | C153: 701800.348 | D153: =Table2[[#This Row],[Cumulative revenue]]/SUM(Table2[Sub]) -> 0.9205469515 | E153: =IF(AND(Table2[[#This Row],[Cumulative revenue %]]>INDEX(Table1[Break point],Table2[[#Headers],[1]:[6]]), Table2[[#This Row],[Cumulative revenue %]]<=INDEX(Table1[Break point],Table2[[#Headers],[1]:[6]]+1)),Table2[[#This Row],[Sub]],NA()) ->  | F153: =IF(AND(Table2[[#This Row],[Cumulative revenue %]]>INDEX(Table1[Break point],Table2[[#Headers],[1]:[6]]), Table2[[#This Row],[Cumulative revenue %]]<=INDEX(Table1[Break point],Table2[[#Headers],[1]:[6]]+1)),Table2[[#This Row],[Sub]],NA()) ->  | G153: =IF(AND(Table2[[#This Row],[Cumulative revenue %]]>INDEX(Table1[Break point],Table2[[#Headers],[1]:[6]]), Table2[[#This Row],[Cumulative revenue %]]<=INDEX(Table1[Break point],Table2[[#Headers],[1]:[6]]+1)),Table2[[#This Row],[Sub]],NA()) ->  | H153: =IF(AND(Table2[[#This Row],[Cumulative revenue %]]>INDEX(Table1[Break point],Table2[[#Headers],[1]:[6]]), Table2[[#This Row],[Cumulative revenue %]]<=INDEX(Table1[Break point],Table2[[#Headers],[1]:[6]]+1)),Table2[[#This Row],[Sub]],NA()) ->  | I153: =IF(AND(Table2[[#This Row],[Cumulative revenue %]]>INDEX(Table1[Break point],Table2[[#Headers],[1]:[6]]), Table2[[#This Row],[Cumulative revenue %]]<=INDEX(Table1[Break point],Table2[[#Headers],[1]:[6]]+1)),Table2[[#This Row],[Sub]],NA()) -> 1027.49 | J153: =IF(AND(Table2[[#This Row],[Cumulative revenue %]]>INDEX(Table1[Break point],Table2[[#Headers],[1]:[6]]), Table2[[#This Row],[Cumulative revenue %]]<=INDEX(Table1[Break point],Table2[[#Headers],[1]:[6]]+1)),Table2[[#This Row],[Sub]],NA()) -> 
A154: =ROW()-ROW(Table2[[#Headers],[Position]]) -> 153 | B154: 1005.05 | C154: 702805.398 | D154: =Table2[[#This Row],[Cumulative revenue]]/SUM(Table2[Sub]) -> 0.9218652691 | E154: =IF(AND(Table2[[#This Row],[Cumulative revenue %]]>INDEX(Table1[Break point],Table2[[#Headers],[1]:[6]]), Table2[[#This Row],[Cumulative revenue %]]<=INDEX(Table1[Break point],Table2[[#Headers],[1]:[6]]+1)),Table2[[#This Row],[Sub]],NA()) ->  | F154: =IF(AND(Table2[[#This Row],[Cumulative revenue %]]>INDEX(Table1[Break point],Table2[[#Headers],[1]:[6]]), Table2[[#This Row],[Cumulative revenue %]]<=INDEX(Table1[Break point],Table2[[#Headers],[1]:[6]]+1)),Table2[[#This Row],[Sub]],NA()) ->  | G154: =IF(AND(Table2[[#This Row],[Cumulative revenue %]]>INDEX(Table1[Break point],Table2[[#Headers],[1]:[6]]), Table2[[#This Row],[Cumulative revenue %]]<=INDEX(Table1[Break point],Table2[[#Headers],[1]:[6]]+1)),Table2[[#This Row],[Sub]],NA()) ->  | H154: =IF(AND(Table2[[#This Row],[Cumulative revenue %]]>INDEX(Table1[Break point],Table2[[#Headers],[1]:[6]]), Table2[[#This Row],[Cumulative revenue %]]<=INDEX(Table1[Break point],Table2[[#Headers],[1]:[6]]+1)),Table2[[#This Row],[Sub]],NA()) ->  | I154: =IF(AND(Table2[[#This Row],[Cumulative revenue %]]>INDEX(Table1[Break point],Table2[[#Headers],[1]:[6]]), Table2[[#This Row],[Cumulative revenue %]]<=INDEX(Table1[Break point],Table2[[#Headers],[1]:[6]]+1)),Table2[[#This Row],[Sub]],NA()) -> 1005.05 | J154: =IF(AND(Table2[[#This Row],[Cumulative revenue %]]>INDEX(Table1[Break point],Table2[[#Headers],[1]:[6]]), Table2[[#This Row],[Cumulative revenue %]]<=INDEX(Table1[Break point],Table2[[#Headers],[1]:[6]]+1)),Table2[[#This Row],[Sub]],NA()) -> 
A155: =ROW()-ROW(Table2[[#Headers],[Position]]) -> 154 | B155: 1000 | C155: 703805.398 | D155: =Table2[[#This Row],[Cumulative revenue]]/SUM(Table2[Sub]) -> 0.9231769625 | E155: =IF(AND(Table2[[#This Row],[Cumulative revenue %]]>INDEX(Table1[Break point],Table2[[#Headers],[1]:[6]]), Table2[[#This Row],[Cumulative revenue %]]<=INDEX(Table1[Break point],Table2[[#Headers],[1]:[6]]+1)),Table2[[#This Row],[Sub]],NA()) ->  | F155: =IF(AND(Table2[[#This Row],[Cumulative revenue %]]>INDEX(Table1[Break point],Table2[[#Headers],[1]:[6]]), Table2[[#This Row],[Cumulative revenue %]]<=INDEX(Table1[Break point],Table2[[#Headers],[1]:[6]]+1)),Table2[[#This Row],[Sub]],NA()) ->  | G155: =IF(AND(Table2[[#This Row],[Cumulative revenue %]]>INDEX(Table1[Break point],Table2[[#Headers],[1]:[6]]), Table2[[#This Row],[Cumulative revenue %]]<=INDEX(Table1[Break point],Table2[[#Headers],[1]:[6]]+1)),Table2[[#This Row],[Sub]],NA()) ->  | H155: =IF(AND(Table2[[#This Row],[Cumulative revenue %]]>INDEX(Table1[Break point],Table2[[#Headers],[1]:[6]]), Table2[[#This Row],[Cumulative revenue %]]<=INDEX(Table1[Break point],Table2[[#Headers],[1]:[6]]+1)),Table2[[#This Row],[Sub]],NA()) ->  | I155: =IF(AND(Table2[[#This Row],[Cumulative revenue %]]>INDEX(Table1[Break point],Table2[[#Headers],[1]:[6]]), Table2[[#This Row],[Cumulative revenue %]]<=INDEX(Table1[Break point],Table2[[#Headers],[1]:[6]]+1)),Table2[[#This Row],[Sub]],NA()) -> 1000 | J155: =IF(AND(Table2[[#This Row],[Cumulative revenue %]]>INDEX(Table1[Break point],Table2[[#Headers],[1]:[6]]), Table2[[#This Row],[Cumulative revenue %]]<=INDEX(Table1[Break point],Table2[[#Headers],[1]:[6]]+1)),Table2[[#This Row],[Sub]],NA()) -> 
A156: =ROW()-ROW(Table2[[#Headers],[Position]]) -> 155 | B156: 987.5 | C156: 704792.898 | D156: =Table2[[#This Row],[Cumulative revenue]]/SUM(Table2[Sub]) -> 0.9244722599 | E156: =IF(AND(Table2[[#This Row],[Cumulative revenue %]]>INDEX(Table1[Break point],Table2[[#Headers],[1]:[6]]), Table2[[#This Row],[Cumulative revenue %]]<=INDEX(Table1[Break point],Table2[[#Headers],[1]:[6]]+1)),Table2[[#This Row],[Sub]],NA()) ->  | F156: =IF(AND(Table2[[#This Row],[Cumulative revenue %]]>INDEX(Table1[Break point],Table2[[#Headers],[1]:[6]]), Table2[[#This Row],[Cumulative revenue %]]<=INDEX(Table1[Break point],Table2[[#Headers],[1]:[6]]+1)),Table2[[#This Row],[Sub]],NA()) ->  | G156: =IF(AND(Table2[[#This Row],[Cumulative revenue %]]>INDEX(Table1[Break point],Table2[[#Headers],[1]:[6]]), Table2[[#This Row],[Cumulative revenue %]]<=INDEX(Table1[Break point],Table2[[#Headers],[1]:[6]]+1)),Table2[[#This Row],[Sub]],NA()) ->  | H156: =IF(AND(Table2[[#This Row],[Cumulative revenue %]]>INDEX(Table1[Break point],Table2[[#Headers],[1]:[6]]), Table2[[#This Row],[Cumulative revenue %]]<=INDEX(Table1[Break point],Table2[[#Headers],[1]:[6]]+1)),Table2[[#This Row],[Sub]],NA()) ->  | I156: =IF(AND(Table2[[#This Row],[Cumulative revenue %]]>INDEX(Table1[Break point],Table2[[#Headers],[1]:[6]]), Table2[[#This Row],[Cumulative revenue %]]<=INDEX(Table1[Break point],Table2[[#Headers],[1]:[6]]+1)),Table2[[#This Row],[Sub]],NA()) -> 987.5 | J156: =IF(AND(Table2[[#This Row],[Cumulative revenue %]]>INDEX(Table1[Break point],Table2[[#Headers],[1]:[6]]), Table2[[#This Row],[Cumulative revenue %]]<=INDEX(Table1[Break point],Table2[[#Headers],[1]:[6]]+1)),Table2[[#This Row],[Sub]],NA()) -> 
A157: =ROW()-ROW(Table2[[#Headers],[Position]]) -> 156 | B157: 977.08 | C157: 705769.978 | D157: =Table2[[#This Row],[Cumulative revenue]]/SUM(Table2[Sub]) -> 0.9257538894 | E157: =IF(AND(Table2[[#This Row],[Cumulative revenue %]]>INDEX(Table1[Break point],Table2[[#Headers],[1]:[6]]), Table2[[#This Row],[Cumulative revenue %]]<=INDEX(Table1[Break point],Table2[[#Headers],[1]:[6]]+1)),Table2[[#This Row],[Sub]],NA()) ->  | F157: =IF(AND(Table2[[#This Row],[Cumulative revenue %]]>INDEX(Table1[Break point],Table2[[#Headers],[1]:[6]]), Table2[[#This Row],[Cumulative revenue %]]<=INDEX(Table1[Break point],Table2[[#Headers],[1]:[6]]+1)),Table2[[#This Row],[Sub]],NA()) ->  | G157: =IF(AND(Table2[[#This Row],[Cumulative revenue %]]>INDEX(Table1[Break point],Table2[[#Headers],[1]:[6]]), Table2[[#This Row],[Cumulative revenue %]]<=INDEX(Table1[Break point],Table2[[#Headers],[1]:[6]]+1)),Table2[[#This Row],[Sub]],NA()) ->  | H157: =IF(AND(Table2[[#This Row],[Cumulative revenue %]]>INDEX(Table1[Break point],Table2[[#Headers],[1]:[6]]), Table2[[#This Row],[Cumulative revenue %]]<=INDEX(Table1[Break point],Table2[[#Headers],[1]:[6]]+1)),Table2[[#This Row],[Sub]],NA()) ->  | I157: =IF(AND(Table2[[#This Row],[Cumulative revenue %]]>INDEX(Table1[Break point],Table2[[#Headers],[1]:[6]]), Table2[[#This Row],[Cumulative revenue %]]<=INDEX(Table1[Break point],Table2[[#Headers],[1]:[6]]+1)),Table2[[#This Row],[Sub]],NA()) -> 977.08 | J157: =IF(AND(Table2[[#This Row],[Cumulative revenue %]]>INDEX(Table1[Break point],Table2[[#Headers],[1]:[6]]), Table2[[#This Row],[Cumulative revenue %]]<=INDEX(Table1[Break point],Table2[[#Headers],[1]:[6]]+1)),Table2[[#This Row],[Sub]],NA()) -> 
A158: =ROW()-ROW(Table2[[#Headers],[Position]]) -> 157 | B158: 966.65 | C158: 706736.628 | D158: =Table2[[#This Row],[Cumulative revenue]]/SUM(Table2[Sub]) -> 0.9270218379 | E158: =IF(AND(Table2[[#This Row],[Cumulative revenue %]]>INDEX(Table1[Break point],Table2[[#Headers],[1]:[6]]), Table2[[#This Row],[Cumulative revenue %]]<=INDEX(Table1[Break point],Table2[[#Headers],[1]:[6]]+1)),Table2[[#This Row],[Sub]],NA()) ->  | F158: =IF(AND(Table2[[#This Row],[Cumulative revenue %]]>INDEX(Table1[Break point],Table2[[#Headers],[1]:[6]]), Table2[[#This Row],[Cumulative revenue %]]<=INDEX(Table1[Break point],Table2[[#Headers],[1]:[6]]+1)),Table2[[#This Row],[Sub]],NA()) ->  | G158: =IF(AND(Table2[[#This Row],[Cumulative revenue %]]>INDEX(Table1[Break point],Table2[[#Headers],[1]:[6]]), Table2[[#This Row],[Cumulative revenue %]]<=INDEX(Table1[Break point],Table2[[#Headers],[1]:[6]]+1)),Table2[[#This Row],[Sub]],NA()) ->  | H158: =IF(AND(Table2[[#This Row],[Cumulative revenue %]]>INDEX(Table1[Break point],Table2[[#Headers],[1]:[6]]), Table2[[#This Row],[Cumulative revenue %]]<=INDEX(Table1[Break point],Table2[[#Headers],[1]:[6]]+1)),Table2[[#This Row],[Sub]],NA()) ->  | I158: =IF(AND(Table2[[#This Row],[Cumulative revenue %]]>INDEX(Table1[Break point],Table2[[#Headers],[1]:[6]]), Table2[[#This Row],[Cumulative revenue %]]<=INDEX(Table1[Break point],Table2[[#Headers],[1]:[6]]+1)),Table2[[#This Row],[Sub]],NA()) -> 966.65 | J158: =IF(AND(Table2[[#This Row],[Cumulative revenue %]]>INDEX(Table1[Break point],Table2[[#Headers],[1]:[6]]), Table2[[#This Row],[Cumulative revenue %]]<=INDEX(Table1[Break point],Table2[[#Headers],[1]:[6]]+1)),Table2[[#This Row],[Sub]],NA()) -> 
A159: =ROW()-ROW(Table2[[#Headers],[Position]]) -> 158 | B159: 911.72 | C159: 707648.348 | D159: =Table2[[#This Row],[Cumulative revenue]]/SUM(Table2[Sub]) -> 0.9282177351 | E159: =IF(AND(Table2[[#This Row],[Cumulative revenue %]]>INDEX(Table1[Break point],Table2[[#Headers],[1]:[6]]), Table2[[#This Row],[Cumulative revenue %]]<=INDEX(Table1[Break point],Table2[[#Headers],[1]:[6]]+1)),Table2[[#This Row],[Sub]],NA()) ->  | F159: =IF(AND(Table2[[#This Row],[Cumulative revenue %]]>INDEX(Table1[Break point],Table2[[#Headers],[1]:[6]]), Table2[[#This Row],[Cumulative revenue %]]<=INDEX(Table1[Break point],Table2[[#Headers],[1]:[6]]+1)),Table2[[#This Row],[Sub]],NA()) ->  | G159: =IF(AND(Table2[[#This Row],[Cumulative revenue %]]>INDEX(Table1[Break point],Table2[[#Headers],[1]:[6]]), Table2[[#This Row],[Cumulative revenue %]]<=INDEX(Table1[Break point],Table2[[#Headers],[1]:[6]]+1)),Table2[[#This Row],[Sub]],NA()) ->  | H159: =IF(AND(Table2[[#This Row],[Cumulative revenue %]]>INDEX(Table1[Break point],Table2[[#Headers],[1]:[6]]), Table2[[#This Row],[Cumulative revenue %]]<=INDEX(Table1[Break point],Table2[[#Headers],[1]:[6]]+1)),Table2[[#This Row],[Sub]],NA()) ->  | I159: =IF(AND(Table2[[#This Row],[Cumulative revenue %]]>INDEX(Table1[Break point],Table2[[#Headers],[1]:[6]]), Table2[[#This Row],[Cumulative revenue %]]<=INDEX(Table1[Break point],Table2[[#Headers],[1]:[6]]+1)),Table2[[#This Row],[Sub]],NA()) -> 911.72 | J159: =IF(AND(Table2[[#This Row],[Cumulative revenue %]]>INDEX(Table1[Break point],Table2[[#Headers],[1]:[6]]), Table2[[#This Row],[Cumulative revenue %]]<=INDEX(Table1[Break point],Table2[[#Headers],[1]:[6]]+1)),Table2[[#This Row],[Sub]],NA()) -> 
A160: =ROW()-ROW(Table2[[#Headers],[Position]]) -> 159 | B160: 888.75 | C160: 708537.098 | D160: =Table2[[#This Row],[Cumulative revenue]]/SUM(Table2[Sub]) -> 0.9293835027 | E160: =IF(AND(Table2[[#This Row],[Cumulative revenue %]]>INDEX(Table1[Break point],Table2[[#Headers],[1]:[6]]), Table2[[#This Row],[Cumulative revenue %]]<=INDEX(Table1[Break point],Table2[[#Headers],[1]:[6]]+1)),Table2[[#This Row],[Sub]],NA()) ->  | F160: =IF(AND(Table2[[#This Row],[Cumulative revenue %]]>INDEX(Table1[Break point],Table2[[#Headers],[1]:[6]]), Table2[[#This Row],[Cumulative revenue %]]<=INDEX(Table1[Break point],Table2[[#Headers],[1]:[6]]+1)),Table2[[#This Row],[Sub]],NA()) ->  | G160: =IF(AND(Table2[[#This Row],[Cumulative revenue %]]>INDEX(Table1[Break point],Table2[[#Headers],[1]:[6]]), Table2[[#This Row],[Cumulative revenue %]]<=INDEX(Table1[Break point],Table2[[#Headers],[1]:[6]]+1)),Table2[[#This Row],[Sub]],NA()) ->  | H160: =IF(AND(Table2[[#This Row],[Cumulative revenue %]]>INDEX(Table1[Break point],Table2[[#Headers],[1]:[6]]), Table2[[#This Row],[Cumulative revenue %]]<=INDEX(Table1[Break point],Table2[[#Headers],[1]:[6]]+1)),Table2[[#This Row],[Sub]],NA()) ->  | I160: =IF(AND(Table2[[#This Row],[Cumulative revenue %]]>INDEX(Table1[Break point],Table2[[#Headers],[1]:[6]]), Table2[[#This Row],[Cumulative revenue %]]<=INDEX(Table1[Break point],Table2[[#Headers],[1]:[6]]+1)),Table2[[#This Row],[Sub]],NA()) -> 888.75 | J160: =IF(AND(Table2[[#This Row],[Cumulative revenue %]]>INDEX(Table1[Break point],Table2[[#Headers],[1]:[6]]), Table2[[#This Row],[Cumulative revenue %]]<=INDEX(Table1[Break point],Table2[[#Headers],[1]:[6]]+1)),Table2[[#This Row],[Sub]],NA()) -> 
A161: =ROW()-ROW(Table2[[#Headers],[Position]]) -> 160 | B161: 888.75 | C161: 709425.848 | D161: =Table2[[#This Row],[Cumulative revenue]]/SUM(Table2[Sub]) -> 0.9305492703 | E161: =IF(AND(Table2[[#This Row],[Cumulative revenue %]]>INDEX(Table1[Break point],Table2[[#Headers],[1]:[6]]), Table2[[#This Row],[Cumulative revenue %]]<=INDEX(Table1[Break point],Table2[[#Headers],[1]:[6]]+1)),Table2[[#This Row],[Sub]],NA()) ->  | F161: =IF(AND(Table2[[#This Row],[Cumulative revenue %]]>INDEX(Table1[Break point],Table2[[#Headers],[1]:[6]]), Table2[[#This Row],[Cumulative revenue %]]<=INDEX(Table1[Break point],Table2[[#Headers],[1]:[6]]+1)),Table2[[#This Row],[Sub]],NA()) ->  | G161: =IF(AND(Table2[[#This Row],[Cumulative revenue %]]>INDEX(Table1[Break point],Table2[[#Headers],[1]:[6]]), Table2[[#This Row],[Cumulative revenue %]]<=INDEX(Table1[Break point],Table2[[#Headers],[1]:[6]]+1)),Table2[[#This Row],[Sub]],NA()) ->  | H161: =IF(AND(Table2[[#This Row],[Cumulative revenue %]]>INDEX(Table1[Break point],Table2[[#Headers],[1]:[6]]), Table2[[#This Row],[Cumulative revenue %]]<=INDEX(Table1[Break point],Table2[[#Headers],[1]:[6]]+1)),Table2[[#This Row],[Sub]],NA()) ->  | I161: =IF(AND(Table2[[#This Row],[Cumulative revenue %]]>INDEX(Table1[Break point],Table2[[#Headers],[1]:[6]]), Table2[[#This Row],[Cumulative revenue %]]<=INDEX(Table1[Break point],Table2[[#Headers],[1]:[6]]+1)),Table2[[#This Row],[Sub]],NA()) -> 888.75 | J161: =IF(AND(Table2[[#This Row],[Cumulative revenue %]]>INDEX(Table1[Break point],Table2[[#Headers],[1]:[6]]), Table2[[#This Row],[Cumulative revenue %]]<=INDEX(Table1[Break point],Table2[[#Headers],[1]:[6]]+1)),Table2[[#This Row],[Sub]],NA()) -> 
A162: =ROW()-ROW(Table2[[#Headers],[Position]]) -> 161 | B162: 888.75 | C162: 710314.598 | D162: =Table2[[#This Row],[Cumulative revenue]]/SUM(Table2[Sub]) -> 0.9317150378 | E162: =IF(AND(Table2[[#This Row],[Cumulative revenue %]]>INDEX(Table1[Break point],Table2[[#Headers],[1]:[6]]), Table2[[#This Row],[Cumulative revenue %]]<=INDEX(Table1[Break point],Table2[[#Headers],[1]:[6]]+1)),Table2[[#This Row],[Sub]],NA()) ->  | F162: =IF(AND(Table2[[#This Row],[Cumulative revenue %]]>INDEX(Table1[Break point],Table2[[#Headers],[1]:[6]]), Table2[[#This Row],[Cumulative revenue %]]<=INDEX(Table1[Break point],Table2[[#Headers],[1]:[6]]+1)),Table2[[#This Row],[Sub]],NA()) ->  | G162: =IF(AND(Table2[[#This Row],[Cumulative revenue %]]>INDEX(Table1[Break point],Table2[[#Headers],[1]:[6]]), Table2[[#This Row],[Cumulative revenue %]]<=INDEX(Table1[Break point],Table2[[#Headers],[1]:[6]]+1)),Table2[[#This Row],[Sub]],NA()) ->  | H162: =IF(AND(Table2[[#This Row],[Cumulative revenue %]]>INDEX(Table1[Break point],Table2[[#Headers],[1]:[6]]), Table2[[#This Row],[Cumulative revenue %]]<=INDEX(Table1[Break point],Table2[[#Headers],[1]:[6]]+1)),Table2[[#This Row],[Sub]],NA()) ->  | I162: =IF(AND(Table2[[#This Row],[Cumulative revenue %]]>INDEX(Table1[Break point],Table2[[#Headers],[1]:[6]]), Table2[[#This Row],[Cumulative revenue %]]<=INDEX(Table1[Break point],Table2[[#Headers],[1]:[6]]+1)),Table2[[#This Row],[Sub]],NA()) -> 888.75 | J162: =IF(AND(Table2[[#This Row],[Cumulative revenue %]]>INDEX(Table1[Break point],Table2[[#Headers],[1]:[6]]), Table2[[#This Row],[Cumulative revenue %]]<=INDEX(Table1[Break point],Table2[[#Headers],[1]:[6]]+1)),Table2[[#This Row],[Sub]],NA()) -> 
A163: =ROW()-ROW(Table2[[#Headers],[Position]]) -> 162 | B163: 881.1 | C163: 711195.698 | D163: =Table2[[#This Row],[Cumulative revenue]]/SUM(Table2[Sub]) -> 0.932870771 | E163: =IF(AND(Table2[[#This Row],[Cumulative revenue %]]>INDEX(Table1[Break point],Table2[[#Headers],[1]:[6]]), Table2[[#This Row],[Cumulative revenue %]]<=INDEX(Table1[Break point],Table2[[#Headers],[1]:[6]]+1)),Table2[[#This Row],[Sub]],NA()) ->  | F163: =IF(AND(Table2[[#This Row],[Cumulative revenue %]]>INDEX(Table1[Break point],Table2[[#Headers],[1]:[6]]), Table2[[#This Row],[Cumulative revenue %]]<=INDEX(Table1[Break point],Table2[[#Headers],[1]:[6]]+1)),Table2[[#This Row],[Sub]],NA()) ->  | G163: =IF(AND(Table2[[#This Row],[Cumulative revenue %]]>INDEX(Table1[Break point],Table2[[#Headers],[1]:[6]]), Table2[[#This Row],[Cumulative revenue %]]<=INDEX(Table1[Break point],Table2[[#Headers],[1]:[6]]+1)),Table2[[#This Row],[Sub]],NA()) ->  | H163: =IF(AND(Table2[[#This Row],[Cumulative revenue %]]>INDEX(Table1[Break point],Table2[[#Headers],[1]:[6]]), Table2[[#This Row],[Cumulative revenue %]]<=INDEX(Table1[Break point],Table2[[#Headers],[1]:[6]]+1)),Table2[[#This Row],[Sub]],NA()) ->  | I163: =IF(AND(Table2[[#This Row],[Cumulative revenue %]]>INDEX(Table1[Break point],Table2[[#Headers],[1]:[6]]), Table2[[#This Row],[Cumulative revenue %]]<=INDEX(Table1[Break point],Table2[[#Headers],[1]:[6]]+1)),Table2[[#This Row],[Sub]],NA()) -> 881.1 | J163: =IF(AND(Table2[[#This Row],[Cumulative revenue %]]>INDEX(Table1[Break point],Table2[[#Headers],[1]:[6]]), Table2[[#This Row],[Cumulative revenue %]]<=INDEX(Table1[Break point],Table2[[#Headers],[1]:[6]]+1)),Table2[[#This Row],[Sub]],NA()) -> 
A164: =ROW()-ROW(Table2[[#Headers],[Position]]) -> 163 | B164: 873.64 | C164: 712069.338 | D164: =Table2[[#This Row],[Cumulative revenue]]/SUM(Table2[Sub]) -> 0.9340167189 | E164: =IF(AND(Table2[[#This Row],[Cumulative revenue %]]>INDEX(Table1[Break point],Table2[[#Headers],[1]:[6]]), Table2[[#This Row],[Cumulative revenue %]]<=INDEX(Table1[Break point],Table2[[#Headers],[1]:[6]]+1)),Table2[[#This Row],[Sub]],NA()) ->  | F164: =IF(AND(Table2[[#This Row],[Cumulative revenue %]]>INDEX(Table1[Break point],Table2[[#Headers],[1]:[6]]), Table2[[#This Row],[Cumulative revenue %]]<=INDEX(Table1[Break point],Table2[[#Headers],[1]:[6]]+1)),Table2[[#This Row],[Sub]],NA()) ->  | G164: =IF(AND(Table2[[#This Row],[Cumulative revenue %]]>INDEX(Table1[Break point],Table2[[#Headers],[1]:[6]]), Table2[[#This Row],[Cumulative revenue %]]<=INDEX(Table1[Break point],Table2[[#Headers],[1]:[6]]+1)),Table2[[#This Row],[Sub]],NA()) ->  | H164: =IF(AND(Table2[[#This Row],[Cumulative revenue %]]>INDEX(Table1[Break point],Table2[[#Headers],[1]:[6]]), Table2[[#This Row],[Cumulative revenue %]]<=INDEX(Table1[Break point],Table2[[#Headers],[1]:[6]]+1)),Table2[[#This Row],[Sub]],NA()) ->  | I164: =IF(AND(Table2[[#This Row],[Cumulative revenue %]]>INDEX(Table1[Break point],Table2[[#Headers],[1]:[6]]), Table2[[#This Row],[Cumulative revenue %]]<=INDEX(Table1[Break point],Table2[[#Headers],[1]:[6]]+1)),Table2[[#This Row],[Sub]],NA()) -> 873.64 | J164: =IF(AND(Table2[[#This Row],[Cumulative revenue %]]>INDEX(Table1[Break point],Table2[[#Headers],[1]:[6]]), Table2[[#This Row],[Cumulative revenue %]]<=INDEX(Table1[Break point],Table2[[#Headers],[1]:[6]]+1)),Table2[[#This Row],[Sub]],NA()) -> 
A165: =ROW()-ROW(Table2[[#Headers],[Position]]) -> 164 | B165: 869.35 | C165: 712938.688 | D165: =Table2[[#This Row],[Cumulative revenue]]/SUM(Table2[Sub]) -> 0.9351570396 | E165: =IF(AND(Table2[[#This Row],[Cumulative revenue %]]>INDEX(Table1[Break point],Table2[[#Headers],[1]:[6]]), Table2[[#This Row],[Cumulative revenue %]]<=INDEX(Table1[Break point],Table2[[#Headers],[1]:[6]]+1)),Table2[[#This Row],[Sub]],NA()) ->  | F165: =IF(AND(Table2[[#This Row],[Cumulative revenue %]]>INDEX(Table1[Break point],Table2[[#Headers],[1]:[6]]), Table2[[#This Row],[Cumulative revenue %]]<=INDEX(Table1[Break point],Table2[[#Headers],[1]:[6]]+1)),Table2[[#This Row],[Sub]],NA()) ->  | G165: =IF(AND(Table2[[#This Row],[Cumulative revenue %]]>INDEX(Table1[Break point],Table2[[#Headers],[1]:[6]]), Table2[[#This Row],[Cumulative revenue %]]<=INDEX(Table1[Break point],Table2[[#Headers],[1]:[6]]+1)),Table2[[#This Row],[Sub]],NA()) ->  | H165: =IF(AND(Table2[[#This Row],[Cumulative revenue %]]>INDEX(Table1[Break point],Table2[[#Headers],[1]:[6]]), Table2[[#This Row],[Cumulative revenue %]]<=INDEX(Table1[Break point],Table2[[#Headers],[1]:[6]]+1)),Table2[[#This Row],[Sub]],NA()) ->  | I165: =IF(AND(Table2[[#This Row],[Cumulative revenue %]]>INDEX(Table1[Break point],Table2[[#Headers],[1]:[6]]), Table2[[#This Row],[Cumulative revenue %]]<=INDEX(Table1[Break point],Table2[[#Headers],[1]:[6]]+1)),Table2[[#This Row],[Sub]],NA()) -> 869.35 | J165: =IF(AND(Table2[[#This Row],[Cumulative revenue %]]>INDEX(Table1[Break point],Table2[[#Headers],[1]:[6]]), Table2[[#This Row],[Cumulative revenue %]]<=INDEX(Table1[Break point],Table2[[#Headers],[1]:[6]]+1)),Table2[[#This Row],[Sub]],NA()) -> 
A166: =ROW()-ROW(Table2[[#Headers],[Position]]) -> 165 | B166: 865.56 | C166: 713804.248 | D166: =Table2[[#This Row],[Cumulative revenue]]/SUM(Table2[Sub]) -> 0.9362923891 | E166: =IF(AND(Table2[[#This Row],[Cumulative revenue %]]>INDEX(Table1[Break point],Table2[[#Headers],[1]:[6]]), Table2[[#This Row],[Cumulative revenue %]]<=INDEX(Table1[Break point],Table2[[#Headers],[1]:[6]]+1)),Table2[[#This Row],[Sub]],NA()) ->  | F166: =IF(AND(Table2[[#This Row],[Cumulative revenue %]]>INDEX(Table1[Break point],Table2[[#Headers],[1]:[6]]), Table2[[#This Row],[Cumulative revenue %]]<=INDEX(Table1[Break point],Table2[[#Headers],[1]:[6]]+1)),Table2[[#This Row],[Sub]],NA()) ->  | G166: =IF(AND(Table2[[#This Row],[Cumulative revenue %]]>INDEX(Table1[Break point],Table2[[#Headers],[1]:[6]]), Table2[[#This Row],[Cumulative revenue %]]<=INDEX(Table1[Break point],Table2[[#Headers],[1]:[6]]+1)),Table2[[#This Row],[Sub]],NA()) ->  | H166: =IF(AND(Table2[[#This Row],[Cumulative revenue %]]>INDEX(Table1[Break point],Table2[[#Headers],[1]:[6]]), Table2[[#This Row],[Cumulative revenue %]]<=INDEX(Table1[Break point],Table2[[#Headers],[1]:[6]]+1)),Table2[[#This Row],[Sub]],NA()) ->  | I166: =IF(AND(Table2[[#This Row],[Cumulative revenue %]]>INDEX(Table1[Break point],Table2[[#Headers],[1]:[6]]), Table2[[#This Row],[Cumulative revenue %]]<=INDEX(Table1[Break point],Table2[[#Headers],[1]:[6]]+1)),Table2[[#This Row],[Sub]],NA()) -> 865.56 | J166: =IF(AND(Table2[[#This Row],[Cumulative revenue %]]>INDEX(Table1[Break point],Table2[[#Headers],[1]:[6]]), Table2[[#This Row],[Cumulative revenue %]]<=INDEX(Table1[Break point],Table2[[#Headers],[1]:[6]]+1)),Table2[[#This Row],[Sub]],NA()) -> 
A167: =ROW()-ROW(Table2[[#Headers],[Position]]) -> 166 | B167: 856.87 | C167: 714661.118 | D167: =Table2[[#This Row],[Cumulative revenue]]/SUM(Table2[Sub]) -> 0.9374163399 | E167: =IF(AND(Table2[[#This Row],[Cumulative revenue %]]>INDEX(Table1[Break point],Table2[[#Headers],[1]:[6]]), Table2[[#This Row],[Cumulative revenue %]]<=INDEX(Table1[Break point],Table2[[#Headers],[1]:[6]]+1)),Table2[[#This Row],[Sub]],NA()) ->  | F167: =IF(AND(Table2[[#This Row],[Cumulative revenue %]]>INDEX(Table1[Break point],Table2[[#Headers],[1]:[6]]), Table2[[#This Row],[Cumulative revenue %]]<=INDEX(Table1[Break point],Table2[[#Headers],[1]:[6]]+1)),Table2[[#This Row],[Sub]],NA()) ->  | G167: =IF(AND(Table2[[#This Row],[Cumulative revenue %]]>INDEX(Table1[Break point],Table2[[#Headers],[1]:[6]]), Table2[[#This Row],[Cumulative revenue %]]<=INDEX(Table1[Break point],Table2[[#Headers],[1]:[6]]+1)),Table2[[#This Row],[Sub]],NA()) ->  | H167: =IF(AND(Table2[[#This Row],[Cumulative revenue %]]>INDEX(Table1[Break point],Table2[[#Headers],[1]:[6]]), Table2[[#This Row],[Cumulative revenue %]]<=INDEX(Table1[Break point],Table2[[#Headers],[1]:[6]]+1)),Table2[[#This Row],[Sub]],NA()) ->  | I167: =IF(AND(Table2[[#This Row],[Cumulative revenue %]]>INDEX(Table1[Break point],Table2[[#Headers],[1]:[6]]), Table2[[#This Row],[Cumulative revenue %]]<=INDEX(Table1[Break point],Table2[[#Headers],[1]:[6]]+1)),Table2[[#This Row],[Sub]],NA()) -> 856.87 | J167: =IF(AND(Table2[[#This Row],[Cumulative revenue %]]>INDEX(Table1[Break point],Table2[[#Headers],[1]:[6]]), Table2[[#This Row],[Cumulative revenue %]]<=INDEX(Table1[Break point],Table2[[#Headers],[1]:[6]]+1)),Table2[[#This Row],[Sub]],NA()) -> 
A168: =ROW()-ROW(Table2[[#Headers],[Position]]) -> 167 | B168: 855.47 | C168: 715516.588 | D168: =Table2[[#This Row],[Cumulative revenue]]/SUM(Table2[Sub]) -> 0.9385384543 | E168: =IF(AND(Table2[[#This Row],[Cumulative revenue %]]>INDEX(Table1[Break point],Table2[[#Headers],[1]:[6]]), Table2[[#This Row],[Cumulative revenue %]]<=INDEX(Table1[Break point],Table2[[#Headers],[1]:[6]]+1)),Table2[[#This Row],[Sub]],NA()) ->  | F168: =IF(AND(Table2[[#This Row],[Cumulative revenue %]]>INDEX(Table1[Break point],Table2[[#Headers],[1]:[6]]), Table2[[#This Row],[Cumulative revenue %]]<=INDEX(Table1[Break point],Table2[[#Headers],[1]:[6]]+1)),Table2[[#This Row],[Sub]],NA()) ->  | G168: =IF(AND(Table2[[#This Row],[Cumulative revenue %]]>INDEX(Table1[Break point],Table2[[#Headers],[1]:[6]]), Table2[[#This Row],[Cumulative revenue %]]<=INDEX(Table1[Break point],Table2[[#Headers],[1]:[6]]+1)),Table2[[#This Row],[Sub]],NA()) ->  | H168: =IF(AND(Table2[[#This Row],[Cumulative revenue %]]>INDEX(Table1[Break point],Table2[[#Headers],[1]:[6]]), Table2[[#This Row],[Cumulative revenue %]]<=INDEX(Table1[Break point],Table2[[#Headers],[1]:[6]]+1)),Table2[[#This Row],[Sub]],NA()) ->  | I168: =IF(AND(Table2[[#This Row],[Cumulative revenue %]]>INDEX(Table1[Break point],Table2[[#Headers],[1]:[6]]), Table2[[#This Row],[Cumulative revenue %]]<=INDEX(Table1[Break point],Table2[[#Headers],[1]:[6]]+1)),Table2[[#This Row],[Sub]],NA()) -> 855.47 | J168: =IF(AND(Table2[[#This Row],[Cumulative revenue %]]>INDEX(Table1[Break point],Table2[[#Headers],[1]:[6]]), Table2[[#This Row],[Cumulative revenue %]]<=INDEX(Table1[Break point],Table2[[#Headers],[1]:[6]]+1)),Table2[[#This Row],[Sub]],NA()) -> 
A169: =ROW()-ROW(Table2[[#Headers],[Position]]) -> 168 | B169: 849.87 | C169: 716366.458 | D169: =Table2[[#This Row],[Cumulative revenue]]/SUM(Table2[Sub]) -> 0.9396532232 | E169: =IF(AND(Table2[[#This Row],[Cumulative revenue %]]>INDEX(Table1[Break point],Table2[[#Headers],[1]:[6]]), Table2[[#This Row],[Cumulative revenue %]]<=INDEX(Table1[Break point],Table2[[#Headers],[1]:[6]]+1)),Table2[[#This Row],[Sub]],NA()) ->  | F169: =IF(AND(Table2[[#This Row],[Cumulative revenue %]]>INDEX(Table1[Break point],Table2[[#Headers],[1]:[6]]), Table2[[#This Row],[Cumulative revenue %]]<=INDEX(Table1[Break point],Table2[[#Headers],[1]:[6]]+1)),Table2[[#This Row],[Sub]],NA()) ->  | G169: =IF(AND(Table2[[#This Row],[Cumulative revenue %]]>INDEX(Table1[Break point],Table2[[#Headers],[1]:[6]]), Table2[[#This Row],[Cumulative revenue %]]<=INDEX(Table1[Break point],Table2[[#Headers],[1]:[6]]+1)),Table2[[#This Row],[Sub]],NA()) ->  | H169: =IF(AND(Table2[[#This Row],[Cumulative revenue %]]>INDEX(Table1[Break point],Table2[[#Headers],[1]:[6]]), Table2[[#This Row],[Cumulative revenue %]]<=INDEX(Table1[Break point],Table2[[#Headers],[1]:[6]]+1)),Table2[[#This Row],[Sub]],NA()) ->  | I169: =IF(AND(Table2[[#This Row],[Cumulative revenue %]]>INDEX(Table1[Break point],Table2[[#Headers],[1]:[6]]), Table2[[#This Row],[Cumulative revenue %]]<=INDEX(Table1[Break point],Table2[[#Headers],[1]:[6]]+1)),Table2[[#This Row],[Sub]],NA()) -> 849.87 | J169: =IF(AND(Table2[[#This Row],[Cumulative revenue %]]>INDEX(Table1[Break point],Table2[[#Headers],[1]:[6]]), Table2[[#This Row],[Cumulative revenue %]]<=INDEX(Table1[Break point],Table2[[#Headers],[1]:[6]]+1)),Table2[[#This Row],[Sub]],NA()) -> 
A170: =ROW()-ROW(Table2[[#Headers],[Position]]) -> 169 | B170: 845.39 | C170: 717211.848 | D170: =Table2[[#This Row],[Cumulative revenue]]/SUM(Table2[Sub]) -> 0.9407621158 | E170: =IF(AND(Table2[[#This Row],[Cumulative revenue %]]>INDEX(Table1[Break point],Table2[[#Headers],[1]:[6]]), Table2[[#This Row],[Cumulative revenue %]]<=INDEX(Table1[Break point],Table2[[#Headers],[1]:[6]]+1)),Table2[[#This Row],[Sub]],NA()) ->  | F170: =IF(AND(Table2[[#This Row],[Cumulative revenue %]]>INDEX(Table1[Break point],Table2[[#Headers],[1]:[6]]), Table2[[#This Row],[Cumulative revenue %]]<=INDEX(Table1[Break point],Table2[[#Headers],[1]:[6]]+1)),Table2[[#This Row],[Sub]],NA()) ->  | G170: =IF(AND(Table2[[#This Row],[Cumulative revenue %]]>INDEX(Table1[Break point],Table2[[#Headers],[1]:[6]]), Table2[[#This Row],[Cumulative revenue %]]<=INDEX(Table1[Break point],Table2[[#Headers],[1]:[6]]+1)),Table2[[#This Row],[Sub]],NA()) ->  | H170: =IF(AND(Table2[[#This Row],[Cumulative revenue %]]>INDEX(Table1[Break point],Table2[[#Headers],[1]:[6]]), Table2[[#This Row],[Cumulative revenue %]]<=INDEX(Table1[Break point],Table2[[#Headers],[1]:[6]]+1)),Table2[[#This Row],[Sub]],NA()) ->  | I170: =IF(AND(Table2[[#This Row],[Cumulative revenue %]]>INDEX(Table1[Break point],Table2[[#Headers],[1]:[6]]), Table2[[#This Row],[Cumulative revenue %]]<=INDEX(Table1[Break point],Table2[[#Headers],[1]:[6]]+1)),Table2[[#This Row],[Sub]],NA()) -> 845.39 | J170: =IF(AND(Table2[[#This Row],[Cumulative revenue %]]>INDEX(Table1[Break point],Table2[[#Headers],[1]:[6]]), Table2[[#This Row],[Cumulative revenue %]]<=INDEX(Table1[Break point],Table2[[#Headers],[1]:[6]]+1)),Table2[[#This Row],[Sub]],NA()) -> 
A171: =ROW()-ROW(Table2[[#Headers],[Position]]) -> 170 | B171: 821.66 | C171: 718033.508 | D171: =Table2[[#This Row],[Cumulative revenue]]/SUM(Table2[Sub]) -> 0.9418398819 | E171: =IF(AND(Table2[[#This Row],[Cumulative revenue %]]>INDEX(Table1[Break point],Table2[[#Headers],[1]:[6]]), Table2[[#This Row],[Cumulative revenue %]]<=INDEX(Table1[Break point],Table2[[#Headers],[1]:[6]]+1)),Table2[[#This Row],[Sub]],NA()) ->  | F171: =IF(AND(Table2[[#This Row],[Cumulative revenue %]]>INDEX(Table1[Break point],Table2[[#Headers],[1]:[6]]), Table2[[#This Row],[Cumulative revenue %]]<=INDEX(Table1[Break point],Table2[[#Headers],[1]:[6]]+1)),Table2[[#This Row],[Sub]],NA()) ->  | G171: =IF(AND(Table2[[#This Row],[Cumulative revenue %]]>INDEX(Table1[Break point],Table2[[#Headers],[1]:[6]]), Table2[[#This Row],[Cumulative revenue %]]<=INDEX(Table1[Break point],Table2[[#Headers],[1]:[6]]+1)),Table2[[#This Row],[Sub]],NA()) ->  | H171: =IF(AND(Table2[[#This Row],[Cumulative revenue %]]>INDEX(Table1[Break point],Table2[[#Headers],[1]:[6]]), Table2[[#This Row],[Cumulative revenue %]]<=INDEX(Table1[Break point],Table2[[#Headers],[1]:[6]]+1)),Table2[[#This Row],[Sub]],NA()) ->  | I171: =IF(AND(Table2[[#This Row],[Cumulative revenue %]]>INDEX(Table1[Break point],Table2[[#Headers],[1]:[6]]), Table2[[#This Row],[Cumulative revenue %]]<=INDEX(Table1[Break point],Table2[[#Headers],[1]:[6]]+1)),Table2[[#This Row],[Sub]],NA()) -> 821.66 | J171: =IF(AND(Table2[[#This Row],[Cumulative revenue %]]>INDEX(Table1[Break point],Table2[[#Headers],[1]:[6]]), Table2[[#This Row],[Cumulative revenue %]]<=INDEX(Table1[Break point],Table2[[#Headers],[1]:[6]]+1)),Table2[[#This Row],[Sub]],NA()) -> 
A172: =ROW()-ROW(Table2[[#Headers],[Position]]) -> 171 | B172: 799.77 | C172: 718833.278 | D172: =Table2[[#This Row],[Cumulative revenue]]/SUM(Table2[Sub]) -> 0.942888935 | E172: =IF(AND(Table2[[#This Row],[Cumulative revenue %]]>INDEX(Table1[Break point],Table2[[#Headers],[1]:[6]]), Table2[[#This Row],[Cumulative revenue %]]<=INDEX(Table1[Break point],Table2[[#Headers],[1]:[6]]+1)),Table2[[#This Row],[Sub]],NA()) ->  | F172: =IF(AND(Table2[[#This Row],[Cumulative revenue %]]>INDEX(Table1[Break point],Table2[[#Headers],[1]:[6]]), Table2[[#This Row],[Cumulative revenue %]]<=INDEX(Table1[Break point],Table2[[#Headers],[1]:[6]]+1)),Table2[[#This Row],[Sub]],NA()) ->  | G172: =IF(AND(Table2[[#This Row],[Cumulative revenue %]]>INDEX(Table1[Break point],Table2[[#Headers],[1]:[6]]), Table2[[#This Row],[Cumulative revenue %]]<=INDEX(Table1[Break point],Table2[[#Headers],[1]:[6]]+1)),Table2[[#This Row],[Sub]],NA()) ->  | H172: =IF(AND(Table2[[#This Row],[Cumulative revenue %]]>INDEX(Table1[Break point],Table2[[#Headers],[1]:[6]]), Table2[[#This Row],[Cumulative revenue %]]<=INDEX(Table1[Break point],Table2[[#Headers],[1]:[6]]+1)),Table2[[#This Row],[Sub]],NA()) ->  | I172: =IF(AND(Table2[[#This Row],[Cumulative revenue %]]>INDEX(Table1[Break point],Table2[[#Headers],[1]:[6]]), Table2[[#This Row],[Cumulative revenue %]]<=INDEX(Table1[Break point],Table2[[#Headers],[1]:[6]]+1)),Table2[[#This Row],[Sub]],NA()) -> 799.77 | J172: =IF(AND(Table2[[#This Row],[Cumulative revenue %]]>INDEX(Table1[Break point],Table2[[#Headers],[1]:[6]]), Table2[[#This Row],[Cumulative revenue %]]<=INDEX(Table1[Break point],Table2[[#Headers],[1]:[6]]+1)),Table2[[#This Row],[Sub]],NA()) -> 
A173: =ROW()-ROW(Table2[[#Headers],[Position]]) -> 172 | B173: 799.67 | C173: 719632.948 | D173: =Table2[[#This Row],[Cumulative revenue]]/SUM(Table2[Sub]) -> 0.9439378569 | E173: =IF(AND(Table2[[#This Row],[Cumulative revenue %]]>INDEX(Table1[Break point],Table2[[#Headers],[1]:[6]]), Table2[[#This Row],[Cumulative revenue %]]<=INDEX(Table1[Break point],Table2[[#Headers],[1]:[6]]+1)),Table2[[#This Row],[Sub]],NA()) ->  | F173: =IF(AND(Table2[[#This Row],[Cumulative revenue %]]>INDEX(Table1[Break point],Table2[[#Headers],[1]:[6]]), Table2[[#This Row],[Cumulative revenue %]]<=INDEX(Table1[Break point],Table2[[#Headers],[1]:[6]]+1)),Table2[[#This Row],[Sub]],NA()) ->  | G173: =IF(AND(Table2[[#This Row],[Cumulative revenue %]]>INDEX(Table1[Break point],Table2[[#Headers],[1]:[6]]), Table2[[#This Row],[Cumulative revenue %]]<=INDEX(Table1[Break point],Table2[[#Headers],[1]:[6]]+1)),Table2[[#This Row],[Sub]],NA()) ->  | H173: =IF(AND(Table2[[#This Row],[Cumulative revenue %]]>INDEX(Table1[Break point],Table2[[#Headers],[1]:[6]]), Table2[[#This Row],[Cumulative revenue %]]<=INDEX(Table1[Break point],Table2[[#Headers],[1]:[6]]+1)),Table2[[#This Row],[Sub]],NA()) ->  | I173: =IF(AND(Table2[[#This Row],[Cumulative revenue %]]>INDEX(Table1[Break point],Table2[[#Headers],[1]:[6]]), Table2[[#This Row],[Cumulative revenue %]]<=INDEX(Table1[Break point],Table2[[#Headers],[1]:[6]]+1)),Table2[[#This Row],[Sub]],NA()) -> 799.67 | J173: =IF(AND(Table2[[#This Row],[Cumulative revenue %]]>INDEX(Table1[Break point],Table2[[#Headers],[1]:[6]]), Table2[[#This Row],[Cumulative revenue %]]<=INDEX(Table1[Break point],Table2[[#Headers],[1]:[6]]+1)),Table2[[#This Row],[Sub]],NA()) -> 
A174: =ROW()-ROW(Table2[[#Headers],[Position]]) -> 173 | B174: 790 | C174: 720422.948 | D174: =Table2[[#This Row],[Cumulative revenue]]/SUM(Table2[Sub]) -> 0.9449740948 | E174: =IF(AND(Table2[[#This Row],[Cumulative revenue %]]>INDEX(Table1[Break point],Table2[[#Headers],[1]:[6]]), Table2[[#This Row],[Cumulative revenue %]]<=INDEX(Table1[Break point],Table2[[#Headers],[1]:[6]]+1)),Table2[[#This Row],[Sub]],NA()) ->  | F174: =IF(AND(Table2[[#This Row],[Cumulative revenue %]]>INDEX(Table1[Break point],Table2[[#Headers],[1]:[6]]), Table2[[#This Row],[Cumulative revenue %]]<=INDEX(Table1[Break point],Table2[[#Headers],[1]:[6]]+1)),Table2[[#This Row],[Sub]],NA()) ->  | G174: =IF(AND(Table2[[#This Row],[Cumulative revenue %]]>INDEX(Table1[Break point],Table2[[#Headers],[1]:[6]]), Table2[[#This Row],[Cumulative revenue %]]<=INDEX(Table1[Break point],Table2[[#Headers],[1]:[6]]+1)),Table2[[#This Row],[Sub]],NA()) ->  | H174: =IF(AND(Table2[[#This Row],[Cumulative revenue %]]>INDEX(Table1[Break point],Table2[[#Headers],[1]:[6]]), Table2[[#This Row],[Cumulative revenue %]]<=INDEX(Table1[Break point],Table2[[#Headers],[1]:[6]]+1)),Table2[[#This Row],[Sub]],NA()) ->  | I174: =IF(AND(Table2[[#This Row],[Cumulative revenue %]]>INDEX(Table1[Break point],Table2[[#Headers],[1]:[6]]), Table2[[#This Row],[Cumulative revenue %]]<=INDEX(Table1[Break point],Table2[[#Headers],[1]:[6]]+1)),Table2[[#This Row],[Sub]],NA()) -> 790 | J174: =IF(AND(Table2[[#This Row],[Cumulative revenue %]]>INDEX(Table1[Break point],Table2[[#Headers],[1]:[6]]), Table2[[#This Row],[Cumulative revenue %]]<=INDEX(Table1[Break point],Table2[[#Headers],[1]:[6]]+1)),Table2[[#This Row],[Sub]],NA()) -> 
A175: =ROW()-ROW(Table2[[#Headers],[Position]]) -> 174 | B175: 790 | C175: 721212.948 | D175: =Table2[[#This Row],[Cumulative revenue]]/SUM(Table2[Sub]) -> 0.9460103327 | E175: =IF(AND(Table2[[#This Row],[Cumulative revenue %]]>INDEX(Table1[Break point],Table2[[#Headers],[1]:[6]]), Table2[[#This Row],[Cumulative revenue %]]<=INDEX(Table1[Break point],Table2[[#Headers],[1]:[6]]+1)),Table2[[#This Row],[Sub]],NA()) ->  | F175: =IF(AND(Table2[[#This Row],[Cumulative revenue %]]>INDEX(Table1[Break point],Table2[[#Headers],[1]:[6]]), Table2[[#This Row],[Cumulative revenue %]]<=INDEX(Table1[Break point],Table2[[#Headers],[1]:[6]]+1)),Table2[[#This Row],[Sub]],NA()) ->  | G175: =IF(AND(Table2[[#This Row],[Cumulative revenue %]]>INDEX(Table1[Break point],Table2[[#Headers],[1]:[6]]), Table2[[#This Row],[Cumulative revenue %]]<=INDEX(Table1[Break point],Table2[[#Headers],[1]:[6]]+1)),Table2[[#This Row],[Sub]],NA()) ->  | H175: =IF(AND(Table2[[#This Row],[Cumulative revenue %]]>INDEX(Table1[Break point],Table2[[#Headers],[1]:[6]]), Table2[[#This Row],[Cumulative revenue %]]<=INDEX(Table1[Break point],Table2[[#Headers],[1]:[6]]+1)),Table2[[#This Row],[Sub]],NA()) ->  | I175: =IF(AND(Table2[[#This Row],[Cumulative revenue %]]>INDEX(Table1[Break point],Table2[[#Headers],[1]:[6]]), Table2[[#This Row],[Cumulative revenue %]]<=INDEX(Table1[Break point],Table2[[#Headers],[1]:[6]]+1)),Table2[[#This Row],[Sub]],NA()) -> 790 | J175: =IF(AND(Table2[[#This Row],[Cumulative revenue %]]>INDEX(Table1[Break point],Table2[[#Headers],[1]:[6]]), Table2[[#This Row],[Cumulative revenue %]]<=INDEX(Table1[Break point],Table2[[#Headers],[1]:[6]]+1)),Table2[[#This Row],[Sub]],NA()) -> 
A176: =ROW()-ROW(Table2[[#Headers],[Position]]) -> 175 | B176: 790 | C176: 722002.948 | D176: =Table2[[#This Row],[Cumulative revenue]]/SUM(Table2[Sub]) -> 0.9470465705 | E176: =IF(AND(Table2[[#This Row],[Cumulative revenue %]]>INDEX(Table1[Break point],Table2[[#Headers],[1]:[6]]), Table2[[#This Row],[Cumulative revenue %]]<=INDEX(Table1[Break point],Table2[[#Headers],[1]:[6]]+1)),Table2[[#This Row],[Sub]],NA()) ->  | F176: =IF(AND(Table2[[#This Row],[Cumulative revenue %]]>INDEX(Table1[Break point],Table2[[#Headers],[1]:[6]]), Table2[[#This Row],[Cumulative revenue %]]<=INDEX(Table1[Break point],Table2[[#Headers],[1]:[6]]+1)),Table2[[#This Row],[Sub]],NA()) ->  | G176: =IF(AND(Table2[[#This Row],[Cumulative revenue %]]>INDEX(Table1[Break point],Table2[[#Headers],[1]:[6]]), Table2[[#This Row],[Cumulative revenue %]]<=INDEX(Table1[Break point],Table2[[#Headers],[1]:[6]]+1)),Table2[[#This Row],[Sub]],NA()) ->  | H176: =IF(AND(Table2[[#This Row],[Cumulative revenue %]]>INDEX(Table1[Break point],Table2[[#Headers],[1]:[6]]), Table2[[#This Row],[Cumulative revenue %]]<=INDEX(Table1[Break point],Table2[[#Headers],[1]:[6]]+1)),Table2[[#This Row],[Sub]],NA()) ->  | I176: =IF(AND(Table2[[#This Row],[Cumulative revenue %]]>INDEX(Table1[Break point],Table2[[#Headers],[1]:[6]]), Table2[[#This Row],[Cumulative revenue %]]<=INDEX(Table1[Break point],Table2[[#Headers],[1]:[6]]+1)),Table2[[#This Row],[Sub]],NA()) -> 790 | J176: =IF(AND(Table2[[#This Row],[Cumulative revenue %]]>INDEX(Table1[Break point],Table2[[#Headers],[1]:[6]]), Table2[[#This Row],[Cumulative revenue %]]<=INDEX(Table1[Break point],Table2[[#Headers],[1]:[6]]+1)),Table2[[#This Row],[Sub]],NA()) -> 
A177: =ROW()-ROW(Table2[[#Headers],[Position]]) -> 176 | B177: 732.79 | C177: 722735.738 | D177: =Table2[[#This Row],[Cumulative revenue]]/SUM(Table2[Sub]) -> 0.9480077664 | E177: =IF(AND(Table2[[#This Row],[Cumulative revenue %]]>INDEX(Table1[Break point],Table2[[#Headers],[1]:[6]]), Table2[[#This Row],[Cumulative revenue %]]<=INDEX(Table1[Break point],Table2[[#Headers],[1]:[6]]+1)),Table2[[#This Row],[Sub]],NA()) ->  | F177: =IF(AND(Table2[[#This Row],[Cumulative revenue %]]>INDEX(Table1[Break point],Table2[[#Headers],[1]:[6]]), Table2[[#This Row],[Cumulative revenue %]]<=INDEX(Table1[Break point],Table2[[#Headers],[1]:[6]]+1)),Table2[[#This Row],[Sub]],NA()) ->  | G177: =IF(AND(Table2[[#This Row],[Cumulative revenue %]]>INDEX(Table1[Break point],Table2[[#Headers],[1]:[6]]), Table2[[#This Row],[Cumulative revenue %]]<=INDEX(Table1[Break point],Table2[[#Headers],[1]:[6]]+1)),Table2[[#This Row],[Sub]],NA()) ->  | H177: =IF(AND(Table2[[#This Row],[Cumulative revenue %]]>INDEX(Table1[Break point],Table2[[#Headers],[1]:[6]]), Table2[[#This Row],[Cumulative revenue %]]<=INDEX(Table1[Break point],Table2[[#Headers],[1]:[6]]+1)),Table2[[#This Row],[Sub]],NA()) ->  | I177: =IF(AND(Table2[[#This Row],[Cumulative revenue %]]>INDEX(Table1[Break point],Table2[[#Headers],[1]:[6]]), Table2[[#This Row],[Cumulative revenue %]]<=INDEX(Table1[Break point],Table2[[#Headers],[1]:[6]]+1)),Table2[[#This Row],[Sub]],NA()) -> 732.79 | J177: =IF(AND(Table2[[#This Row],[Cumulative revenue %]]>INDEX(Table1[Break point],Table2[[#Headers],[1]:[6]]), Table2[[#This Row],[Cumulative revenue %]]<=INDEX(Table1[Break point],Table2[[#Headers],[1]:[6]]+1)),Table2[[#This Row],[Sub]],NA()) -> 
A178: =ROW()-ROW(Table2[[#Headers],[Position]]) -> 177 | B178: 696.56 | C178: 723432.298 | D178: =Table2[[#This Row],[Cumulative revenue]]/SUM(Table2[Sub]) -> 0.9489214396 | E178: =IF(AND(Table2[[#This Row],[Cumulative revenue %]]>INDEX(Table1[Break point],Table2[[#Headers],[1]:[6]]), Table2[[#This Row],[Cumulative revenue %]]<=INDEX(Table1[Break point],Table2[[#Headers],[1]:[6]]+1)),Table2[[#This Row],[Sub]],NA()) ->  | F178: =IF(AND(Table2[[#This Row],[Cumulative revenue %]]>INDEX(Table1[Break point],Table2[[#Headers],[1]:[6]]), Table2[[#This Row],[Cumulative revenue %]]<=INDEX(Table1[Break point],Table2[[#Headers],[1]:[6]]+1)),Table2[[#This Row],[Sub]],NA()) ->  | G178: =IF(AND(Table2[[#This Row],[Cumulative revenue %]]>INDEX(Table1[Break point],Table2[[#Headers],[1]:[6]]), Table2[[#This Row],[Cumulative revenue %]]<=INDEX(Table1[Break point],Table2[[#Headers],[1]:[6]]+1)),Table2[[#This Row],[Sub]],NA()) ->  | H178: =IF(AND(Table2[[#This Row],[Cumulative revenue %]]>INDEX(Table1[Break point],Table2[[#Headers],[1]:[6]]), Table2[[#This Row],[Cumulative revenue %]]<=INDEX(Table1[Break point],Table2[[#Headers],[1]:[6]]+1)),Table2[[#This Row],[Sub]],NA()) ->  | I178: =IF(AND(Table2[[#This Row],[Cumulative revenue %]]>INDEX(Table1[Break point],Table2[[#Headers],[1]:[6]]), Table2[[#This Row],[Cumulative revenue %]]<=INDEX(Table1[Break point],Table2[[#Headers],[1]:[6]]+1)),Table2[[#This Row],[Sub]],NA()) -> 696.56 | J178: =IF(AND(Table2[[#This Row],[Cumulative revenue %]]>INDEX(Table1[Break point],Table2[[#Headers],[1]:[6]]), Table2[[#This Row],[Cumulative revenue %]]<=INDEX(Table1[Break point],Table2[[#Headers],[1]:[6]]+1)),Table2[[#This Row],[Sub]],NA()) -> 
